Workbook

Sheet DL1153_2025
AO1: 1 | BB1: 1
B2: REPORTE DE INDICADORES DE CONVENIOS DE GESTION DL 1153 - 2025 | DICIEMBRE 2025
B4: DIRIS/DIRESA | C4: NACIONAL
B6: Area Responsable | C6: Indicador | D6: Valor 2025 | E6: DICIEMBRE | F6: Mes mínimo | G6: Mes máximo | H6: Comportamiento mensual | AP6: 2 | AQ6: 3 | AR6: 4 | AS6: 5 | AT6: 6 | AU6: 7 | AV6: 8 | AW6: 9 | AX6: 10 | AY6: 11 | AZ6: 12 | BA6: 13
A7: DL_1153_2024_CG01 | B7: DGIESP /UFANS | C7: Ficha 01: Porcentaje de niñas y niños de 12 a 18 meses, con diagnóstico de anemia entre los 6 y 11 meses, que se han recuperado. | D7: =IFERROR(VLOOKUP($C$4,DL_1153_2025_CG01!BP62:BQ91,2,0),"-") -> 0.4173808364 | E7: =+IFERROR(VLOOKUP($E$6,DL_1153_2025_CG01!$CN$47:$DR$59,MATCH(DL1153_2025!$C$4,DL_1153_2025_CG01!$CN$47:$DR$47,0),FALSE),"-") -> 0.4212564544 | F7: =+IFERROR(VLOOKUP($C$4,DL_1153_2025_CG01!$CI$62:$CK$91,2,0),"-") -> 0.310943185 | G7: =+IFERROR(VLOOKUP($C$4,DL_1153_2025_CG01!$CI$62:$CK$91,3,0),"-") -> 0.4964778811 | AP7: =+IFERROR(VLOOKUP($C$4,DL_1153_2025_CG01!$BU$61:$CG$91,DL1153_2025!AP$6,0),"-") -> 0.310943185 | AQ7: =+IFERROR(VLOOKUP($C$4,DL_1153_2025_CG01!$BU$61:$CG$91,DL1153_2025!AQ$6,0),"-") -> 0.3496693893 | AR7: =+IFERROR(VLOOKUP($C$4,DL_1153_2025_CG01!$BU$61:$CG$91,DL1153_2025!AR$6,0),"-") -> 0.3653995345 | AS7: =+IFERROR(VLOOKUP($C$4,DL_1153_2025_CG01!$BU$61:$CG$91,DL1153_2025!AS$6,0),"-") -> 0.3756887052 | AT7: =+IFERROR(VLOOKUP($C$4,DL_1153_2025_CG01!$BU$61:$CG$91,DL1153_2025!AT$6,0),"-") -> 0.4187874251 | AU7: =+IFERROR(VLOOKUP($C$4,DL_1153_2025_CG01!$BU$61:$CG$91,DL1153_2025!AU$6,0),"-") -> 0.4340118188 | AV7: =+IFERROR(VLOOKUP($C$4,DL_1153_2025_CG01!$BU$61:$CG$91,DL1153_2025!AV$6,0),"-") -> 0.4591527988 | AW7: =+IFERROR(VLOOKUP($C$4,DL_1153_2025_CG01!$BU$61:$CG$91,DL1153_2025!AW$6,0),"-") -> 0.4964778811 | AX7: =+IFERROR(VLOOKUP($C$4,DL_1153_2025_CG01!$BU$61:$CG$91,DL1153_2025!AX$6,0),"-") -> 0.475465313 | AY7: =+IFERROR(VLOOKUP($C$4,DL_1153_2025_CG01!$BU$61:$CG$91,DL1153_2025!AY$6,0),"-") -> 0.4486040609 | AZ7: =+IFERROR(VLOOKUP($C$4,DL_1153_2025_CG01!$BU$61:$CG$91,DL1153_2025!AZ$6,0),"-") -> 0.439055794 | BA7: =+IFERROR(VLOOKUP($C$4,DL_1153_2025_CG01!$BU$61:$CG$91,DL1153_2025!BA$6,0),"-") -> 0.4212564544
A8: DL_1153_2024_CG02 | B8: DGIESP / UFANS | C8: Ficha 02: Porcentaje de niñas/niños menores de 12 meses, que reciben un paquete integrado de servicios: CRED, vacunas, dosaje de hemoglobina para descarte de anemia y suplementación con hierro. | D8: =IFERROR(VLOOKUP($C$4,DL_1153_2025_CG02!BQ62:BR91,2,0),"-") -> 0.5315868015 | E8: =+IFERROR(VLOOKUP($E$6,DL_1153_2025_CG02!$CM$28:$DQ$40,MATCH(DL1153_2025!$C$4,DL_1153_2025_CG02!$CM$28:$DQ$28,0),FALSE),"-") -> 0.5315868015 | F8: =+IFERROR(VLOOKUP($C$4,DL_1153_2025_CG02!$CI$62:$CK$91,2,0),"-") -> 0.3511450382 | G8: =+IFERROR(VLOOKUP($C$4,DL_1153_2025_CG02!$CI$62:$CK$91,3,0),"-") -> 0.5456451811 | AP8: =+VLOOKUP($C$4,DL_1153_2025_CG02!$BU$61:$CG$91,DL1153_2025!AP$6,0) -> 0.3511450382 | AQ8: =+VLOOKUP($C$4,DL_1153_2025_CG02!$BU$61:$CG$91,DL1153_2025!AQ$6,0) -> 0.3675867622 | AR8: =+IFERROR(VLOOKUP($C$4,DL_1153_2025_CG02!$BU$61:$CG$91,DL1153_2025!AR$6,0),"-") -> 0.3992571751 | AS8: =+VLOOKUP($C$4,DL_1153_2025_CG02!$BU$61:$CG$91,DL1153_2025!AS$6,0) -> 0.4361683295 | AT8: =+VLOOKUP($C$4,DL_1153_2025_CG02!$BU$61:$CG$91,DL1153_2025!AT$6,0) -> 0.4639336129 | AU8: =+VLOOKUP($C$4,DL_1153_2025_CG02!$BU$61:$CG$91,DL1153_2025!AU$6,0) -> 0.496209988 | AV8: =+VLOOKUP($C$4,DL_1153_2025_CG02!$BU$61:$CG$91,DL1153_2025!AV$6,0) -> 0.5134902609 | AW8: =+VLOOKUP($C$4,DL_1153_2025_CG02!$BU$61:$CG$91,DL1153_2025!AW$6,0) -> 0.5355032541 | AX8: =+VLOOKUP($C$4,DL_1153_2025_CG02!$BU$61:$CG$91,DL1153_2025!AX$6,0) -> 0.5406845862 | AY8: =+VLOOKUP($C$4,DL_1153_2025_CG02!$BU$61:$CG$91,DL1153_2025!AY$6,0) -> 0.540768416 | AZ8: =+VLOOKUP($C$4,DL_1153_2025_CG02!$BU$61:$CG$91,DL1153_2025!AZ$6,0) -> 0.5456451811 | BA8: =+VLOOKUP($C$4,DL_1153_2025_CG02!$BU$61:$CG$91,DL1153_2025!BA$6,0) -> 0.5315868015
A9: DL_1153_2024_CG03 | B9: DGIESP / DVICI | C9: Ficha 03: Porcentaje de niños y niñas de 6 a 35 meses con diagnóstico de anemia del Total de los casos esperados de anemia | D9: =IFERROR(VLOOKUP($C$4,DL_1153_2025_CG03!BH62:BI91,2,0),"-") -> 0.2350341982 | E9: =+IFERROR(VLOOKUP($E$6,DL_1153_2025_CG03!$CD$35:$DZ$47,MATCH(DL1153_2025!$C$4,DL_1153_2025_CG03!$CD$35:$DH$35,0),FALSE),"-") -> 0.215349695 | F9: =+IFERROR(VLOOKUP($C$4,DL_1153_2025_CG03!$BZ$62:$CB$91,2,0),"-") -> 0.2111343382 | G9: =+IFERROR(VLOOKUP($C$4,DL_1153_2025_CG03!$BZ$62:$CB$91,3,0),"-") -> 0.2631529544 | AP9: =+IFERROR(VLOOKUP($C$4,DL_1153_2025_CG03!$BL$50:$BX$80,DL1153_2025!AP$6,0),"-") -> 0.2631529544 | AQ9: =+IFERROR(VLOOKUP($C$4,DL_1153_2025_CG03!$BL$50:$BX$80,DL1153_2025!AQ$6,0),"-") -> 0.2589145254 | AR9: =+IFERROR(VLOOKUP($C$4,DL_1153_2025_CG03!$BL$50:$BX$80,DL1153_2025!AR$6,0),"-") -> 0.2548922292 | AS9: =+IFERROR(VLOOKUP($C$4,DL_1153_2025_CG03!$BL$50:$BX$80,DL1153_2025!AS$6,0),"-") -> 0.2535421699 | AT9: =+IFERROR(VLOOKUP($C$4,DL_1153_2025_CG03!$BL$50:$BX$80,DL1153_2025!AT$6,0),"-") -> 0.244074359 | AU9: =+IFERROR(VLOOKUP($C$4,DL_1153_2025_CG03!$BL$50:$BX$80,DL1153_2025!AU$6,0),"-") -> 0.2270691437 | AV9: =+IFERROR(VLOOKUP($C$4,DL_1153_2025_CG03!$BL$50:$BX$80,DL1153_2025!AV$6,0),"-") -> 0.2262481129 | AW9: =+IFERROR(VLOOKUP($C$4,DL_1153_2025_CG03!$BL$50:$BX$80,DL1153_2025!AW$6,0),"-") -> 0.2230406444 | AX9: =+IFERROR(VLOOKUP($C$4,DL_1153_2025_CG03!$BL$50:$BX$80,DL1153_2025!AX$6,0),"-") -> 0.2142702586 | AY9: =+IFERROR(VLOOKUP($C$4,DL_1153_2025_CG03!$BL$50:$BX$80,DL1153_2025!AY$6,0),"-") -> 0.2111343382 | AZ9: =+IFERROR(VLOOKUP($C$4,DL_1153_2025_CG03!$BL$50:$BX$80,DL1153_2025!AZ$6,0),"-") -> 0.2166454524 | BA9: =+IFERROR(VLOOKUP($C$4,DL_1153_2025_CG03!$BL$50:$BX$80,DL1153_2025!BA$6,0),"-") -> 0.215349695
A10: DL_1153_2024_CG04 | B10: DGIESP / DVICI | C10: Ficha 04:Porcentaje de recién nacidos que reciben vacunas BCG, HvB, controles CRED y tamizaje neonatal metabólico. | D10: =IFERROR(VLOOKUP($C$4,DL_1153_2025_CG04!BO51:BP81,2,0),"-") -> 0.5340358286 | E10: =+IFERROR(VLOOKUP($E$6,DL_1153_2025_CG04!$CL$36:$DP$48,MATCH(DL1153_2025!$C$4,DL_1153_2025_CG04!$CL$36:$DP$36,0),FALSE),"-") -> 0.5021317911 | F10: =+IFERROR(VLOOKUP($C$4,DL_1153_2025_CG04!$CG$52:$CI$81,2,0),"-") -> 0.4237616099 | G10: =+IFERROR(VLOOKUP($C$4,DL_1153_2025_CG04!$CG$52:$CI$81,3,0),"-") -> 0.5714509374 | AP10: =+IFERROR(VLOOKUP($C$4,DL_1153_2025_CG04!$BS$51:$CE$81,DL1153_2025!AP$6,0),"-") -> 0.4237616099 | AQ10: =+IFERROR(VLOOKUP($C$4,DL_1153_2025_CG04!$BS$51:$CE$81,DL1153_2025!AQ$6,0),"-") -> 0.546062674 | AR10: =+IFERROR(VLOOKUP($C$4,DL_1153_2025_CG04!$BS$51:$CE$81,DL1153_2025!AR$6,0),"-") -> 0.5714509374 | AS10: =+IFERROR(VLOOKUP($C$4,DL_1153_2025_CG04!$BS$51:$CE$81,DL1153_2025!AS$6,0),"-") -> 0.5506115728 | AT10: =+IFERROR(VLOOKUP($C$4,DL_1153_2025_CG04!$BS$51:$CE$81,DL1153_2025!AT$6,0),"-") -> 0.5329838866 | AU10: =+IFERROR(VLOOKUP($C$4,DL_1153_2025_CG04!$BS$51:$CE$81,DL1153_2025!AU$6,0),"-") -> 0.5591432613 | AV10: =+IFERROR(VLOOKUP($C$4,DL_1153_2025_CG04!$BS$51:$CE$81,DL1153_2025!AV$6,0),"-") -> 0.5550285784 | AW10: =+IFERROR(VLOOKUP($C$4,DL_1153_2025_CG04!$BS$51:$CE$81,DL1153_2025!AW$6,0),"-") -> 0.5446631184 | AX10: =+IFERROR(VLOOKUP($C$4,DL_1153_2025_CG04!$BS$51:$CE$81,DL1153_2025!AX$6,0),"-") -> 0.5459711185 | AY10: =+IFERROR(VLOOKUP($C$4,DL_1153_2025_CG04!$BS$51:$CE$81,DL1153_2025!AY$6,0),"-") -> 0.5452380023 | AZ10: =+IFERROR(VLOOKUP($C$4,DL_1153_2025_CG04!$BS$51:$CE$81,DL1153_2025!AZ$6,0),"-") -> 0.5226492942 | BA10: =+IFERROR(VLOOKUP($C$4,DL_1153_2025_CG04!$BS$51:$CE$81,DL1153_2025!BA$6,0),"-") -> 0.5021317911
A11: DL_1153_2024_CG05 | B11: DGIESP / DMUNI | C11: Ficha 05:Porcentaje de niñas y niños menores de 2 años en condición crecimiento inadecuado que luego de un periodo de seguimiento mejora sus condiciones nutricionales. | D11: =IFERROR(VLOOKUP($C$4,DL_1153_2025_CG05!BQ47:BR77,2,0),"-") -> 0.2930855122 | E11: =+IFERROR(VLOOKUP($E$6,DL_1153_2025_CG05!$CN$36:$DR$48,MATCH(DL1153_2025!$C$4,DL_1153_2025_CG05!$CN$36:$DR$36,0),FALSE),"-") -> 0.3355130785 | F11: =+IFERROR(VLOOKUP($C$4,DL_1153_2025_CG05!$CI$48:$CK$77,2,0),"-") -> 0.09523809524 | G11: =+IFERROR(VLOOKUP($C$4,DL_1153_2025_CG05!$CI$48:$CK$77,3,0),"-") -> 0.3666943522 | AP11: =+VLOOKUP(DL1153_2025!$C$4,DL_1153_2025_CG05!$BU$47:$CG$77,DL1153_2025!AP$6,0) -> 0.09523809524 | AQ11: =+VLOOKUP(DL1153_2025!$C$4,DL_1153_2025_CG05!$BU$47:$CG$77,DL1153_2025!AQ$6,0) -> 0.2209944751 | AR11: =+VLOOKUP(DL1153_2025!$C$4,DL_1153_2025_CG05!$BU$47:$CG$77,DL1153_2025!AR$6,0) -> 0.3012535382 | AS11: =+VLOOKUP(DL1153_2025!$C$4,DL_1153_2025_CG05!$BU$47:$CG$77,DL1153_2025!AS$6,0) -> 0.3186627169 | AT11: =+VLOOKUP(DL1153_2025!$C$4,DL_1153_2025_CG05!$BU$47:$CG$77,DL1153_2025!AT$6,0) -> 0.294504644 | AU11: =+VLOOKUP(DL1153_2025!$C$4,DL_1153_2025_CG05!$BU$47:$CG$77,DL1153_2025!AU$6,0) -> 0.310546875 | AV11: =+VLOOKUP(DL1153_2025!$C$4,DL_1153_2025_CG05!$BU$47:$CG$77,DL1153_2025!AV$6,0) -> 0.3666943522 | AW11: =+VLOOKUP(DL1153_2025!$C$4,DL_1153_2025_CG05!$BU$47:$CG$77,DL1153_2025!AW$6,0) -> 0.3635962979 | AX11: =+VLOOKUP(DL1153_2025!$C$4,DL_1153_2025_CG05!$BU$47:$CG$77,DL1153_2025!AX$6,0) -> 0.3594059406 | AY11: =+VLOOKUP(DL1153_2025!$C$4,DL_1153_2025_CG05!$BU$47:$CG$77,DL1153_2025!AY$6,0) -> 0.3536139067 | AZ11: =+VLOOKUP(DL1153_2025!$C$4,DL_1153_2025_CG05!$BU$47:$CG$77,DL1153_2025!AZ$6,0) -> 0.3237410072 | BA11: =+VLOOKUP(DL1153_2025!$C$4,DL_1153_2025_CG05!$BU$47:$CG$77,DL1153_2025!BA$6,0) -> 0.3355130785
A12: DL_1153_2024_CG06 | B12: DGIESP /DPROM | C12: Ficha 06:Porcentaje de niñas y niños de 1 año vacunados con dos dosis de vacuna sarampión, parotiditis y rubeola (SPR). | D12: =IFERROR(VLOOKUP($C$4,DL_1153_2025_CG06!BQ50:BR80,2,0),"-") -> 0.6990666332 | E12: =+IFERROR(VLOOKUP($E$6,DL_1153_2025_CG06!$CN$36:$DR$48,MATCH(DL1153_2025!$C$4,DL_1153_2025_CG06!$CN$36:$DR$36,0),FALSE),"-") -> 0.6990666332 | F12: =+IFERROR(VLOOKUP($C$4,DL_1153_2025_CG06!$CI$51:$CK$80,2,0),"-") -> 0.0589829792 | G12: =+IFERROR(VLOOKUP($C$4,DL_1153_2025_CG06!$CI$51:$CK$80,3,0),"-") -> 0.6990666332 | AP12: =+IFERROR(VLOOKUP($C$4,DL_1153_2025_CG06!$BU$50:$CG$80,DL1153_2025!AP$6,0),"-") -> 0.0589829792 | AQ12: =+IFERROR(VLOOKUP($C$4,DL_1153_2025_CG06!$BU$50:$CG$80,DL1153_2025!AQ$6,0),"-") -> 0.1139970608 | AR12: =+IFERROR(VLOOKUP($C$4,DL_1153_2025_CG06!$BU$50:$CG$80,DL1153_2025!AR$6,0),"-") -> 0.1784234507 | AS12: =+IFERROR(VLOOKUP($C$4,DL_1153_2025_CG06!$BU$50:$CG$80,DL1153_2025!AS$6,0),"-") -> 0.2404046064 | AT12: =+IFERROR(VLOOKUP($C$4,DL_1153_2025_CG06!$BU$50:$CG$80,DL1153_2025!AT$6,0),"-") -> 0.3021891604 | AU12: =+IFERROR(VLOOKUP($C$4,DL_1153_2025_CG06!$BU$50:$CG$80,DL1153_2025!AU$6,0),"-") -> 0.356807581 | AV12: =+IFERROR(VLOOKUP($C$4,DL_1153_2025_CG06!$BU$50:$CG$80,DL1153_2025!AV$6,0),"-") -> 0.4132371951 | AW12: =+IFERROR(VLOOKUP($C$4,DL_1153_2025_CG06!$BU$50:$CG$80,DL1153_2025!AW$6,0),"-") -> 0.4723307628 | AX12: =+IFERROR(VLOOKUP($C$4,DL_1153_2025_CG06!$BU$50:$CG$80,DL1153_2025!AX$6,0),"-") -> 0.530409374 | AY12: =+IFERROR(VLOOKUP($C$4,DL_1153_2025_CG06!$BU$50:$CG$80,DL1153_2025!AY$6,0),"-") -> 0.5914861617 | AZ12: =+IFERROR(VLOOKUP($C$4,DL_1153_2025_CG06!$BU$50:$CG$80,DL1153_2025!AZ$6,0),"-") -> 0.6486259996 | BA12: =+IFERROR(VLOOKUP($C$4,DL_1153_2025_CG06!$BU$50:$CG$80,DL1153_2025!BA$6,0),"-") -> 0.6990666332
A13: DL_1153_2024_CG07 | B13: DGIESP / DMUNI | C13: Ficha 07:Porcentaje de recién nacidos de parto institucional, vacunados con BCG y Anti hepatitis B dentro de las 24 horas después del nacimiento. | D13: =IFERROR(VLOOKUP($C$4,DL_1153_2025_CG07!BM52:BN82,2,0),"-") -> 0.9380910056 | E13: =+IFERROR(VLOOKUP($E$6,DL_1153_2025_CG07!$CJ$36:$DN$48,MATCH(DL1153_2025!$C$4,DL_1153_2025_CG07!$CJ$36:$DN$36,0),FALSE),"-") -> 0.925980682 | F13: =+IFERROR(VLOOKUP($C$4,DL_1153_2025_CG07!$CE$53:$CG$82,2,0),"-") -> 0.9234705533 | G13: =+IFERROR(VLOOKUP($C$4,DL_1153_2025_CG07!$CE$53:$CG$82,3,0),"-") -> 0.9491608598 | AP13: =+IFERROR(VLOOKUP($C$4,DL_1153_2025_CG07!$BQ$52:$CC$82,DL1153_2025!AP$6,0),"-") -> 0.9431433538 | AQ13: =+IFERROR(VLOOKUP($C$4,DL_1153_2025_CG07!$BQ$52:$CC$82,DL1153_2025!AQ$6,0),"-") -> 0.9491608598 | AR13: =+IFERROR(VLOOKUP($C$4,DL_1153_2025_CG07!$BQ$52:$CC$82,DL1153_2025!AR$6,0),"-") -> 0.9424031345 | AS13: =+IFERROR(VLOOKUP($C$4,DL_1153_2025_CG07!$BQ$52:$CC$82,DL1153_2025!AS$6,0),"-") -> 0.9234705533 | AT13: =+IFERROR(VLOOKUP($C$4,DL_1153_2025_CG07!$BQ$52:$CC$82,DL1153_2025!AT$6,0),"-") -> 0.9396074933 | AU13: =+IFERROR(VLOOKUP($C$4,DL_1153_2025_CG07!$BQ$52:$CC$82,DL1153_2025!AU$6,0),"-") -> 0.9404078878 | AV13: =+IFERROR(VLOOKUP($C$4,DL_1153_2025_CG07!$BQ$52:$CC$82,DL1153_2025!AV$6,0),"-") -> 0.9420269313 | AW13: =+IFERROR(VLOOKUP($C$4,DL_1153_2025_CG07!$BQ$52:$CC$82,DL1153_2025!AW$6,0),"-") -> 0.9364696991 | AX13: =+IFERROR(VLOOKUP($C$4,DL_1153_2025_CG07!$BQ$52:$CC$82,DL1153_2025!AX$6,0),"-") -> 0.9372767339 | AY13: =+IFERROR(VLOOKUP($C$4,DL_1153_2025_CG07!$BQ$52:$CC$82,DL1153_2025!AY$6,0),"-") -> 0.9380314166 | AZ13: =+IFERROR(VLOOKUP($C$4,DL_1153_2025_CG07!$BQ$52:$CC$82,DL1153_2025!AZ$6,0),"-") -> 0.9390056127 | BA13: =+IFERROR(VLOOKUP($C$4,DL_1153_2025_CG07!$BQ$52:$CC$82,DL1153_2025!BA$6,0),"-") -> 0.925980682
A14: DL_1153_2024_CG08 | B14: DGIESP / DPCT | C14: Ficha 08:Tasa de éxito de tratamiento para TB Sensible | D14: =IFERROR(VLOOKUP($C$4,DL_1153_2025_CG08!BR45:BS75,2,0),"-") -> 0.797769724 | E14: =+IFERROR(VLOOKUP($E$6,DL_1153_2025_CG08!$CO$29:$DS$41,MATCH(DL1153_2025!$C$4,DL_1153_2025_CG08!$CO$29:$DS$29,0),FALSE),"-") -> 0.797769724 | F14: =+IFERROR(VLOOKUP($C$4,DL_1153_2025_CG08!$CJ$46:$CL$75,2,0),"-") -> 0.0729617865 | G14: =+IFERROR(VLOOKUP($C$4,DL_1153_2025_CG08!$CJ$46:$CL$75,3,0),"-") -> 0.797769724 | AP14: =+IFERROR(VLOOKUP($C$4,DL_1153_2025_CG08!$BV$45:$CH$75,DL1153_2025!AP$6,0),"-") -> 0.0729617865 | AQ14: =+IFERROR(VLOOKUP($C$4,DL_1153_2025_CG08!$BV$45:$CH$75,DL1153_2025!AQ$6,0),"-") -> 0.1418148272 | AR14: =+IFERROR(VLOOKUP($C$4,DL_1153_2025_CG08!$BV$45:$CH$75,DL1153_2025!AR$6,0),"-") -> 0.2179210937 | AS14: =+IFERROR(VLOOKUP($C$4,DL_1153_2025_CG08!$BV$45:$CH$75,DL1153_2025!AS$6,0),"-") -> 0.2756800107 | AT14: =+IFERROR(VLOOKUP($C$4,DL_1153_2025_CG08!$BV$45:$CH$75,DL1153_2025!AT$6,0),"-") -> 0.3297974928 | AU14: =+IFERROR(VLOOKUP($C$4,DL_1153_2025_CG08!$BV$45:$CH$75,DL1153_2025!AU$6,0),"-") -> 0.3722330638 | AV14: =+IFERROR(VLOOKUP($C$4,DL_1153_2025_CG08!$BV$45:$CH$75,DL1153_2025!AV$6,0),"-") -> 0.4500139392 | AW14: =+IFERROR(VLOOKUP($C$4,DL_1153_2025_CG08!$BV$45:$CH$75,DL1153_2025!AW$6,0),"-") -> 0.5266796766 | AX14: =+IFERROR(VLOOKUP($C$4,DL_1153_2025_CG08!$BV$45:$CH$75,DL1153_2025!AX$6,0),"-") -> 0.6020072484 | AY14: =+IFERROR(VLOOKUP($C$4,DL_1153_2025_CG08!$BV$45:$CH$75,DL1153_2025!AY$6,0),"-") -> 0.6748815166 | AZ14: =+IFERROR(VLOOKUP($C$4,DL_1153_2025_CG08!$BV$45:$CH$75,DL1153_2025!AZ$6,0),"-") -> 0.7423473655 | BA14: =+IFERROR(VLOOKUP($C$4,DL_1153_2025_CG08!$BV$45:$CH$75,DL1153_2025!BA$6,0),"-") -> 0.797769724
A15: DL_1153_2024_CG09 | B15: DGIESP / DPCT | C15: Ficha 09:Porcentaje de contactos menores de 5 años de edad que culminan Terapia Preventiva para TB. | D15: =IFERROR(VLOOKUP($C$4,DL_1153_2025_CG09!BQ45:BR75,2,0),"-") -> 0.7129954842 | E15: =+IFERROR(VLOOKUP($E$6,DL_1153_2025_CG09!$CN$29:$DR$41,MATCH(DL1153_2025!$C$4,DL_1153_2025_CG09!$CN$29:$DR$29,0),FALSE),"-") -> 0.7129954842 | F15: =+IFERROR(VLOOKUP($C$4,DL_1153_2025_CG09!$CI$46:$CK$75,2,0),"-") -> 0.06525285481 | G15: =+IFERROR(VLOOKUP($C$4,DL_1153_2025_CG09!$CI$46:$CK$75,3,0),"-") -> 0.7129954842 | AP15: =+VLOOKUP($C$4,DL_1153_2025_CG09!$BU$45:$CG$75,DL1153_2025!AP$6,0) -> 0.06525285481 | AQ15: =+VLOOKUP($C$4,DL_1153_2025_CG09!$BU$45:$CG$75,DL1153_2025!AQ$6,0) -> 0.1275252525 | AR15: =+VLOOKUP($C$4,DL_1153_2025_CG09!$BU$45:$CG$75,DL1153_2025!AR$6,0) -> 0.1710261569 | AS15: =+VLOOKUP($C$4,DL_1153_2025_CG09!$BU$45:$CG$75,DL1153_2025!AS$6,0) -> 0.2404092072 | AT15: =+VLOOKUP($C$4,DL_1153_2025_CG09!$BU$45:$CG$75,DL1153_2025!AT$6,0) -> 0.3234421365 | AU15: =+VLOOKUP($C$4,DL_1153_2025_CG09!$BU$45:$CG$75,DL1153_2025!AU$6,0) -> 0.4078771696 | AV15: =+VLOOKUP($C$4,DL_1153_2025_CG09!$BU$45:$CG$75,DL1153_2025!AV$6,0) -> 0.4681238616 | AW15: =+VLOOKUP($C$4,DL_1153_2025_CG09!$BU$45:$CG$75,DL1153_2025!AW$6,0) -> 0.511589404 | AX15: =+VLOOKUP($C$4,DL_1153_2025_CG09!$BU$45:$CG$75,DL1153_2025!AX$6,0) -> 0.5368790768 | AY15: =+VLOOKUP($C$4,DL_1153_2025_CG09!$BU$45:$CG$75,DL1153_2025!AY$6,0) -> 0.5995985951 | AZ15: =+VLOOKUP($C$4,DL_1153_2025_CG09!$BU$45:$CG$75,DL1153_2025!AZ$6,0) -> 0.6532865028 | BA15: =+VLOOKUP($C$4,DL_1153_2025_CG09!$BU$45:$CG$75,DL1153_2025!BA$6,0) -> 0.7129954842
A16: DL_1153_2024_CG10 | B16: DGIESP / DPVIH | C16: Ficha 10:Cobertura de la Terapia Preventiva para Tuberculosis en personas viviendo con VIH que inician Tratamiento Antirretroviral. | D16: En proceso de validación
A17: DL_1153_2024_CG11 | B17: DGIESP / DPCAN | C17: Ficha 11: Mujeres de 30 a 49 años con tamizaje para la detección de lesiones premalignas e incipientes de cáncer de cuello uterino. | D17: =IFERROR(VLOOKUP($C$4,DL_1153_2024_CG11!BQ41:BR71,2,0),"-") -> 0.1672582113 | E17: =+IFERROR(VLOOKUP($E$6,DL_1153_2024_CG11!$CN$36:$DR$48,MATCH(DL1153_2025!$C$4,DL_1153_2024_CG11!$CN$36:$DR$36,0),FALSE),"-") -> 0.1672582113 | F17: =+IFERROR(VLOOKUP($C$4,DL_1153_2024_CG11!$CJ$53:$CL$82,2,0),"-") -> 0.005312351326 | G17: =+IFERROR(VLOOKUP($C$4,DL_1153_2024_CG11!$CJ$53:$CL$82,3,0),"-") -> 0.1672582113 | AP17: =+VLOOKUP($C$4,DL_1153_2024_CG11!$BU$41:$CG$71,DL1153_2025!AP$6,0) -> 0.005312351326 | AQ17: =+VLOOKUP($C$4,DL_1153_2024_CG11!$BU$41:$CG$71,DL1153_2025!AQ$6,0) -> 0.01884148757 | AR17: =+VLOOKUP($C$4,DL_1153_2024_CG11!$BU$41:$CG$71,DL1153_2025!AR$6,0) -> 0.03205657669 | AS17: =+VLOOKUP($C$4,DL_1153_2024_CG11!$BU$41:$CG$71,DL1153_2025!AS$6,0) -> 0.04561618019 | AT17: =+VLOOKUP($C$4,DL_1153_2024_CG11!$BU$41:$CG$71,DL1153_2025!AT$6,0) -> 0.05982564024 | AU17: =+VLOOKUP($C$4,DL_1153_2024_CG11!$BU$41:$CG$71,DL1153_2025!AU$6,0) -> 0.07423330486 | AV17: =+VLOOKUP($C$4,DL_1153_2024_CG11!$BU$41:$CG$71,DL1153_2025!AV$6,0) -> 0.08671751462 | AW17: =+VLOOKUP($C$4,DL_1153_2024_CG11!$BU$41:$CG$71,DL1153_2025!AW$6,0) -> 0.09968819608 | AX17: =+VLOOKUP($C$4,DL_1153_2024_CG11!$BU$41:$CG$71,DL1153_2025!AX$6,0) -> 0.1154474686 | AY17: =+VLOOKUP($C$4,DL_1153_2024_CG11!$BU$41:$CG$71,DL1153_2025!AY$6,0) -> 0.1338550488 | AZ17: =+VLOOKUP($C$4,DL_1153_2024_CG11!$BU$41:$CG$71,DL1153_2025!AZ$6,0) -> 0.1503870513 | BA17: =+VLOOKUP($C$4,DL_1153_2024_CG11!$BU$41:$CG$71,DL1153_2025!BA$6,0) -> 0.1672582113
A18: DL_1153_2024_CG12 | B18: DGIESP / DPCAN | C18: Ficha 12:Porcentaje de niñas y niños (6 meses a 6 años) que reciben procedimientos estomatológicos preventivos. | D18: =AY18 -> 0.4290455867 | E18: =D18 -> 0.4290455867 | F18: =MIN(AP18:BA18) -> 0 | G18: =MAX(AP18:BA18) -> 0.5187990604 | AP18: 0 | AQ18: 0 | AR18: 0 | AS18: 0 | AT18: 0 | AU18: 0 | AV18: 0 | AW18: 0.2663312861 | AX18: 0.3481578758 | AY18: 0.4290455867 | AZ18: =GETPIVOTDATA("Ind ",DL_1153_2024_CG12!$P$8,"Mes",11) -> 0.5187990604 | BA18: =+VLOOKUP(DL1153_2025!$C$4,DL_1153_2024_CG12!$BM$46:$BY$76,DL1153_2025!BA$6,0) -> -
A19: DL_1153_2024_CG13 | B19: DGIESP / DPCAN | C19: Ficha 13:Porcentaje de personas que acceden a algún método anticonceptivo moderno de planificación familiar. | D19: =IFERROR(VLOOKUP($C$4,DL_1153_2024_CG13!BQ47:BR77,2,0),"-") -> 0.2651485163 | E19: =+IFERROR(VLOOKUP($E$6,DL_1153_2024_CG13!$CN$36:$DR$48,MATCH(DL1153_2025!$C$4,DL_1153_2024_CG13!$CN$36:$DR$36,0),FALSE),"-") -> 0.2651485163 | F19: =+IFERROR(VLOOKUP($C$4,DL_1153_2024_CG13!$CI$53:$CK$82,2,0),"-") -> 0.1443435416 | G19: =+IFERROR(VLOOKUP($C$4,DL_1153_2024_CG13!$CI$53:$CK$82,3,0),"-") -> 0.2651485163 | AP19: =+VLOOKUP($C$4,DL_1153_2024_CG13!$BU$46:$CG$76,DL1153_2025!AP$6,0) -> 0.1443435416 | AQ19: =+VLOOKUP($C$4,DL_1153_2024_CG13!$BU$46:$CG$76,DL1153_2025!AQ$6,0) -> 0.156914148 | AR19: =+VLOOKUP($C$4,DL_1153_2024_CG13!$BU$46:$CG$76,DL1153_2025!AR$6,0) -> 0.1733156857 | AS19: =+VLOOKUP($C$4,DL_1153_2024_CG13!$BU$46:$CG$76,DL1153_2025!AS$6,0) -> 0.1859228482 | AT19: =+VLOOKUP($C$4,DL_1153_2024_CG13!$BU$46:$CG$76,DL1153_2025!AT$6,0) -> 0.1941277171 | AU19: =+VLOOKUP($C$4,DL_1153_2024_CG13!$BU$46:$CG$76,DL1153_2025!AU$6,0) -> 0.2023879034 | AV19: =+VLOOKUP($C$4,DL_1153_2024_CG13!$BU$46:$CG$76,DL1153_2025!AV$6,0) -> 0.2119979669 | AW19: =+VLOOKUP($C$4,DL_1153_2024_CG13!$BU$46:$CG$76,DL1153_2025!AW$6,0) -> 0.2198396602 | AX19: =+VLOOKUP($C$4,DL_1153_2024_CG13!$BU$46:$CG$76,DL1153_2025!AX$6,0) -> 0.2275007065 | AY19: =+VLOOKUP($C$4,DL_1153_2024_CG13!$BU$46:$CG$76,DL1153_2025!AY$6,0) -> 0.240475554 | AZ19: =+VLOOKUP($C$4,DL_1153_2024_CG13!$BU$46:$CG$76,DL1153_2025!AZ$6,0) -> 0.251834641 | BA19: =+VLOOKUP($C$4,DL_1153_2024_CG13!$BU$46:$CG$76,DL1153_2025!BA$6,0) -> 0.2651485163
A20: DL_1153_2024_CG14 | B20: DGIESP / DPCAN | C20: Ficha 14:Porcentaje de gestante atendidas con 2 o más Atenciones Prenatales (APN) en el hospital, referidas por factores de riesgo. | D20: =IFERROR(VLOOKUP($C$4,DL_1153_2024_CG14!BQ52:BR81,2,0),"-") -> 0.6124605648 | E20: =+IFERROR(VLOOKUP($E$6,DL_1153_2024_CG14!$CN$36:$DR$48,MATCH(DL1153_2025!$C$4,DL_1153_2024_CG14!$CN$36:$DR$36,0),FALSE),"-") -> 0.3278947368 | F20: =+IFERROR(VLOOKUP($C$4,DL_1153_2024_CG14!$CI$53:$CK$82,2,0),"-") -> 0.3278947368 | G20: =+IFERROR(VLOOKUP($C$4,DL_1153_2024_CG14!$CI$53:$CK$82,3,0),"-") -> 0.6585365854 | AP20: =+IFERROR(VLOOKUP($C$4,DL_1153_2024_CG14!$BU$51:$CG$81,DL1153_2025!AP$6,0),"-") -> 0.654376931 | AQ20: =+IFERROR(VLOOKUP($C$4,DL_1153_2024_CG14!$BU$51:$CG$81,DL1153_2025!AQ$6,0),"-") -> 0.6519360269 | AR20: =+IFERROR(VLOOKUP($C$4,DL_1153_2024_CG14!$BU$51:$CG$81,DL1153_2025!AR$6,0),"-") -> 0.6188023181 | AS20: =+IFERROR(VLOOKUP($C$4,DL_1153_2024_CG14!$BU$51:$CG$81,DL1153_2025!AS$6,0),"-") -> 0.6377763187 | AT20: =+IFERROR(VLOOKUP($C$4,DL_1153_2024_CG14!$BU$51:$CG$81,DL1153_2025!AT$6,0),"-") -> 0.6585365854 | AU20: =+IFERROR(VLOOKUP($C$4,DL_1153_2024_CG14!$BU$51:$CG$81,DL1153_2025!AU$6,0),"-") -> 0.6502285302 | AV20: =+IFERROR(VLOOKUP($C$4,DL_1153_2024_CG14!$BU$51:$CG$81,DL1153_2025!AV$6,0),"-") -> 0.6268582755 | AW20: =+IFERROR(VLOOKUP($C$4,DL_1153_2024_CG14!$BU$51:$CG$81,DL1153_2025!AW$6,0),"-") -> 0.6394372589 | AX20: =+IFERROR(VLOOKUP($C$4,DL_1153_2024_CG14!$BU$51:$CG$81,DL1153_2025!AX$6,0),"-") -> 0.62569717 | AY20: =+IFERROR(VLOOKUP($C$4,DL_1153_2024_CG14!$BU$51:$CG$81,DL1153_2025!AY$6,0),"-") -> 0.585007561 | AZ20: =+IFERROR(VLOOKUP($C$4,DL_1153_2024_CG14!$BU$51:$CG$81,DL1153_2025!AZ$6,0),"-") -> 0.5104235242 | BA20: =+IFERROR(VLOOKUP($C$4,DL_1153_2024_CG14!$BU$51:$CG$81,DL1153_2025!BA$6,0),"-") -> 0.3278947368
A21: DL_1153_2024_CG15 | B21: DGIESP / DSABU | C21: Ficha 15:Porcentaje de gestantes con paquete preventivo completo. . | D21: =IFERROR(VLOOKUP($C$4,DL_1153_2024_CG15!BQ52:BR82,2,0),"-") -> 0.3546885822 | E21: =+IFERROR(VLOOKUP($E$6,DL_1153_2024_CG15!$CN$36:$DR$48,MATCH(DL1153_2025!$C$4,DL_1153_2024_CG15!$CN$36:$DR$36,0),FALSE),"-") -> 0.3839554318 | F21: =+IFERROR(VLOOKUP($C$4,DL_1153_2024_CG15!$CI$53:$CK$82,2,0),"-") -> 0.3203727328 | G21: =+IFERROR(VLOOKUP($C$4,DL_1153_2024_CG15!$CI$53:$CK$82,3,0),"-") -> 0.3950863931 | AP21: =+IFERROR(VLOOKUP($C$4,DL_1153_2024_CG15!$BU$46:$CG$76,DL1153_2025!AP6:AP6,0),"-") -> 0.3273914395 | AQ21: =+IFERROR(VLOOKUP($C$4,DL_1153_2024_CG15!$BU$46:$CG$76,DL1153_2025!AQ6:AQ6,0),"-") -> 0.3203727328 | AR21: =+IFERROR(VLOOKUP($C$4,DL_1153_2024_CG15!$BU$46:$CG$76,DL1153_2025!AR6:AR6,0),"-") -> 0.3287718098 | AS21: =+IFERROR(VLOOKUP($C$4,DL_1153_2024_CG15!$BU$46:$CG$76,DL1153_2025!AS6:AS6,0),"-") -> 0.3336772064 | AT21: =+IFERROR(VLOOKUP($C$4,DL_1153_2024_CG15!$BU$46:$CG$76,DL1153_2025!AT6:AT6,0),"-") -> 0.3354452658 | AU21: =+IFERROR(VLOOKUP($C$4,DL_1153_2024_CG15!$BU$46:$CG$76,DL1153_2025!AU6:AU6,0),"-") -> 0.3342791662 | AV21: =+IFERROR(VLOOKUP($C$4,DL_1153_2024_CG15!$BU$46:$CG$76,DL1153_2025!AV6:AV6,0),"-") -> 0.3471513605 | AW21: =+IFERROR(VLOOKUP($C$4,DL_1153_2024_CG15!$BU$46:$CG$76,DL1153_2025!AW6:AW6,0),"-") -> 0.377736252 | AX21: =+IFERROR(VLOOKUP($C$4,DL_1153_2024_CG15!$BU$46:$CG$76,DL1153_2025!AX6:AX6,0),"-") -> 0.3875323332 | AY21: =+IFERROR(VLOOKUP($C$4,DL_1153_2024_CG15!$BU$46:$CG$76,DL1153_2025!AY6:AY6,0),"-") -> 0.3950863931 | AZ21: =+IFERROR(VLOOKUP($C$4,DL_1153_2024_CG15!$BU$46:$CG$76,DL1153_2025!AZ6:AZ6,0),"-") -> 0.3904204957 | BA21: =+IFERROR(VLOOKUP($C$4,DL_1153_2024_CG15!$BU$46:$CG$76,DL1153_2025!BA6:BA6,0),"-") -> 0.3839554318
A22: DL_1153_2024_CG16 | B22: DGIESP / DSARE | C22: Ficha 16:Porcentaje de adolescentes que reciben prestaciones priorizadas para el cuidado integral de la salud. | D22: =IFERROR(VLOOKUP($C$4,DL_1153_2024_CG16!BP45:BQ75,2,0),"-") -> 0.3812765386 | E22: =+IFERROR(VLOOKUP($E$6,DL_1153_2024_CG16!$CM$36:$DR$48,MATCH(DL1153_2025!$C$4,DL_1153_2024_CG16!$CM$36:$DR$36,0),FALSE),"-") -> 0.3812765386 | F22: =+IFERROR(VLOOKUP($C$4,DL_1153_2024_CG16!$CH$53:$CJ$82,2,0),"-") -> 0.04009124073 | G22: =+IFERROR(VLOOKUP($C$4,DL_1153_2024_CG16!$CH$53:$CJ$82,3,0),"-") -> 0.3812765386 | AP22: =+IFERROR(VLOOKUP($C$4,DL_1153_2024_CG16!$BT$45:$CF$75,DL1153_2025!AP$6,0),"-") -> 0.04009124073 | AQ22: =+IFERROR(VLOOKUP($C$4,DL_1153_2024_CG16!$BT$45:$CF$75,DL1153_2025!AQ$6,0),"-") -> 0.05016805736 | AR22: =+IFERROR(VLOOKUP($C$4,DL_1153_2024_CG16!$BT$45:$CF$75,DL1153_2025!AR$6,0),"-") -> 0.08079852867 | AS22: =+IFERROR(VLOOKUP($C$4,DL_1153_2024_CG16!$BT$45:$CF$75,DL1153_2025!AS$6,0),"-") -> 0.1062848006 | AT22: =+IFERROR(VLOOKUP($C$4,DL_1153_2024_CG16!$BT$45:$CF$75,DL1153_2025!AT$6,0),"-") -> 0.1357972446 | AU22: =+IFERROR(VLOOKUP($C$4,DL_1153_2024_CG16!$BT$45:$CF$75,DL1153_2025!AU$6,0),"-") -> 0.1821133663 | AV22: =+IFERROR(VLOOKUP($C$4,DL_1153_2024_CG16!$BT$45:$CF$75,DL1153_2025!AV$6,0),"-") -> 0.2221573062 | AW22: =+IFERROR(VLOOKUP($C$4,DL_1153_2024_CG16!$BT$45:$CF$75,DL1153_2025!AW$6,0),"-") -> 0.2584180368 | AX22: =+IFERROR(VLOOKUP($C$4,DL_1153_2024_CG16!$BT$45:$CF$75,DL1153_2025!AX$6,0),"-") -> 0.2927797931 | AY22: =+IFERROR(VLOOKUP($C$4,DL_1153_2024_CG16!$BT$45:$CF$75,DL1153_2025!AY$6,0),"-") -> 0.3224146175 | AZ22: =+IFERROR(VLOOKUP($C$4,DL_1153_2024_CG16!$BT$45:$CF$75,DL1153_2025!AZ$6,0),"-") -> 0.3534807573 | BA22: =+IFERROR(VLOOKUP($C$4,DL_1153_2024_CG16!$BT$45:$CF$75,DL1153_2025!BA$6,0),"-") -> 0.3812765386
A23: DL_1153_2024_CG17 | B23: DGIESP / DSARE | C23: Ficha 17:Porcentaje de niños y niñas menores de 5 años con deficiencias o factores de riesgo de discapacidad, con dos o más atenciones en la UPSS Medicina de Rehabilitación. | D23: =IFERROR(VLOOKUP($C$4,DL_1153_2024_CG17!BQ47:BR76,2,0),"-") -> 0.7772280856 | E23: =+IFERROR(VLOOKUP($E$6,DL_1153_2024_CG17!$CN$36:$DR$48,MATCH(DL1153_2025!$C$4,DL_1153_2024_CG17!$CN$36:$DR$36,0),FALSE),"-") -> 0.7772280856 | F23: =+IFERROR(VLOOKUP($C$4,DL_1153_2024_CG17!$CI$53:$CK$82,2,0),"-") -> 0.2995850622 | G23: =+IFERROR(VLOOKUP($C$4,DL_1153_2024_CG17!$CI$53:$CK$82,3,0),"-") -> 0.7772280856 | AP23: =+IFERROR(VLOOKUP($C$4,DL_1153_2024_CG17!$BU$76:$CG$76,DL1153_2025!AP$6,0),"-") -> 0.2995850622 | AQ23: =+IFERROR(VLOOKUP($C$4,DL_1153_2024_CG17!$BU$76:$CG$76,DL1153_2025!AQ$6,0),"-") -> 0.4056708673 | AR23: =+IFERROR(VLOOKUP($C$4,DL_1153_2024_CG17!$BU$76:$CG$76,DL1153_2025!AR$6,0),"-") -> 0.4847691748 | AS23: =+IFERROR(VLOOKUP($C$4,DL_1153_2024_CG17!$BU$76:$CG$76,DL1153_2025!AS$6,0),"-") -> 0.5341244466 | AT23: =+IFERROR(VLOOKUP($C$4,DL_1153_2024_CG17!$BU$76:$CG$76,DL1153_2025!AT$6,0),"-") -> 0.57754329 | AU23: =+IFERROR(VLOOKUP($C$4,DL_1153_2024_CG17!$BU$76:$CG$76,DL1153_2025!AU$6,0),"-") -> 0.6166658454 | AV23: =+IFERROR(VLOOKUP($C$4,DL_1153_2024_CG17!$BU$76:$CG$76,DL1153_2025!AV$6,0),"-") -> 0.6423017107 | AW23: =+IFERROR(VLOOKUP($C$4,DL_1153_2024_CG17!$BU$76:$CG$76,DL1153_2025!AW$6,0),"-") -> 0.6661816937 | AX23: =+IFERROR(VLOOKUP($C$4,DL_1153_2024_CG17!$BU$76:$CG$76,DL1153_2025!AX$6,0),"-") -> 0.692533709 | AY23: =+IFERROR(VLOOKUP($C$4,DL_1153_2024_CG17!$BU$76:$CG$76,DL1153_2025!AY$6,0),"-") -> 0.7153519348 | AZ23: =+IFERROR(VLOOKUP($C$4,DL_1153_2024_CG17!$BU$76:$CG$76,DL1153_2025!AZ$6,0),"-") -> 0.7420477866 | BA23: =+IFERROR(VLOOKUP($C$4,DL_1153_2024_CG17!$BU$76:$CG$76,DL1153_2025!BA$6,0),"-") -> 0.7772280856
A24: DL_1153_2024_CG18 | B24: DGIESP / DSARE | C24: Ficha 18:Rendimiento cama en Unidades de Hospitalización de Salud Mental y Adicciones (UHSMA) en hospitales. | D24: =IFERROR(VLOOKUP($C$4,DL_1153_2024_CG18!BM44:BN74,2,0),"-") -> 17.69807692 | E24: =BA24 -> 17.69807692 | F24: =+IFERROR(VLOOKUP($C$4,DL_1153_2024_CG18!$CE$53:$CG$82,2,0),"-") -> 1.246153846 | G24: =+IFERROR(VLOOKUP($C$4,DL_1153_2024_CG18!$CE$53:$CG$82,3,0),"-") -> 17.69807692 | AP24: =+IFERROR(VLOOKUP($C$4,DL_1153_2024_CG18!$BQ$44:$CC$74,DL1153_2025!AP$6,0),"-") -> 1.246153846 | AQ24: =+IFERROR(VLOOKUP($C$4,DL_1153_2024_CG18!$BQ$44:$CC$74,DL1153_2025!AQ$6,0),"-") -> 2.617307692 | AR24: =+IFERROR(VLOOKUP($C$4,DL_1153_2024_CG18!$BQ$44:$CC$74,DL1153_2025!AR$6,0),"-") -> 4.163461538 | AS24: =+IFERROR(VLOOKUP($C$4,DL_1153_2024_CG18!$BQ$44:$CC$74,DL1153_2025!AS$6,0),"-") -> 5.536538462 | AT24: =+IFERROR(VLOOKUP($C$4,DL_1153_2024_CG18!$BQ$44:$CC$74,DL1153_2025!AT$6,0),"-") -> 7.063461538 | AU24: =+IFERROR(VLOOKUP($C$4,DL_1153_2024_CG18!$BQ$44:$CC$74,DL1153_2025!AU$6,0),"-") -> 8.413461538 | AV24: =+IFERROR(VLOOKUP($C$4,DL_1153_2024_CG18!$BQ$44:$CC$74,DL1153_2025!AV$6,0),"-") -> 9.880769231 | AW24: =+IFERROR(VLOOKUP($C$4,DL_1153_2024_CG18!$BQ$44:$CC$74,DL1153_2025!AW$6,0),"-") -> 11.32307692 | AX24: =+IFERROR(VLOOKUP($C$4,DL_1153_2024_CG18!$BQ$44:$CC$74,DL1153_2025!AX$6,0),"-") -> 12.925 | AY24: =+IFERROR(VLOOKUP($C$4,DL_1153_2024_CG18!$BQ$44:$CC$74,DL1153_2025!AY$6,0),"-") -> 14.55961538 | AZ24: =+IFERROR(VLOOKUP($C$4,DL_1153_2024_CG18!$BQ$44:$CC$74,DL1153_2025!AZ$6,0),"-") -> 16.16346154 | BA24: =+IFERROR(VLOOKUP($C$4,DL_1153_2024_CG18!$BQ$44:$CC$74,DL1153_2025!BA$6,0),"-") -> 17.69807692
A25: DL_1153_2024_CG19 | B25: DGIESP / DVICI | C25: Ficha 19:Porcentaje de personas con diagnóstico de Depresión que recibieron paquete mínimo de intervenciones terapéuticas en Centro de Salud Mental Comunitaria. | D25: =IFERROR(VLOOKUP($C$4,DL_1153_2024_CG19!BK48:BL79,2,0),"-") -> 0.3594393287 | E25: =+IFERROR(VLOOKUP($E$6,DL_1153_2024_CG19!$CH$35:$DL$47,MATCH(DL1153_2025!$C$4,DL_1153_2024_CG19!$CH$35:$DL$35,0),FALSE),"-") -> 0.4298245614 | F25: =+IFERROR(VLOOKUP($C$4,DL_1153_2024_CG19!$CC$53:$CE$82,2,0),"-") -> 0.2949907236 | G25: =+IFERROR(VLOOKUP($C$4,DL_1153_2024_CG19!$CC$53:$CE$82,3,0),"-") -> 0.4548335975 | AP25: =+IFERROR(VLOOKUP($C$4,DL_1153_2024_CG19!$BO$47:$CA$77,DL1153_2025!AP$6,0),"-") -> 0.3040743779 | AQ25: =+IFERROR(VLOOKUP($C$4,DL_1153_2024_CG19!$BO$47:$CA$77,DL1153_2025!AQ$6,0),"-") -> 0.2949907236 | AR25: =+IFERROR(VLOOKUP($C$4,DL_1153_2024_CG19!$BO$47:$CA$77,DL1153_2025!AR$6,0),"-") -> 0.3199240987 | AS25: =+IFERROR(VLOOKUP($C$4,DL_1153_2024_CG19!$BO$47:$CA$77,DL1153_2025!AS$6,0),"-") -> 0.3218351156 | AT25: =+IFERROR(VLOOKUP($C$4,DL_1153_2024_CG19!$BO$47:$CA$77,DL1153_2025!AT$6,0),"-") -> 0.3186504217 | AU25: =+IFERROR(VLOOKUP($C$4,DL_1153_2024_CG19!$BO$47:$CA$77,DL1153_2025!AU$6,0),"-") -> 0.317636606 | AV25: =+IFERROR(VLOOKUP($C$4,DL_1153_2024_CG19!$BO$47:$CA$77,DL1153_2025!AV$6,0),"-") -> 0.3483620993 | AW25: =+IFERROR(VLOOKUP($C$4,DL_1153_2024_CG19!$BO$47:$CA$77,DL1153_2025!AW$6,0),"-") -> 0.358071506 | AX25: =+IFERROR(VLOOKUP($C$4,DL_1153_2024_CG19!$BO$47:$CA$77,DL1153_2025!AX$6,0),"-") -> 0.4490030675 | AY25: =+IFERROR(VLOOKUP($C$4,DL_1153_2024_CG19!$BO$47:$CA$77,DL1153_2025!AY$6,0),"-") -> 0.4548335975 | AZ25: =+IFERROR(VLOOKUP($C$4,DL_1153_2024_CG19!$BO$47:$CA$77,DL1153_2025!AZ$6,0),"-") -> 0.4488255034 | BA25: =+IFERROR(VLOOKUP($C$4,DL_1153_2024_CG19!$BO$47:$CA$77,DL1153_2025!BA$6,0),"-") -> 0.4298245614
A26: DL_1153_2024_CG20 | B26: DGIESP /DISCAP | C26: Ficha 20: Porcentaje de resolutividad. | D26: =IFERROR(VLOOKUP($C$4,DL_1153_2024_CG20!BQ45:BR74,2,0),"-") -> 0.01705920175 | E26: =+IFERROR(VLOOKUP($E$6,DL_1153_2024_CG20!$CN$36:$DR$48,MATCH(DL1153_2025!$C$4,DL_1153_2024_CG20!$CN$36:$DR$36,0),FALSE),"-") -> 0.01693007993 | F26: =+IFERROR(VLOOKUP($C$4,DL_1153_2024_CG20!$CI$53:$CK$82,2,0),"-") -> 0.01566231316 | G26: =+IFERROR(VLOOKUP($C$4,DL_1153_2024_CG20!$CI$53:$CK$82,3,0),"-") -> 0.01886691404 | AP26: =+IFERROR(VLOOKUP($C$4,DL_1153_2024_CG20!$BU$44:$CG$74,DL1153_2025!AP$6,0),"-") -> 0.01603733019 | AQ26: =+IFERROR(VLOOKUP($C$4,DL_1153_2024_CG20!$BU$44:$CG$74,DL1153_2025!AQ$6,0),"-") -> 0.01752374713 | AR26: =+IFERROR(VLOOKUP($C$4,DL_1153_2024_CG20!$BU$44:$CG$74,DL1153_2025!AR$6,0),"-") -> 0.017 | AS26: =+IFERROR(VLOOKUP($C$4,DL_1153_2024_CG20!$BU$44:$CG$74,DL1153_2025!AS$6,0),"-") -> 0.01724164956 | AT26: =+IFERROR(VLOOKUP($C$4,DL_1153_2024_CG20!$BU$44:$CG$74,DL1153_2025!AT$6,0),"-") -> 0.01566231316 | AU26: =+IFERROR(VLOOKUP($C$4,DL_1153_2024_CG20!$BU$44:$CG$74,DL1153_2025!AU$6,0),"-") -> 0.01676090167 | AV26: =+IFERROR(VLOOKUP($C$4,DL_1153_2024_CG20!$BU$44:$CG$74,DL1153_2025!AV$6,0),"-") -> 0.01658569032 | AW26: =+IFERROR(VLOOKUP($C$4,DL_1153_2024_CG20!$BU$44:$CG$74,DL1153_2025!AW$6,0),"-") -> 0.01886691404 | AX26: =+IFERROR(VLOOKUP($C$4,DL_1153_2024_CG20!$BU$44:$CG$74,DL1153_2025!AX$6,0),"-") -> 0.01770341836 | AY26: =+IFERROR(VLOOKUP($C$4,DL_1153_2024_CG20!$BU$44:$CG$74,DL1153_2025!AY$6,0),"-") -> 0.01841827452 | AZ26: =+IFERROR(VLOOKUP($C$4,DL_1153_2024_CG20!$BU$44:$CG$74,DL1153_2025!AZ$6,0),"-") -> 0.0161041656 | BA26: =+IFERROR(VLOOKUP($C$4,DL_1153_2024_CG20!$BU$44:$CG$74,DL1153_2025!BA$6,0),"-") -> 0.01693007993
A27: DL_1153_2024_CG21 | B27: DGIESP /DSAME | C27: Ficha 21:Porcentaje de cirugías suspendidas | D27: =IFERROR(VLOOKUP($C$4,DL_1153_2024_CG21!BQ44:BR74,2,0),"-") -> 0.03173288548 | E27: =+IFERROR(VLOOKUP($E$6,DL_1153_2024_CG21!$CN$36:$DR$48,MATCH(DL1153_2025!$C$4,DL_1153_2024_CG21!$CN$36:$DR$36,0),FALSE),"-") -> 0.02954318457 | F27: =+IFERROR(VLOOKUP($C$4,DL_1153_2024_CG21!$CI$53:$CK$82,2,0),"-") -> 0.02879387586 | G27: =+IFERROR(VLOOKUP($C$4,DL_1153_2024_CG21!$CI$53:$CK$82,3,0),"-") -> 0.03636533608 | AP27: =+IFERROR(VLOOKUP($C$4,DL_1153_2024_CG21!$BU$44:$CG$74,DL1153_2025!AP$6,0),"-") -> 0.0321036982 | AQ27: =+IFERROR(VLOOKUP($C$4,DL_1153_2024_CG21!$BU$44:$CG$74,DL1153_2025!AQ$6,0),"-") -> 0.03083823942 | AR27: =+IFERROR(VLOOKUP($C$4,DL_1153_2024_CG21!$BU$44:$CG$74,DL1153_2025!AR$6,0),"-") -> 0.03426723196 | AS27: =+VLOOKUP($C$4,DL_1153_2024_CG21!$BU$44:$CG$74,DL1153_2025!AS$6,0) -> 0.03085282741 | AT27: =+VLOOKUP($C$4,DL_1153_2024_CG21!$BU$44:$CG$74,DL1153_2025!AT$6,0) -> 0.02879387586 | AU27: =+VLOOKUP($C$4,DL_1153_2024_CG21!$BU$44:$CG$74,DL1153_2025!AU$6,0) -> 0.03156078289 | AV27: =+VLOOKUP($C$4,DL_1153_2024_CG21!$BU$44:$CG$74,DL1153_2025!AV$6,0) -> 0.03636533608 | AW27: =+VLOOKUP($C$4,DL_1153_2024_CG21!$BU$44:$CG$74,DL1153_2025!AW$6,0) -> 0.03127962085 | AX27: =+VLOOKUP($C$4,DL_1153_2024_CG21!$BU$44:$CG$74,DL1153_2025!AX$6,0) -> 0.02971084977 | AY27: =+VLOOKUP($C$4,DL_1153_2024_CG21!$BU$44:$CG$74,DL1153_2025!AY$6,0) -> 0.03148586486 | AZ27: =+VLOOKUP($C$4,DL_1153_2024_CG21!$BU$44:$CG$74,DL1153_2025!AZ$6,0) -> 0.03389596652 | BA27: =+VLOOKUP($C$4,DL_1153_2024_CG21!$BU$44:$CG$74,DL1153_2025!BA$6,0) -> 0.02954318457
A28: DL_1153_2024_CG22 | B28: DGIESP /DSAME | C28: Ficha 22:Rendimiento de sala de operaciones | D28: =IFERROR(VLOOKUP($C$4,DL_1153_2024_CG22!BM45:BN75,2,0),"-") -> 87.68263889 | E28: =+IFERROR(VLOOKUP($E$6,DL_1153_2024_CG22!$CF$29:$DN$41,MATCH(DL1153_2025!$C$4,DL_1153_2024_CG22!$CF$29:$DN$29,0),FALSE),"-") -> 77.24267782 | F28: =+IFERROR(VLOOKUP($C$4,DL_1153_2024_CG22!$CE$46:$CG$75,2,0),"-") -> 77.24267782 | G28: =+IFERROR(VLOOKUP($C$4,DL_1153_2024_CG22!$CE$46:$CG$75,3,0),"-") -> 93.0375 | AP28: =+IFERROR(VLOOKUP($C$4,DL_1153_2024_CG22!$BQ$45:$CC$75,DL1153_2025!AP$6,0),"-") -> 86.4439834 | AQ28: =+IFERROR(VLOOKUP($C$4,DL_1153_2024_CG22!$BQ$45:$CC$75,DL1153_2025!AQ$6,0),"-") -> 86.06639004 | AR28: =+IFERROR(VLOOKUP($C$4,DL_1153_2024_CG22!$BQ$45:$CC$75,DL1153_2025!AR$6,0),"-") -> 91.68049793 | AS28: =+VLOOKUP($C$4,DL_1153_2024_CG22!$BQ$45:$CC$75,DL1153_2025!AS$6,0) -> 88.05857741 | AT28: =+VLOOKUP($C$4,DL_1153_2024_CG22!$BQ$45:$CC$75,DL1153_2025!AT$6,0) -> 93.0375 | AU28: =+VLOOKUP($C$4,DL_1153_2024_CG22!$BQ$45:$CC$75,DL1153_2025!AU$6,0) -> 88.85833333 | AV28: =+VLOOKUP($C$4,DL_1153_2024_CG22!$BQ$45:$CC$75,DL1153_2025!AV$6,0) -> 86.25941423 | AW28: =+VLOOKUP($C$4,DL_1153_2024_CG22!$BQ$45:$CC$75,DL1153_2025!AW$6,0) -> 85.52301255 | AX28: =+VLOOKUP($C$4,DL_1153_2024_CG22!$BQ$45:$CC$75,DL1153_2025!AX$6,0) -> 91.06224066 | AY28: =+VLOOKUP($C$4,DL_1153_2024_CG22!$BQ$45:$CC$75,DL1153_2025!AY$6,0) -> 90.35833333 | AZ28: =+VLOOKUP($C$4,DL_1153_2024_CG22!$BQ$45:$CC$75,DL1153_2025!AZ$6,0) -> 87.525 | BA28: =+VLOOKUP($C$4,DL_1153_2024_CG22!$BQ$45:$CC$75,DL1153_2025!BA$6,0) -> 77.24267782
A29: DL_1153_2024_CG23 | B29: DGIESP /DSAME | C29: Ficha 23:Porcentaje de ocupación cama. (Hospitalización) | D29: =GETPIVOTDATA("Suma de Ind_Hosp",DL_1153_2024_CG23!$A$10) -> 0.7209787607 | E29: =GETPIVOTDATA("Suma de Ind_Hosp",DL_1153_2024_CG23!$M$10,"mes",10) -> 0.7290855722 | F29: =GETPIVOTDATA("Suma de Ind_Hosp",DL_1153_2024_CG23!$M$10,"mes",1) -> 0.6964722773 | G29: =GETPIVOTDATA("Suma de Ind_Hosp",DL_1153_2024_CG23!$M$10,"mes",5) -> 0.7288206073 | AP29: =+IFERROR(VLOOKUP($C$4,DL_1153_2024_CG23!$BR$45:$CD$75,DL1153_2025!AP$6,0),"-") -> 0.6964722773 | AQ29: =+IFERROR(VLOOKUP($C$4,DL_1153_2024_CG23!$BR$45:$CD$75,DL1153_2025!AQ$6,0),"-") -> 0.7195994626 | AR29: =+IFERROR(VLOOKUP($C$4,DL_1153_2024_CG23!$BR$45:$CD$75,DL1153_2025!AR$6,0),"-") -> 0.7187425468 | AS29: =+IFERROR(VLOOKUP($C$4,DL_1153_2024_CG23!$BR$45:$CD$75,DL1153_2025!AS$6,0),"-") -> 0.7220351992 | AT29: =+IFERROR(VLOOKUP($C$4,DL_1153_2024_CG23!$BR$45:$CD$75,DL1153_2025!AT$6,0),"-") -> 0.7288206073 | AU29: =+IFERROR(VLOOKUP($C$4,DL_1153_2024_CG23!$BR$45:$CD$75,DL1153_2025!AU$6,0),"-") -> 0.7237933192 | AV29: =+IFERROR(VLOOKUP($C$4,DL_1153_2024_CG23!$BR$45:$CD$75,DL1153_2025!AV$6,0),"-") -> 0.7263943219 | AW29: =+IFERROR(VLOOKUP($C$4,DL_1153_2024_CG23!$BR$45:$CD$75,DL1153_2025!AW$6,0),"-") -> 0.7263264141 | AX29: =+IFERROR(VLOOKUP($C$4,DL_1153_2024_CG23!$BR$45:$CD$75,DL1153_2025!AX$6,0),"-") -> 0.7284817828 | AY29: =+IFERROR(VLOOKUP($C$4,DL_1153_2024_CG23!$BR$45:$CD$75,DL1153_2025!AY$6,0),"-") -> 0.7290855722 | AZ29: =+IFERROR(VLOOKUP($C$4,DL_1153_2024_CG23!$BR$45:$CD$75,DL1153_2025!AZ$6,0),"-") -> 0.7311336639 | BA29: =+IFERROR(VLOOKUP($C$4,DL_1153_2024_CG23!$BR$45:$CD$75,DL1153_2025!BA$6,0),"-") -> 0.6985834755
C30: Ficha 23:Porcentaje de ocupación cama. (UCI) | D30: =GETPIVOTDATA("Suma de Ind_UCI",DL_1153_2024_CG23!$A$10) -> 0.8145568976 | E30: =GETPIVOTDATA("Suma de Ind_UCI",DL_1153_2024_CG23!$M$10,"mes",10) -> 0.8221400379 | F30: =GETPIVOTDATA("Suma de Ind_UCI",DL_1153_2024_CG23!$M$10,"mes",3) -> 0.7853264653 | G30: =GETPIVOTDATA("Suma de Ind_UCI",DL_1153_2024_CG23!$M$10,"mes",5) -> 0.8229266849
A31: DL_1153_2024_CG25 | B31: DGOS/DIMON | C31: Ficha 24:Intervalo de sustitución cama | D31: =IFERROR(VLOOKUP($C$4,DL_1153_2024_CG24!BQ46:BR75,2,0),"-") -> 1.585732214 | E31: =AQ31 -> 1.370034677 | F31: =MIN(AP31:AQ31) -> 1.370034677 | G31: =MAX(AP31:AQ31) -> 1.558793634 | AP31: =+IFERROR(VLOOKUP($C$4,DL_1153_2024_CG24!$BU$45:$CG$75,DL1153_2025!AP$6,0),"-") -> 1.558793634 | AQ31: =+IFERROR(VLOOKUP($C$4,DL_1153_2024_CG24!$BU$45:$CG$75,DL1153_2025!AQ$6,0),"-") -> 1.370034677 | AR31: =+IFERROR(VLOOKUP($C$4,DL_1153_2024_CG24!$BU$45:$CG$75,DL1153_2025!AR$6,0),"-") -> 1.390685019 | AS31: =+IFERROR(VLOOKUP($C$4,DL_1153_2024_CG24!$BU$45:$CG$75,DL1153_2025!AS$6,0),"-") -> 1.56675404 | AT31: =+IFERROR(VLOOKUP($C$4,DL_1153_2024_CG24!$BU$45:$CG$75,DL1153_2025!AT$6,0),"-") -> 1.341061976 | AU31: =+IFERROR(VLOOKUP($C$4,DL_1153_2024_CG24!$BU$45:$CG$75,DL1153_2025!AU$6,0),"-") -> 1.595250774 | AV31: =+IFERROR(VLOOKUP($C$4,DL_1153_2024_CG24!$BU$45:$CG$75,DL1153_2025!AV$6,0),"-") -> 1.665321823 | AW31: =+IFERROR(VLOOKUP($C$4,DL_1153_2024_CG24!$BU$45:$CG$75,DL1153_2025!AW$6,0),"-") -> 1.605276676 | AX31: =+IFERROR(VLOOKUP($C$4,DL_1153_2024_CG24!$BU$45:$CG$75,DL1153_2025!AX$6,0),"-") -> 1.575846189 | AY31: =+IFERROR(VLOOKUP($C$4,DL_1153_2024_CG24!$BU$45:$CG$75,DL1153_2025!AY$6,0),"-") -> 1.686482153 | AZ31: =+IFERROR(VLOOKUP($C$4,DL_1153_2024_CG24!$BU$45:$CG$75,DL1153_2025!AZ$6,0),"-") -> 1.692356587 | BA31: =+IFERROR(VLOOKUP($C$4,DL_1153_2024_CG24!$BU$45:$CG$75,DL1153_2025!BA$6,0),"-") -> 2.018734797
A32: DL_1153_2024_CG26 | B32: DGOS/DIMON | C32: Ficha 25:Promedio de Espera para la Atención en Consulta Externa de un paciente referido | D32: =IFERROR(VLOOKUP($C$4,DL_1153_2024_CG25!BI48:BJ78,2,0),"-") -> 24.04790407 | E32: =+IFERROR(VLOOKUP($E$6,DL_1153_2024_CG25!$CB$35:$DF$47,MATCH(DL1153_2025!$C$4,DL_1153_2024_CG25!$CB$35:$DF$35,0),FALSE),"-") -> 27.12894329 | F32: =+IFERROR(VLOOKUP($C$4,DL_1153_2024_CG25!$CA$49:$CC$78,2,0),"-") -> 4.885415668 | G32: =+IFERROR(VLOOKUP($C$4,DL_1153_2024_CG25!$CA$49:$CC$78,3,0),"-") -> 38.45145914 | AP32: =+IFERROR(VLOOKUP($C$4,DL_1153_2024_CG25!$BM$45:$BY$78,DL1153_2025!AP$6,0),"-") -> 4.885415668 | AQ32: =+IFERROR(VLOOKUP($C$4,DL_1153_2024_CG25!$BM$45:$BY$78,DL1153_2025!AQ$6,0),"-") -> 11.08012793 | AR32: =+IFERROR(VLOOKUP($C$4,DL_1153_2024_CG25!$BM$45:$BY$78,DL1153_2025!AR$6,0),"-") -> 13.9132531 | AS32: =+IFERROR(VLOOKUP($C$4,DL_1153_2024_CG25!$BM$45:$BY$78,DL1153_2025!AS$6,0),"-") -> 19.04946001 | AT32: =+IFERROR(VLOOKUP($C$4,DL_1153_2024_CG25!$BM$45:$BY$78,DL1153_2025!AT$6,0),"-") -> 24.94908186 | AU32: =+IFERROR(VLOOKUP($C$4,DL_1153_2024_CG25!$BM$45:$BY$78,DL1153_2025!AU$6,0),"-") -> 24.13220741 | AV32: =+IFERROR(VLOOKUP($C$4,DL_1153_2024_CG25!$BM$45:$BY$78,DL1153_2025!AV$6,0),"-") -> 24.38522279 | AW32: =+IFERROR(VLOOKUP($C$4,DL_1153_2024_CG25!$BM$45:$BY$78,DL1153_2025!AW$6,0),"-") -> 23.82053387 | AX32: =+IFERROR(VLOOKUP($C$4,DL_1153_2024_CG25!$BM$45:$BY$78,DL1153_2025!AX$6,0),"-") -> 30.02564424 | AY32: =+IFERROR(VLOOKUP($C$4,DL_1153_2024_CG25!$BM$45:$BY$78,DL1153_2025!AY$6,0),"-") -> 38.45145914 | AZ32: =+IFERROR(VLOOKUP($C$4,DL_1153_2024_CG25!$BM$45:$BY$78,DL1153_2025!AZ$6,0),"-") -> 28.46143633 | BA32: =+IFERROR(VLOOKUP($C$4,DL_1153_2024_CG25!$BM$45:$BY$78,DL1153_2025!BA$6,0),"-") -> 27.12894329
A33: DL_1153_2024_CG27 | B33: DGOS/DIMON | C33: Ficha 26:Promedio de Espera para la Atención en Apoyo al Diagnóstico de un Paciente Referido | D33: =IFERROR(VLOOKUP($C$4,DL_1153_2024_CG26!BQ45:BR75,2,0),"-") -> 12.90009163 | E33: =+IFERROR(VLOOKUP($E$6,DL_1153_2024_CG26!$CI$29:$DM$41,MATCH(DL1153_2025!$C$4,DL_1153_2024_CG26!$CI$29:$DM$29,0),FALSE),"-") -> 17.10975509 | F33: =+IFERROR(VLOOKUP($C$4,DL_1153_2024_CG26!$CH$46:$CJ$75,2,0),"-") -> 3.399615385 | G33: =+IFERROR(VLOOKUP($C$4,DL_1153_2024_CG26!$CH$46:$CJ$75,3,0),"-") -> 18.75013916 | AP33: =+IFERROR(VLOOKUP($C$4,DL_1153_2024_CG26!$BT$45:$CG$75,DL1153_2025!AP$6,0),"-") -> 3.399615385 | AQ33: =+IFERROR(VLOOKUP($C$4,DL_1153_2024_CG26!$BT$45:$CG$75,DL1153_2025!AQ$6,0),"-") -> 6.519536789 | AR33: =+IFERROR(VLOOKUP($C$4,DL_1153_2024_CG26!$BT$45:$CG$75,DL1153_2025!AR$6,0),"-") -> 8.979050479 | AS33: =+IFERROR(VLOOKUP($C$4,DL_1153_2024_CG26!$BT$45:$CG$75,DL1153_2025!AS$6,0),"-") -> 8.233406917 | AT33: =+IFERROR(VLOOKUP($C$4,DL_1153_2024_CG26!$BT$45:$CG$75,DL1153_2025!AT$6,0),"-") -> 15.05057348 | AU33: =+IFERROR(VLOOKUP($C$4,DL_1153_2024_CG26!$BT$45:$CG$75,DL1153_2025!AU$6,0),"-") -> 12.58845964 | AV33: =+IFERROR(VLOOKUP($C$4,DL_1153_2024_CG26!$BT$45:$CG$75,DL1153_2025!AV$6,0),"-") -> 18.75013916 | AW33: =+IFERROR(VLOOKUP($C$4,DL_1153_2024_CG26!$BT$45:$CG$75,DL1153_2025!AW$6,0),"-") -> 15.94445644 | AX33: =+IFERROR(VLOOKUP($C$4,DL_1153_2024_CG26!$BT$45:$CG$75,DL1153_2025!AX$6,0),"-") -> 14.55469621 | AY33: =+IFERROR(VLOOKUP($C$4,DL_1153_2024_CG26!$BT$45:$CG$75,DL1153_2025!AY$6,0),"-") -> 11.27338564 | AZ33: =+IFERROR(VLOOKUP($C$4,DL_1153_2024_CG26!$BT$45:$CG$75,DL1153_2025!AZ$6,0),"-") -> 17.41481581 | BA33: =+IFERROR(VLOOKUP($C$4,DL_1153_2024_CG26!$BT$45:$CG$75,DL1153_2025!BA$6,0),"-") -> 17.10975509
A34: DL_1153_2024_CG28 | B34: DGOS/DIMON | C34: Ficha 27:Productividad Hora Médico | D34: 2.5 | E34: 2.5 | F34: 2.5 | G34: 2.6 | AP34: =+IFERROR(VLOOKUP($C$4,DL_1153_2024_CG27!$BT$45:$CG$75,DL1153_2025!AP$6,0),"-") -> 0.0346900142 | AQ34: =+IFERROR(VLOOKUP($C$4,DL_1153_2024_CG27!$BT$45:$CG$75,DL1153_2025!AQ$6,0),"-") -> 0.03624231951 | AR34: =+IFERROR(VLOOKUP($C$4,DL_1153_2024_CG27!$BT$45:$CG$75,DL1153_2025!AR$6,0),"-") -> 0.0332047025 | AS34: =+IFERROR(VLOOKUP($C$4,DL_1153_2024_CG27!$BT$45:$CG$75,DL1153_2025!AS$6,0),"-") -> 0.03912651765 | AT34: =+IFERROR(VLOOKUP($C$4,DL_1153_2024_CG27!$BT$45:$CG$75,DL1153_2025!AT$6,0),"-") -> 0.03700596158 | AU34: =+IFERROR(VLOOKUP($C$4,DL_1153_2024_CG27!$BT$45:$CG$75,DL1153_2025!AU$6,0),"-") -> 0.03386676591 | AV34: =+IFERROR(VLOOKUP($C$4,DL_1153_2024_CG27!$BT$45:$CG$75,DL1153_2025!AV$6,0),"-") -> 0.03674026861 | AW34: =+IFERROR(VLOOKUP($C$4,DL_1153_2024_CG27!$BT$45:$CG$75,DL1153_2025!AW$6,0),"-") -> 0.03645975754 | AX34: =+IFERROR(VLOOKUP($C$4,DL_1153_2024_CG27!$BT$45:$CG$75,DL1153_2025!AX$6,0),"-") -> 0.03457367638 | AY34: =+IFERROR(VLOOKUP($C$4,DL_1153_2024_CG27!$BT$45:$CG$75,DL1153_2025!AY$6,0),"-") -> 0.02989646247 | AZ34: =+IFERROR(VLOOKUP($C$4,DL_1153_2024_CG27!$BT$45:$CG$75,DL1153_2025!AZ$6,0),"-") -> 0.03172732629 | BA34: =+IFERROR(VLOOKUP($C$4,DL_1153_2024_CG27!$BT$45:$CG$75,DL1153_2025!BA$6,0),"-") -> 0.03364499221
A35: DL_1153_2024_CG29 | B35: DGOS | C35: Ficha 28:Utilización de consultorios externos | D35: =GETPIVOTDATA("Suma de Ind",DL_1153_2024_CG28!$J$10) -> 1.711634394 | E35: =AY35 -> 1.66922983 | F35: =+IFERROR(VLOOKUP($C$4,DL_1153_2024_CG28!$CH$46:$CJ$75,2,0),"-") -> 1.6273363 | G35: =+IFERROR(VLOOKUP($C$4,DL_1153_2024_CG28!$CH$46:$CJ$75,3,0),"-") -> 1.826696719 | AP35: =+IFERROR(VLOOKUP($C$4,DL_1153_2024_CG28!$BT$45:$CG$75,DL1153_2025!AP$6,0),"-") -> 1.6273363 | AQ35: =+IFERROR(VLOOKUP($C$4,DL_1153_2024_CG28!$BT$45:$CG$75,DL1153_2025!AQ$6,0),"-") -> 1.646481178 | AR35: =+IFERROR(VLOOKUP($C$4,DL_1153_2024_CG28!$BT$45:$CG$75,DL1153_2025!AR$6,0),"-") -> 1.826696719 | AS35: =+IFERROR(VLOOKUP($C$4,DL_1153_2024_CG28!$BT$45:$CG$75,DL1153_2025!AS$6,0),"-") -> 1.710698544 | AT35: =+IFERROR(VLOOKUP($C$4,DL_1153_2024_CG28!$BT$45:$CG$75,DL1153_2025!AT$6,0),"-") -> 1.725484914 | AU35: =+IFERROR(VLOOKUP($C$4,DL_1153_2024_CG28!$BT$45:$CG$75,DL1153_2025!AU$6,0),"-") -> 1.746809101 | AV35: =+IFERROR(VLOOKUP($C$4,DL_1153_2024_CG28!$BT$45:$CG$75,DL1153_2025!AV$6,0),"-") -> 1.682410008 | AW35: =+IFERROR(VLOOKUP($C$4,DL_1153_2024_CG28!$BT$45:$CG$75,DL1153_2025!AW$6,0),"-") -> 1.662428481 | AX35: =+IFERROR(VLOOKUP($C$4,DL_1153_2024_CG28!$BT$45:$CG$75,DL1153_2025!AX$6,0),"-") -> 1.683909475 | AY35: =+IFERROR(VLOOKUP($C$4,DL_1153_2024_CG28!$BT$45:$CG$75,DL1153_2025!AY$6,0),"-") -> 1.66922983 | AZ35: =+IFERROR(VLOOKUP($C$4,DL_1153_2024_CG28!$BT$45:$CG$75,DL1153_2025!AZ$6,0),"-") -> 1.750445633 | BA35: =+IFERROR(VLOOKUP($C$4,DL_1153_2024_CG28!$BT$45:$CG$75,DL1153_2025!BA$6,0),"-") -> 1.817274421
A36: DL_1153_2024_CG30 | B36: DGOS | C36: Ficha 30:Promedio de Espera para la Atención en Consulta Externa de un paciente referido | D36: =IFERROR(VLOOKUP($C$4,DL_1153_2024_CG30!FX46:FY75,2,0),"-") -> 16.03392939 | E36: =$AT$36 -> 29.8086528 | F36: =AP36 -> 6.395789873 | G36: =$AT$36 -> 29.8086528 | AP36: =+IFERROR(VLOOKUP($C$4,DL_1153_2024_CG30!$GA$46:$GM$75,DL1153_2025!AP$6,0),"-") -> 6.395789873 | AQ36: =+IFERROR(VLOOKUP($C$4,DL_1153_2024_CG30!$GA$46:$GM$75,DL1153_2025!AQ$6,0),"-") -> 15.06962829 | AR36: =+IFERROR(VLOOKUP($C$4,DL_1153_2024_CG30!$GA$46:$GM$75,DL1153_2025!AR$6,0),"-") -> 21.88301928 | AS36: =+IFERROR(VLOOKUP($C$4,DL_1153_2024_CG30!$GA$46:$GM$75,DL1153_2025!AS$6,0),"-") -> 24.22185217 | AT36: =+IFERROR(VLOOKUP($C$4,DL_1153_2024_CG30!$GA$46:$GM$75,DL1153_2025!AT$6,0),"-") -> 29.8086528 | AU36: =+IFERROR(VLOOKUP($C$4,DL_1153_2024_CG30!$GA$46:$GM$75,DL1153_2025!AU$6,0),"-") -> 39.46100917 | AV36: =+IFERROR(VLOOKUP($C$4,DL_1153_2024_CG30!$GA$46:$GM$75,DL1153_2025!AV$6,0),"-") -> 37.80186519 | AW36: =+IFERROR(VLOOKUP($C$4,DL_1153_2024_CG30!$GA$46:$GM$75,DL1153_2025!AW$6,0),"-") -> 46.03317987 | AX36: =+IFERROR(VLOOKUP($C$4,DL_1153_2024_CG30!$GA$46:$GM$75,DL1153_2025!AX$6,0),"-") -> 50.09332039 | AY36: =+IFERROR(VLOOKUP($C$4,DL_1153_2024_CG30!$GA$46:$GM$75,DL1153_2025!AY$6,0),"-") -> 42.64329352 | AZ36: =+IFERROR(VLOOKUP($C$4,DL_1153_2024_CG30!$GA$46:$GM$75,DL1153_2025!AZ$6,0),"-") -> 47.42439442 | BA36: =+IFERROR(VLOOKUP($C$4,DL_1153_2024_CG30!$GA$46:$GM$75,DL1153_2025!BA$6,0),"-") -> 81.2528277
A37: DL_1153_2024_CG32 | B37: DIGEP | C37: Ficha 32:Porcentaje de personal registrado en el aplicativo del Registro Nacional de Personal de Salud sin inconsistencias de informacion. | AP37: =+IFERROR(VLOOKUP($C$4,DL_1153_2024_CG30!$BV$45:$CH$75,DL1153_2025!AP$6,0),"-") -> - | AQ37: =+VLOOKUP($C$4,DL_1153_2024_CG22!$BQ$45:$CC$75,DL1153_2025!AQ$6,0) -> 86.06639004 | AR37: =+VLOOKUP($C$4,DL_1153_2024_CG22!$BQ$45:$CC$75,DL1153_2025!AR$6,0) -> 91.68049793 | AS37: =+VLOOKUP($C$4,DL_1153_2024_CG22!$BQ$45:$CC$75,DL1153_2025!AS$6,0) -> 88.05857741 | AT37: =+VLOOKUP($C$4,DL_1153_2024_CG22!$BQ$45:$CC$75,DL1153_2025!AT$6,0) -> 93.0375 | AU37: =+VLOOKUP($C$4,DL_1153_2024_CG22!$BQ$45:$CC$75,DL1153_2025!AU$6,0) -> 88.85833333 | AV37: =+VLOOKUP($C$4,DL_1153_2024_CG22!$BQ$45:$CC$75,DL1153_2025!AV$6,0) -> 86.25941423 | AW37: =+VLOOKUP($C$4,DL_1153_2024_CG22!$BQ$45:$CC$75,DL1153_2025!AW$6,0) -> 85.52301255 | AX37: =+VLOOKUP($C$4,DL_1153_2024_CG22!$BQ$45:$CC$75,DL1153_2025!AX$6,0) -> 91.06224066 | AY37: =+VLOOKUP($C$4,DL_1153_2024_CG22!$BQ$45:$CC$75,DL1153_2025!AY$6,0) -> 90.35833333 | AZ37: =+VLOOKUP($C$4,DL_1153_2024_CG22!$BQ$45:$CC$75,DL1153_2025!AZ$6,0) -> 87.525 | BA37: =+VLOOKUP($C$4,DL_1153_2024_CG22!$BQ$45:$CC$75,DL1153_2025!BA$6,0) -> 77.24267782
B38: DIGEP | C38: Ficha 32: Porcentaje de personal registrado en el aplicativo del Registro Nacional de Personal de la Salud sin inconsistencias de información. | D38: =GETPIVOTDATA("Suma de Ind",#REF!) ->  | E38: =AW38 -> 0.9545454545 | F38: =MIN($AP$38:$AW$38) -> 0.8886911451 | G38: =MAX($AP$38:$AW$38) -> 0.9545454545 | AP38: 0.8886911451 | AQ38: 0.8933032527 | AR38: 0.9179027388 | AS38: 0.9201838696 | AT38: 0.9315626135 | AU38: 0.939785411 | AV38: 0.9495981621 | AW38: 0.9545454545 | AX38: 0.9555696922 | AY38: 0.9495040648 | AZ38: =GETPIVOTDATA("Suma de Ind",#REF!,"MES","Noviembre") ->  | BA38: =GETPIVOTDATA("Suma de Ind",#REF!,"MES","Diciembre") -> 
A39: DL_1153_2024_CG33 | B39: DIGTEL | C39: Ficha 32:Utilización de los servicios de telemedicina (teleinterconsultas, teleconsultas,telemonitoreo) | D39: =G39 -> 36.76094988 | E39: =D39 -> 36.76094988 | F39: =MIN(AP39:AQ39) -> 2.500022355 | G39: =MAX(AP39:AY39) -> 36.76094988 | AP39: 2.500022355 | AQ39: 10.72037997 | AR39: 16.79994716 | AS39: 19.86400473 | AT39: 21.52308424 | AU39: 25.90598369 | AV39: 29.94792166 | AW39: 32.77123318 | AX39: 36.64940996 | AY39: 36.76094988 | AZ39: =+VLOOKUP($C$4,DL_1153_2024_CG22!$BQ$45:$CC$75,DL1153_2025!AZ$6,0) -> 87.525 | BA39: =+VLOOKUP($C$4,DL_1153_2024_CG22!$BQ$45:$CC$75,DL1153_2025!BA$6,0) -> 77.24267782
AZ40: =+VLOOKUP($C$4,DL_1153_2024_CG22!$BQ$45:$CC$75,DL1153_2025!AZ$6,0) -> 87.525 | BA40: =+VLOOKUP($C$4,DL_1153_2024_CG22!$BQ$45:$CC$75,DL1153_2025!BA$6,0) -> 77.24267782
B41: Periodo Evaluación:
B42: Diciembre - 2025
B44: Fuente de Datos: (Todo las atenciones hasta noviembre registradas al:)
B45: HIS MINSA 2025 (31/01/2026)
B46: PADRON NOMINAL (20/01/2026)
B47: CNV (22/01/2026)
B48: REFCON (31/01/2026)
B49: SEEM-EGRESOS (20/01/2026)
B50: SEEM- EMERGENCIA (20/01/2026)
B51: SETIPRESS - SUSALUD (02/02/2026)
B52: FICHA 500.2 (RENOXI) (20/01/2026)
B53: SIGTB (03/02/2026)
B54: SIASIS (31/12/2024)
B55: INFORHUS (02/11/2024)

Sheet DL_1153_2025_CG01
A1: =+DL1153_2025!C7 -> Ficha 01: Porcentaje de niñas y niños de 12 a 18 meses, con diagnóstico de anemia entre los 6 y 11 meses, que se han recuperado. | BN1: 1 | DT1: 1
A2: Periodo de Evaluación: | B2: =+DL1153_2025!B42 -> Diciembre - 2025
J3: seguro | K3: 1
J4: Diris | K4: (Todas)
A5: seguro | B5: 1 | J5: Red | K5: (Todas)
A6: año | B6: (Todas) | J6: Provincia | K6: (Todas)
A7: mes | B7: (Todas) | J7: Distrito | K7: (Todas)
A8: DIRESA/ DIRIS | B8: RED | C8: Provincia | D8: Distrito | E8: UBIGEO | F8: Denominador: Suma de DNI únicos de niños que cumplen entre 350 a 573 días de edad en el período de evaluación, con SIS, sin datos de seguro y sin seguro (población MINSA y Gobierno Regional), registrados en el padrón nominal con DNI, según el ámbito de la jurisdicción determinado por la residencia registrada en el padrón nominal Y Niños que cumplen 209 días posteriores al diagnóstico de anemia en el periodo de evaluación. | G8: Numerador: Suma de DNIs que forman parte del denominador que, a partir del último diagnóstico definitivo de anemia entre los 170 y 364 días de edad (11 meses 29 días), iniciaron oportunamente tratamiento (hasta 7 días desde el diagnóstico). Registrados en HIS con un rango de 25 a 70 días entre cada entrega de hierro. Se considerarán como mínimo 3 entregas. Y Registran en HIS su recuperación con diagnóstico repetitivo anemia y dosaje de hemoglobina. | H8: Indicador: Porcentaje de niñas y niños de 12 a 18 meses, con diagnóstico de anemia entre los 6 y 11 meses, que se han recuperado. | J8: AÑO | K8: MES | L8: Denominador: Suma de DNI únicos de niños que cumplen entre 350 a 573 días de edad en el período de evaluación, con SIS, sin datos de seguro y sin seguro (población MINSA y Gobierno Regional), registrados en el padrón nominal con DNI, según el ámbito de la jurisdicción determinado por la residencia registrada en el padrón nominal Y Niños que cumplen 209 días posteriores al diagnóstico de anemia en el periodo de evaluación. | M8: Numerador: Suma de DNIs que forman parte del denominador que, a partir del último diagnóstico definitivo de anemia entre los 170 y 364 días de edad (11 meses 29 días), iniciaron oportunamente tratamiento (hasta 7 días desde el diagnóstico). Registrados en HIS con un rango de 25 a 70 días entre cada entrega de hierro. Se considerarán como mínimo 3 entregas. Y Registran en HIS su recuperación con diagnóstico repetitivo anemia y dosaje de hemoglobina. | N8: Indicador: Porcentaje de niñas y niños de 12 a 18 meses, con diagnóstico de anemia entre los 6 y 11 meses, que se han recuperado.
A9: Diris | B9: Red | C9: Provincia | D9: Distrito | E9: ubigeo | F9: Denominador | G9: Numerador | H9: Suma de Ind | J9: año | K9: mes | L9: Denominador | M9: Numerador | N9: Suma de Ind
A10: AMAZONAS | F10: 806 | G10: 251 | H10: 0.3114143921 | J10: 2025 | K10: 1 | L10: 3573 | M10: 1111 | N10: 0.310943185
A11: ANCASH | F11: 2087 | G11: 743 | H11: 0.3560134164 | J11: 2025 | K11: 2 | L11: 2571 | M11: 899 | N11: 0.3496693893
A12: APURIMAC | F12: 508 | G12: 305 | H12: 0.6003937008 | J12: 2025 | K12: 3 | L12: 2578 | M12: 942 | N12: 0.3653995345
A13: AREQUIPA | F13: 1212 | G13: 357 | H13: 0.2945544554 | J13: 2025 | K13: 4 | L13: 2904 | M13: 1091 | N13: 0.3756887052
A14: AYACUCHO | F14: 574 | G14: 443 | H14: 0.7717770035 | J14: 2025 | K14: 5 | L14: 2672 | M14: 1119 | N14: 0.4187874251
A15: CAJAMARCA | F15: 1739 | G15: 791 | H15: 0.4548591144 | J15: 2025 | K15: 6 | L15: 3046 | M15: 1322 | N15: 0.4340118188
A16: CALLAO | F16: 667 | G16: 410 | H16: 0.6146926537 | J16: 2025 | K16: 7 | L16: 2644 | M16: 1214 | N16: 0.4591527988
A17: CUSCO | F17: 1779 | G17: 524 | H17: 0.2945474986 | J17: 2025 | K17: 8 | L17: 3549 | M17: 1762 | N17: 0.4964778811
A18: HUANCAVELICA | F18: 691 | G18: 261 | H18: 0.3777134588 | J18: 2025 | K18: 9 | L18: 3546 | M18: 1686 | N18: 0.475465313
A19: HUANUCO | F19: 751 | G19: 400 | H19: 0.5326231691 | J19: 2025 | K19: 10 | L19: 3152 | M19: 1414 | N19: 0.4486040609
A20: ICA | F20: 961 | G20: 506 | H20: 0.5265348595 | J20: 2025 | K20: 11 | L20: 2330 | M20: 1023 | N20: 0.439055794
A21: JUNIN | F21: 1465 | G21: 847 | H21: 0.5781569966 | J21: 2025 | K21: 12 | L21: 2324 | M21: 979 | N21: 0.4212564544
A22: LA LIBERTAD | F22: 1281 | G22: 849 | H22: 0.662763466 | J22: Total general | L22: 34889 | M22: 14562 | N22: 0.4173808364 | BP22: año | BQ22: (Todas) | BU22: año | BV22: (Todas) | CN22: año | CO22: (Todas)
A23: LAMBAYEQUE | F23: 2110 | G23: 878 | H23: 0.4161137441 | BP23: seguro | BQ23: 1 | BU23: seguro | BV23: 1 | CN23: seguro | CO23: 1
A24: LIMA DIRIS CENTRO | F24: 2051 | G24: 786 | H24: 0.3832276938
A25: LIMA DIRIS ESTE | F25: 1875 | G25: 1123 | H25: 0.5989333333 | BP25: Diris | BQ25: Suma de IND | BU25: Suma de IND | BV25: mes | CN25: Suma de IND | CO25: Diris
A26: LIMA DIRIS NORTE | F26: 2515 | G26: 781 | H26: 0.3105367793 | BP26: AMAZONAS | BQ26: 0.3114143921 | BU26: Diris | BV26: 1 | BW26: 2 | BX26: 3 | BY26: 4 | BZ26: 5 | CA26: 6 | CB26: 7 | CC26: 8 | CD26: 9 | CE26: 10 | CF26: 11 | CG26: 12 | CN26: mes | CO26: AMAZONAS | CP26: ANCASH | CQ26: APURIMAC | CR26: AREQUIPA | CS26: AYACUCHO | CT26: CAJAMARCA | CU26: CALLAO | CV26: CUSCO | CW26: HUANCAVELICA | CX26: HUANUCO | CY26: ICA | CZ26: JUNIN | DA26: LA LIBERTAD | DB26: LAMBAYEQUE | DC26: LIMA DIRIS CENTRO | DD26: LIMA DIRIS ESTE | DE26: LIMA DIRIS NORTE | DF26: LIMA DIRIS SUR | DG26: LIMA PROVINCIAS | DH26: LORETO | DI26: MADRE DE DIOS | DJ26: MOQUEGUA | DK26: PASCO | DL26: PIURA | DM26: PUNO | DN26: SAN MARTIN | DO26: TACNA | DP26: TUMBES | DQ26: UCAYALI | DR26: Total general
A27: LIMA DIRIS SUR | F27: 1488 | G27: 936 | H27: 0.6290322581 | BP27: ANCASH | BQ27: 0.3560134164 | BU27: AMAZONAS | BV27: 0.2178217822 | BW27: 0.2727272727 | BX27: 0.2028985507 | BY27: 0.3409090909 | BZ27: 0.338028169 | CA27: 0.3815789474 | CB27: 0.3095238095 | CC27: 0.3970588235 | CD27: 0.2916666667 | CE27: 0.4901960784 | CF27: 0.2641509434 | CG27: 0.2857142857 | CN27: Enero | CO27: 0.2178217822 | CP27: 0.2837209302 | CQ27: 0.375 | CR27: 0.179245283 | CS27: 0.8333333333 | CT27: 0.42 | CU27: 0.4583333333 | CV27: 0.2673267327 | CW27: 0.2878787879 | CX27: 0.4615384615 | CY27: 0.3181818182 | CZ27: 0.5916666667 | DA27: 0.5409836066 | DB27: 0.3114035088 | DC27: 0.2921348315 | DD27: 0.3529411765 | DE27: 0.1845493562 | DF27: 0.4051724138 | DG27: 0.6478873239 | DH27: 0.1534090909 | DI27: 0.350877193 | DJ27: 0.2222222222 | DK27: 0.2542372881 | DL27: 0.2007042254 | DM27: 0.35 | DN27: 0.3260869565 | DO27: 0.3125 | DP27: 0.4347826087 | DQ27: 0.255 | DR27: 0.310943185
A28: LIMA PROVINCIAS | F28: 664 | G28: 380 | H28: 0.5722891566 | BP28: APURIMAC | BQ28: 0.6003937008 | BU28: ANCASH | BV28: 0.2837209302 | BW28: 0.3496932515 | BX28: 0.3612903226 | BY28: 0.349112426 | BZ28: 0.3672316384 | CA28: 0.3277777778 | CB28: 0.3918128655 | CC28: 0.3967391304 | CD28: 0.3333333333 | CE28: 0.4262295082 | CF28: 0.3456790123 | CG28: 0.3529411765 | CN28: Febrero | CO28: 0.2727272727 | CP28: 0.3496932515 | CQ28: 0.5862068966 | CR28: 0.1976744186 | CS28: 0.7575757576 | CT28: 0.4583333333 | CU28: 0.4130434783 | CV28: 0.2831325301 | CW28: 0.2592592593 | CX28: 0.5098039216 | CY28: 0.3432835821 | CZ28: 0.512195122 | DA28: 0.5806451613 | DB28: 0.3719512195 | DC28: 0.3193277311 | DD28: 0.3818181818 | DE28: 0.1694915254 | DF28: 0.5975609756 | DG28: 0.6086956522 | DH28: 0.1770334928 | DI28: 0.2444444444 | DJ28: 0.6666666667 | DK28: 0.2926829268 | DL28: 0.2222222222 | DM28: 0.390625 | DN28: 0.3541666667 | DO28: 1 | DP28: 0.625 | DQ28: 0.2356687898 | DR28: 0.3496693893
A29: LORETO | F29: 2048 | G29: 393 | H29: 0.1918945312 | BP29: AREQUIPA | BQ29: 0.2945544554 | BU29: APURIMAC | BV29: 0.375 | BW29: 0.5862068966 | BX29: 0.475 | BY29: 0.65 | BZ29: 0.6585365854 | CA29: 0.5517241379 | CB29: 0.6176470588 | CC29: 0.6140350877 | CD29: 0.649122807 | CE29: 0.7317073171 | CF29: 0.6285714286 | CG29: 0.6666666667 | CN29: Marzo | CO29: 0.2028985507 | CP29: 0.3612903226 | CQ29: 0.475 | CR29: 0.2577319588 | CS29: 0.8205128205 | CT29: 0.4965517241 | CU29: 0.4545454545 | CV29: 0.3006535948 | CW29: 0.4074074074 | CX29: 0.4444444444 | CY29: 0.5303030303 | CZ29: 0.5423728814 | DA29: 0.5346534653 | DB29: 0.34 | DC29: 0.3602941176 | DD29: 0.3770491803 | DE29: 0.1615384615 | DF29: 0.5408163265 | DG29: 0.4523809524 | DH29: 0.1830065359 | DI29: 0.4594594595 | DJ29: 0.4 | DK29: 0.3833333333 | DL29: 0.2129032258 | DM29: 0.34375 | DN29: 0.3368421053 | DO29: 0.8333333333 | DP29: 0.8235294118 | DQ29: 0.2389937107 | DR29: 0.3653995345
A30: MADRE DE DIOS | F30: 468 | G30: 193 | H30: 0.4123931624 | BP30: AYACUCHO | BQ30: 0.7717770035 | BU30: AREQUIPA | BV30: 0.179245283 | BW30: 0.1976744186 | BX30: 0.2577319588 | BY30: 0.198019802 | BZ30: 0.3191489362 | CA30: 0.3090909091 | CB30: 0.3170731707 | CC30: 0.350877193 | CD30: 0.3548387097 | CE30: 0.3421052632 | CF30: 0.3170731707 | CG30: 0.362745098 | CN30: Abril | CO30: 0.3409090909 | CP30: 0.349112426 | CQ30: 0.65 | CR30: 0.198019802 | CS30: 0.8524590164 | CT30: 0.4727272727 | CU30: 0.52 | CV30: 0.2291666667 | CW30: 0.2985074627 | CX30: 0.5820895522 | CY30: 0.3802816901 | CZ30: 0.575 | DA30: 0.6082474227 | DB30: 0.3710691824 | DC30: 0.3294797688 | DD30: 0.4965517241 | DE30: 0.2544378698 | DF30: 0.5701754386 | DG30: 0.4102564103 | DH30: 0.1428571429 | DI30: 0.4912280702 | DJ30: 0.3529411765 | DK30: 0.2564102564 | DL30: 0.2682926829 | DM30: 0.2588235294 | DN30: 0.2980769231 | DO30: 1 | DP30: 0.8235294118 | DQ30: 0.274611399 | DR30: 0.3756887052
A31: MOQUEGUA | F31: 140 | G31: 55 | H31: 0.3928571429 | BP31: CAJAMARCA | BQ31: 0.4548591144 | BU31: AYACUCHO | BV31: 0.8333333333 | BW31: 0.7575757576 | BX31: 0.8205128205 | BY31: 0.8524590164 | BZ31: 0.8363636364 | CA31: 0.8235294118 | CB31: 0.7380952381 | CC31: 0.7894736842 | CD31: 0.7735849057 | CE31: 0.7391304348 | CF31: 0.7555555556 | CG31: 0.5714285714 | CN31: Mayo | CO31: 0.338028169 | CP31: 0.3672316384 | CQ31: 0.6585365854 | CR31: 0.3191489362 | CS31: 0.8363636364 | CT31: 0.3831168831 | CU31: 0.4651162791 | CV31: 0.2517985612 | CW31: 0.4050632911 | CX31: 0.5090909091 | CY31: 0.4657534247 | CZ31: 0.6322580645 | DA31: 0.7555555556 | DB31: 0.3405797101 | DC31: 0.4220779221 | DD31: 0.52 | DE31: 0.2682926829 | DF31: 0.5575221239 | DG31: 0.56 | DH31: 0.2352941176 | DI31: 0.3095238095 | DJ31: 0.4 | DK31: 0.4324324324 | DL31: 0.3571428571 | DM31: 0.3442622951 | DN31: 0.3950617284 | DO31: 0.6666666667 | DP31: 0.65 | DQ31: 0.3220338983 | DR31: 0.4187874251
A32: PASCO | F32: 427 | G32: 143 | H32: 0.3348946136 | BP32: CALLAO | BQ32: 0.6146926537 | BU32: CAJAMARCA | BV32: 0.42 | BW32: 0.4583333333 | BX32: 0.4965517241 | BY32: 0.4727272727 | BZ32: 0.3831168831 | CA32: 0.4620253165 | CB32: 0.5144927536 | CC32: 0.4466666667 | CD32: 0.4626865672 | CE32: 0.4423076923 | CF32: 0.425 | CG32: 0.48 | CN32: Junio | CO32: 0.3815789474 | CP32: 0.3277777778 | CQ32: 0.5517241379 | CR32: 0.3090909091 | CS32: 0.8235294118 | CT32: 0.4620253165 | CU32: 0.6363636364 | CV32: 0.3291139241 | CW32: 0.4464285714 | CX32: 0.5568181818 | CY32: 0.5421686747 | CZ32: 0.6524822695 | DA32: 0.7830188679 | DB32: 0.4364640884 | DC32: 0.3832335329 | DD32: 0.6432748538 | DE32: 0.2512077295 | DF32: 0.6496350365 | DG32: 0.609375 | DH32: 0.1515151515 | DI32: 0.4722222222 | DJ32: 0.2142857143 | DK32: 0.40625 | DL32: 0.3240223464 | DM32: 0.2432432432 | DN32: 0.3875 | DO32: 0.5454545455 | DP32: 0.6086956522 | DQ32: 0.3112244898 | DR32: 0.4340118188
A33: PIURA | F33: 2196 | G33: 623 | H33: 0.2836976321 | BP33: CUSCO | BQ33: 0.2945474986 | BU33: CALLAO | BV33: 0.4583333333 | BW33: 0.4130434783 | BX33: 0.4545454545 | BY33: 0.52 | BZ33: 0.4651162791 | CA33: 0.6363636364 | CB33: 0.6666666667 | CC33: 0.7613636364 | CD33: 0.6944444444 | CE33: 0.7164179104 | CF33: 0.6739130435 | CG33: 0.6363636364 | CN33: Julio | CO33: 0.3095238095 | CP33: 0.3918128655 | CQ33: 0.6176470588 | CR33: 0.3170731707 | CS33: 0.7380952381 | CT33: 0.5144927536 | CU33: 0.6666666667 | CV33: 0.2478632479 | CW33: 0.4626865672 | CX33: 0.5846153846 | CY33: 0.578125 | CZ33: 0.625 | DA33: 0.7272727273 | DB33: 0.5540540541 | DC33: 0.3670886076 | DD33: 0.6604938272 | DE33: 0.3302752294 | DF33: 0.7295081967 | DG33: 0.5161290323 | DH33: 0.1911764706 | DI33: 0.52 | DJ33: 0.4166666667 | DK33: 0.2692307692 | DL33: 0.3402061856 | DM33: 0.3548387097 | DN33: 0.4166666667 | DO33: 0.3846153846 | DP33: 0.5454545455 | DQ33: 0.4238410596 | DR33: 0.4591527988
A34: PUNO | F34: 748 | G34: 242 | H34: 0.3235294118 | BP34: HUANCAVELICA | BQ34: 0.3777134588 | BU34: CUSCO | BV34: 0.2673267327 | BW34: 0.2831325301 | BX34: 0.3006535948 | BY34: 0.2291666667 | BZ34: 0.2517985612 | CA34: 0.3291139241 | CB34: 0.2478632479 | CC34: 0.34 | CD34: 0.2716049383 | CE34: 0.3402777778 | CF34: 0.2892561983 | CG34: 0.3983739837 | CN34: Agosto | CO34: 0.3970588235 | CP34: 0.3967391304 | CQ34: 0.6140350877 | CR34: 0.350877193 | CS34: 0.7894736842 | CT34: 0.4466666667 | CU34: 0.7613636364 | CV34: 0.34 | CW34: 0.3888888889 | CX34: 0.5538461538 | CY34: 0.648 | CZ34: 0.6446280992 | DA34: 0.734375 | DB34: 0.5073170732 | DC34: 0.4393305439 | DD34: 0.6929460581 | DE34: 0.4636871508 | DF34: 0.7671957672 | DG34: 0.7297297297 | DH34: 0.2556818182 | DI34: 0.4324324324 | DJ34: 0.5 | DK34: 0.380952381 | DL34: 0.30472103 | DM34: 0.4153846154 | DN34: 0.4175824176 | DO34: 0.7333333333 | DP34: 0.5833333333 | DQ34: 0.3640552995 | DR34: 0.4964778811
A35: SAN MARTIN | F35: 999 | G35: 362 | H35: 0.3623623624 | BP35: HUANUCO | BQ35: 0.5326231691 | BU35: HUANCAVELICA | BV35: 0.2878787879 | BW35: 0.2592592593 | BX35: 0.4074074074 | BY35: 0.2985074627 | BZ35: 0.4050632911 | CA35: 0.4464285714 | CB35: 0.4626865672 | CC35: 0.3888888889 | CD35: 0.3888888889 | CE35: 0.431372549 | CF35: 0.380952381 | CG35: 0.3829787234 | CN35: Setiembre | CO35: 0.2916666667 | CP35: 0.3333333333 | CQ35: 0.649122807 | CR35: 0.3548387097 | CS35: 0.7735849057 | CT35: 0.4626865672 | CU35: 0.6944444444 | CV35: 0.2716049383 | CW35: 0.3888888889 | CX35: 0.5217391304 | CY35: 0.6336633663 | CZ35: 0.5284552846 | DA35: 0.6946564885 | DB35: 0.5040983607 | DC35: 0.476635514 | DD35: 0.787037037 | DE35: 0.3829113924 | DF35: 0.6885245902 | DG35: 0.5277777778 | DH35: 0.2387096774 | DI35: 0.3863636364 | DJ35: 0.5555555556 | DK35: 0.4146341463 | DL35: 0.3834951456 | DM35: 0.2142857143 | DN35: 0.3896103896 | DO35: 0.6486486486 | DP35: 0.5882352941 | DQ35: 0.3849372385 | DR35: 0.475465313
A36: TACNA | F36: 164 | G36: 102 | H36: 0.6219512195 | BP36: ICA | BQ36: 0.5265348595 | BU36: HUANUCO | BV36: 0.4615384615 | BW36: 0.5098039216 | BX36: 0.4444444444 | BY36: 0.5820895522 | BZ36: 0.5090909091 | CA36: 0.5568181818 | CB36: 0.5846153846 | CC36: 0.5538461538 | CD36: 0.5217391304 | CE36: 0.4647887324 | CF36: 0.6071428571 | CG36: 0.6388888889 | CN36: Octubre | CO36: 0.4901960784 | CP36: 0.4262295082 | CQ36: 0.7317073171 | CR36: 0.3421052632 | CS36: 0.7391304348 | CT36: 0.4423076923 | CU36: 0.7164179104 | CV36: 0.3402777778 | CW36: 0.431372549 | CX36: 0.4647887324 | CY36: 0.6734693878 | CZ36: 0.5263157895 | DA36: 0.6525423729 | DB36: 0.3811881188 | DC36: 0.4565217391 | DD36: 0.6979166667 | DE36: 0.3071428571 | DF36: 0.6577181208 | DG36: 0.4821428571 | DH36: 0.2201257862 | DI36: 0.5 | DJ36: 0.1111111111 | DK36: 0.2903225806 | DL36: 0.3246073298 | DM36: 0.3333333333 | DN36: 0.3015873016 | DO36: 0.5 | DP36: 0.5806451613 | DQ36: 0.3279569892 | DR36: 0.4486040609
A37: TUMBES | F37: 267 | G37: 169 | H37: 0.6329588015 | BP37: JUNIN | BQ37: 0.5781569966 | BU37: ICA | BV37: 0.3181818182 | BW37: 0.3432835821 | BX37: 0.5303030303 | BY37: 0.3802816901 | BZ37: 0.4657534247 | CA37: 0.5421686747 | CB37: 0.578125 | CC37: 0.648 | CD37: 0.6336633663 | CE37: 0.6734693878 | CF37: 0.5818181818 | CG37: 0.5625 | CN37: Noviembre | CO37: 0.2641509434 | CP37: 0.3456790123 | CQ37: 0.6285714286 | CR37: 0.3170731707 | CS37: 0.7555555556 | CT37: 0.425 | CU37: 0.6739130435 | CV37: 0.2892561983 | CW37: 0.380952381 | CX37: 0.6071428571 | CY37: 0.5818181818 | CZ37: 0.5816326531 | DA37: 0.7115384615 | DB37: 0.4580645161 | DC37: 0.3 | DD37: 0.712 | DE37: 0.3505747126 | DF37: 0.6222222222 | DG37: 0.7045454545 | DH37: 0.224137931 | DI37: 0.4347826087 | DJ37: 0.25 | DK37: 0.3571428571 | DL37: 0.268115942 | DM37: 0.3684210526 | DN37: 0.4634146341 | DO37: 0.7 | DP37: 0.6666666667 | DQ37: 0.3411764706 | DR37: 0.439055794
A38: UCAYALI | F38: 2208 | G38: 709 | H38: 0.3211050725 | BP38: LA LIBERTAD | BQ38: 0.662763466 | BU38: JUNIN | BV38: 0.5916666667 | BW38: 0.512195122 | BX38: 0.5423728814 | BY38: 0.575 | BZ38: 0.6322580645 | CA38: 0.6524822695 | CB38: 0.625 | CC38: 0.6446280992 | CD38: 0.5284552846 | CE38: 0.5263157895 | CF38: 0.5816326531 | CG38: 0.495049505 | CN38: Diciembre | CO38: 0.2857142857 | CP38: 0.3529411765 | CQ38: 0.6666666667 | CR38: 0.362745098 | CS38: 0.5714285714 | CT38: 0.48 | CU38: 0.6363636364 | CV38: 0.3983739837 | CW38: 0.3829787234 | CX38: 0.6388888889 | CY38: 0.5625 | CZ38: 0.495049505 | DA38: 0.6310679612 | DB38: 0.3897058824 | DC38: 0.3458646617 | DD38: 0.5615384615 | DE38: 0.3513513514 | DF38: 0.5894736842 | DG38: 0.5 | DH38: 0.2018348624 | DI38: 0.4516129032 | DJ38: 0.4545454545 | DK38: 0.3076923077 | DL38: 0.2129032258 | DM38: 0.3243243243 | DN38: 0.3442622951 | DO38: 0.6363636364 | DP38: 0.8571428571 | DQ38: 0.3558282209 | DR38: 0.4212564544
A39: Total general | F39: 34889 | G39: 14562 | H39: 0.4173808364 | BP39: LAMBAYEQUE | BQ39: 0.4161137441 | BU39: LA LIBERTAD | BV39: 0.5409836066 | BW39: 0.5806451613 | BX39: 0.5346534653 | BY39: 0.6082474227 | BZ39: 0.7555555556 | CA39: 0.7830188679 | CB39: 0.7272727273 | CC39: 0.734375 | CD39: 0.6946564885 | CE39: 0.6525423729 | CF39: 0.7115384615 | CG39: 0.6310679612
BP40: LIMA DIRIS CENTRO | BQ40: 0.3832276938 | BU40: LAMBAYEQUE | BV40: 0.3114035088 | BW40: 0.3719512195 | BX40: 0.34 | BY40: 0.3710691824 | BZ40: 0.3405797101 | CA40: 0.4364640884 | CB40: 0.5540540541 | CC40: 0.5073170732 | CD40: 0.5040983607 | CE40: 0.3811881188 | CF40: 0.4580645161 | CG40: 0.3897058824
BP41: LIMA DIRIS ESTE | BQ41: 0.5989333333 | BU41: LIMA DIRIS CENTRO | BV41: 0.2921348315 | BW41: 0.3193277311 | BX41: 0.3602941176 | BY41: 0.3294797688 | BZ41: 0.4220779221 | CA41: 0.3832335329 | CB41: 0.3670886076 | CC41: 0.4393305439 | CD41: 0.476635514 | CE41: 0.4565217391 | CF41: 0.3 | CG41: 0.3458646617
BP42: LIMA DIRIS NORTE | BQ42: 0.3105367793 | BU42: LIMA DIRIS ESTE | BV42: 0.3529411765 | BW42: 0.3818181818 | BX42: 0.3770491803 | BY42: 0.4965517241 | BZ42: 0.52 | CA42: 0.6432748538 | CB42: 0.6604938272 | CC42: 0.6929460581 | CD42: 0.787037037 | CE42: 0.6979166667 | CF42: 0.712 | CG42: 0.5615384615
BP43: LIMA DIRIS SUR | BQ43: 0.6290322581 | BU43: LIMA DIRIS NORTE | BV43: 0.1845493562 | BW43: 0.1694915254 | BX43: 0.1615384615 | BY43: 0.2544378698 | BZ43: 0.2682926829 | CA43: 0.2512077295 | CB43: 0.3302752294 | CC43: 0.4636871508 | CD43: 0.3829113924 | CE43: 0.3071428571 | CF43: 0.3505747126 | CG43: 0.3513513514
BP44: LIMA PROVINCIAS | BQ44: 0.5722891566 | BU44: LIMA DIRIS SUR | BV44: 0.4051724138 | BW44: 0.5975609756 | BX44: 0.5408163265 | BY44: 0.5701754386 | BZ44: 0.5575221239 | CA44: 0.6496350365 | CB44: 0.7295081967 | CC44: 0.7671957672 | CD44: 0.6885245902 | CE44: 0.6577181208 | CF44: 0.6222222222 | CG44: 0.5894736842
BP45: LORETO | BQ45: 0.1918945312 | BU45: LIMA PROVINCIAS | BV45: 0.6478873239 | BW45: 0.6086956522 | BX45: 0.4523809524 | BY45: 0.4102564103 | BZ45: 0.56 | CA45: 0.609375 | CB45: 0.5161290323 | CC45: 0.7297297297 | CD45: 0.5277777778 | CE45: 0.4821428571 | CF45: 0.7045454545 | CG45: 0.5
BP46: MADRE DE DIOS | BQ46: 0.4123931624 | BU46: LORETO | BV46: 0.1534090909 | BW46: 0.1770334928 | BX46: 0.1830065359 | BY46: 0.1428571429 | BZ46: 0.2352941176 | CA46: 0.1515151515 | CB46: 0.1911764706 | CC46: 0.2556818182 | CD46: 0.2387096774 | CE46: 0.2201257862 | CF46: 0.224137931 | CG46: 0.2018348624
BP47: MOQUEGUA | BQ47: 0.3928571429 | BU47: MADRE DE DIOS | BV47: 0.350877193 | BW47: 0.2444444444 | BX47: 0.4594594595 | BY47: 0.4912280702 | BZ47: 0.3095238095 | CA47: 0.4722222222 | CB47: 0.52 | CC47: 0.4324324324 | CD47: 0.3863636364 | CE47: 0.5 | CF47: 0.4347826087 | CG47: 0.4516129032 | CO47: AMAZONAS | CP47: ANCASH | CQ47: APURIMAC | CR47: AREQUIPA | CS47: AYACUCHO | CT47: CAJAMARCA | CU47: CALLAO | CV47: CUSCO | CW47: HUANCAVELICA | CX47: HUANUCO | CY47: ICA | CZ47: JUNIN | DA47: LA LIBERTAD | DB47: LAMBAYEQUE | DC47: LIMA DIRIS CENTRO | DD47: LIMA DIRIS ESTE | DE47: LIMA DIRIS NORTE | DF47: LIMA DIRIS SUR | DG47: LIMA PROVINCIAS | DH47: LORETO | DI47: MADRE DE DIOS | DJ47: MOQUEGUA | DK47: PASCO | DL47: PIURA | DM47: PUNO | DN47: SAN MARTIN | DO47: TACNA | DP47: TUMBES | DQ47: UCAYALI | DR47: NACIONAL
BP48: PASCO | BQ48: 0.3348946136 | BU48: MOQUEGUA | BV48: 0.2222222222 | BW48: 0.6666666667 | BX48: 0.4 | BY48: 0.3529411765 | BZ48: 0.4 | CA48: 0.2142857143 | CB48: 0.4166666667 | CC48: 0.5 | CD48: 0.5555555556 | CE48: 0.1111111111 | CF48: 0.25 | CG48: 0.4545454545 | CN48: Enero | CO48: =+GETPIVOTDATA("IND",$CN$25,"Diris",CO$47,"mes",$CN48) -> 0.2178217822 | CP48: =+GETPIVOTDATA("IND",$CN$25,"Diris",CP$47,"mes",$CN48) -> 0.2837209302 | CQ48: 0.375 | CR48: 0.179245283 | CS48: 0.8333333333 | CT48: 0.42 | CU48: 0.4583333333 | CV48: 0.2673267327 | CW48: 0.2878787879 | CX48: 0.4615384615 | CY48: 0.3181818182 | CZ48: 0.5916666667 | DA48: 0.5409836066 | DB48: 0.3114035088 | DC48: 0.2921348315 | DD48: 0.3529411765 | DE48: 0.1845493562 | DF48: 0.4051724138 | DG48: 0.6478873239 | DH48: 0.1534090909 | DI48: 0.350877193 | DJ48: 0.2222222222 | DK48: 0.2542372881 | DL48: 0.2007042254 | DM48: 0.35 | DN48: 0.3260869565 | DO48: 0.3125 | DP48: 0.4347826087 | DQ48: 0.255 | DR48: =+GETPIVOTDATA("IND",$CN$25,"mes",$CN48) -> 0.310943185
BP49: PIURA | BQ49: 0.2836976321 | BU49: PASCO | BV49: 0.2542372881 | BW49: 0.2926829268 | BX49: 0.3833333333 | BY49: 0.2564102564 | BZ49: 0.4324324324 | CA49: 0.40625 | CB49: 0.2692307692 | CC49: 0.380952381 | CD49: 0.4146341463 | CE49: 0.2903225806 | CF49: 0.3571428571 | CG49: 0.3076923077 | CN49: Febrero | CO49: =+GETPIVOTDATA("IND",$CN$25,"Diris",CO$47,"mes",$CN49) -> 0.2727272727 | CP49: 0.3496932515 | CQ49: 0.5862068966 | CR49: 0.1976744186 | CS49: 0.7575757576 | CT49: 0.4583333333 | CU49: 0.4130434783 | CV49: 0.2831325301 | CW49: 0.2592592593 | CX49: 0.5098039216 | CY49: 0.3432835821 | CZ49: 0.512195122 | DA49: 0.5806451613 | DB49: 0.3719512195 | DC49: 0.3193277311 | DD49: 0.3818181818 | DE49: 0.1694915254 | DF49: 0.5975609756 | DG49: 0.6086956522 | DH49: 0.1770334928 | DI49: 0.2444444444 | DJ49: 0.6666666667 | DK49: 0.2926829268 | DL49: 0.2222222222 | DM49: 0.390625 | DN49: 0.3541666667 | DO49: 1 | DP49: 0.625 | DQ49: 0.2356687898 | DR49: =+GETPIVOTDATA("IND",$CN$25,"mes",$CN49) -> 0.3496693893
BP50: PUNO | BQ50: 0.3235294118 | BU50: PIURA | BV50: 0.2007042254 | BW50: 0.2222222222 | BX50: 0.2129032258 | BY50: 0.2682926829 | BZ50: 0.3571428571 | CA50: 0.3240223464 | CB50: 0.3402061856 | CC50: 0.30472103 | CD50: 0.3834951456 | CE50: 0.3246073298 | CF50: 0.268115942 | CG50: 0.2129032258 | CN50: Marzo | CO50: 0.2028985507 | CP50: 0.3612903226 | CQ50: 0.475 | CR50: 0.2577319588 | CS50: 0.8205128205 | CT50: 0.4965517241 | CU50: 0.4545454545 | CV50: 0.3006535948 | CW50: 0.4074074074 | CX50: 0.4444444444 | CY50: 0.5303030303 | CZ50: 0.5423728814 | DA50: 0.5346534653 | DB50: 0.34 | DC50: 0.3602941176 | DD50: 0.3770491803 | DE50: 0.1615384615 | DF50: 0.5408163265 | DG50: 0.4523809524 | DH50: 0.1830065359 | DI50: 0.4594594595 | DJ50: 0.4 | DK50: 0.3833333333 | DL50: 0.2129032258 | DM50: 0.34375 | DN50: 0.3368421053 | DO50: 0.8333333333 | DP50: 0.8235294118 | DQ50: 0.2389937107 | DR50: 0.3653995345
BP51: SAN MARTIN | BQ51: 0.3623623624 | BU51: PUNO | BV51: 0.35 | BW51: 0.390625 | BX51: 0.34375 | BY51: 0.2588235294 | BZ51: 0.3442622951 | CA51: 0.2432432432 | CB51: 0.3548387097 | CC51: 0.4153846154 | CD51: 0.2142857143 | CE51: 0.3333333333 | CF51: 0.3684210526 | CG51: 0.3243243243 | CN51: Abril | CO51: 0.3409090909 | CP51: 0.349112426 | CQ51: 0.65 | CR51: 0.198019802 | CS51: 0.8524590164 | CT51: 0.4727272727 | CU51: 0.52 | CV51: 0.2291666667 | CW51: 0.2985074627 | CX51: 0.5820895522 | CY51: 0.3802816901 | CZ51: 0.575 | DA51: 0.6082474227 | DB51: 0.3710691824 | DC51: 0.3294797688 | DD51: 0.4965517241 | DE51: 0.2544378698 | DF51: 0.5701754386 | DG51: 0.4102564103 | DH51: 0.1428571429 | DI51: 0.4912280702 | DJ51: 0.3529411765 | DK51: 0.2564102564 | DL51: 0.2682926829 | DM51: 0.2588235294 | DN51: 0.2980769231 | DO51: 1 | DP51: 0.8235294118 | DQ51: 0.274611399 | DR51: 0.3756887052
BP52: TACNA | BQ52: 0.6219512195 | BU52: SAN MARTIN | BV52: 0.3260869565 | BW52: 0.3541666667 | BX52: 0.3368421053 | BY52: 0.2980769231 | BZ52: 0.3950617284 | CA52: 0.3875 | CB52: 0.4166666667 | CC52: 0.4175824176 | CD52: 0.3896103896 | CE52: 0.3015873016 | CF52: 0.4634146341 | CG52: 0.3442622951 | CN52: Mayo | CO52: 0.338028169 | CP52: 0.3672316384 | CQ52: 0.6585365854 | CR52: 0.3191489362 | CS52: 0.8363636364 | CT52: 0.3831168831 | CU52: 0.4651162791 | CV52: 0.2517985612 | CW52: 0.4050632911 | CX52: 0.5090909091 | CY52: 0.4657534247 | CZ52: 0.6322580645 | DA52: 0.7555555556 | DB52: 0.3405797101 | DC52: 0.4220779221 | DD52: 0.52 | DE52: 0.2682926829 | DF52: 0.5575221239 | DG52: 0.56 | DH52: 0.2352941176 | DI52: 0.3095238095 | DJ52: 0.4 | DK52: 0.4324324324 | DL52: 0.3571428571 | DM52: 0.3442622951 | DN52: 0.3950617284 | DO52: 0.6666666667 | DP52: 0.65 | DQ52: 0.3220338983 | DR52: 0.4187874251
BP53: TUMBES | BQ53: 0.6329588015 | BU53: TACNA | BV53: 0.3125 | BW53: 1 | BX53: 0.8333333333 | BY53: 1 | BZ53: 0.6666666667 | CA53: 0.5454545455 | CB53: 0.3846153846 | CC53: 0.7333333333 | CD53: 0.6486486486 | CE53: 0.5 | CF53: 0.7 | CG53: 0.6363636364 | CN53: Junio | CO53: 0.3815789474 | CP53: 0.3277777778 | CQ53: 0.5517241379 | CR53: 0.3090909091 | CS53: 0.8235294118 | CT53: 0.4620253165 | CU53: 0.6363636364 | CV53: 0.3291139241 | CW53: 0.4464285714 | CX53: 0.5568181818 | CY53: 0.5421686747 | CZ53: 0.6524822695 | DA53: 0.7830188679 | DB53: 0.4364640884 | DC53: 0.3832335329 | DD53: 0.6432748538 | DE53: 0.2512077295 | DF53: 0.6496350365 | DG53: 0.609375 | DH53: 0.1515151515 | DI53: 0.4722222222 | DJ53: 0.2142857143 | DK53: 0.40625 | DL53: 0.3240223464 | DM53: 0.2432432432 | DN53: 0.3875 | DO53: 0.5454545455 | DP53: 0.6086956522 | DQ53: 0.3112244898 | DR53: 0.4340118188
BP54: UCAYALI | BQ54: 0.3211050725 | BU54: TUMBES | BV54: 0.4347826087 | BW54: 0.625 | BX54: 0.8235294118 | BY54: 0.8235294118 | BZ54: 0.65 | CA54: 0.6086956522 | CB54: 0.5454545455 | CC54: 0.5833333333 | CD54: 0.5882352941 | CE54: 0.5806451613 | CF54: 0.6666666667 | CG54: 0.8571428571 | CN54: Julio | CO54: 0.3095238095 | CP54: 0.3918128655 | CQ54: 0.6176470588 | CR54: 0.3170731707 | CS54: 0.7380952381 | CT54: 0.5144927536 | CU54: 0.6666666667 | CV54: 0.2478632479 | CW54: 0.4626865672 | CX54: 0.5846153846 | CY54: 0.578125 | CZ54: 0.625 | DA54: 0.7272727273 | DB54: 0.5540540541 | DC54: 0.3670886076 | DD54: 0.6604938272 | DE54: 0.3302752294 | DF54: 0.7295081967 | DG54: 0.5161290323 | DH54: 0.1911764706 | DI54: 0.52 | DJ54: 0.4166666667 | DK54: 0.2692307692 | DL54: 0.3402061856 | DM54: 0.3548387097 | DN54: 0.4166666667 | DO54: 0.3846153846 | DP54: 0.5454545455 | DQ54: 0.4238410596 | DR54: 0.4591527988
BP55: Total general | BQ55: 0.4173808364 | BU55: UCAYALI | BV55: 0.255 | BW55: 0.2356687898 | BX55: 0.2389937107 | BY55: 0.274611399 | BZ55: 0.3220338983 | CA55: 0.3112244898 | CB55: 0.4238410596 | CC55: 0.3640552995 | CD55: 0.3849372385 | CE55: 0.3279569892 | CF55: 0.3411764706 | CG55: 0.3558282209 | CN55: Agosto | CO55: 0.3970588235 | CP55: 0.3967391304 | CQ55: 0.6140350877 | CR55: 0.350877193 | CS55: 0.7894736842 | CT55: 0.4466666667 | CU55: 0.7613636364 | CV55: 0.34 | CW55: 0.3888888889 | CX55: 0.5538461538 | CY55: 0.648 | CZ55: 0.6446280992 | DA55: 0.734375 | DB55: 0.5073170732 | DC55: 0.4393305439 | DD55: 0.6929460581 | DE55: 0.4636871508 | DF55: 0.7671957672 | DG55: 0.7297297297 | DH55: 0.2556818182 | DI55: 0.4324324324 | DJ55: 0.5 | DK55: 0.380952381 | DL55: 0.30472103 | DM55: 0.4153846154 | DN55: 0.4175824176 | DO55: 0.7333333333 | DP55: 0.5833333333 | DQ55: 0.3640552995 | DR55: 0.4964778811
BU56: Total general | BV56: 0.310943185 | BW56: 0.3496693893 | BX56: 0.3653995345 | BY56: 0.3756887052 | BZ56: 0.4187874251 | CA56: 0.4340118188 | CB56: 0.4591527988 | CC56: 0.4964778811 | CD56: 0.475465313 | CE56: 0.4486040609 | CF56: 0.439055794 | CG56: 0.4212564544 | CN56: Setiembre | CO56: 0.2916666667 | CP56: 0.3333333333 | CQ56: 0.649122807 | CR56: 0.3548387097 | CS56: 0.7735849057 | CT56: 0.4626865672 | CU56: 0.6944444444 | CV56: 0.2716049383 | CW56: 0.3888888889 | CX56: 0.5217391304 | CY56: 0.6336633663 | CZ56: 0.5284552846 | DA56: 0.6946564885 | DB56: 0.5040983607 | DC56: 0.476635514 | DD56: 0.787037037 | DE56: 0.3829113924 | DF56: 0.6885245902 | DG56: 0.5277777778 | DH56: 0.2387096774 | DI56: 0.3863636364 | DJ56: 0.5555555556 | DK56: 0.4146341463 | DL56: 0.3834951456 | DM56: 0.2142857143 | DN56: 0.3896103896 | DO56: 0.6486486486 | DP56: 0.5882352941 | DQ56: 0.3849372385 | DR56: 0.475465313
CN57: Octubre | CO57: 0.4901960784 | CP57: 0.4262295082 | CQ57: 0.7317073171 | CR57: 0.3421052632 | CS57: 0.7391304348 | CT57: 0.4423076923 | CU57: 0.7164179104 | CV57: 0.3402777778 | CW57: 0.431372549 | CX57: 0.4647887324 | CY57: 0.6734693878 | CZ57: 0.5263157895 | DA57: 0.6525423729 | DB57: 0.3811881188 | DC57: 0.4565217391 | DD57: 0.6979166667 | DE57: 0.3071428571 | DF57: 0.6577181208 | DG57: 0.4821428571 | DH57: =+GETPIVOTDATA("IND",$CN$25,"Diris",DH$47,"mes",$CN57) -> 0.2201257862 | DI57: 0.5 | DJ57: 0.1111111111 | DK57: 0.2903225806 | DL57: 0.3246073298 | DM57: 0.3333333333 | DN57: 0.3015873016 | DO57: 0.5 | DP57: 0.5806451613 | DQ57: 0.3279569892 | DR57: 0.4486040609
CN58: Noviembre | CO58: 0.2641509434 | CP58: 0.3456790123 | CQ58: 0.6285714286 | CR58: 0.3170731707 | CS58: 0.7555555556 | CT58: 0.425 | CU58: 0.6739130435 | CV58: 0.2892561983 | CW58: 0.380952381 | CX58: 0.6071428571 | CY58: 0.5818181818 | CZ58: 0.5816326531 | DA58: 0.7115384615 | DB58: 0.4580645161 | DC58: 0.3 | DD58: 0.712 | DE58: 0.3505747126 | DF58: 0.6222222222 | DG58: 0.7045454545 | DH58: 0.224137931 | DI58: 0.4347826087 | DJ58: 0.25 | DK58: 0.3571428571 | DL58: 0.268115942 | DM58: 0.3684210526 | DN58: 0.4634146341 | DO58: 0.7 | DP58: 0.6666666667 | DQ58: 0.3411764706 | DR58: 0.439055794
CN59: Diciembre | CO59: 0.2857142857 | CP59: 0.3529411765 | CQ59: 0.6666666667 | CR59: 0.362745098 | CS59: 0.5714285714 | CT59: 0.48 | CU59: 0.6363636364 | CV59: 0.3983739837 | CW59: 0.3829787234 | CX59: 0.6388888889 | CY59: 0.5625 | CZ59: 0.495049505 | DA59: 0.6310679612 | DB59: 0.3897058824 | DC59: 0.3458646617 | DD59: 0.5615384615 | DE59: 0.3513513514 | DF59: 0.5894736842 | DG59: 0.5 | DH59: 0.2018348624 | DI59: 0.4516129032 | DJ59: 0.4545454545 | DK59: 0.3076923077 | DL59: 0.2129032258 | DM59: 0.3243243243 | DN59: 0.3442622951 | DO59: 0.6363636364 | DP59: 0.8571428571 | DQ59: 0.3558282209 | DR59: 0.4212564544
BV61: 1 | BW61: 2 | BX61: 3 | BY61: 4 | BZ61: 5 | CA61: 6 | CB61: 7 | CC61: 8 | CD61: 9 | CE61: 10 | CF61: 11 | CG61: 12
BP62: AMAZONAS | BQ62: =+IFERROR(GETPIVOTDATA("IND",$BP$25,"Diris",$BP62),"-") -> 0.3114143921 | BU62: AMAZONAS | BV62: =+IFERROR(GETPIVOTDATA("IND",$BU$25,"Diris",$BU62,"mes",BV$61),"-") -> 0.2178217822 | BW62: =+IFERROR(GETPIVOTDATA("IND",$BU$25,"Diris",$BU62,"mes",BW$61),"-") -> 0.2727272727 | BX62: 0.2028985507 | BY62: 0.3409090909 | BZ62: 0.338028169 | CA62: 0.3815789474 | CB62: 0.3095238095 | CC62: 0.3970588235 | CD62: 0.2916666667 | CE62: 0.4901960784 | CF62: 0.2641509434 | CG62: 0.2857142857 | CI62: AMAZONAS | CJ62: =+IF(BV62="-","-",MIN(BV62:CG62)) -> 0.2028985507 | CK62: =+IF(BV62="-","-",MAX(BV62:CG62)) -> 0.4901960784
BP63: ANCASH | BQ63: =+IFERROR(GETPIVOTDATA("IND",$BP$25,"Diris",$BP63),"-") -> 0.3560134164 | BU63: ANCASH | BV63: =+IFERROR(GETPIVOTDATA("IND",$BU$25,"Diris",$BU63,"mes",BV$61),"-") -> 0.2837209302 | BW63: 0.3496932515 | BX63: 0.3612903226 | BY63: 0.349112426 | BZ63: 0.3672316384 | CA63: 0.3277777778 | CB63: 0.3918128655 | CC63: 0.3967391304 | CD63: 0.3333333333 | CE63: 0.4262295082 | CF63: 0.3456790123 | CG63: 0.3529411765 | CI63: ANCASH | CJ63: =+IF(BV63="-","-",MIN(BV63:CG63)) -> 0.2837209302 | CK63: =+IF(BV63="-","-",MAX(BV63:CG63)) -> 0.4262295082
BP64: APURIMAC | BQ64: 0.6003937008 | BU64: APURIMAC | BV64: 0.375 | BW64: 0.5862068966 | BX64: 0.475 | BY64: 0.65 | BZ64: 0.6585365854 | CA64: 0.5517241379 | CB64: 0.6176470588 | CC64: 0.6140350877 | CD64: 0.649122807 | CE64: 0.7317073171 | CF64: 0.6285714286 | CG64: 0.6666666667 | CI64: APURIMAC | CJ64: 0.375 | CK64: 0.7317073171
BP65: AREQUIPA | BQ65: 0.2945544554 | BU65: AREQUIPA | BV65: 0.179245283 | BW65: 0.1976744186 | BX65: 0.2577319588 | BY65: 0.198019802 | BZ65: 0.3191489362 | CA65: 0.3090909091 | CB65: 0.3170731707 | CC65: 0.350877193 | CD65: 0.3548387097 | CE65: 0.3421052632 | CF65: 0.3170731707 | CG65: 0.362745098 | CI65: AREQUIPA | CJ65: 0.179245283 | CK65: 0.362745098
BP66: AYACUCHO | BQ66: 0.7717770035 | BU66: AYACUCHO | BV66: 0.8333333333 | BW66: 0.7575757576 | BX66: 0.8205128205 | BY66: 0.8524590164 | BZ66: 0.8363636364 | CA66: 0.8235294118 | CB66: 0.7380952381 | CC66: 0.7894736842 | CD66: 0.7735849057 | CE66: 0.7391304348 | CF66: 0.7555555556 | CG66: 0.5714285714 | CI66: AYACUCHO | CJ66: 0.5714285714 | CK66: 0.8524590164
BP67: CAJAMARCA | BQ67: 0.4548591144 | BU67: CAJAMARCA | BV67: 0.42 | BW67: 0.4583333333 | BX67: 0.4965517241 | BY67: 0.4727272727 | BZ67: 0.3831168831 | CA67: 0.4620253165 | CB67: 0.5144927536 | CC67: 0.4466666667 | CD67: 0.4626865672 | CE67: 0.4423076923 | CF67: 0.425 | CG67: 0.48 | CI67: CAJAMARCA | CJ67: 0.3831168831 | CK67: 0.5144927536
BP68: CALLAO | BQ68: 0.6146926537 | BU68: CALLAO | BV68: 0.4583333333 | BW68: 0.4130434783 | BX68: 0.4545454545 | BY68: 0.52 | BZ68: 0.4651162791 | CA68: 0.6363636364 | CB68: 0.6666666667 | CC68: 0.7613636364 | CD68: 0.6944444444 | CE68: 0.7164179104 | CF68: 0.6739130435 | CG68: 0.6363636364 | CI68: CALLAO | CJ68: 0.4130434783 | CK68: 0.7613636364
BP69: CUSCO | BQ69: 0.2945474986 | BU69: CUSCO | BV69: 0.2673267327 | BW69: 0.2831325301 | BX69: 0.3006535948 | BY69: 0.2291666667 | BZ69: 0.2517985612 | CA69: 0.3291139241 | CB69: 0.2478632479 | CC69: 0.34 | CD69: 0.2716049383 | CE69: 0.3402777778 | CF69: 0.2892561983 | CG69: 0.3983739837 | CI69: CUSCO | CJ69: 0.2291666667 | CK69: 0.3983739837
BP70: HUANCAVELICA | BQ70: 0.3777134588 | BU70: HUANCAVELICA | BV70: 0.2878787879 | BW70: 0.2592592593 | BX70: 0.4074074074 | BY70: 0.2985074627 | BZ70: 0.4050632911 | CA70: 0.4464285714 | CB70: 0.4626865672 | CC70: 0.3888888889 | CD70: 0.3888888889 | CE70: 0.431372549 | CF70: 0.380952381 | CG70: 0.3829787234 | CI70: HUANCAVELICA | CJ70: 0.2592592593 | CK70: 0.4626865672
BP71: HUANUCO | BQ71: 0.5326231691 | BU71: HUANUCO | BV71: 0.4615384615 | BW71: 0.5098039216 | BX71: 0.4444444444 | BY71: 0.5820895522 | BZ71: 0.5090909091 | CA71: 0.5568181818 | CB71: 0.5846153846 | CC71: 0.5538461538 | CD71: 0.5217391304 | CE71: 0.4647887324 | CF71: 0.6071428571 | CG71: 0.6388888889 | CI71: HUANUCO | CJ71: 0.4444444444 | CK71: 0.6388888889
BP72: ICA | BQ72: 0.5265348595 | BU72: ICA | BV72: 0.3181818182 | BW72: 0.3432835821 | BX72: 0.5303030303 | BY72: 0.3802816901 | BZ72: 0.4657534247 | CA72: 0.5421686747 | CB72: 0.578125 | CC72: 0.648 | CD72: 0.6336633663 | CE72: 0.6734693878 | CF72: 0.5818181818 | CG72: 0.5625 | CI72: ICA | CJ72: 0.3181818182 | CK72: 0.6734693878
BP73: JUNIN | BQ73: 0.5781569966 | BU73: JUNIN | BV73: 0.5916666667 | BW73: 0.512195122 | BX73: 0.5423728814 | BY73: 0.575 | BZ73: 0.6322580645 | CA73: 0.6524822695 | CB73: 0.625 | CC73: 0.6446280992 | CD73: 0.5284552846 | CE73: 0.5263157895 | CF73: 0.5816326531 | CG73: 0.495049505 | CI73: JUNIN | CJ73: 0.495049505 | CK73: 0.6524822695
BP74: LA LIBERTAD | BQ74: 0.662763466 | BU74: LA LIBERTAD | BV74: 0.5409836066 | BW74: 0.5806451613 | BX74: 0.5346534653 | BY74: 0.6082474227 | BZ74: 0.7555555556 | CA74: 0.7830188679 | CB74: 0.7272727273 | CC74: 0.734375 | CD74: 0.6946564885 | CE74: 0.6525423729 | CF74: 0.7115384615 | CG74: 0.6310679612 | CI74: LA LIBERTAD | CJ74: 0.5346534653 | CK74: 0.7830188679
BP75: LAMBAYEQUE | BQ75: 0.4161137441 | BU75: LAMBAYEQUE | BV75: 0.3114035088 | BW75: 0.3719512195 | BX75: 0.34 | BY75: 0.3710691824 | BZ75: 0.3405797101 | CA75: 0.4364640884 | CB75: 0.5540540541 | CC75: 0.5073170732 | CD75: 0.5040983607 | CE75: 0.3811881188 | CF75: 0.4580645161 | CG75: 0.3897058824 | CI75: LAMBAYEQUE | CJ75: 0.3114035088 | CK75: 0.5540540541
BP76: LIMA DIRIS CENTRO | BQ76: 0.3832276938 | BU76: LIMA DIRIS CENTRO | BV76: 0.2921348315 | BW76: 0.3193277311 | BX76: 0.3602941176 | BY76: 0.3294797688 | BZ76: 0.4220779221 | CA76: 0.3832335329 | CB76: 0.3670886076 | CC76: 0.4393305439 | CD76: 0.476635514 | CE76: 0.4565217391 | CF76: 0.3 | CG76: 0.3458646617 | CI76: LIMA DIRIS CENTRO | CJ76: 0.2921348315 | CK76: 0.476635514
BP77: LIMA DIRIS ESTE | BQ77: 0.5989333333 | BU77: LIMA DIRIS ESTE | BV77: 0.3529411765 | BW77: 0.3818181818 | BX77: 0.3770491803 | BY77: 0.4965517241 | BZ77: 0.52 | CA77: 0.6432748538 | CB77: 0.6604938272 | CC77: 0.6929460581 | CD77: 0.787037037 | CE77: 0.6979166667 | CF77: 0.712 | CG77: 0.5615384615 | CI77: LIMA DIRIS ESTE | CJ77: 0.3529411765 | CK77: 0.787037037
BP78: LIMA DIRIS NORTE | BQ78: 0.3105367793 | BU78: LIMA DIRIS NORTE | BV78: 0.1845493562 | BW78: 0.1694915254 | BX78: 0.1615384615 | BY78: 0.2544378698 | BZ78: 0.2682926829 | CA78: 0.2512077295 | CB78: 0.3302752294 | CC78: 0.4636871508 | CD78: 0.3829113924 | CE78: 0.3071428571 | CF78: 0.3505747126 | CG78: 0.3513513514 | CI78: LIMA DIRIS NORTE | CJ78: 0.1615384615 | CK78: 0.4636871508
BP79: LIMA DIRIS SUR | BQ79: 0.6290322581 | BU79: LIMA DIRIS SUR | BV79: 0.4051724138 | BW79: 0.5975609756 | BX79: 0.5408163265 | BY79: 0.5701754386 | BZ79: 0.5575221239 | CA79: 0.6496350365 | CB79: 0.7295081967 | CC79: 0.7671957672 | CD79: 0.6885245902 | CE79: 0.6577181208 | CF79: 0.6222222222 | CG79: 0.5894736842 | CI79: LIMA DIRIS SUR | CJ79: 0.4051724138 | CK79: 0.7671957672
BP80: LIMA PROVINCIAS | BQ80: 0.5722891566 | BU80: LIMA PROVINCIAS | BV80: 0.6478873239 | BW80: 0.6086956522 | BX80: 0.4523809524 | BY80: 0.4102564103 | BZ80: 0.56 | CA80: 0.609375 | CB80: 0.5161290323 | CC80: 0.7297297297 | CD80: 0.5277777778 | CE80: 0.4821428571 | CF80: 0.7045454545 | CG80: 0.5 | CI80: LIMA PROVINCIAS | CJ80: 0.4102564103 | CK80: 0.7297297297
BP81: LORETO | BQ81: 0.1918945312 | BU81: LORETO | BV81: 0.1534090909 | BW81: 0.1770334928 | BX81: 0.1830065359 | BY81: 0.1428571429 | BZ81: 0.2352941176 | CA81: 0.1515151515 | CB81: 0.1911764706 | CC81: 0.2556818182 | CD81: 0.2387096774 | CE81: 0.2201257862 | CF81: 0.224137931 | CG81: 0.2018348624 | CI81: LORETO | CJ81: 0.1428571429 | CK81: 0.2556818182
BP82: MADRE DE DIOS | BQ82: 0.4123931624 | BU82: MADRE DE DIOS | BV82: 0.350877193 | BW82: 0.2444444444 | BX82: 0.4594594595 | BY82: 0.4912280702 | BZ82: 0.3095238095 | CA82: 0.4722222222 | CB82: 0.52 | CC82: 0.4324324324 | CD82: 0.3863636364 | CE82: 0.5 | CF82: 0.4347826087 | CG82: 0.4516129032 | CI82: MADRE DE DIOS | CJ82: 0.2444444444 | CK82: 0.52
BP83: MOQUEGUA | BQ83: 0.3928571429 | BU83: MOQUEGUA | BV83: 0.2222222222 | BW83: 0.6666666667 | BX83: 0.4 | BY83: 0.3529411765 | BZ83: 0.4 | CA83: 0.2142857143 | CB83: 0.4166666667 | CC83: 0.5 | CD83: 0.5555555556 | CE83: 0.1111111111 | CF83: 0.25 | CG83: 0.4545454545 | CI83: MOQUEGUA | CJ83: 0.1111111111 | CK83: 0.6666666667
BP84: PASCO | BQ84: 0.3348946136 | BU84: PASCO | BV84: 0.2542372881 | BW84: 0.2926829268 | BX84: 0.3833333333 | BY84: 0.2564102564 | BZ84: 0.4324324324 | CA84: 0.40625 | CB84: 0.2692307692 | CC84: 0.380952381 | CD84: 0.4146341463 | CE84: 0.2903225806 | CF84: 0.3571428571 | CG84: 0.3076923077 | CI84: PASCO | CJ84: 0.2542372881 | CK84: 0.4324324324
BP85: PIURA | BQ85: 0.2836976321 | BU85: PIURA | BV85: 0.2007042254 | BW85: 0.2222222222 | BX85: 0.2129032258 | BY85: 0.2682926829 | BZ85: 0.3571428571 | CA85: 0.3240223464 | CB85: 0.3402061856 | CC85: 0.30472103 | CD85: 0.3834951456 | CE85: 0.3246073298 | CF85: 0.268115942 | CG85: 0.2129032258 | CI85: PIURA | CJ85: 0.2007042254 | CK85: 0.3834951456
BP86: PUNO | BQ86: 0.3235294118 | BU86: PUNO | BV86: 0.35 | BW86: 0.390625 | BX86: 0.34375 | BY86: 0.2588235294 | BZ86: 0.3442622951 | CA86: 0.2432432432 | CB86: 0.3548387097 | CC86: 0.4153846154 | CD86: 0.2142857143 | CE86: 0.3333333333 | CF86: 0.3684210526 | CG86: 0.3243243243 | CI86: PUNO | CJ86: 0.2142857143 | CK86: 0.4153846154
BP87: SAN MARTIN | BQ87: 0.3623623624 | BU87: SAN MARTIN | BV87: 0.3260869565 | BW87: 0.3541666667 | BX87: 0.3368421053 | BY87: 0.2980769231 | BZ87: 0.3950617284 | CA87: 0.3875 | CB87: 0.4166666667 | CC87: 0.4175824176 | CD87: 0.3896103896 | CE87: 0.3015873016 | CF87: 0.4634146341 | CG87: 0.3442622951 | CI87: SAN MARTIN | CJ87: 0.2980769231 | CK87: 0.4634146341
BP88: TACNA | BQ88: 0.6219512195 | BU88: TACNA | BV88: 0.3125 | BW88: 1 | BX88: 0.8333333333 | BY88: 1 | BZ88: 0.6666666667 | CA88: 0.5454545455 | CB88: 0.3846153846 | CC88: 0.7333333333 | CD88: 0.6486486486 | CE88: 0.5 | CF88: 0.7 | CG88: 0.6363636364 | CI88: TACNA | CJ88: 0.3125 | CK88: 1
BP89: TUMBES | BQ89: 0.6329588015 | BU89: TUMBES | BV89: 0.4347826087 | BW89: 0.625 | BX89: 0.8235294118 | BY89: 0.8235294118 | BZ89: 0.65 | CA89: 0.6086956522 | CB89: 0.5454545455 | CC89: 0.5833333333 | CD89: 0.5882352941 | CE89: 0.5806451613 | CF89: 0.6666666667 | CG89: 0.8571428571 | CI89: TUMBES | CJ89: 0.4347826087 | CK89: 0.8571428571
BP90: UCAYALI | BQ90: 0.3211050725 | BU90: UCAYALI | BV90: 0.255 | BW90: 0.2356687898 | BX90: 0.2389937107 | BY90: 0.274611399 | BZ90: 0.3220338983 | CA90: 0.3112244898 | CB90: 0.4238410596 | CC90: 0.3640552995 | CD90: 0.3849372385 | CE90: 0.3279569892 | CF90: 0.3411764706 | CG90: 0.3558282209 | CI90: UCAYALI | CJ90: 0.2356687898 | CK90: 0.4238410596
BP91: NACIONAL | BQ91: =+IFERROR(GETPIVOTDATA("IND",$BP$25),"-") -> 0.4173808364 | BU91: NACIONAL | BV91: =+IFERROR(GETPIVOTDATA("IND",$BU$25,"mes",BV$61),"-") -> 0.310943185 | BW91: =+IFERROR(GETPIVOTDATA("IND",$BU$25,"mes",BW$61),"-") -> 0.3496693893 | BX91: 0.3653995345 | BY91: 0.3756887052 | BZ91: 0.4187874251 | CA91: 0.4340118188 | CB91: 0.4591527988 | CC91: 0.4964778811 | CD91: 0.475465313 | CE91: 0.4486040609 | CF91: 0.439055794 | CG91: 0.4212564544 | CI91: NACIONAL | CJ91: 0.310943185 | CK91: 0.4964778811

Sheet DL_1153_2025_CG02
A1: =+DL1153_2025!C8 -> Ficha 02: Porcentaje de niñas/niños menores de 12 meses, que reciben un paquete integrado de servicios: CRED, vacunas, dosaje de hemoglobina para descarte de anemia y suplementación con hierro. | BP1: 1 | DS1: 1
A2: Periodo de Evaluación: | B2: =+DL1153_2025!B42 -> Diciembre - 2025
J3: Distritos_FED | K3: (Todas)
J4: Disa | K4: (Todas)
A5: Distritos_FED | B5: (Todas) | J5: Prov | K5: (Todas)
A6: mes | B6: 12 | J6: RED | K6: (Todas)
A7: seguro | B7: MINSA | J7: seguro | K7: MINSA | BQ7: seguro | BR7: MINSA
A8: DIRESA/ DIRIS | B8: Provincia | C8: Red | D8: Distrito | E8: UBIGEO | F8: Denominador: Niñas/niños menores de 364 días en el periodo de evaluación, con SIS, sin dato de seguro y sin seguro (población MINSA y Gobierno Regional), registrados en el padrón nominal con DNI o CNV, según el ámbito de la jurisdicción determinado por la residencia registrada en el padrón nominal. | G8: Numerador: Niñas/niños del denominador que recibieron paquete integrado de servicios (registrado en el HIS), de acuerdo al esquema vigente: CRED, vacunas, entrega de hierro (gotas, jarabe o micronutrientes) y dosaje de hemoglobina para descarte de anemi | H8: Indicador: Porcentaje de niñas/niños menores de 12 meses, que reciben un paquete integrado de servicios: CRED, vacunas, dosaje de hemoglobina para descarte de anemia y suplementación con hierro. | J8: AÑO | K8: MES | L8: Denominador: Niñas/niños menores de 364 días en el periodo de evaluación, con SIS, sin dato de seguro y sin seguro (población MINSA y Gobierno Regional), registrados en el padrón nominal con DNI o CNV, según el ámbito de la jurisdicción determinado por la residencia registrada en el padrón nominal. | M8: Numerador: Niñas/niños del denominador que recibieron paquete integrado de servicios (registrado en el HIS), de acuerdo al esquema vigente: CRED, vacunas, entrega de hierro (gotas, jarabe o micronutrientes) y dosaje de hemoglobina para descarte de anemi | N8: Indicador: Porcentaje de niñas/niños menores de 12 meses, que reciben un paquete integrado de servicios: CRED, vacunas, dosaje de hemoglobina para descarte de anemia y suplementación con hierro. | BQ8: mes | BR8: 12 | BU8: seguro | BV8: MINSA | CM8: seguro | CN8: MINSA
A9: Disa | B9: Prov | C9: RED | D9: Dist | E9: ubigeo | F9: Denominador | G9: Numerador | H9: Indicador | J9: anio | K9: mes | L9: Denominador | M9: Numerador | N9: Indicador
A10: AMAZONAS | F10: 4858 | G10: 2635 | H10: 0.5424042816 | J10: 2025 | K10: 1 | L10: 271039 | M10: 95174 | N10: 0.3511450382 | BQ10: Disa | BR10: Suma de IND | BU10: Suma de IND | BV10: mes | CM10: Suma de IND | CN10: Disa
A11: ANCASH | F11: 10041 | G11: 6386 | H11: 0.635992431 | J11: 2025 | K11: 2 | L11: 269501 | M11: 99065 | N11: 0.3675867622 | BQ11: AMAZONAS | BR11: 0.5424042816 | BU11: Disa | BV11: 1 | BW11: 2 | BX11: 3 | BY11: 4 | BZ11: 5 | CA11: 6 | CB11: 7 | CC11: 8 | CD11: 9 | CE11: 10 | CF11: 11 | CG11: 12 | CM11: mes | CN11: AMAZONAS | CO11: ANCASH | CP11: APURIMAC | CQ11: AREQUIPA | CR11: AYACUCHO | CS11: CAJAMARCA | CT11: CALLAO | CU11: CUSCO | CV11: HUANCAVELICA | CW11: HUANUCO | CX11: ICA | CY11: JUNIN | CZ11: LA LIBERTAD | DA11: LAMBAYEQUE | DB11: LIMA DIRIS CENTRO | DC11: LIMA DIRIS ESTE | DD11: LIMA DIRIS NORTE | DE11: LIMA DIRIS SUR | DF11: LIMA PROVINCIAS | DG11: LORETO | DH11: MADRE DE DIOS | DI11: MOQUEGUA | DJ11: PASCO | DK11: PIURA | DL11: PUNO | DM11: SAN MARTIN | DN11: TACNA | DO11: TUMBES | DP11: UCAYALI | DQ11: Total general
A12: APURIMAC | F12: 4221 | G12: 3336 | H12: 0.7903340441 | J12: 2025 | K12: 3 | L12: 267627 | M12: 106852 | N12: 0.3992571751 | BQ12: ANCASH | BR12: 0.635992431 | BU12: AMAZONAS | BV12: 0.3374079035 | BW12: 0.3528716216 | BX12: 0.3873579056 | BY12: 0.4244022504 | BZ12: 0.4488555079 | CA12: 0.4840116279 | CB12: 0.501014573 | CC12: 0.5285876562 | CD12: 0.5309477756 | CE12: 0.5366673256 | CF12: 0.5463855422 | CG12: 0.5424042816 | CM12: enero | CN12: 0.3374079035 | CO12: 0.4173511767 | CP12: 0.420013462 | CQ12: 0.3019575665 | CR12: 0.4684278351 | CS12: 0.3599394856 | CT12: 0.3628644665 | CU12: 0.3688505296 | CV12: 0.52228739 | CW12: 0.5471457425 | CX12: 0.3065175565 | CY12: 0.5188723206 | CZ12: 0.3188129122 | DA12: 0.4180858719 | DB12: 0.2481536189 | DC12: 0.2410139992 | DD12: 0.2501214477 | DE12: 0.2540366829 | DF12: 0.3887302966 | DG12: 0.2793764988 | DH12: 0.6300465839 | DI12: 0.3152478952 | DJ12: 0.3792280143 | DK12: 0.3388406609 | DL12: 0.3211453291 | DM12: 0.3621175328 | DN12: 0.3395833333 | DO12: 0.3271240345 | DP12: 0.3151557254 | DQ12: 0.3511450382
A13: AREQUIPA | F13: 8250 | G13: 4062 | H13: 0.4923636364 | J13: 2025 | K13: 4 | L13: 265503 | M13: 115804 | N13: 0.4361683295 | BQ13: APURIMAC | BR13: 0.7903340441 | BU13: ANCASH | BV13: 0.4173511767 | BW13: 0.4344576287 | BX13: 0.4682375118 | BY13: 0.5000947508 | BZ13: 0.5323672419 | CA13: 0.5754898194 | CB13: 0.603737051 | CC13: 0.6372319688 | CD13: 0.643635293 | CE13: 0.6426252091 | CF13: 0.6505056514 | CG13: 0.635992431 | CM13: febrero | CN13: 0.3528716216 | CO13: 0.4344576287 | CP13: 0.4371040724 | CQ13: 0.3048159981 | CR13: 0.4828147907 | CS13: 0.3982344286 | CT13: 0.3861241692 | CU13: 0.4062795835 | CV13: 0.5539547192 | CW13: 0.5305836743 | CX13: 0.3144867751 | CY13: 0.5394230013 | CZ13: 0.3496694119 | DA13: 0.4056731922 | DB13: 0.2698907956 | DC13: 0.2644038791 | DD13: 0.2710478498 | DE13: 0.2673509672 | DF13: 0.4096565455 | DG13: 0.3030582559 | DH13: 0.6267496112 | DI13: 0.334901223 | DJ13: 0.406779661 | DK13: 0.3432424865 | DL13: 0.3278162822 | DM13: 0.3701890118 | DN13: 0.3723991507 | DO13: 0.3599640934 | DP13: 0.3269053118 | DQ13: 0.3675867622
A14: AYACUCHO | F14: 5800 | G14: 4922 | H14: 0.8486206897 | J14: 2025 | K14: 5 | L14: 264027 | M14: 122491 | N14: 0.4639336129 | BQ14: AREQUIPA | BR14: 0.4923636364 | BU14: APURIMAC | BV14: 0.420013462 | BW14: 0.4371040724 | BX14: 0.462031107 | BY14: 0.5146010577 | BZ14: 0.5690569518 | CA14: 0.614902507 | CB14: 0.6618470149 | CC14: 0.7093917502 | CD14: 0.7385482734 | CE14: 0.764608076 | CF14: 0.7897606068 | CG14: 0.7903340441 | CM14: Marzo | CN14: 0.3873579056 | CO14: 0.4682375118 | CP14: 0.462031107 | CQ14: 0.3290192353 | CR14: 0.5179335308 | CS14: 0.4527476589 | CT14: 0.4294599018 | CU14: 0.4553458122 | CV14: 0.5924058143 | CW14: 0.53150804 | CX14: 0.3499939342 | CY14: 0.5726522843 | CZ14: 0.3824188791 | DA14: 0.4169634186 | DB14: 0.3079755563 | DC14: 0.2942928517 | DD14: 0.2983050847 | DE14: 0.2951350498 | DF14: 0.4429983732 | DG14: 0.349611856 | DH14: 0.6263990737 | DI14: 0.3689788054 | DJ14: 0.4288651316 | DK14: 0.3698959167 | DL14: 0.3528166031 | DM14: 0.3855243722 | DN14: 0.4338647135 | DO14: 0.3993766696 | DP14: 0.3624740843 | DQ14: 0.3992571751
A15: CAJAMARCA | F15: 15289 | G15: 10258 | H15: 0.6709398914 | J15: 2025 | K15: 6 | L15: 262796 | M15: 130402 | N15: 0.496209988 | BQ15: AYACUCHO | BR15: 0.8486206897 | BU15: AREQUIPA | BV15: 0.3019575665 | BW15: 0.3048159981 | BX15: 0.3290192353 | BY15: 0.3620586475 | BZ15: 0.4002181025 | CA15: 0.4294418718 | CB15: 0.4484573947 | CC15: 0.4712883436 | CD15: 0.4793428957 | CE15: 0.492014742 | CF15: 0.5003674669 | CG15: 0.4923636364 | CM15: Abril | CN15: 0.4244022504 | CO15: 0.5000947508 | CP15: 0.5146010577 | CQ15: 0.3620586475 | CR15: 0.567626019 | CS15: 0.5088672412 | CT15: 0.4774374177 | CU15: 0.5034372502 | CV15: 0.6430501351 | CW15: 0.561295972 | CX15: 0.3987542745 | CY15: 0.6090153453 | CZ15: 0.420228346 | DA15: 0.4523712016 | DB15: 0.3272842039 | DC15: 0.3199298997 | DD15: 0.3143953233 | DE15: 0.3297559424 | DF15: 0.4791164149 | DG15: 0.3899011299 | DH15: 0.6456273764 | DI15: 0.4199424736 | DJ15: 0.4625679632 | DK15: 0.4152647087 | DL15: 0.3770701998 | DM15: 0.414544734 | DN15: 0.4887737478 | DO15: 0.4757281553 | DP15: 0.394404953 | DQ15: 0.4361683295
A16: CALLAO | F16: 5923 | G16: 3561 | H16: 0.6012156002 | J16: 2025 | K16: 7 | L16: 261522 | M16: 134289 | N16: 0.5134902609 | BQ16: CAJAMARCA | BR16: 0.6709398914 | BU16: AYACUCHO | BV16: 0.4684278351 | BW16: 0.4828147907 | BX16: 0.5179335308 | BY16: 0.567626019 | BZ16: 0.6245602278 | CA16: 0.6813634051 | CB16: 0.7357751278 | CC16: 0.7797679973 | CD16: 0.8178881143 | CE16: 0.8460485802 | CF16: 0.8596097393 | CG16: 0.8486206897 | CM16: Mayo | CN16: 0.4488555079 | CO16: 0.5323672419 | CP16: 0.5690569518 | CQ16: 0.4002181025 | CR16: 0.6245602278 | CS16: 0.5529027394 | CT16: 0.5183700735 | CU16: 0.534244373 | CV16: 0.6730367274 | CW16: 0.5885978428 | CX16: 0.444906954 | CY16: 0.6385619345 | CZ16: 0.4501927246 | DA16: 0.4760169 | DB16: 0.334676782 | DC16: 0.3325504013 | DD16: 0.3128368447 | DE16: 0.3570972377 | DF16: 0.5092110278 | DG16: 0.409551273 | DH16: 0.6630188679 | DI16: 0.4510921178 | DJ16: 0.5196950445 | DK16: 0.4459851193 | DL16: 0.3959121877 | DM16: 0.4295295394 | DN16: 0.5397877984 | DO16: 0.5450945886 | DP16: 0.4220779221 | DQ16: 0.4639336129
A17: CUSCO | F17: 12097 | G17: 7492 | H17: 0.6193271059 | J17: 2025 | K17: 8 | L17: 260286 | M17: 139384 | N17: 0.5355032541 | BQ17: CALLAO | BR17: 0.6012156002 | BU17: CAJAMARCA | BV17: 0.3599394856 | BW17: 0.3982344286 | BX17: 0.4527476589 | BY17: 0.5088672412 | BZ17: 0.5529027394 | CA17: 0.6010781671 | CB17: 0.6341693381 | CC17: 0.673256627 | CD17: 0.6753362657 | CE17: 0.67410225 | CF17: 0.677964999 | CG17: 0.6709398914 | CM17: Junio | CN17: 0.4840116279 | CO17: 0.5754898194 | CP17: 0.614902507 | CQ17: 0.4294418718 | CR17: 0.6813634051 | CS17: 0.6010781671 | CT17: 0.5484518828 | CU17: 0.5755494505 | CV17: 0.711900425 | CW17: 0.6273963442 | CX17: 0.4964539007 | CY17: 0.6644149578 | CZ17: 0.488200857 | DA17: 0.5247005988 | DB17: 0.3495575221 | DC17: 0.3425185185 | DD17: 0.3244027409 | DE17: 0.3893691963 | DF17: 0.5528258656 | DG17: 0.4302040244 | DH17: 0.6717528843 | DI17: 0.4942748092 | DJ17: 0.5676141258 | DK17: 0.4849225356 | DL17: 0.4060010911 | DM17: 0.4420980257 | DN17: 0.586589698 | DO17: 0.6033421284 | DP17: 0.4488873828 | DQ17: 0.496209988
A18: HUANCAVELICA | F18: 3348 | G18: 2588 | H18: 0.7729988053 | J18: 2025 | K18: 9 | L18: 259865 | M18: 140505 | N18: 0.5406845862 | BQ18: CUSCO | BR18: 0.6193271059 | BU18: CALLAO | BV18: 0.3628644665 | BW18: 0.3861241692 | BX18: 0.4294599018 | BY18: 0.4774374177 | BZ18: 0.5183700735 | CA18: 0.5484518828 | CB18: 0.5744860128 | CC18: 0.589596352 | CD18: 0.6022727273 | CE18: 0.6127895267 | CF18: 0.6134496059 | CG18: 0.6012156002 | CM18: Julio | CN18: 0.501014573 | CO18: 0.603737051 | CP18: 0.6618470149 | CQ18: 0.4484573947 | CR18: 0.7357751278 | CS18: 0.6341693381 | CT18: 0.5744860128 | CU18: 0.5961272476 | CV18: 0.7352762599 | CW18: 0.6467306405 | CX18: 0.5360241418 | CY18: 0.6862823699 | CZ18: 0.5038167939 | DA18: 0.5558069382 | DB18: 0.3472869442 | DC18: 0.3482799761 | DD18: 0.3188107704 | DE18: 0.402073455 | DF18: 0.5820437396 | DG18: 0.4327407615 | DH18: 0.6732488823 | DI18: 0.4990740741 | DJ18: 0.5998275119 | DK18: 0.4987019471 | DL18: 0.4153660145 | DM18: 0.4438136257 | DN18: 0.630044843 | DO18: 0.6321334504 | DP18: 0.454708119 | DQ18: 0.5134902609
A19: HUANUCO | F19: 8942 | G19: 6130 | H19: 0.6855289644 | J19: 2025 | K19: 10 | L19: 259625 | M19: 140397 | N19: 0.540768416 | BQ19: HUANCAVELICA | BR19: 0.7729988053 | BU19: CUSCO | BV19: 0.3688505296 | BW19: 0.4062795835 | BX19: 0.4553458122 | BY19: 0.5034372502 | BZ19: 0.534244373 | CA19: 0.5755494505 | CB19: 0.5961272476 | CC19: 0.6261301621 | CD19: 0.6242330034 | CE19: 0.619886876 | CF19: 0.6243646499 | CG19: 0.6193271059 | CM19: Agosto | CN19: 0.5285876562 | CO19: 0.6372319688 | CP19: 0.7093917502 | CQ19: 0.4712883436 | CR19: 0.7797679973 | CS19: 0.673256627 | CT19: 0.589596352 | CU19: 0.6261301621 | CV19: 0.7621914509 | CW19: 0.6769420469 | CX19: 0.5750754527 | CY19: 0.705229284 | CZ19: 0.5271941044 | DA19: 0.5776029772 | DB19: 0.3497661885 | DC19: 0.355230417 | DD19: 0.3182331535 | DE19: 0.4255885198 | DF19: 0.6089536834 | DG19: 0.4480464921 | DH19: 0.6810692054 | DI19: 0.5184501845 | DJ19: 0.6428571429 | DK19: 0.5251359732 | DL19: 0.4272567923 | DM19: 0.45339606 | DN19: 0.6757990868 | DO19: 0.662598082 | DP19: 0.4690314689 | DQ19: 0.5355032541
A20: ICA | F20: 8030 | G20: 5065 | H20: 0.6307596513 | J20: 2025 | K20: 11 | L20: 259896 | M20: 141811 | N20: 0.5456451811 | BQ20: HUANUCO | BR20: 0.6855289644 | BU20: HUANCAVELICA | BV20: 0.52228739 | BW20: 0.5539547192 | BX20: 0.5924058143 | BY20: 0.6430501351 | BZ20: 0.6730367274 | CA20: 0.711900425 | CB20: 0.7352762599 | CC20: 0.7621914509 | CD20: 0.767337136 | CE20: 0.7655027092 | CF20: 0.7794117647 | CG20: 0.7729988053 | CM20: Setiembre | CN20: 0.5309477756 | CO20: 0.643635293 | CP20: 0.7385482734 | CQ20: 0.4793428957 | CR20: 0.8178881143 | CS20: 0.6753362657 | CT20: 0.6022727273 | CU20: 0.6242330034 | CV20: 0.767337136 | CW20: 0.6858233247 | CX20: 0.6092623055 | CY20: 0.7109733516 | CZ20: 0.5285949205 | DA20: 0.5818010776 | DB20: 0.3375574212 | DC20: 0.3433117852 | DD20: 0.3159480324 | DE20: 0.4361991675 | DF20: 0.6197020293 | DG20: 0.4572542467 | DH20: 0.6810218978 | DI20: 0.5148698885 | DJ20: 0.6666666667 | DK20: 0.5278604413 | DL20: 0.4421537449 | DM20: 0.4549545143 | DN20: 0.7042446372 | DO20: 0.6401430487 | DP20: 0.4695162359 | DQ20: 0.5406845862
A21: JUNIN | F21: 12486 | G21: 8828 | H21: 0.7070318757 | J21: 2025 | K21: 12 | L21: 259333 | M21: 137858 | N21: 0.5315868015 | BQ21: ICA | BR21: 0.6307596513 | BU21: HUANUCO | BV21: 0.5471457425 | BW21: 0.5305836743 | BX21: 0.53150804 | BY21: 0.561295972 | BZ21: 0.5885978428 | CA21: 0.6273963442 | CB21: 0.6467306405 | CC21: 0.6769420469 | CD21: 0.6858233247 | CE21: 0.6853732009 | CF21: 0.6969325153 | CG21: 0.6855289644 | CM21: Octubre | CN21: 0.5366673256 | CO21: 0.6426252091 | CP21: 0.764608076 | CQ21: 0.492014742 | CR21: 0.8460485802 | CS21: 0.67410225 | CT21: 0.6127895267 | CU21: 0.619886876 | CV21: 0.7655027092 | CW21: 0.6853732009 | CX21: 0.6270120724 | CY21: 0.706385727 | CZ21: 0.526341345 | DA21: 0.5666148263 | DB21: 0.3375530744 | DC21: 0.3300620869 | DD21: 0.3142249202 | DE21: 0.440268135 | DF21: 0.6179070065 | DG21: 0.4638265342 | DH21: 0.6753153153 | DI21: 0.4990654206 | DJ21: 0.6634735527 | DK21: 0.5176586173 | DL21: 0.4482184482 | DM21: 0.4578921807 | DN21: 0.7183426443 | DO21: 0.6302294197 | DP21: 0.470581838 | DQ21: 0.540768416
A22: LA LIBERTAD | F22: 16459 | G22: 8635 | H22: 0.5246369767 | BQ22: JUNIN | BR22: 0.7070318757 | BU22: ICA | BV22: 0.3065175565 | BW22: 0.3144867751 | BX22: 0.3499939342 | BY22: 0.3987542745 | BZ22: 0.444906954 | CA22: 0.4964539007 | CB22: 0.5360241418 | CC22: 0.5750754527 | CD22: 0.6092623055 | CE22: 0.6270120724 | CF22: 0.647463995 | CG22: 0.6307596513 | CM22: Noviembre | CN22: 0.5463855422 | CO22: 0.6505056514 | CP22: 0.7897606068 | CQ22: 0.5003674669 | CR22: 0.8596097393 | CS22: 0.677964999 | CT22: 0.6134496059 | CU22: 0.6243646499 | CV22: 0.7794117647 | CW22: 0.6969325153 | CX22: 0.647463995 | CY22: 0.7119282224 | CZ22: 0.5342997513 | DA22: 0.5568872677 | DB22: 0.3362971123 | DC22: 0.3217128463 | DD22: 0.3099294764 | DE22: 0.4450523311 | DF22: 0.6284132377 | DG22: 0.4704759307 | DH22: 0.6709044679 | DI22: 0.491588785 | DJ22: 0.6732919255 | DK22: 0.5188399771 | DL22: 0.4545150128 | DM22: 0.4668727062 | DN22: 0.7206364062 | DO22: 0.6164383562 | DP22: 0.4904136148 | DQ22: 0.5456451811
A23: LAMBAYEQUE | F23: 11420 | G23: 5958 | H23: 0.5217162872 | BQ23: LA LIBERTAD | BR23: 0.5246369767 | BU23: JUNIN | BV23: 0.5188723206 | BW23: 0.5394230013 | BX23: 0.5726522843 | BY23: 0.6090153453 | BZ23: 0.6385619345 | CA23: 0.6644149578 | CB23: 0.6862823699 | CC23: 0.705229284 | CD23: 0.7109733516 | CE23: 0.706385727 | CF23: 0.7119282224 | CG23: 0.7070318757 | CM23: Diciembre | CN23: 0.5424042816 | CO23: 0.635992431 | CP23: 0.7903340441 | CQ23: 0.4923636364 | CR23: 0.8486206897 | CS23: 0.6709398914 | CT23: 0.6012156002 | CU23: 0.6193271059 | CV23: 0.7729988053 | CW23: 0.6855289644 | CX23: 0.6307596513 | CY23: 0.7070318757 | CZ23: 0.5246369767 | DA23: 0.5217162872 | DB23: 0.3160556258 | DC23: 0.3015173262 | DD23: 0.2995994492 | DE23: 0.422796449 | DF23: 0.6244678187 | DG23: 0.4510828977 | DH23: 0.6294307197 | DI23: 0.462962963 | DJ23: 0.6529680365 | DK23: 0.4957170634 | DL23: 0.4512659646 | DM23: 0.4558513695 | DN23: 0.7046824293 | DO23: 0.5668425682 | DP23: 0.4762312634 | DQ23: 0.5315868015
A24: LIMA DIRIS CENTRO | F24: 12656 | G24: 4000 | H24: 0.3160556258 | BQ24: LAMBAYEQUE | BR24: 0.5217162872 | BU24: LA LIBERTAD | BV24: 0.3188129122 | BW24: 0.3496694119 | BX24: 0.3824188791 | BY24: 0.420228346 | BZ24: 0.4501927246 | CA24: 0.488200857 | CB24: 0.5038167939 | CC24: 0.5271941044 | CD24: 0.5285949205 | CE24: 0.526341345 | CF24: 0.5342997513 | CG24: 0.5246369767
A25: LIMA DIRIS ESTE | F25: 9754 | G25: 2941 | H25: 0.3015173262 | BQ25: LIMA DIRIS CENTRO | BR25: 0.3160556258 | BU25: LAMBAYEQUE | BV25: 0.4180858719 | BW25: 0.4056731922 | BX25: 0.4169634186 | BY25: 0.4523712016 | BZ25: 0.4760169 | CA25: 0.5247005988 | CB25: 0.5558069382 | CC25: 0.5776029772 | CD25: 0.5818010776 | CE25: 0.5666148263 | CF25: 0.5568872677 | CG25: 0.5217162872
A26: LIMA DIRIS NORTE | F26: 15978 | G26: 4787 | H26: 0.2995994492 | BQ26: LIMA DIRIS ESTE | BR26: 0.3015173262 | BU26: LIMA DIRIS CENTRO | BV26: 0.2481536189 | BW26: 0.2698907956 | BX26: 0.3079755563 | BY26: 0.3272842039 | BZ26: 0.334676782 | CA26: 0.3495575221 | CB26: 0.3472869442 | CC26: 0.3497661885 | CD26: 0.3375574212 | CE26: 0.3375530744 | CF26: 0.3362971123 | CG26: 0.3160556258
A27: LIMA DIRIS SUR | F27: 12616 | G27: 5334 | H27: 0.422796449 | BQ27: LIMA DIRIS NORTE | BR27: 0.2995994492 | BU27: LIMA DIRIS ESTE | BV27: 0.2410139992 | BW27: 0.2644038791 | BX27: 0.2942928517 | BY27: 0.3199298997 | BZ27: 0.3325504013 | CA27: 0.3425185185 | CB27: 0.3482799761 | CC27: 0.355230417 | CD27: 0.3433117852 | CE27: 0.3300620869 | CF27: 0.3217128463 | CG27: 0.3015173262
A28: LIMA PROVINCIAS | F28: 7986 | G28: 4987 | H28: 0.6244678187 | BQ28: LIMA DIRIS SUR | BR28: 0.422796449 | BU28: LIMA DIRIS NORTE | BV28: 0.2501214477 | BW28: 0.2710478498 | BX28: 0.2983050847 | BY28: 0.3143953233 | BZ28: 0.3128368447 | CA28: 0.3244027409 | CB28: 0.3188107704 | CC28: 0.3182331535 | CD28: 0.3159480324 | CE28: 0.3142249202 | CF28: 0.3099294764 | CG28: 0.2995994492 | CN28: AMAZONAS | CO28: ANCASH | CP28: APURIMAC | CQ28: AREQUIPA | CR28: AYACUCHO | CS28: CAJAMARCA | CT28: CALLAO | CU28: CUSCO | CV28: HUANCAVELICA | CW28: HUANUCO | CX28: ICA | CY28: JUNIN | CZ28: LA LIBERTAD | DA28: LAMBAYEQUE | DB28: LIMA DIRIS CENTRO | DC28: LIMA DIRIS ESTE | DD28: LIMA DIRIS NORTE | DE28: LIMA DIRIS SUR | DF28: LIMA PROVINCIAS | DG28: LORETO | DH28: MADRE DE DIOS | DI28: MOQUEGUA | DJ28: PASCO | DK28: PIURA | DL28: PUNO | DM28: SAN MARTIN | DN28: TACNA | DO28: TUMBES | DP28: UCAYALI | DQ28: NACIONAL
A29: LORETO | F29: 14729 | G29: 6644 | H29: 0.4510828977 | BQ29: LIMA PROVINCIAS | BR29: 0.6244678187 | BU29: LIMA DIRIS SUR | BV29: 0.2540366829 | BW29: 0.2673509672 | BX29: 0.2951350498 | BY29: 0.3297559424 | BZ29: 0.3570972377 | CA29: 0.3893691963 | CB29: 0.402073455 | CC29: 0.4255885198 | CD29: 0.4361991675 | CE29: 0.440268135 | CF29: 0.4450523311 | CG29: 0.422796449 | CM29: Enero | CN29: =+IFERROR(GETPIVOTDATA("IND",$CM$10,"Disa",CN$28,"mes",$CM29),"-") -> 0.3374079035 | CO29: =+IFERROR(GETPIVOTDATA("IND",$CM$10,"Disa",CO$28,"mes",$CM29),"-") -> 0.4173511767 | CP29: 0.420013462 | CQ29: 0.3019575665 | CR29: 0.4684278351 | CS29: 0.3599394856 | CT29: 0.3628644665 | CU29: 0.3688505296 | CV29: 0.52228739 | CW29: 0.5471457425 | CX29: 0.3065175565 | CY29: 0.5188723206 | CZ29: 0.3188129122 | DA29: 0.4180858719 | DB29: 0.2481536189 | DC29: 0.2410139992 | DD29: 0.2501214477 | DE29: 0.2540366829 | DF29: 0.3887302966 | DG29: 0.2793764988 | DH29: 0.6300465839 | DI29: 0.3152478952 | DJ29: 0.3792280143 | DK29: 0.3388406609 | DL29: 0.3211453291 | DM29: 0.3621175328 | DN29: 0.3395833333 | DO29: 0.3271240345 | DP29: 0.3151557254 | DQ29: =+IFERROR(GETPIVOTDATA("IND",$CM$10,"mes",$CM29),"-") -> 0.3511450382
A30: MADRE DE DIOS | F30: 2793 | G30: 1758 | H30: 0.6294307197 | BQ30: LORETO | BR30: 0.4510828977 | BU30: LIMA PROVINCIAS | BV30: 0.3887302966 | BW30: 0.4096565455 | BX30: 0.4429983732 | BY30: 0.4791164149 | BZ30: 0.5092110278 | CA30: 0.5528258656 | CB30: 0.5820437396 | CC30: 0.6089536834 | CD30: 0.6197020293 | CE30: 0.6179070065 | CF30: 0.6284132377 | CG30: 0.6244678187 | CM30: Febrero | CN30: =+IFERROR(GETPIVOTDATA("IND",$CM$10,"Disa",CN$28,"mes",$CM30),"-") -> 0.3528716216 | CO30: 0.4344576287 | CP30: 0.4371040724 | CQ30: 0.3048159981 | CR30: 0.4828147907 | CS30: 0.3982344286 | CT30: 0.3861241692 | CU30: 0.4062795835 | CV30: 0.5539547192 | CW30: 0.5305836743 | CX30: 0.3144867751 | CY30: 0.5394230013 | CZ30: 0.3496694119 | DA30: 0.4056731922 | DB30: 0.2698907956 | DC30: 0.2644038791 | DD30: 0.2710478498 | DE30: 0.2673509672 | DF30: 0.4096565455 | DG30: 0.3030582559 | DH30: 0.6267496112 | DI30: 0.334901223 | DJ30: 0.406779661 | DK30: 0.3432424865 | DL30: 0.3278162822 | DM30: 0.3701890118 | DN30: 0.3723991507 | DO30: 0.3599640934 | DP30: 0.3269053118 | DQ30: =+IFERROR(GETPIVOTDATA("IND",$CM$10,"mes",$CM30),"-") -> 0.3675867622
A31: MOQUEGUA | F31: 1080 | G31: 500 | H31: 0.462962963 | BQ31: MADRE DE DIOS | BR31: 0.6294307197 | BU31: LORETO | BV31: 0.2793764988 | BW31: 0.3030582559 | BX31: 0.349611856 | BY31: 0.3899011299 | BZ31: 0.409551273 | CA31: 0.4302040244 | CB31: 0.4327407615 | CC31: 0.4480464921 | CD31: 0.4572542467 | CE31: 0.4638265342 | CF31: 0.4704759307 | CG31: 0.4510828977 | CM31: Marzo | CN31: 0.3873579056 | CO31: 0.4682375118 | CP31: 0.462031107 | CQ31: 0.3290192353 | CR31: 0.5179335308 | CS31: 0.4527476589 | CT31: 0.4294599018 | CU31: 0.4553458122 | CV31: 0.5924058143 | CW31: 0.53150804 | CX31: 0.3499939342 | CY31: 0.5726522843 | CZ31: 0.3824188791 | DA31: 0.4169634186 | DB31: 0.3079755563 | DC31: 0.2942928517 | DD31: 0.2983050847 | DE31: 0.2951350498 | DF31: 0.4429983732 | DG31: 0.349611856 | DH31: 0.6263990737 | DI31: 0.3689788054 | DJ31: 0.4288651316 | DK31: 0.3698959167 | DL31: 0.3528166031 | DM31: 0.3855243722 | DN31: 0.4338647135 | DO31: 0.3993766696 | DP31: 0.3624740843 | DQ31: 0.3992571751
A32: PASCO | F32: 2409 | G32: 1573 | H32: 0.6529680365 | BQ32: MOQUEGUA | BR32: 0.462962963 | BU32: MADRE DE DIOS | BV32: 0.6300465839 | BW32: 0.6267496112 | BX32: 0.6263990737 | BY32: 0.6456273764 | BZ32: 0.6630188679 | CA32: 0.6717528843 | CB32: 0.6732488823 | CC32: 0.6810692054 | CD32: 0.6810218978 | CE32: 0.6753153153 | CF32: 0.6709044679 | CG32: 0.6294307197 | CM32: Abril | CN32: 0.4244022504 | CO32: 0.5000947508 | CP32: 0.5146010577 | CQ32: 0.3620586475 | CR32: 0.567626019 | CS32: 0.5088672412 | CT32: 0.4774374177 | CU32: 0.5034372502 | CV32: 0.6430501351 | CW32: 0.561295972 | CX32: 0.3987542745 | CY32: 0.6090153453 | CZ32: 0.420228346 | DA32: 0.4523712016 | DB32: 0.3272842039 | DC32: 0.3199298997 | DD32: 0.3143953233 | DE32: 0.3297559424 | DF32: 0.4791164149 | DG32: 0.3899011299 | DH32: 0.6456273764 | DI32: 0.4199424736 | DJ32: 0.4625679632 | DK32: 0.4152647087 | DL32: 0.3770701998 | DM32: 0.414544734 | DN32: 0.4887737478 | DO32: 0.4757281553 | DP32: 0.394404953 | DQ32: 0.4361683295
A33: PIURA | F33: 19029 | G33: 9433 | H33: 0.4957170634 | BQ33: PASCO | BR33: 0.6529680365 | BU33: MOQUEGUA | BV33: 0.3152478952 | BW33: 0.334901223 | BX33: 0.3689788054 | BY33: 0.4199424736 | BZ33: 0.4510921178 | CA33: 0.4942748092 | CB33: 0.4990740741 | CC33: 0.5184501845 | CD33: 0.5148698885 | CE33: 0.4990654206 | CF33: 0.491588785 | CG33: 0.462962963 | CM33: Mayo | CN33: 0.4488555079 | CO33: 0.5323672419 | CP33: 0.5690569518 | CQ33: 0.4002181025 | CR33: 0.6245602278 | CS33: 0.5529027394 | CT33: 0.5183700735 | CU33: 0.534244373 | CV33: 0.6730367274 | CW33: 0.5885978428 | CX33: 0.444906954 | CY33: 0.6385619345 | CZ33: 0.4501927246 | DA33: 0.4760169 | DB33: 0.334676782 | DC33: 0.3325504013 | DD33: 0.3128368447 | DE33: 0.3570972377 | DF33: 0.5092110278 | DG33: 0.409551273 | DH33: 0.6630188679 | DI33: 0.4510921178 | DJ33: 0.5196950445 | DK33: 0.4459851193 | DL33: 0.3959121877 | DM33: 0.4295295394 | DN33: 0.5397877984 | DO33: 0.5450945886 | DP33: 0.4220779221 | DQ33: 0.4639336129
A34: PUNO | F34: 8926 | G34: 4028 | H34: 0.4512659646 | BQ34: PIURA | BR34: 0.4957170634 | BU34: PASCO | BV34: 0.3792280143 | BW34: 0.406779661 | BX34: 0.4288651316 | BY34: 0.4625679632 | BZ34: 0.5196950445 | CA34: 0.5676141258 | CB34: 0.5998275119 | CC34: 0.6428571429 | CD34: 0.6666666667 | CE34: 0.6634735527 | CF34: 0.6732919255 | CG34: 0.6529680365 | CM34: Junio | CN34: 0.4840116279 | CO34: 0.5754898194 | CP34: 0.614902507 | CQ34: 0.4294418718 | CR34: 0.6813634051 | CS34: 0.6010781671 | CT34: 0.5484518828 | CU34: 0.5755494505 | CV34: 0.711900425 | CW34: 0.6273963442 | CX34: 0.4964539007 | CY34: 0.6644149578 | CZ34: 0.488200857 | DA34: 0.5247005988 | DB34: 0.3495575221 | DC34: 0.3425185185 | DD34: 0.3244027409 | DE34: 0.3893691963 | DF34: 0.5528258656 | DG34: 0.4302040244 | DH34: 0.6717528843 | DI34: 0.4942748092 | DJ34: 0.5676141258 | DK34: 0.4849225356 | DL34: 0.4060010911 | DM34: 0.4420980257 | DN34: 0.586589698 | DO34: 0.6033421284 | DP34: 0.4488873828 | DQ34: 0.496209988
A35: SAN MARTIN | F35: 10442 | G35: 4760 | H35: 0.4558513695 | BQ35: PUNO | BR35: 0.4512659646 | BU35: PIURA | BV35: 0.3388406609 | BW35: 0.3432424865 | BX35: 0.3698959167 | BY35: 0.4152647087 | BZ35: 0.4459851193 | CA35: 0.4849225356 | CB35: 0.4987019471 | CC35: 0.5251359732 | CD35: 0.5278604413 | CE35: 0.5176586173 | CF35: 0.5188399771 | CG35: 0.4957170634 | CM35: Julio | CN35: 0.501014573 | CO35: 0.603737051 | CP35: 0.6618470149 | CQ35: 0.4484573947 | CR35: 0.7357751278 | CS35: 0.6341693381 | CT35: 0.5744860128 | CU35: 0.5961272476 | CV35: 0.7352762599 | CW35: 0.6467306405 | CX35: 0.5360241418 | CY35: 0.6862823699 | CZ35: 0.5038167939 | DA35: 0.5558069382 | DB35: 0.3472869442 | DC35: 0.3482799761 | DD35: 0.3188107704 | DE35: 0.402073455 | DF35: 0.5820437396 | DG35: 0.4327407615 | DH35: 0.6732488823 | DI35: 0.4990740741 | DJ35: 0.5998275119 | DK35: 0.4987019471 | DL35: 0.4153660145 | DM35: 0.4438136257 | DN35: 0.630044843 | DO35: 0.6321334504 | DP35: 0.454708119 | DQ35: 0.5134902609
A36: TACNA | F36: 2157 | G36: 1520 | H36: 0.7046824293 | BQ36: SAN MARTIN | BR36: 0.4558513695 | BU36: PUNO | BV36: 0.3211453291 | BW36: 0.3278162822 | BX36: 0.3528166031 | BY36: 0.3770701998 | BZ36: 0.3959121877 | CA36: 0.4060010911 | CB36: 0.4153660145 | CC36: 0.4272567923 | CD36: 0.4421537449 | CE36: 0.4482184482 | CF36: 0.4545150128 | CG36: 0.4512659646 | CM36: Agosto | CN36: 0.5285876562 | CO36: 0.6372319688 | CP36: 0.7093917502 | CQ36: 0.4712883436 | CR36: 0.7797679973 | CS36: 0.673256627 | CT36: 0.589596352 | CU36: 0.6261301621 | CV36: 0.7621914509 | CW36: 0.6769420469 | CX36: 0.5750754527 | CY36: 0.705229284 | CZ36: 0.5271941044 | DA36: 0.5776029772 | DB36: 0.3497661885 | DC36: 0.355230417 | DD36: 0.3182331535 | DE36: 0.4255885198 | DF36: 0.6089536834 | DG36: 0.4480464921 | DH36: 0.6810692054 | DI36: 0.5184501845 | DJ36: 0.6428571429 | DK36: 0.5251359732 | DL36: 0.4272567923 | DM36: 0.45339606 | DN36: 0.6757990868 | DO36: 0.662598082 | DP36: 0.4690314689 | DQ36: 0.5355032541
A37: TUMBES | F37: 2274 | G37: 1289 | H37: 0.5668425682 | BQ37: TACNA | BR37: 0.7046824293 | BU37: SAN MARTIN | BV37: 0.3621175328 | BW37: 0.3701890118 | BX37: 0.3855243722 | BY37: 0.414544734 | BZ37: 0.4295295394 | CA37: 0.4420980257 | CB37: 0.4438136257 | CC37: 0.45339606 | CD37: 0.4549545143 | CE37: 0.4578921807 | CF37: 0.4668727062 | CG37: 0.4558513695 | CM37: Setiembre | CN37: 0.5309477756 | CO37: 0.643635293 | CP37: 0.7385482734 | CQ37: 0.4793428957 | CR37: 0.8178881143 | CS37: 0.6753362657 | CT37: 0.6022727273 | CU37: 0.6242330034 | CV37: 0.767337136 | CW37: 0.6858233247 | CX37: 0.6092623055 | CY37: 0.7109733516 | CZ37: 0.5285949205 | DA37: 0.5818010776 | DB37: 0.3375574212 | DC37: 0.3433117852 | DD37: 0.3159480324 | DE37: 0.4361991675 | DF37: 0.6197020293 | DG37: 0.4572542467 | DH37: 0.6810218978 | DI37: 0.5148698885 | DJ37: 0.6666666667 | DK37: 0.5278604413 | DL37: 0.4421537449 | DM37: 0.4549545143 | DN37: 0.7042446372 | DO37: 0.6401430487 | DP37: 0.4695162359 | DQ37: 0.5406845862
A38: UCAYALI | F38: 9340 | G38: 4448 | H38: 0.4762312634 | BQ38: TUMBES | BR38: 0.5668425682 | BU38: TACNA | BV38: 0.3395833333 | BW38: 0.3723991507 | BX38: 0.4338647135 | BY38: 0.4887737478 | BZ38: 0.5397877984 | CA38: 0.586589698 | CB38: 0.630044843 | CC38: 0.6757990868 | CD38: 0.7042446372 | CE38: 0.7183426443 | CF38: 0.7206364062 | CG38: 0.7046824293 | CM38: Octubre | CN38: 0.5366673256 | CO38: 0.6426252091 | CP38: 0.764608076 | CQ38: 0.492014742 | CR38: =+IFERROR(GETPIVOTDATA("IND",$CM$10,"Disa",CR$28,"mes",$CM38),"-") -> 0.8460485802 | CS38: 0.67410225 | CT38: 0.6127895267 | CU38: 0.619886876 | CV38: 0.7655027092 | CW38: 0.6853732009 | CX38: 0.6270120724 | CY38: 0.706385727 | CZ38: 0.526341345 | DA38: 0.5666148263 | DB38: 0.3375530744 | DC38: 0.3300620869 | DD38: 0.3142249202 | DE38: 0.440268135 | DF38: 0.6179070065 | DG38: 0.4638265342 | DH38: =+IFERROR(GETPIVOTDATA("IND",$CM$10,"Disa",DH$28,"mes",$CM38),"-") -> 0.6753153153 | DI38: 0.4990654206 | DJ38: 0.6634735527 | DK38: 0.5176586173 | DL38: 0.4482184482 | DM38: 0.4578921807 | DN38: 0.7183426443 | DO38: 0.6302294197 | DP38: 0.470581838 | DQ38: 0.540768416
A39: Total general | F39: 259333 | G39: 137858 | H39: 0.5315868015 | BQ39: UCAYALI | BR39: 0.4762312634 | BU39: TUMBES | BV39: 0.3271240345 | BW39: 0.3599640934 | BX39: 0.3993766696 | BY39: 0.4757281553 | BZ39: 0.5450945886 | CA39: 0.6033421284 | CB39: 0.6321334504 | CC39: 0.662598082 | CD39: 0.6401430487 | CE39: 0.6302294197 | CF39: 0.6164383562 | CG39: 0.5668425682 | CM39: Noviembre | CN39: 0.5463855422 | CO39: 0.6505056514 | CP39: 0.7897606068 | CQ39: 0.5003674669 | CR39: 0.8596097393 | CS39: 0.677964999 | CT39: 0.6134496059 | CU39: 0.6243646499 | CV39: 0.7794117647 | CW39: 0.6969325153 | CX39: 0.647463995 | CY39: 0.7119282224 | CZ39: 0.5342997513 | DA39: 0.5568872677 | DB39: 0.3362971123 | DC39: 0.3217128463 | DD39: 0.3099294764 | DE39: 0.4450523311 | DF39: 0.6284132377 | DG39: 0.4704759307 | DH39: 0.6709044679 | DI39: 0.491588785 | DJ39: 0.6732919255 | DK39: 0.5188399771 | DL39: 0.4545150128 | DM39: 0.4668727062 | DN39: 0.7206364062 | DO39: 0.6164383562 | DP39: 0.4904136148 | DQ39: 0.5456451811
BQ40: Total general | BR40: 0.5315868015 | BU40: UCAYALI | BV40: 0.3151557254 | BW40: 0.3269053118 | BX40: 0.3624740843 | BY40: 0.394404953 | BZ40: 0.4220779221 | CA40: 0.4488873828 | CB40: 0.454708119 | CC40: 0.4690314689 | CD40: 0.4695162359 | CE40: 0.470581838 | CF40: 0.4904136148 | CG40: 0.4762312634 | CM40: Diciembre | CN40: 0.5424042816 | CO40: 0.635992431 | CP40: 0.7903340441 | CQ40: 0.4923636364 | CR40: 0.8486206897 | CS40: 0.6709398914 | CT40: 0.6012156002 | CU40: 0.6193271059 | CV40: 0.7729988053 | CW40: 0.6855289644 | CX40: 0.6307596513 | CY40: 0.7070318757 | CZ40: 0.5246369767 | DA40: 0.5217162872 | DB40: 0.3160556258 | DC40: 0.3015173262 | DD40: 0.2995994492 | DE40: 0.422796449 | DF40: 0.6244678187 | DG40: 0.4510828977 | DH40: 0.6294307197 | DI40: 0.462962963 | DJ40: 0.6529680365 | DK40: 0.4957170634 | DL40: 0.4512659646 | DM40: 0.4558513695 | DN40: 0.7046824293 | DO40: 0.5668425682 | DP40: 0.4762312634 | DQ40: 0.5315868015
BU41: Total general | BV41: 0.3511450382 | BW41: 0.3675867622 | BX41: 0.3992571751 | BY41: 0.4361683295 | BZ41: 0.4639336129 | CA41: 0.496209988 | CB41: 0.5134902609 | CC41: 0.5355032541 | CD41: 0.5406845862 | CE41: 0.540768416 | CF41: 0.5456451811 | CG41: 0.5315868015
BV61: 1 | BW61: 2 | BX61: 3 | BY61: 4 | BZ61: 5 | CA61: 6 | CB61: 7 | CC61: 8 | CD61: 9 | CE61: 10 | CF61: 11 | CG61: 12 | CJ61: MIN | CK61: MAX
BQ62: AMAZONAS | BR62: =+IFERROR(GETPIVOTDATA("IND",$BQ$10,"Disa",$BQ62),"-") -> 0.5424042816 | BU62: AMAZONAS | BV62: =IFERROR(GETPIVOTDATA("Ind",$BU$10,"Disa",$BU62,"mes",BV$61),"-") -> 0.3374079035 | BW62: =IFERROR(GETPIVOTDATA("Ind",$BU$10,"Disa",$BU62,"mes",BW$61),"-") -> 0.3528716216 | BX62: 0.3873579056 | BY62: 0.4244022504 | BZ62: 0.4488555079 | CA62: 0.4840116279 | CB62: 0.501014573 | CC62: 0.5285876562 | CD62: 0.5309477756 | CE62: 0.5366673256 | CF62: 0.5463855422 | CG62: 0.5424042816 | CI62: AMAZONAS | CJ62: =+IF(BV62="-","-",MIN(BV62:CG62)) -> 0.3374079035 | CK62: =+IF(BV62="-","-",MAX(BV62:CG62)) -> 0.5463855422
BQ63: ANCASH | BR63: =+IFERROR(GETPIVOTDATA("IND",$BQ$10,"Disa",$BQ63),"-") -> 0.635992431 | BU63: ANCASH | BV63: =IFERROR(GETPIVOTDATA("Ind",$BU$10,"Disa",$BU63,"mes",BV$61),"-") -> 0.4173511767 | BW63: 0.4344576287 | BX63: 0.4682375118 | BY63: 0.5000947508 | BZ63: 0.5323672419 | CA63: 0.5754898194 | CB63: 0.603737051 | CC63: 0.6372319688 | CD63: 0.643635293 | CE63: 0.6426252091 | CF63: 0.6505056514 | CG63: 0.635992431 | CI63: ANCASH | CJ63: 0.4173511767 | CK63: =+IF(BV63="-","-",MAX(BV63:CG63)) -> 0.6505056514
BQ64: APURIMAC | BR64: 0.7903340441 | BU64: APURIMAC | BV64: 0.420013462 | BW64: 0.4371040724 | BX64: 0.462031107 | BY64: 0.5146010577 | BZ64: 0.5690569518 | CA64: 0.614902507 | CB64: 0.6618470149 | CC64: 0.7093917502 | CD64: 0.7385482734 | CE64: 0.764608076 | CF64: 0.7897606068 | CG64: 0.7903340441 | CI64: APURIMAC | CJ64: 0.420013462 | CK64: 0.7903340441
BQ65: AREQUIPA | BR65: 0.4923636364 | BU65: AREQUIPA | BV65: 0.3019575665 | BW65: 0.3048159981 | BX65: 0.3290192353 | BY65: 0.3620586475 | BZ65: 0.4002181025 | CA65: 0.4294418718 | CB65: 0.4484573947 | CC65: 0.4712883436 | CD65: 0.4793428957 | CE65: 0.492014742 | CF65: 0.5003674669 | CG65: 0.4923636364 | CI65: AREQUIPA | CJ65: 0.3019575665 | CK65: 0.5003674669
BQ66: AYACUCHO | BR66: 0.8486206897 | BU66: AYACUCHO | BV66: 0.4684278351 | BW66: 0.4828147907 | BX66: 0.5179335308 | BY66: 0.567626019 | BZ66: 0.6245602278 | CA66: 0.6813634051 | CB66: 0.7357751278 | CC66: 0.7797679973 | CD66: 0.8178881143 | CE66: 0.8460485802 | CF66: 0.8596097393 | CG66: 0.8486206897 | CI66: AYACUCHO | CJ66: 0.4684278351 | CK66: 0.8596097393
BQ67: CAJAMARCA | BR67: 0.6709398914 | BU67: CAJAMARCA | BV67: 0.3599394856 | BW67: 0.3982344286 | BX67: 0.4527476589 | BY67: 0.5088672412 | BZ67: 0.5529027394 | CA67: 0.6010781671 | CB67: 0.6341693381 | CC67: 0.673256627 | CD67: 0.6753362657 | CE67: 0.67410225 | CF67: 0.677964999 | CG67: 0.6709398914 | CI67: CAJAMARCA | CJ67: 0.3599394856 | CK67: 0.677964999
BQ68: CALLAO | BR68: 0.6012156002 | BU68: CALLAO | BV68: 0.3628644665 | BW68: 0.3861241692 | BX68: 0.4294599018 | BY68: 0.4774374177 | BZ68: 0.5183700735 | CA68: 0.5484518828 | CB68: 0.5744860128 | CC68: 0.589596352 | CD68: 0.6022727273 | CE68: 0.6127895267 | CF68: 0.6134496059 | CG68: 0.6012156002 | CI68: CALLAO | CJ68: 0.3628644665 | CK68: 0.6134496059
BQ69: CUSCO | BR69: 0.6193271059 | BU69: CUSCO | BV69: 0.3688505296 | BW69: 0.4062795835 | BX69: 0.4553458122 | BY69: 0.5034372502 | BZ69: 0.534244373 | CA69: 0.5755494505 | CB69: 0.5961272476 | CC69: 0.6261301621 | CD69: 0.6242330034 | CE69: 0.619886876 | CF69: 0.6243646499 | CG69: 0.6193271059 | CI69: CUSCO | CJ69: 0.3688505296 | CK69: 0.6261301621
BQ70: HUANCAVELICA | BR70: 0.7729988053 | BU70: HUANCAVELICA | BV70: 0.52228739 | BW70: 0.5539547192 | BX70: 0.5924058143 | BY70: 0.6430501351 | BZ70: 0.6730367274 | CA70: 0.711900425 | CB70: 0.7352762599 | CC70: 0.7621914509 | CD70: 0.767337136 | CE70: 0.7655027092 | CF70: 0.7794117647 | CG70: 0.7729988053 | CI70: HUANCAVELICA | CJ70: 0.52228739 | CK70: 0.7794117647
BQ71: HUANUCO | BR71: 0.6855289644 | BU71: HUANUCO | BV71: 0.5471457425 | BW71: 0.5305836743 | BX71: 0.53150804 | BY71: 0.561295972 | BZ71: 0.5885978428 | CA71: 0.6273963442 | CB71: 0.6467306405 | CC71: 0.6769420469 | CD71: 0.6858233247 | CE71: 0.6853732009 | CF71: 0.6969325153 | CG71: 0.6855289644 | CI71: HUANUCO | CJ71: 0.5305836743 | CK71: 0.6969325153
BQ72: ICA | BR72: 0.6307596513 | BU72: ICA | BV72: 0.3065175565 | BW72: 0.3144867751 | BX72: 0.3499939342 | BY72: 0.3987542745 | BZ72: 0.444906954 | CA72: 0.4964539007 | CB72: 0.5360241418 | CC72: 0.5750754527 | CD72: 0.6092623055 | CE72: 0.6270120724 | CF72: 0.647463995 | CG72: 0.6307596513 | CI72: ICA | CJ72: 0.3065175565 | CK72: 0.647463995
BQ73: JUNIN | BR73: 0.7070318757 | BU73: JUNIN | BV73: 0.5188723206 | BW73: 0.5394230013 | BX73: 0.5726522843 | BY73: 0.6090153453 | BZ73: 0.6385619345 | CA73: 0.6644149578 | CB73: 0.6862823699 | CC73: 0.705229284 | CD73: 0.7109733516 | CE73: 0.706385727 | CF73: 0.7119282224 | CG73: 0.7070318757 | CI73: JUNIN | CJ73: 0.5188723206 | CK73: 0.7119282224
BQ74: LA LIBERTAD | BR74: 0.5246369767 | BU74: LA LIBERTAD | BV74: 0.3188129122 | BW74: 0.3496694119 | BX74: 0.3824188791 | BY74: 0.420228346 | BZ74: 0.4501927246 | CA74: 0.488200857 | CB74: 0.5038167939 | CC74: 0.5271941044 | CD74: 0.5285949205 | CE74: 0.526341345 | CF74: 0.5342997513 | CG74: 0.5246369767 | CI74: LA LIBERTAD | CJ74: 0.3188129122 | CK74: 0.5342997513
BQ75: LAMBAYEQUE | BR75: 0.5217162872 | BU75: LAMBAYEQUE | BV75: 0.4180858719 | BW75: 0.4056731922 | BX75: 0.4169634186 | BY75: 0.4523712016 | BZ75: 0.4760169 | CA75: 0.5247005988 | CB75: 0.5558069382 | CC75: 0.5776029772 | CD75: 0.5818010776 | CE75: 0.5666148263 | CF75: 0.5568872677 | CG75: 0.5217162872 | CI75: LAMBAYEQUE | CJ75: =+IF(BV75="-","-",MIN(BV75:CG75)) -> 0.4056731922 | CK75: 0.5818010776
BQ76: LIMA DIRIS CENTRO | BR76: 0.3160556258 | BU76: LIMA DIRIS CENTRO | BV76: 0.2481536189 | BW76: 0.2698907956 | BX76: 0.3079755563 | BY76: 0.3272842039 | BZ76: 0.334676782 | CA76: 0.3495575221 | CB76: 0.3472869442 | CC76: 0.3497661885 | CD76: 0.3375574212 | CE76: 0.3375530744 | CF76: 0.3362971123 | CG76: 0.3160556258 | CI76: LIMA DIRIS CENTRO | CJ76: 0.2481536189 | CK76: 0.3497661885
BQ77: LIMA DIRIS ESTE | BR77: 0.3015173262 | BU77: LIMA DIRIS ESTE | BV77: 0.2410139992 | BW77: 0.2644038791 | BX77: 0.2942928517 | BY77: 0.3199298997 | BZ77: 0.3325504013 | CA77: 0.3425185185 | CB77: 0.3482799761 | CC77: 0.355230417 | CD77: 0.3433117852 | CE77: 0.3300620869 | CF77: 0.3217128463 | CG77: 0.3015173262 | CI77: LIMA DIRIS ESTE | CJ77: 0.2410139992 | CK77: 0.355230417
BQ78: LIMA DIRIS NORTE | BR78: 0.2995994492 | BU78: LIMA DIRIS NORTE | BV78: 0.2501214477 | BW78: 0.2710478498 | BX78: 0.2983050847 | BY78: 0.3143953233 | BZ78: 0.3128368447 | CA78: 0.3244027409 | CB78: 0.3188107704 | CC78: 0.3182331535 | CD78: 0.3159480324 | CE78: 0.3142249202 | CF78: 0.3099294764 | CG78: 0.2995994492 | CI78: LIMA DIRIS NORTE | CJ78: 0.2501214477 | CK78: 0.3244027409
BQ79: LIMA DIRIS SUR | BR79: 0.422796449 | BU79: LIMA DIRIS SUR | BV79: =IFERROR(GETPIVOTDATA("Ind",$BU$10,"Disa",$BU79,"mes",BV$61),"-") -> 0.2540366829 | BW79: 0.2673509672 | BX79: 0.2951350498 | BY79: 0.3297559424 | BZ79: 0.3570972377 | CA79: 0.3893691963 | CB79: 0.402073455 | CC79: 0.4255885198 | CD79: 0.4361991675 | CE79: 0.440268135 | CF79: 0.4450523311 | CG79: 0.422796449 | CI79: LIMA DIRIS SUR | CJ79: 0.2540366829 | CK79: 0.4450523311
BQ80: LIMA PROVINCIAS | BR80: 0.6244678187 | BU80: LIMA PROVINCIAS | BV80: 0.3887302966 | BW80: 0.4096565455 | BX80: 0.4429983732 | BY80: 0.4791164149 | BZ80: 0.5092110278 | CA80: 0.5528258656 | CB80: 0.5820437396 | CC80: 0.6089536834 | CD80: 0.6197020293 | CE80: 0.6179070065 | CF80: 0.6284132377 | CG80: 0.6244678187 | CI80: LIMA PROVINCIAS | CJ80: 0.3887302966 | CK80: 0.6284132377
BQ81: LORETO | BR81: 0.4510828977 | BU81: LORETO | BV81: 0.2793764988 | BW81: 0.3030582559 | BX81: 0.349611856 | BY81: 0.3899011299 | BZ81: 0.409551273 | CA81: 0.4302040244 | CB81: 0.4327407615 | CC81: 0.4480464921 | CD81: 0.4572542467 | CE81: 0.4638265342 | CF81: 0.4704759307 | CG81: 0.4510828977 | CI81: LORETO | CJ81: 0.2793764988 | CK81: 0.4704759307
BQ82: MADRE DE DIOS | BR82: 0.6294307197 | BU82: MADRE DE DIOS | BV82: 0.6300465839 | BW82: 0.6267496112 | BX82: 0.6263990737 | BY82: 0.6456273764 | BZ82: 0.6630188679 | CA82: 0.6717528843 | CB82: 0.6732488823 | CC82: 0.6810692054 | CD82: 0.6810218978 | CE82: 0.6753153153 | CF82: 0.6709044679 | CG82: 0.6294307197 | CI82: MADRE DE DIOS | CJ82: 0.6263990737 | CK82: 0.6810692054
BQ83: MOQUEGUA | BR83: 0.462962963 | BU83: MOQUEGUA | BV83: 0.3152478952 | BW83: 0.334901223 | BX83: 0.3689788054 | BY83: 0.4199424736 | BZ83: 0.4510921178 | CA83: 0.4942748092 | CB83: 0.4990740741 | CC83: 0.5184501845 | CD83: 0.5148698885 | CE83: 0.4990654206 | CF83: 0.491588785 | CG83: 0.462962963 | CI83: MOQUEGUA | CJ83: 0.3152478952 | CK83: 0.5184501845
BQ84: PASCO | BR84: 0.6529680365 | BU84: PASCO | BV84: 0.3792280143 | BW84: 0.406779661 | BX84: 0.4288651316 | BY84: 0.4625679632 | BZ84: 0.5196950445 | CA84: 0.5676141258 | CB84: 0.5998275119 | CC84: 0.6428571429 | CD84: 0.6666666667 | CE84: 0.6634735527 | CF84: 0.6732919255 | CG84: 0.6529680365 | CI84: PASCO | CJ84: 0.3792280143 | CK84: 0.6732919255
BQ85: PIURA | BR85: 0.4957170634 | BU85: PIURA | BV85: 0.3388406609 | BW85: 0.3432424865 | BX85: 0.3698959167 | BY85: 0.4152647087 | BZ85: 0.4459851193 | CA85: 0.4849225356 | CB85: 0.4987019471 | CC85: 0.5251359732 | CD85: 0.5278604413 | CE85: 0.5176586173 | CF85: 0.5188399771 | CG85: 0.4957170634 | CI85: PIURA | CJ85: 0.3388406609 | CK85: 0.5278604413
BQ86: PUNO | BR86: 0.4512659646 | BU86: PUNO | BV86: 0.3211453291 | BW86: 0.3278162822 | BX86: 0.3528166031 | BY86: 0.3770701998 | BZ86: 0.3959121877 | CA86: 0.4060010911 | CB86: 0.4153660145 | CC86: 0.4272567923 | CD86: 0.4421537449 | CE86: 0.4482184482 | CF86: 0.4545150128 | CG86: 0.4512659646 | CI86: PUNO | CJ86: 0.3211453291 | CK86: 0.4545150128
BQ87: SAN MARTIN | BR87: 0.4558513695 | BU87: SAN MARTIN | BV87: 0.3621175328 | BW87: 0.3701890118 | BX87: 0.3855243722 | BY87: 0.414544734 | BZ87: 0.4295295394 | CA87: 0.4420980257 | CB87: 0.4438136257 | CC87: 0.45339606 | CD87: 0.4549545143 | CE87: 0.4578921807 | CF87: 0.4668727062 | CG87: 0.4558513695 | CI87: SAN MARTIN | CJ87: 0.3621175328 | CK87: 0.4668727062
BQ88: TACNA | BR88: 0.7046824293 | BU88: TACNA | BV88: 0.3395833333 | BW88: 0.3723991507 | BX88: 0.4338647135 | BY88: 0.4887737478 | BZ88: 0.5397877984 | CA88: 0.586589698 | CB88: 0.630044843 | CC88: 0.6757990868 | CD88: 0.7042446372 | CE88: 0.7183426443 | CF88: 0.7206364062 | CG88: 0.7046824293 | CI88: TACNA | CJ88: 0.3395833333 | CK88: 0.7206364062
BQ89: TUMBES | BR89: 0.5668425682 | BU89: TUMBES | BV89: 0.3271240345 | BW89: 0.3599640934 | BX89: 0.3993766696 | BY89: 0.4757281553 | BZ89: 0.5450945886 | CA89: 0.6033421284 | CB89: 0.6321334504 | CC89: 0.662598082 | CD89: 0.6401430487 | CE89: 0.6302294197 | CF89: 0.6164383562 | CG89: 0.5668425682 | CI89: TUMBES | CJ89: 0.3271240345 | CK89: 0.662598082
BQ90: UCAYALI | BR90: 0.4762312634 | BU90: UCAYALI | BV90: 0.3151557254 | BW90: 0.3269053118 | BX90: 0.3624740843 | BY90: 0.394404953 | BZ90: 0.4220779221 | CA90: 0.4488873828 | CB90: 0.454708119 | CC90: 0.4690314689 | CD90: 0.4695162359 | CE90: 0.470581838 | CF90: 0.4904136148 | CG90: 0.4762312634 | CI90: UCAYALI | CJ90: 0.3151557254 | CK90: 0.4904136148
BQ91: NACIONAL | BR91: =+IFERROR(GETPIVOTDATA("IND",$BQ$25),"-") -> 0.5315868015 | BU91: NACIONAL | BV91: =IFERROR(GETPIVOTDATA("Ind",$BU$10,"mes",BV$61),"-") -> 0.3511450382 | BW91: =IFERROR(GETPIVOTDATA("Ind",$BU$10,"mes",BW$61),"-") -> 0.3675867622 | BX91: 0.3992571751 | BY91: 0.4361683295 | BZ91: 0.4639336129 | CA91: 0.496209988 | CB91: 0.5134902609 | CC91: 0.5355032541 | CD91: 0.5406845862 | CE91: 0.540768416 | CF91: 0.5456451811 | CG91: 0.5315868015 | CI91: NACIONAL | CJ91: 0.3511450382 | CK91: 0.5456451811

Sheet DL_1153_2025_CG03
A1: =+DL1153_2025!C9 -> Ficha 03: Porcentaje de niños y niñas de 6 a 35 meses con diagnóstico de anemia del Total de los casos esperados de anemia | BG1: 1 | DJ1: 1
A2: Periodo de Evaluación: | B2: =+DL1153_2025!B42 -> Diciembre - 2025
I4: DESC_DPTO | J4: (Todas)
I5: DESC_PROV | J5: (Todas)
A6: Año | B6: (Todas) | I6: RED | J6: (Todas)
A7: Mes | B7: (Todas) | I7: DESC_DIST | J7: (Todas)
A8: DEPARTAMENTO | B8: Provincia | C8: Distrito | D8: RED | E8: Denominador: Casos de anemia esperados en Niñas/niños de 6 a 35 meses de edad (6 a 11 meses, 12 a 23 meses, 24 a 35 meses), según la prevalencia de anemia en niños de la misma edad, según la ENDES del año anterior | F8: Numerador: Niñas/niños con el primer diagnóstico definitivo de anemia (CIE-X: D509 o D64.9) entre los 6 a 35 meses de edad (6 a 11 meses, 12 a 23 meses, 24 a 35 meses), dosaje definitivo de hemoglobina CPMS: 85018 o 85018.01 hasta 7 días a partir del diagnóstico e inicio de tratamiento oportuno CPMS: 99199.17 | G8: Indicador: Porcentaje de niños y niñas de 6 a 35 meses con diagnóstico de anemia del Total de los casos esperados de anemia. | I8: MES | J8: Denominador: Casos de anemia esperados en Niñas/niños de 6 a 35 meses de edad (6 a 11 meses, 12 a 23 meses, 24 a 35 meses), según la prevalencia de anemia en niños de la misma edad, según la ENDES del año anterior | K8: Numerador: Niñas/niños con el primer diagnóstico definitivo de anemia (CIE-X: D509 o D64.9) entre los 6 a 35 meses de edad (6 a 11 meses, 12 a 23 meses, 24 a 35 meses), dosaje definitivo de hemoglobina CPMS: 85018 o 85018.01 hasta 7 días a partir del diagnóstico e inicio de tratamiento oportuno CPMS: 99199.17 | L8: Indicador: Porcentaje de niños y niñas de 6 a 35 meses con diagnóstico de anemia del Total de los casos esperados de anemia.
A9: DESC_DPTO | B9: DESC_PROV | C9: RED | D9: DESC_DIST | E9: Den | F9: Num | G9: Ind | I9: Mes | J9: Den | K9: Num | L9: Ind
A10: AMAZONAS | E10: 10764 | F10: 2374 | G10: 0.2205499814 | I10: 1 | J10: 42614 | K10: 11214 | L10: 0.2631529544 | BH10: Año | BI10: (Todas) | BL10: Año | BM10: (Todas)
A11: ANCASH | E11: 17625 | F11: 7852 | G11: 0.4455035461 | I11: 2 | J11: 38140 | K11: 9875 | L11: 0.2589145254
A12: APURIMAC | E12: 9359 | F12: 2266 | G12: 0.2421198846 | I12: 3 | J12: 42312 | K12: 10785 | L12: 0.2548922292 | BH12: DESC_DPTO | BI12: Suma de Ind | BL12: Suma de Ind | BM12: Mes
A13: AREQUIPA | E13: 13315 | F13: 3507 | G13: 0.2633871573 | I13: 4 | J13: 40159 | K13: 10182 | L13: 0.2535421699 | BH13: AMAZONAS | BI13: 0.2205499814 | BL13: DESC_DPTO | BM13: 1 | BN13: 2 | BO13: 3 | BP13: 4 | BQ13: 5 | BR13: 6 | BS13: 7 | BT13: 8 | BU13: 9 | BV13: 10 | BW13: 11 | BX13: 12
A14: AYACUCHO | E14: 13293 | F14: 3111 | G14: 0.2340329497 | I14: 5 | J14: 40291 | K14: 9834 | L14: 0.244074359 | BH14: ANCASH | BI14: 0.4455035461 | BL14: AMAZONAS | BM14: 0.2536231884 | BN14: 0.2302325581 | BO14: 0.2527693857 | BP14: 0.2206969377 | BQ14: 0.2437971953 | BR14: 0.1791907514 | BS14: 0.2166105499 | BT14: 0.2032608696 | BU14: 0.2037252619 | BV14: 0.206088993 | BW14: 0.2040816327 | BX14: 0.222614841 | CD14: Año | CE14: (Todas)
A15: CAJAMARCA | E15: 22233 | F15: 6303 | G15: 0.2834975037 | I15: 6 | J15: 37733 | K15: 8568 | L15: 0.2270691437 | BH15: APURIMAC | BI15: 0.2421198846 | BL15: ANCASH | BM15: 0.5040548971 | BN15: 0.4785568414 | BO15: 0.4545454545 | BP15: 0.4828496042 | BQ15: 0.4632911392 | BR15: 0.4427480916 | BS15: 0.4495289367 | BT15: 0.4119623656 | BU15: 0.4060949681 | BV15: 0.4429920116 | BW15: 0.3938714499 | BX15: 0.3949191686
A16: CALLAO | E16: 9922 | F16: 1862 | G16: 0.1876637775 | I16: 7 | J16: 38418 | K16: 8692 | L16: 0.2262481129 | BH16: AREQUIPA | BI16: 0.2633871573 | BL16: APURIMAC | BM16: 0.3098591549 | BN16: 0.2668360864 | BO16: 0.2421784473 | BP16: 0.2666666667 | BQ16: 0.25 | BR16: 0.2235449735 | BS16: 0.2322834646 | BT16: 0.2045152722 | BU16: 0.2066225166 | BV16: 0.2272126816 | BW16: 0.2361111111 | BX16: 0.2258064516 | CD16: Suma de Ind | CE16: DESC_DPTO
A17: CUSCO | E17: 23323 | F17: 6798 | G17: 0.2914719376 | I17: 8 | J17: 37742 | K17: 8418 | L17: 0.2230406444 | BH17: AYACUCHO | BI17: 0.2340329497 | BL17: AREQUIPA | BM17: 0.2519561815 | BN17: 0.271468144 | BO17: 0.2687713311 | BP17: 0.2776327241 | BQ17: 0.2551724138 | BR17: 0.243062201 | BS17: 0.2634782609 | BT17: 0.2751798561 | BU17: 0.2913968548 | BV17: 0.2328638498 | BW17: 0.2582582583 | BX17: 0.2713026445 | CD17: Mes | CE17: AMAZONAS | CF17: ANCASH | CG17: APURIMAC | CH17: AREQUIPA | CI17: AYACUCHO | CJ17: CAJAMARCA | CK17: CALLAO | CL17: CUSCO | CM17: HUANCAVELICA | CN17: HUANUCO | CO17: ICA | CP17: JUNIN | CQ17: LA LIBERTAD | CR17: LAMBAYEQUE | CS17: LIMA METROPOLITANA | CT17: LIMA PROVINCIAS | CU17: LORETO | CV17: MADRE DE DIOS | CW17: MOQUEGUA | CX17: PASCO | CY17: PIURA | CZ17: PUNO | DA17: SAN MARTIN | DB17: TACNA | DC17: TUMBES | DD17: UCAYALI | DE17: Total general
A18: HUANCAVELICA | E18: 7874 | F18: 2655 | G18: 0.3371856744 | I18: 9 | J18: 36972 | K18: 7922 | L18: 0.2142702586 | BH18: CAJAMARCA | BI18: 0.2834975037 | BL18: AYACUCHO | BM18: 0.2651087832 | BN18: 0.297029703 | BO18: 0.2491776316 | BP18: 0.213988343 | BQ18: 0.2344827586 | BR18: 0.2122040073 | BS18: 0.2357723577 | BT18: 0.2528625954 | BU18: 0.2080078125 | BV18: 0.2150837989 | BW18: 0.2225579053 | BX18: 0.1921568627 | CD18: Enero | CE18: 0.2536231884 | CF18: 0.5040548971 | CG18: 0.3098591549 | CH18: 0.2519561815 | CI18: 0.2651087832 | CJ18: 0.2979672781 | CK18: 0.1936799185 | CL18: 0.384974335 | CM18: 0.3620218579 | CN18: 0.1778242678 | CO18: 0.249070632 | CP18: 0.2569134701 | CQ18: 0.2388255916 | CR18: 0.3868558626 | CS18: 0.2497687327 | CT18: 0.207122093 | CU18: 0.215003349 | CV18: 0.2551594747 | CW18: 0.4 | CX18: 0.3411016949 | CY18: 0.2568710359 | CZ18: 0.1338829996 | DA18: 0.2196349906 | DB18: 0.2446043165 | DC18: 0.2664576803 | DD18: 0.2585530006 | DE18: 0.2631529544
A19: HUANUCO | E19: 16449 | F19: 2902 | G19: 0.1764240987 | I19: 10 | J19: 36356 | K19: 7676 | L19: 0.2111343382 | BH19: CALLAO | BI19: 0.1876637775 | BL19: CAJAMARCA | BM19: 0.2979672781 | BN19: 0.2937257079 | BO19: 0.2982278481 | BP19: 0.3168421053 | BQ19: 0.2965333333 | BR19: 0.2912729294 | BS19: 0.281637049 | BT19: 0.273318872 | BU19: 0.2551532033 | BV19: 0.2680804785 | BW19: 0.2736486486 | BX19: 0.2495726496 | CD19: Febrero | CE19: 0.2302325581 | CF19: 0.4785568414 | CG19: 0.2668360864 | CH19: 0.271468144 | CI19: 0.297029703 | CJ19: 0.2937257079 | CK19: 0.1971326165 | CL19: 0.3563160544 | CM19: 0.3544891641 | CN19: 0.1997030438 | CO19: 0.2812172088 | CP19: 0.2449581899 | CQ19: 0.2180555556 | CR19: 0.3695485845 | CS19: 0.2518883922 | CT19: 0.186822352 | CU19: 0.2161214953 | CV19: 0.237804878 | CW19: 0.4054054054 | CX19: 0.3120879121 | CY19: 0.242962963 | CZ19: 0.1326212728 | DA19: 0.2140825036 | DB19: 0.1968503937 | DC19: 0.3461538462 | DD19: 0.2552356021 | DE19: 0.2589145254
A20: ICA | E20: 11434 | F20: 2877 | G20: 0.2516179815 | I20: 11 | J20: 34568 | K20: 7489 | L20: 0.2166454524 | BH20: CUSCO | BI20: 0.2914719376 | BL20: CALLAO | BM20: 0.1936799185 | BN20: 0.1971326165 | BO20: 0.2136363636 | BP20: 0.2197674419 | BQ20: 0.1755555556 | BR20: 0.1938650307 | BS20: 0.195863747 | BT20: 0.1872659176 | BU20: 0.1481481481 | BV20: 0.1517150396 | BW20: 0.1875825627 | BX20: 0.1785714286 | CD20: Marzo | CE20: 0.2527693857 | CF20: 0.4545454545 | CG20: 0.2421784473 | CH20: 0.2687713311 | CI20: 0.2491776316 | CJ20: 0.2982278481 | CK20: 0.2136363636 | CL20: 0.3201082056 | CM20: 0.3797297297 | CN20: 0.2021563342 | CO20: 0.2691951896 | CP20: 0.2516527104 | CQ20: 0.2061068702 | CR20: 0.3042028019 | CS20: 0.2606886657 | CT20: 0.1723636364 | CU20: 0.2349521204 | CV20: 0.3244274809 | CW20: 0.3605442177 | CX20: 0.261954262 | CY20: 0.2317965024 | CZ20: 0.1280262618 | DA20: 0.2194513716 | DB20: 0.247148289 | DC20: 0.3161094225 | DD20: 0.2562929062 | DE20: 0.2548922292
A21: JUNIN | E21: 24481 | F21: 5709 | G21: 0.2332012581 | I21: 12 | J21: 35245 | K21: 7590 | L21: 0.215349695 | BH21: HUANCAVELICA | BI21: 0.3371856744 | BL21: CUSCO | BM21: 0.384974335 | BN21: 0.3563160544 | BO21: 0.3201082056 | BP21: 0.3398398398 | BQ21: 0.3132036847 | BR21: 0.2729744426 | BS21: 0.2632685234 | BT21: 0.2467053242 | BU21: 0.2167280379 | BV21: 0.2419700214 | BW21: 0.2423033067 | BX21: 0.2708221386 | CD21: Abril | CE21: 0.2206969377 | CF21: 0.4828496042 | CG21: 0.2666666667 | CH21: 0.2776327241 | CI21: 0.213988343 | CJ21: 0.3168421053 | CK21: 0.2197674419 | CL21: 0.3398398398 | CM21: 0.3561253561 | CN21: 0.1717663421 | CO21: 0.2715430862 | CP21: 0.2592421442 | CQ21: 0.2269883825 | CR21: 0.3079584775 | CS21: 0.2516874156 | CT21: 0.20234375 | CU21: 0.2141319943 | CV21: 0.2744282744 | CW21: 0.393442623 | CX21: 0.2700892857 | CY21: 0.2281967213 | CZ21: 0.118491921 | DA21: 0.2046357616 | DB21: 0.2371541502 | DC21: 0.3460410557 | DD21: 0.2552795031 | DE21: 0.2535421699
A22: LA LIBERTAD | E22: 25456 | F22: 5277 | G22: 0.2072988686 | I22: Total general | J22: 460550 | K22: 108245 | L22: 0.2350341982 | BH22: HUANUCO | BI22: 0.1764240987 | BL22: HUANCAVELICA | BM22: 0.3620218579 | BN22: 0.3544891641 | BO22: 0.3797297297 | BP22: 0.3561253561 | BQ22: 0.3898050975 | BR22: 0.3408450704 | BS22: 0.334841629 | BT22: 0.308411215 | BU22: 0.3290113452 | BV22: 0.2847571189 | BW22: 0.2736486486 | BX22: 0.3056537102 | CD22: Mayo | CE22: 0.2437971953 | CF22: 0.4632911392 | CG22: 0.25 | CH22: 0.2551724138 | CI22: 0.2344827586 | CJ22: 0.2965333333 | CK22: 0.1755555556 | CL22: 0.3132036847 | CM22: 0.3898050975 | CN22: 0.1947331947 | CO22: 0.254841998 | CP22: 0.2521408183 | CQ22: 0.2181978799 | CR22: 0.282740094 | CS22: 0.2471714534 | CT22: 0.1752336449 | CU22: 0.211786372 | CV22: 0.2489361702 | CW22: 0.4047619048 | CX22: 0.3112582781 | CY22: 0.2089407191 | CZ22: 0.09042076992 | DA22: 0.1918088737 | DB22: 0.1673640167 | DC22: 0.3081081081 | DD22: 0.2732273839 | DE22: 0.244074359
A23: LAMBAYEQUE | E23: 16215 | F23: 4752 | G23: 0.2930619796 | BH23: ICA | BI23: 0.2516179815 | BL23: HUANUCO | BM23: 0.1778242678 | BN23: 0.1997030438 | BO23: 0.2021563342 | BP23: 0.1717663421 | BQ23: 0.1947331947 | BR23: 0.1770299927 | BS23: 0.1505934718 | BT23: 0.1754122939 | BU23: 0.1709923664 | BV23: 0.1580966999 | BW23: 0.1660377358 | BX23: 0.1679331307 | CD23: Junio | CE23: 0.1791907514 | CF23: 0.4427480916 | CG23: 0.2235449735 | CH23: 0.243062201 | CI23: 0.2122040073 | CJ23: 0.2912729294 | CK23: 0.1938650307 | CL23: 0.2729744426 | CM23: 0.3408450704 | CN23: 0.1770299927 | CO23: 0.2161594963 | CP23: 0.2042850025 | CQ23: 0.1900430828 | CR23: 0.2828854314 | CS23: 0.2221529833 | CT23: 0.1702986279 | CU23: 0.1956087824 | CV23: 0.2148148148 | CW23: 0.3148148148 | CX23: 0.2282352941 | CY23: 0.204431737 | CZ23: 0.1038602941 | DA23: 0.1940836941 | DB23: 0.2252252252 | DC23: 0.3196480938 | DD23: 0.3090668432 | DE23: 0.2270691437
A24: LIMA METROPOLITANA | E24: 77046 | F24: 17716 | G24: 0.229940555 | BH24: JUNIN | BI24: 0.2332012581 | BL24: ICA | BM24: 0.249070632 | BN24: 0.2812172088 | BO24: 0.2691951896 | BP24: 0.2715430862 | BQ24: 0.254841998 | BR24: 0.2161594963 | BS24: 0.2632632633 | BT24: 0.2483660131 | BU24: 0.235162374 | BV24: 0.2413793103 | BW24: 0.2443653618 | BX24: 0.2370540852 | CD24: Julio | CE24: 0.2166105499 | CF24: 0.4495289367 | CG24: 0.2322834646 | CH24: 0.2634782609 | CI24: 0.2357723577 | CJ24: 0.281637049 | CK24: 0.195863747 | CL24: 0.2632685234 | CM24: 0.334841629 | CN24: 0.1505934718 | CO24: 0.2632632633 | CP24: 0.2083748754 | CQ24: 0.2150537634 | CR24: 0.2863187588 | CS24: 0.2268057046 | CT24: 0.1553719008 | CU24: 0.1953216374 | CV24: 0.2428256071 | CW24: 0.3818181818 | CX24: 0.2695035461 | CY24: 0.1803948264 | CZ24: 0.09891598916 | DA24: 0.1774768354 | DB24: 0.1704035874 | DC24: 0.2630057803 | DD24: 0.2546201232 | DE24: 0.2262481129
A25: LIMA PROVINCIAS | E25: 14666 | F25: 2496 | G25: 0.1701895541 | BH25: LA LIBERTAD | BI25: 0.2072988686 | BL25: JUNIN | BM25: 0.2569134701 | BN25: 0.2449581899 | BO25: 0.2516527104 | BP25: 0.2592421442 | BQ25: 0.2521408183 | BR25: 0.2042850025 | BS25: 0.2083748754 | BT25: 0.2177254098 | BU25: 0.228024819 | BV25: 0.2326530612 | BW25: 0.2190680236 | BX25: 0.2128534704 | CD25: Agosto | CE25: 0.2032608696 | CF25: 0.4119623656 | CG25: 0.2045152722 | CH25: 0.2751798561 | CI25: 0.2528625954 | CJ25: 0.273318872 | CK25: 0.1872659176 | CL25: 0.2467053242 | CM25: 0.308411215 | CN25: 0.1754122939 | CO25: 0.2483660131 | CP25: 0.2177254098 | CQ25: 0.1917221694 | CR25: 0.2921348315 | CS25: 0.2092651757 | CT25: 0.1515397083 | CU25: 0.1975308642 | CV25: 0.1991150442 | CW25: 0.3660714286 | CX25: 0.252293578 | CY25: 0.2026980284 | CZ25: 0.111163448 | DA25: 0.1806069578 | DB25: 0.1772151899 | DC25: 0.2653061224 | DD25: 0.2837060703 | DE25: 0.2230406444
A26: LORETO | E26: 32132 | F26: 6518 | G26: 0.2028507407 | BH26: LAMBAYEQUE | BI26: 0.2930619796 | BL26: LA LIBERTAD | BM26: 0.2388255916 | BN26: 0.2180555556 | BO26: 0.2061068702 | BP26: 0.2269883825 | BQ26: 0.2181978799 | BR26: 0.1900430828 | BS26: 0.2150537634 | BT26: 0.1917221694 | BU26: 0.1922511035 | BV26: 0.200617284 | BW26: 0.1863780359 | BX26: 0.1941448382 | CD26: Setiembre | CE26: 0.2037252619 | CF26: 0.4060949681 | CG26: 0.2066225166 | CH26: 0.2913968548 | CI26: 0.2080078125 | CJ26: 0.2551532033 | CK26: 0.1481481481 | CL26: 0.2167280379 | CM26: 0.3290113452 | CN26: 0.1709923664 | CO26: 0.235162374 | CP26: 0.228024819 | CQ26: 0.1922511035 | CR26: 0.2608370703 | CS26: 0.2110421431 | CT26: 0.1440972222 | CU26: 0.1902956785 | CV26: 0.2234513274 | CW26: 0.2601626016 | CX26: 0.2282878412 | CY26: 0.1737860533 | CZ26: 0.1007932804 | DA26: 0.1743323442 | DB26: 0.2 | DC26: 0.283625731 | DD26: 0.2782051282 | DE26: 0.2142702586
A27: MADRE DE DIOS | E27: 5626 | F27: 1312 | G27: 0.2332029861 | BH27: LIMA METROPOLITANA | BI27: 0.229940555 | BL27: LAMBAYEQUE | BM27: 0.3868558626 | BN27: 0.3695485845 | BO27: 0.3042028019 | BP27: 0.3079584775 | BQ27: 0.282740094 | BR27: 0.2828854314 | BS27: 0.2863187588 | BT27: 0.2921348315 | BU27: 0.2608370703 | BV27: 0.2371450499 | BW27: 0.2423208191 | BX27: 0.2517301038 | CD27: Octubre | CE27: 0.206088993 | CF27: 0.4429920116 | CG27: 0.2272126816 | CH27: 0.2328638498 | CI27: 0.2150837989 | CJ27: 0.2680804785 | CK27: 0.1517150396 | CL27: 0.2419700214 | CM27: 0.2847571189 | CN27: 0.1580966999 | CO27: 0.2413793103 | CP27: 0.2326530612 | CQ27: 0.200617284 | CR27: 0.2371450499 | CS27: 0.1967823878 | CT27: 0.1442477876 | CU27: 0.1834319527 | CV27: 0.1905829596 | CW27: 0.2777777778 | CX27: 0.2553191489 | CY27: 0.1652957305 | CZ27: 0.09209257473 | DA27: 0.1656184486 | DB27: 0.1751152074 | DC27: 0.3181818182 | DD27: 0.2742040286 | DE27: 0.2111343382
A28: MOQUEGUA | E28: 1442 | F28: 500 | G28: 0.346740638 | BH28: LIMA PROVINCIAS | BI28: 0.1701895541 | BL28: LIMA METROPOLITANA | BM28: 0.2497687327 | BN28: 0.2518883922 | BO28: 0.2606886657 | BP28: 0.2516874156 | BQ28: 0.2471714534 | BR28: 0.2221529833 | BS28: 0.2268057046 | BT28: 0.2092651757 | BU28: 0.2110421431 | BV28: 0.1967823878 | BW28: 0.2030475491 | BX28: 0.210471747 | CD28: Noviembre | CE28: 0.2040816327 | CF28: 0.3938714499 | CG28: 0.2361111111 | CH28: 0.2582582583 | CI28: 0.2225579053 | CJ28: 0.2736486486 | CK28: 0.1875825627 | CL28: 0.2423033067 | CM28: 0.2736486486 | CN28: 0.1660377358 | CO28: 0.2443653618 | CP28: 0.2190680236 | CQ28: 0.1863780359 | CR28: 0.2423208191 | CS28: 0.2030475491 | CT28: 0.1855769231 | CU28: 0.1929347826 | CV28: 0.1966173362 | CW28: 0.3018867925 | CX28: 0.2944038929 | CY28: 0.1651299246 | CZ28: 0.104801239 | DA28: 0.1720588235 | DB28: 0.1904761905 | DC28: 0.3164556962 | DD28: 0.3074901445 | DE28: 0.2166454524
A29: PASCO | E29: 5190 | F29: 1420 | G29: 0.2736030829 | BH29: LORETO | BI29: 0.2028507407 | BL29: LIMA PROVINCIAS | BM29: 0.207122093 | BN29: 0.186822352 | BO29: 0.1723636364 | BP29: 0.20234375 | BQ29: 0.1752336449 | BR29: 0.1702986279 | BS29: 0.1553719008 | BT29: 0.1515397083 | BU29: 0.1440972222 | BV29: 0.1442477876 | BW29: 0.1855769231 | BX29: 0.1377506539 | CD29: Diciembre | CE29: 0.222614841 | CF29: 0.3949191686 | CG29: 0.2258064516 | CH29: 0.2713026445 | CI29: 0.1921568627 | CJ29: 0.2495726496 | CK29: 0.1785714286 | CL29: 0.2708221386 | CM29: 0.3056537102 | CN29: 0.1679331307 | CO29: 0.2370540852 | CP29: 0.2128534704 | CQ29: 0.1941448382 | CR29: 0.2517301038 | CS29: 0.210471747 | CT29: 0.1377506539 | CU29: 0.1804745235 | CV29: 0.1662921348 | CW29: 0.2792792793 | CX29: 0.2432432432 | CY29: 0.1771501926 | CZ29: 0.09954058193 | DA29: 0.1831187411 | DB29: 0.2105263158 | DC29: 0.3117870722 | DD29: 0.2973497091 | DE29: 0.215349695
A30: PIURA | E30: 33462 | F30: 6849 | G30: 0.2046799354 | BH30: MADRE DE DIOS | BI30: 0.2332029861 | BL30: LORETO | BM30: 0.215003349 | BN30: 0.2161214953 | BO30: 0.2349521204 | BP30: 0.2141319943 | BQ30: 0.211786372 | BR30: 0.1956087824 | BS30: 0.1953216374 | BT30: 0.1975308642 | BU30: 0.1902956785 | BV30: 0.1834319527 | BW30: 0.1929347826 | BX30: 0.1804745235 | CD30: Total general | CE30: 0.2205499814 | CF30: 0.4455035461 | CG30: 0.2421198846 | CH30: 0.2633871573 | CI30: 0.2340329497 | CJ30: 0.2834975037 | CK30: 0.1876637775 | CL30: 0.2914719376 | CM30: 0.3371856744 | CN30: 0.1764240987 | CO30: 0.2516179815 | CP30: 0.2332012581 | CQ30: 0.2072988686 | CR30: 0.2930619796 | CS30: 0.229940555 | CT30: 0.1701895541 | CU30: 0.2028507407 | CV30: 0.2332029861 | CW30: 0.346740638 | CX30: 0.2736030829 | CY30: 0.2046799354 | CZ30: 0.1103005433 | DA30: 0.1922207408 | DB30: 0.2050105857 | DC30: 0.3042569862 | DD30: 0.2748027354 | DE30: 0.2350341982
A31: PUNO | E31: 26319 | F31: 2903 | G31: 0.1103005433 | BH31: MOQUEGUA | BI31: 0.346740638 | BL31: MADRE DE DIOS | BM31: 0.2551594747 | BN31: 0.237804878 | BO31: 0.3244274809 | BP31: 0.2744282744 | BQ31: 0.2489361702 | BR31: 0.2148148148 | BS31: 0.2428256071 | BT31: 0.1991150442 | BU31: 0.2234513274 | BV31: 0.1905829596 | BW31: 0.1966173362 | BX31: 0.1662921348
A32: SAN MARTIN | E32: 17251 | F32: 3316 | G32: 0.1922207408 | BH32: PASCO | BI32: 0.2736030829 | BL32: MOQUEGUA | BM32: 0.4 | BN32: 0.4054054054 | BO32: 0.3605442177 | BP32: 0.393442623 | BQ32: 0.4047619048 | BR32: 0.3148148148 | BS32: 0.3818181818 | BT32: 0.3660714286 | BU32: 0.2601626016 | BV32: 0.2777777778 | BW32: 0.3018867925 | BX32: 0.2792792793
A33: TACNA | E33: 2834 | F33: 581 | G33: 0.2050105857 | BH33: PIURA | BI33: 0.2046799354 | BL33: PASCO | BM33: 0.3411016949 | BN33: 0.3120879121 | BO33: 0.261954262 | BP33: 0.2700892857 | BQ33: 0.3112582781 | BR33: 0.2282352941 | BS33: 0.2695035461 | BT33: 0.252293578 | BU33: 0.2282878412 | BV33: 0.2553191489 | BW33: 0.2944038929 | BX33: 0.2432432432
A34: TUMBES | E34: 3829 | F34: 1165 | G34: 0.3042569862 | BH34: PUNO | BI34: 0.1103005433 | BL34: PIURA | BM34: 0.2568710359 | BN34: 0.242962963 | BO34: 0.2317965024 | BP34: 0.2281967213 | BQ34: 0.2089407191 | BR34: 0.204431737 | BS34: 0.1803948264 | BT34: 0.2026980284 | BU34: 0.1737860533 | BV34: 0.1652957305 | BW34: 0.1651299246 | BX34: 0.1771501926
A35: UCAYALI | E35: 19010 | F35: 5224 | G35: 0.2748027354 | BH35: SAN MARTIN | BI35: 0.1922207408 | BL35: PUNO | BM35: 0.1338829996 | BN35: 0.1326212728 | BO35: 0.1280262618 | BP35: 0.118491921 | BQ35: 0.09042076992 | BR35: 0.1038602941 | BS35: 0.09891598916 | BT35: 0.111163448 | BU35: 0.1007932804 | BV35: 0.09209257473 | BW35: 0.104801239 | BX35: 0.09954058193 | CE35: AMAZONAS | CF35: ANCASH | CG35: APURIMAC | CH35: AREQUIPA | CI35: AYACUCHO | CJ35: CAJAMARCA | CK35: CALLAO | CL35: CUSCO | CM35: HUANCAVELICA | CN35: HUANUCO | CO35: ICA | CP35: JUNIN | CQ35: LA LIBERTAD | CR35: LAMBAYEQUE | CS35: LIMA DIRIS CENTRO | CT35: LIMA DIRIS ESTE | CU35: LIMA DIRIS NORTE | CV35: LIMA DIRIS SUR | CW35: LIMA PROVINCIAS | CX35: LORETO | CY35: MADRE DE DIOS | CZ35: MOQUEGUA | DA35: PASCO | DB35: PIURA | DC35: PUNO | DD35: SAN MARTIN | DE35: TACNA | DF35: TUMBES | DG35: UCAYALI | DH35: NACIONAL
A36: Total general | E36: 460550 | F36: 108245 | G36: 0.2350341982 | BH36: TACNA | BI36: 0.2050105857 | BL36: SAN MARTIN | BM36: 0.2196349906 | BN36: 0.2140825036 | BO36: 0.2194513716 | BP36: 0.2046357616 | BQ36: 0.1918088737 | BR36: 0.1940836941 | BS36: 0.1774768354 | BT36: 0.1806069578 | BU36: 0.1743323442 | BV36: 0.1656184486 | BW36: 0.1720588235 | BX36: 0.1831187411 | CD36: Enero | CE36: =+IFERROR(GETPIVOTDATA("Ind",$CD$16,"Mes",$CD36,"DESC_DPTO",CE$35),"-") -> 0.2536231884 | CF36: =+IFERROR(GETPIVOTDATA("Ind",$CD$16,"Mes",$CD36,"DESC_DPTO",CF$35),"-") -> 0.5040548971 | CG36: 0.3098591549 | CH36: 0.2519561815 | CI36: 0.2651087832 | CJ36: 0.2979672781 | CK36: 0.1936799185 | CL36: 0.384974335 | CM36: 0.3620218579 | CN36: 0.1778242678 | CO36: 0.249070632 | CP36: 0.2569134701 | CQ36: 0.2388255916 | CR36: 0.3868558626 | CS36: - | CT36: - | CU36: - | CV36: - | CW36: 0.207122093 | CX36: 0.215003349 | CY36: 0.2551594747 | CZ36: 0.4 | DA36: 0.3411016949 | DB36: 0.2568710359 | DC36: 0.1338829996 | DD36: 0.2196349906 | DE36: 0.2446043165 | DF36: 0.2664576803 | DG36: 0.2585530006 | DH36: =DE18 -> 0.2631529544
BH37: TUMBES | BI37: 0.3042569862 | BL37: TACNA | BM37: 0.2446043165 | BN37: 0.1968503937 | BO37: 0.247148289 | BP37: 0.2371541502 | BQ37: 0.1673640167 | BR37: 0.2252252252 | BS37: 0.1704035874 | BT37: 0.1772151899 | BU37: 0.2 | BV37: 0.1751152074 | BW37: 0.1904761905 | BX37: 0.2105263158 | CD37: Febrero | CE37: =+IFERROR(GETPIVOTDATA("Ind",$CD$16,"Mes",$CD37,"DESC_DPTO",CE$35),"-") -> 0.2302325581 | CF37: 0.4785568414 | CG37: 0.2668360864 | CH37: 0.271468144 | CI37: 0.297029703 | CJ37: 0.2937257079 | CK37: 0.1971326165 | CL37: 0.3563160544 | CM37: 0.3544891641 | CN37: 0.1997030438 | CO37: 0.2812172088 | CP37: 0.2449581899 | CQ37: 0.2180555556 | CR37: 0.3695485845 | CS37: - | CT37: - | CU37: - | CV37: - | CW37: 0.186822352 | CX37: 0.2161214953 | CY37: 0.237804878 | CZ37: 0.4054054054 | DA37: 0.3120879121 | DB37: 0.242962963 | DC37: 0.1326212728 | DD37: 0.2140825036 | DE37: 0.1968503937 | DF37: 0.3461538462 | DG37: 0.2552356021 | DH37: =DE19 -> 0.2589145254
BH38: UCAYALI | BI38: 0.2748027354 | BL38: TUMBES | BM38: 0.2664576803 | BN38: 0.3461538462 | BO38: 0.3161094225 | BP38: 0.3460410557 | BQ38: 0.3081081081 | BR38: 0.3196480938 | BS38: 0.2630057803 | BT38: 0.2653061224 | BU38: 0.283625731 | BV38: 0.3181818182 | BW38: 0.3164556962 | BX38: 0.3117870722 | CD38: Marzo | CE38: =+IFERROR(GETPIVOTDATA("Ind",$CD$16,"Mes",$CD38,"DESC_DPTO",CE$35),"-") -> 0.2527693857 | CF38: 0.4545454545 | CG38: 0.2421784473 | CH38: 0.2687713311 | CI38: 0.2491776316 | CJ38: 0.2982278481 | CK38: 0.2136363636 | CL38: 0.3201082056 | CM38: 0.3797297297 | CN38: 0.2021563342 | CO38: 0.2691951896 | CP38: 0.2516527104 | CQ38: 0.2061068702 | CR38: 0.3042028019 | CS38: - | CT38: - | CU38: - | CV38: - | CW38: 0.1723636364 | CX38: 0.2349521204 | CY38: 0.3244274809 | CZ38: 0.3605442177 | DA38: 0.261954262 | DB38: 0.2317965024 | DC38: 0.1280262618 | DD38: 0.2194513716 | DE38: 0.247148289 | DF38: 0.3161094225 | DG38: 0.2562929062 | DH38: =DE20 -> 0.2548922292
BH39: Total general | BI39: 0.2350341982 | BL39: UCAYALI | BM39: 0.2585530006 | BN39: 0.2552356021 | BO39: 0.2562929062 | BP39: 0.2552795031 | BQ39: 0.2732273839 | BR39: 0.3090668432 | BS39: 0.2546201232 | BT39: 0.2837060703 | BU39: 0.2782051282 | BV39: 0.2742040286 | BW39: 0.3074901445 | BX39: 0.2973497091 | CD39: Abril | CE39: =+IFERROR(GETPIVOTDATA("Ind",$CD$16,"Mes",$CD39,"DESC_DPTO",CE$35),"-") -> 0.2206969377 | CF39: 0.4828496042 | CG39: 0.2666666667 | CH39: 0.2776327241 | CI39: 0.213988343 | CJ39: 0.3168421053 | CK39: 0.2197674419 | CL39: 0.3398398398 | CM39: 0.3561253561 | CN39: 0.1717663421 | CO39: 0.2715430862 | CP39: 0.2592421442 | CQ39: 0.2269883825 | CR39: 0.3079584775 | CS39: - | CT39: - | CU39: - | CV39: - | CW39: 0.20234375 | CX39: 0.2141319943 | CY39: 0.2744282744 | CZ39: 0.393442623 | DA39: 0.2700892857 | DB39: 0.2281967213 | DC39: 0.118491921 | DD39: 0.2046357616 | DE39: 0.2371541502 | DF39: 0.3460410557 | DG39: 0.2552795031 | DH39: =DE21 -> 0.2535421699
BL40: Total general | BM40: 0.2631529544 | BN40: 0.2589145254 | BO40: 0.2548922292 | BP40: 0.2535421699 | BQ40: 0.244074359 | BR40: 0.2270691437 | BS40: 0.2262481129 | BT40: 0.2230406444 | BU40: 0.2142702586 | BV40: 0.2111343382 | BW40: 0.2166454524 | BX40: 0.215349695 | CD40: Mayo | CE40: 0.2437971953 | CF40: 0.4632911392 | CG40: 0.25 | CH40: 0.2551724138 | CI40: 0.2344827586 | CJ40: 0.2965333333 | CK40: 0.1755555556 | CL40: 0.3132036847 | CM40: 0.3898050975 | CN40: 0.1947331947 | CO40: 0.254841998 | CP40: 0.2521408183 | CQ40: 0.2181978799 | CR40: 0.282740094 | CS40: - | CT40: - | CU40: - | CV40: - | CW40: 0.1752336449 | CX40: 0.211786372 | CY40: 0.2489361702 | CZ40: 0.4047619048 | DA40: 0.3112582781 | DB40: 0.2089407191 | DC40: 0.09042076992 | DD40: 0.1918088737 | DE40: 0.1673640167 | DF40: 0.3081081081 | DG40: 0.2732273839 | DH40: 0.244074359
CD41: Junio | CE41: 0.1791907514 | CF41: 0.4427480916 | CG41: 0.2235449735 | CH41: 0.243062201 | CI41: 0.2122040073 | CJ41: 0.2912729294 | CK41: 0.1938650307 | CL41: 0.2729744426 | CM41: 0.3408450704 | CN41: 0.1770299927 | CO41: 0.2161594963 | CP41: 0.2042850025 | CQ41: 0.1900430828 | CR41: 0.2828854314 | CS41: - | CT41: - | CU41: - | CV41: - | CW41: 0.1702986279 | CX41: 0.1956087824 | CY41: 0.2148148148 | CZ41: 0.3148148148 | DA41: 0.2282352941 | DB41: 0.204431737 | DC41: 0.1038602941 | DD41: 0.1940836941 | DE41: 0.2252252252 | DF41: 0.3196480938 | DG41: 0.3090668432 | DH41: 0.2270691437
CD42: Julio | CE42: 0.2166105499 | CF42: 0.4495289367 | CG42: 0.2322834646 | CH42: 0.2634782609 | CI42: 0.2357723577 | CJ42: 0.281637049 | CK42: 0.195863747 | CL42: 0.2632685234 | CM42: 0.334841629 | CN42: 0.1505934718 | CO42: 0.2632632633 | CP42: 0.2083748754 | CQ42: 0.2150537634 | CR42: 0.2863187588 | CS42: - | CT42: - | CU42: - | CV42: - | CW42: 0.1553719008 | CX42: 0.1953216374 | CY42: 0.2428256071 | CZ42: 0.3818181818 | DA42: 0.2695035461 | DB42: 0.1803948264 | DC42: 0.09891598916 | DD42: 0.1774768354 | DE42: 0.1704035874 | DF42: 0.2630057803 | DG42: 0.2546201232 | DH42: 0.2262481129
CD43: Agosto | CE43: 0.2032608696 | CF43: 0.4119623656 | CG43: 0.2045152722 | CH43: 0.2751798561 | CI43: 0.2528625954 | CJ43: 0.273318872 | CK43: 0.1872659176 | CL43: 0.2467053242 | CM43: 0.308411215 | CN43: 0.1754122939 | CO43: 0.2483660131 | CP43: 0.2177254098 | CQ43: 0.1917221694 | CR43: 0.2921348315 | CS43: - | CT43: - | CU43: - | CV43: - | CW43: 0.1515397083 | CX43: 0.1975308642 | CY43: 0.1991150442 | CZ43: 0.3660714286 | DA43: 0.252293578 | DB43: 0.2026980284 | DC43: 0.111163448 | DD43: 0.1806069578 | DE43: 0.1772151899 | DF43: 0.2653061224 | DG43: 0.2837060703 | DH43: 0.2230406444
CD44: Setiembre | CE44: 0.2037252619 | CF44: 0.4060949681 | CG44: 0.2066225166 | CH44: 0.2913968548 | CI44: 0.2080078125 | CJ44: 0.2551532033 | CK44: 0.1481481481 | CL44: 0.2167280379 | CM44: 0.3290113452 | CN44: 0.1709923664 | CO44: 0.235162374 | CP44: 0.228024819 | CQ44: 0.1922511035 | CR44: 0.2608370703 | CS44: - | CT44: - | CU44: - | CV44: - | CW44: 0.1440972222 | CX44: 0.1902956785 | CY44: 0.2234513274 | CZ44: 0.2601626016 | DA44: 0.2282878412 | DB44: 0.1737860533 | DC44: 0.1007932804 | DD44: 0.1743323442 | DE44: 0.2 | DF44: 0.283625731 | DG44: 0.2782051282 | DH44: 0.2142702586
CD45: Octubre | CE45: 0.206088993 | CF45: 0.4429920116 | CG45: 0.2272126816 | CH45: 0.2328638498 | CI45: =+IFERROR(GETPIVOTDATA("Ind",$CD$16,"Mes",$CD45,"DESC_DPTO",CI$35),"-") -> 0.2150837989 | CJ45: 0.2680804785 | CK45: 0.1517150396 | CL45: 0.2419700214 | CM45: 0.2847571189 | CN45: 0.1580966999 | CO45: 0.2413793103 | CP45: 0.2326530612 | CQ45: 0.200617284 | CR45: 0.2371450499 | CS45: - | CT45: - | CU45: - | CV45: - | CW45: 0.1442477876 | CX45: 0.1834319527 | CY45: =+IFERROR(GETPIVOTDATA("Ind",$CD$16,"Mes",$CD45,"DESC_DPTO",CY$35),"-") -> 0.1905829596 | CZ45: 0.2777777778 | DA45: 0.2553191489 | DB45: 0.1652957305 | DC45: 0.09209257473 | DD45: 0.1656184486 | DE45: 0.1751152074 | DF45: 0.3181818182 | DG45: 0.2742040286 | DH45: 0.2111343382
CD46: Noviembre | CE46: 0.2040816327 | CF46: 0.3938714499 | CG46: 0.2361111111 | CH46: 0.2582582583 | CI46: 0.2225579053 | CJ46: 0.2736486486 | CK46: 0.1875825627 | CL46: 0.2423033067 | CM46: 0.2736486486 | CN46: 0.1660377358 | CO46: 0.2443653618 | CP46: 0.2190680236 | CQ46: 0.1863780359 | CR46: 0.2423208191 | CS46: - | CT46: - | CU46: - | CV46: - | CW46: 0.1855769231 | CX46: 0.1929347826 | CY46: 0.1966173362 | CZ46: 0.3018867925 | DA46: 0.2944038929 | DB46: 0.1651299246 | DC46: 0.104801239 | DD46: 0.1720588235 | DE46: 0.1904761905 | DF46: 0.3164556962 | DG46: 0.3074901445 | DH46: 0.2166454524
CD47: Diciembre | CE47: 0.222614841 | CF47: 0.3949191686 | CG47: 0.2258064516 | CH47: 0.2713026445 | CI47: 0.1921568627 | CJ47: 0.2495726496 | CK47: 0.1785714286 | CL47: 0.2708221386 | CM47: 0.3056537102 | CN47: 0.1679331307 | CO47: 0.2370540852 | CP47: 0.2128534704 | CQ47: 0.1941448382 | CR47: 0.2517301038 | CS47: - | CT47: - | CU47: - | CV47: - | CW47: 0.1377506539 | CX47: 0.1804745235 | CY47: 0.1662921348 | CZ47: 0.2792792793 | DA47: 0.2432432432 | DB47: 0.1771501926 | DC47: 0.09954058193 | DD47: 0.1831187411 | DE47: 0.2105263158 | DF47: 0.3117870722 | DG47: 0.2973497091 | DH47: 0.215349695
CE48: - | CF48: - | CG48: - | CH48: - | CI48: - | CJ48: - | CK48: - | CL48: - | CM48: - | CN48: - | CO48: - | CP48: - | CQ48: - | CR48: - | CS48: - | CT48: - | CU48: - | CV48: - | CW48: - | CX48: - | CY48: - | CZ48: - | DA48: - | DB48: - | DC48: - | DD48: - | DE48: - | DF48: - | DG48: - | DH48: 0.2350341982
BL49: VALOR
BM50: 1 | BN50: 2 | BO50: 3 | BP50: 4 | BQ50: 5 | BR50: 6 | BS50: 7 | BT50: 8 | BU50: 9 | BV50: 10 | BW50: 11 | BX50: 12 | CA50: MIN | CB50: MAX
BH51: AMAZONAS | BI51: =+IFERROR(GETPIVOTDATA("Ind",$BH$12,"DESC_DPTO",$BH51),"-") -> 0.2205499814 | BL51: AMAZONAS | BM51: =IFERROR(GETPIVOTDATA("Ind",$BL$12,"Mes",BM$50,"DESC_DPTO",$BL51),"") -> 0.2536231884 | BN51: =IFERROR(GETPIVOTDATA("Ind",$BL$12,"Mes",BN$50,"DESC_DPTO",$BL51),"") -> 0.2302325581 | BO51: 0.2527693857 | BP51: 0.2206969377 | BQ51: 0.2437971953 | BR51: 0.1791907514 | BS51: 0.2166105499 | BT51: 0.2032608696 | BU51: 0.2037252619 | BV51: 0.206088993 | BW51: 0.2040816327 | BX51: 0.222614841 | BZ51: AMAZONAS | CA51: =+IF(BM51="-","-",MIN(BM51:BX51)) -> 0.1791907514 | CB51: =+IF(BM51="-","-",MAX(BM51:BX51)) -> 0.2536231884
BH52: ANCASH | BI52: =+IFERROR(GETPIVOTDATA("Ind",$BH$12,"DESC_DPTO",$BH52),"-") -> 0.4455035461 | BL52: ANCASH | BM52: =IFERROR(GETPIVOTDATA("Ind",$BL$12,"Mes",BM$50,"DESC_DPTO",$BL52),"") -> 0.5040548971 | BN52: 0.4785568414 | BO52: 0.4545454545 | BP52: 0.4828496042 | BQ52: 0.4632911392 | BR52: 0.4427480916 | BS52: 0.4495289367 | BT52: 0.4119623656 | BU52: 0.4060949681 | BV52: 0.4429920116 | BW52: 0.3938714499 | BX52: 0.3949191686 | BZ52: ANCASH | CA52: =+IF(BM52="-","-",MIN(BM52:BX52)) -> 0.3938714499 | CB52: =+IF(BM52="-","-",MAX(BM52:BX52)) -> 0.5040548971
BH53: APURIMAC | BI53: 0.2421198846 | BL53: APURIMAC | BM53: 0.3098591549 | BN53: 0.2668360864 | BO53: 0.2421784473 | BP53: 0.2666666667 | BQ53: 0.25 | BR53: 0.2235449735 | BS53: 0.2322834646 | BT53: 0.2045152722 | BU53: 0.2066225166 | BV53: 0.2272126816 | BW53: 0.2361111111 | BX53: 0.2258064516 | BZ53: APURIMAC | CA53: 0.2045152722 | CB53: 0.3098591549
BH54: AREQUIPA | BI54: 0.2633871573 | BL54: AREQUIPA | BM54: 0.2519561815 | BN54: 0.271468144 | BO54: 0.2687713311 | BP54: 0.2776327241 | BQ54: 0.2551724138 | BR54: 0.243062201 | BS54: 0.2634782609 | BT54: 0.2751798561 | BU54: 0.2913968548 | BV54: 0.2328638498 | BW54: 0.2582582583 | BX54: 0.2713026445 | BZ54: AREQUIPA | CA54: 0.2328638498 | CB54: 0.2913968548
BH55: AYACUCHO | BI55: 0.2340329497 | BL55: AYACUCHO | BM55: 0.2651087832 | BN55: 0.297029703 | BO55: 0.2491776316 | BP55: 0.213988343 | BQ55: 0.2344827586 | BR55: 0.2122040073 | BS55: 0.2357723577 | BT55: 0.2528625954 | BU55: 0.2080078125 | BV55: 0.2150837989 | BW55: 0.2225579053 | BX55: 0.1921568627 | BZ55: AYACUCHO | CA55: 0.1921568627 | CB55: 0.297029703
BH56: CAJAMARCA | BI56: 0.2834975037 | BL56: CAJAMARCA | BM56: 0.2979672781 | BN56: 0.2937257079 | BO56: 0.2982278481 | BP56: 0.3168421053 | BQ56: 0.2965333333 | BR56: 0.2912729294 | BS56: 0.281637049 | BT56: 0.273318872 | BU56: 0.2551532033 | BV56: 0.2680804785 | BW56: 0.2736486486 | BX56: 0.2495726496 | BZ56: CAJAMARCA | CA56: 0.2495726496 | CB56: 0.3168421053
BH57: CALLAO | BI57: 0.1876637775 | BL57: CALLAO | BM57: 0.1936799185 | BN57: 0.1971326165 | BO57: 0.2136363636 | BP57: 0.2197674419 | BQ57: 0.1755555556 | BR57: 0.1938650307 | BS57: 0.195863747 | BT57: 0.1872659176 | BU57: 0.1481481481 | BV57: 0.1517150396 | BW57: 0.1875825627 | BX57: 0.1785714286 | BZ57: CALLAO | CA57: 0.1481481481 | CB57: 0.2197674419
BH58: CUSCO | BI58: 0.2914719376 | BL58: CUSCO | BM58: 0.384974335 | BN58: 0.3563160544 | BO58: 0.3201082056 | BP58: 0.3398398398 | BQ58: 0.3132036847 | BR58: 0.2729744426 | BS58: 0.2632685234 | BT58: 0.2467053242 | BU58: 0.2167280379 | BV58: 0.2419700214 | BW58: 0.2423033067 | BX58: 0.2708221386 | BZ58: CUSCO | CA58: 0.2167280379 | CB58: 0.384974335
BH59: HUANCAVELICA | BI59: 0.3371856744 | BL59: HUANCAVELICA | BM59: 0.3620218579 | BN59: 0.3544891641 | BO59: 0.3797297297 | BP59: 0.3561253561 | BQ59: 0.3898050975 | BR59: 0.3408450704 | BS59: 0.334841629 | BT59: 0.308411215 | BU59: 0.3290113452 | BV59: 0.2847571189 | BW59: 0.2736486486 | BX59: 0.3056537102 | BZ59: HUANCAVELICA | CA59: 0.2736486486 | CB59: 0.3898050975
BH60: HUANUCO | BI60: 0.1764240987 | BL60: HUANUCO | BM60: 0.1778242678 | BN60: 0.1997030438 | BO60: 0.2021563342 | BP60: 0.1717663421 | BQ60: 0.1947331947 | BR60: 0.1770299927 | BS60: 0.1505934718 | BT60: 0.1754122939 | BU60: 0.1709923664 | BV60: 0.1580966999 | BW60: 0.1660377358 | BX60: 0.1679331307 | BZ60: HUANUCO | CA60: 0.1505934718 | CB60: 0.2021563342
BH61: ICA | BI61: 0.2516179815 | BL61: ICA | BM61: 0.249070632 | BN61: 0.2812172088 | BO61: 0.2691951896 | BP61: 0.2715430862 | BQ61: 0.254841998 | BR61: 0.2161594963 | BS61: 0.2632632633 | BT61: 0.2483660131 | BU61: 0.235162374 | BV61: 0.2413793103 | BW61: 0.2443653618 | BX61: 0.2370540852 | BZ61: ICA | CA61: 0.2161594963 | CB61: 0.2812172088
BH62: JUNIN | BI62: 0.2332012581 | BL62: JUNIN | BM62: 0.2569134701 | BN62: 0.2449581899 | BO62: 0.2516527104 | BP62: 0.2592421442 | BQ62: 0.2521408183 | BR62: 0.2042850025 | BS62: 0.2083748754 | BT62: 0.2177254098 | BU62: 0.228024819 | BV62: 0.2326530612 | BW62: 0.2190680236 | BX62: 0.2128534704 | BZ62: JUNIN | CA62: 0.2042850025 | CB62: 0.2592421442
BH63: LA LIBERTAD | BI63: 0.2072988686 | BL63: LA LIBERTAD | BM63: 0.2388255916 | BN63: 0.2180555556 | BO63: 0.2061068702 | BP63: 0.2269883825 | BQ63: 0.2181978799 | BR63: 0.1900430828 | BS63: 0.2150537634 | BT63: 0.1917221694 | BU63: 0.1922511035 | BV63: 0.200617284 | BW63: 0.1863780359 | BX63: 0.1941448382 | BZ63: LA LIBERTAD | CA63: 0.1863780359 | CB63: 0.2388255916
BH64: LAMBAYEQUE | BI64: 0.2930619796 | BL64: LAMBAYEQUE | BM64: 0.3868558626 | BN64: 0.3695485845 | BO64: 0.3042028019 | BP64: 0.3079584775 | BQ64: 0.282740094 | BR64: 0.2828854314 | BS64: 0.2863187588 | BT64: 0.2921348315 | BU64: 0.2608370703 | BV64: 0.2371450499 | BW64: 0.2423208191 | BX64: 0.2517301038 | BZ64: LAMBAYEQUE | CA64: 0.2371450499 | CB64: 0.3868558626
BH65: LIMA DIRIS CENTRO | BI65: - | BL65: LIMA DIRIS CENTRO | BZ65: LIMA DIRIS CENTRO | CA65: 0 | CB65: 0
BH66: LIMA DIRIS ESTE | BI66: - | BL66: LIMA DIRIS ESTE | BZ66: LIMA DIRIS ESTE | CA66: 0 | CB66: 0
BH67: LIMA DIRIS NORTE | BI67: - | BL67: LIMA DIRIS NORTE | BZ67: LIMA DIRIS NORTE | CA67: 0 | CB67: 0
BH68: LIMA DIRIS SUR | BI68: - | BL68: LIMA DIRIS SUR | BZ68: LIMA DIRIS SUR | CA68: 0 | CB68: 0
BH69: LIMA PROVINCIAS | BI69: 0.1701895541 | BL69: LIMA PROVINCIAS | BM69: 0.207122093 | BN69: 0.186822352 | BO69: 0.1723636364 | BP69: 0.20234375 | BQ69: 0.1752336449 | BR69: 0.1702986279 | BS69: 0.1553719008 | BT69: 0.1515397083 | BU69: 0.1440972222 | BV69: 0.1442477876 | BW69: 0.1855769231 | BX69: 0.1377506539 | BZ69: LIMA PROVINCIAS | CA69: 0.1377506539 | CB69: 0.207122093
BH70: LORETO | BI70: 0.2028507407 | BL70: LORETO | BM70: 0.215003349 | BN70: 0.2161214953 | BO70: 0.2349521204 | BP70: 0.2141319943 | BQ70: 0.211786372 | BR70: 0.1956087824 | BS70: 0.1953216374 | BT70: 0.1975308642 | BU70: 0.1902956785 | BV70: 0.1834319527 | BW70: 0.1929347826 | BX70: 0.1804745235 | BZ70: LORETO | CA70: 0.1804745235 | CB70: 0.2349521204
BH71: MADRE DE DIOS | BI71: 0.2332029861 | BL71: MADRE DE DIOS | BM71: 0.2551594747 | BN71: 0.237804878 | BO71: 0.3244274809 | BP71: 0.2744282744 | BQ71: 0.2489361702 | BR71: 0.2148148148 | BS71: 0.2428256071 | BT71: 0.1991150442 | BU71: 0.2234513274 | BV71: 0.1905829596 | BW71: 0.1966173362 | BX71: 0.1662921348 | BZ71: MADRE DE DIOS | CA71: 0.1662921348 | CB71: 0.3244274809
BH72: MOQUEGUA | BI72: 0.346740638 | BL72: MOQUEGUA | BM72: 0.4 | BN72: 0.4054054054 | BO72: 0.3605442177 | BP72: 0.393442623 | BQ72: 0.4047619048 | BR72: 0.3148148148 | BS72: 0.3818181818 | BT72: 0.3660714286 | BU72: 0.2601626016 | BV72: 0.2777777778 | BW72: 0.3018867925 | BX72: 0.2792792793 | BZ72: MOQUEGUA | CA72: 0.2601626016 | CB72: 0.4054054054
BH73: PASCO | BI73: 0.2736030829 | BL73: PASCO | BM73: 0.3411016949 | BN73: 0.3120879121 | BO73: 0.261954262 | BP73: 0.2700892857 | BQ73: 0.3112582781 | BR73: 0.2282352941 | BS73: 0.2695035461 | BT73: 0.252293578 | BU73: 0.2282878412 | BV73: 0.2553191489 | BW73: 0.2944038929 | BX73: 0.2432432432 | BZ73: PASCO | CA73: 0.2282352941 | CB73: 0.3411016949
BH74: PIURA | BI74: 0.2046799354 | BL74: PIURA | BM74: 0.2568710359 | BN74: 0.242962963 | BO74: 0.2317965024 | BP74: 0.2281967213 | BQ74: 0.2089407191 | BR74: 0.204431737 | BS74: 0.1803948264 | BT74: 0.2026980284 | BU74: 0.1737860533 | BV74: 0.1652957305 | BW74: 0.1651299246 | BX74: 0.1771501926 | BZ74: PIURA | CA74: 0.1651299246 | CB74: 0.2568710359
BH75: PUNO | BI75: 0.1103005433 | BL75: PUNO | BM75: 0.1338829996 | BN75: 0.1326212728 | BO75: 0.1280262618 | BP75: 0.118491921 | BQ75: 0.09042076992 | BR75: 0.1038602941 | BS75: 0.09891598916 | BT75: 0.111163448 | BU75: 0.1007932804 | BV75: 0.09209257473 | BW75: 0.104801239 | BX75: 0.09954058193 | BZ75: PUNO | CA75: 0.09042076992 | CB75: 0.1338829996
BH76: SAN MARTIN | BI76: 0.1922207408 | BL76: SAN MARTIN | BM76: 0.2196349906 | BN76: 0.2140825036 | BO76: 0.2194513716 | BP76: 0.2046357616 | BQ76: 0.1918088737 | BR76: 0.1940836941 | BS76: 0.1774768354 | BT76: 0.1806069578 | BU76: 0.1743323442 | BV76: 0.1656184486 | BW76: 0.1720588235 | BX76: 0.1831187411 | BZ76: SAN MARTIN | CA76: 0.1656184486 | CB76: 0.2196349906
BH77: TACNA | BI77: 0.2050105857 | BL77: TACNA | BM77: 0.2446043165 | BN77: 0.1968503937 | BO77: 0.247148289 | BP77: 0.2371541502 | BQ77: 0.1673640167 | BR77: 0.2252252252 | BS77: 0.1704035874 | BT77: 0.1772151899 | BU77: 0.2 | BV77: 0.1751152074 | BW77: 0.1904761905 | BX77: 0.2105263158 | BZ77: TACNA | CA77: 0.1673640167 | CB77: 0.247148289
BH78: TUMBES | BI78: 0.3042569862 | BL78: TUMBES | BM78: 0.2664576803 | BN78: 0.3461538462 | BO78: 0.3161094225 | BP78: 0.3460410557 | BQ78: 0.3081081081 | BR78: 0.3196480938 | BS78: 0.2630057803 | BT78: 0.2653061224 | BU78: 0.283625731 | BV78: 0.3181818182 | BW78: 0.3164556962 | BX78: 0.3117870722 | BZ78: TUMBES | CA78: 0.2630057803 | CB78: 0.3461538462
BH79: UCAYALI | BI79: 0.2748027354 | BL79: UCAYALI | BM79: 0.2585530006 | BN79: 0.2552356021 | BO79: 0.2562929062 | BP79: 0.2552795031 | BQ79: 0.2732273839 | BR79: 0.3090668432 | BS79: 0.2546201232 | BT79: 0.2837060703 | BU79: 0.2782051282 | BV79: 0.2742040286 | BW79: 0.3074901445 | BX79: 0.2973497091 | BZ79: UCAYALI | CA79: 0.2546201232 | CB79: 0.3090668432
BH80: NACIONAL | BI80: =BI39 -> 0.2350341982 | BL80: NACIONAL | BM80: =IFERROR(GETPIVOTDATA("Ind",$BL$12,"Mes",BM$50),"-") -> 0.2631529544 | BN80: =IFERROR(GETPIVOTDATA("Ind",$BL$12,"Mes",BN$50),"-") -> 0.2589145254 | BO80: 0.2548922292 | BP80: 0.2535421699 | BQ80: 0.244074359 | BR80: 0.2270691437 | BS80: 0.2262481129 | BT80: 0.2230406444 | BU80: 0.2142702586 | BV80: 0.2111343382 | BW80: 0.2166454524 | BX80: 0.215349695 | BZ80: NACIONAL | CA80: 0.2111343382 | CB80: 0.2631529544

Sheet DL_1153_2025_CG04
A1: =+DL1153_2025!C10 -> Ficha 04:Porcentaje de recién nacidos que reciben vacunas BCG, HvB, controles CRED y tamizaje neonatal metabólico. | BN1: 1 | DS1: 1
A2: Periodo de Evaluación: | B2: =+DL1153_2025!B42 -> Diciembre - 2025
I4: seguro | J4: MINSA
A5: seguro | B5: MINSA | I5: diresa | J5: (Todas)
A6: mes | B6: (Todas) | I6: provincia | J6: (Todas)
A7: año | B7: (Todas) | I7: distrito | J7: (Todas)
A8: DIRESA/DIRIS | B8: Provincia | C8: Distrito | D8: Denominador: N° de recién nacidos de 28 días de vida, del departamento en el mes de medición, registrados en el padrón nominal (DNI o CNV en línea) y CNV en línea, con tipo de seguro SIS. Excluyendo los recién nacidos con bajo peso al nacer (menor de 2500 gramos) y/o prematuros (menor de 37 SG), registrados en CNV. | E8: Numerador: Niñas/niños recién nacidos del denominador, que reciben vacunas BCG y HvB, 04 Controles de CRED y tamizaje neonatal metabólico (toma de muestra), registrados en HIS. | F8: Indicador: Porcentaje de recién nacidos que reciben vacunas BCG, HvB, controles CRED y tamizaje neonatal metabólico. | I8: AÑO | J8: MES | K8: Denominador: N° de recién nacidos de 28 días de vida, del departamento en el mes de medición, registrados en el padrón nominal (DNI o CNV en línea) y CNV en línea, con tipo de seguro SIS. Excluyendo los recién nacidos con bajo peso al nacer (menor de 2500 gramos) y/o prematuros (menor de 37 SG), registrados en CNV. | L8: Numerador: Niñas/niños recién nacidos del denominador, que reciben vacunas BCG y HvB, 04 Controles de CRED y tamizaje neonatal metabólico (toma de muestra), registrados en HIS. | M8: Indicador: Porcentaje de recién nacidos que reciben vacunas BCG, HvB, controles CRED y tamizaje neonatal metabólico.
A9: diresa | B9: provincia | C9: distrito | D9: denominador | E9: numerador | F9: Suma de Ind | I9: año | J9: mes | K9: Suma de denominador2 | L9: Suma de numerador2 | M9: Suma de Ind
A10: 01 AMAZONAS | D10: 6200 | E10: 2983 | F10: 0.4811290323 | I10: 2025 | J10: 1 | K10: 23256 | L10: 9855 | M10: 0.4237616099
A11: 02 ANCASH | D11: 11313 | E11: 7018 | F11: 0.6203482719 | I11: 2025 | J11: 2 | K11: 22274 | L11: 12163 | M11: 0.546062674
A12: 03 APURIMAC | D12: 4530 | E12: 3840 | F12: 0.8476821192 | I12: 2025 | J12: 3 | K12: 25549 | L12: 14600 | M12: 0.5714509374
A13: 04 AREQUIPA | D13: 8822 | E13: 3599 | F13: 0.4079573793 | I13: 2025 | J13: 4 | K13: 25508 | L13: 14045 | M13: 0.5506115728 | BO13: seguro | BP13: MINSA | BS13: seguro | BT13: MINSA
A14: 05 AYACUCHO | D14: 6354 | E14: 5482 | F14: 0.8627636135 | I14: 2025 | J14: 5 | K14: 25755 | L14: 13727 | M14: 0.5329838866 | BO14: año | BP14: (Todas) | BS14: año | BT14: (Todas)
A15: 06 CAJAMARCA | D15: 17402 | E15: 10718 | F15: 0.6159062177 | I15: 2025 | J15: 6 | K15: 24745 | L15: 13836 | M15: 0.5591432613 | CL15: seguro | CM15: MINSA
A16: 07 CALLAO | D16: 6668 | E16: 3863 | F16: 0.5793341332 | I16: 2025 | J16: 7 | K16: 24669 | L16: 13692 | M16: 0.5550285784 | BO16: diresa | BP16: Suma de IND | BS16: Suma de IND | BT16: mes | CL16: año | CM16: (Todas)
A17: 08 CUSCO | D17: 13301 | E17: 9531 | F17: 0.7165626645 | I17: 2025 | J17: 8 | K17: 24237 | L17: 13201 | M17: 0.5446631184 | BO17: AMAZONAS | BP17: 0.4811290323 | BS17: diresa | BT17: 1 | BU17: 2 | BV17: 3 | BW17: 4 | BX17: 5 | BY17: 6 | BZ17: 7 | CA17: 8 | CB17: 9 | CC17: 10 | CD17: 11 | CE17: 12
A18: 09 HUANCAVELICA | D18: 3746 | E18: 3065 | F18: 0.8182060865 | I18: 2025 | J18: 9 | K18: 23406 | L18: 12779 | M18: 0.5459711185 | BO18: ANCASH | BP18: 0.6203482719 | BS18: AMAZONAS | BT18: 0.3185185185 | BU18: 0.4672897196 | BV18: 0.4855595668 | BW18: 0.4919786096 | BX18: 0.5144804089 | BY18: 0.4860335196 | BZ18: 0.4753199269 | CA18: 0.4940239044 | CB18: 0.5274725275 | CC18: 0.5019379845 | CD18: 0.4930875576 | CE18: 0.537037037 | CL18: Suma de IND | CM18: diresa
A19: 10 HUANUCO | D19: 9856 | E19: 7727 | F19: 0.7839894481 | I19: 2025 | J19: 10 | K19: 25609 | L19: 13963 | M19: 0.5452380023 | BO19: APURIMAC | BP19: 0.8476821192 | BS19: ANCASH | BT19: 0.5 | BU19: 0.6508108108 | BV19: 0.6361809045 | BW19: 0.6666666667 | BX19: 0.622406639 | BY19: 0.6544715447 | BZ19: 0.6392742796 | CA19: 0.6422121896 | CB19: 0.606223176 | CC19: 0.6228686058 | CD19: 0.6120996441 | CE19: 0.5797579758 | CL19: mes | CM19: AMAZONAS | CN19: ANCASH | CO19: APURIMAC | CP19: AREQUIPA | CQ19: AYACUCHO | CR19: CAJAMARCA | CS19: CALLAO | CT19: CUSCO | CU19: HUANCAVELICA | CV19: HUANUCO | CW19: ICA | CX19: JUNIN | CY19: LA LIBERTAD | CZ19: LAMBAYEQUE | DA19: LIMA DIRIS CENTRO | DB19: LIMA DIRIS ESTE | DC19: LIMA DIRIS NORTE | DD19: LIMA DIRIS SUR | DE19: LIMA PROVINCIAS | DF19: LORETO | DG19: MADRE DE DIOS | DH19: MOQUEGUA | DI19: PASCO | DJ19: PIURA | DK19: PUNO | DL19: SAN MARTIN | DM19: TACNA | DN19: TUMBES | DO19: UCAYALI | DP19: Total general
A20: 11 ICA | D20: 8719 | E20: 6085 | F20: 0.6979011355 | I20: 2025 | J20: 11 | K20: 23025 | L20: 12034 | M20: 0.5226492942 | BO20: AREQUIPA | BP20: 0.4079573793 | BS20: APURIMAC | BT20: 0.8258258258 | BU20: 0.8753462604 | BV20: 0.8759305211 | BW20: 0.8839050132 | BX20: 0.8746928747 | BY20: 0.8467532468 | BZ20: 0.8739495798 | CA20: 0.8381962865 | CB20: 0.8194070081 | CC20: 0.8329048843 | CD20: 0.8247978437 | CE20: 0.798488665 | CL20: Enero | CM20: 0.3185185185 | CN20: 0.5 | CO20: 0.8258258258 | CP20: 0.2209944751 | CQ20: 0.8242990654 | CR20: 0.4879393522 | CS20: 0.4917431193 | CT20: 0.6325301205 | CU20: 0.7870036101 | CV20: 0.6455399061 | CW20: 0.5847328244 | CX20: 0.7318141981 | CY20: 0.2945945946 | CZ20: 0.3036238981 | DA20: 0.07818181818 | DB20: 0.1428571429 | DC20: 0.1221910112 | DD20: 0.2275179856 | DE20: 0.6809116809 | DF20: 0.2193913659 | DG20: 0.6545454545 | DH20: 0.7375 | DI20: 0.6995515695 | DJ20: 0.46 | DK20: 0.4662721893 | DL20: 0.4187643021 | DM20: 0.7219251337 | DN20: 0.8511904762 | DO20: 0.4467532468 | DP20: 0.4237616099
A21: 12 JUNIN | D21: 13918 | E21: 10505 | F21: 0.7547779853 | I21: 2025 | J21: 12 | K21: 23689 | L21: 11895 | M21: 0.5021317911 | BO21: AYACUCHO | BP21: 0.8627636135 | BS21: AREQUIPA | BT21: 0.2209944751 | BU21: 0.3394777266 | BV21: 0.4047936085 | BW21: 0.424744898 | BX21: 0.3853333333 | BY21: 0.4817927171 | BZ21: 0.4474885845 | CA21: 0.3989501312 | CB21: 0.4548022599 | CC21: 0.4969173859 | CD21: 0.4600811908 | CE21: 0.3696498054 | CL21: Febrero | CM21: 0.4672897196 | CN21: 0.6508108108 | CO21: 0.8753462604 | CP21: 0.3394777266 | CQ21: 0.8952380952 | CR21: 0.6146718147 | CS21: 0.5928030303 | CT21: 0.7008712488 | CU21: 0.8303886926 | CV21: 0.7277486911 | CW21: 0.712749616 | CX21: 0.7668246445 | CY21: 0.4204625088 | CZ21: 0.5652631579 | DA21: 0.1989100817 | DB21: 0.2731767614 | DC21: 0.1721902017 | DD21: 0.4098671727 | DE21: 0.740203193 | DF21: 0.4971977582 | DG21: 0.7866108787 | DH21: 0.6888888889 | DI21: 0.7333333333 | DJ21: 0.5664206642 | DK21: 0.5393873085 | DL21: 0.5112426036 | DM21: 0.8235294118 | DN21: 0.9329608939 | DO21: 0.6427566807 | DP21: 0.546062674
A22: 13 LA LIBERTAD | D22: 18769 | E22: 8703 | F22: 0.4636901273 | I22: Total general | K22: 291722 | L22: 155790 | M22: 0.5340358286 | BO22: CAJAMARCA | BP22: 0.6159062177 | BS22: AYACUCHO | BT22: 0.8242990654 | BU22: 0.8952380952 | BV22: 0.8582089552 | BW22: 0.8643122677 | BX22: 0.8718411552 | BY22: 0.8757062147 | BZ22: 0.8835489834 | CA22: 0.8851851852 | CB22: 0.8747514911 | CC22: 0.8641975309 | CD22: 0.8403846154 | CE22: 0.8081896552 | CL22: Marzo | CM22: 0.4855595668 | CN22: 0.6361809045 | CO22: 0.8759305211 | CP22: 0.4047936085 | CQ22: 0.8582089552 | CR22: 0.6832425068 | CS22: 0.6116838488 | CT22: 0.7466442953 | CU22: 0.8694362018 | CV22: 0.8199513382 | CW22: 0.7097186701 | CX22: 0.7606382979 | CY22: 0.4894117647 | CZ22: 0.5791814947 | DA22: 0.2096273292 | DB22: 0.2931726908 | DC22: 0.2167664671 | DD22: 0.4317284925 | DE22: 0.791831357 | DF22: 0.476346912 | DG22: 0.7434944238 | DH22: 0.8235294118 | DI22: 0.8082191781 | DJ22: 0.6041775457 | DK22: 0.5733041575 | DL22: 0.5805439331 | DM22: 0.7990196078 | DN22: 0.9194915254 | DO22: 0.6934731935 | DP22: 0.5714509374
A23: 14 LAMBAYEQUE | D23: 12966 | E23: 6670 | F23: 0.5144223353 | BO23: CALLAO | BP23: 0.5793341332 | BS23: CAJAMARCA | BT23: 0.4879393522 | BU23: 0.6146718147 | BV23: 0.6832425068 | BW23: 0.6595607235 | BX23: 0.6349834983 | BY23: 0.6302864939 | BZ23: 0.6172680412 | CA23: 0.6033222591 | CB23: 0.6133909287 | CC23: 0.631754503 | CD23: 0.6190114068 | CE23: 0.5897069335 | CL23: Abril | CM23: 0.4919786096 | CN23: 0.6666666667 | CO23: 0.8839050132 | CP23: 0.424744898 | CQ23: 0.8643122677 | CR23: 0.6595607235 | CS23: 0.6 | CT23: 0.7357859532 | CU23: 0.8343949045 | CV23: 0.8309859155 | CW23: 0.7337349398 | CX23: 0.7276669558 | CY23: 0.4543028686 | CZ23: 0.5655813953 | DA23: 0.1400809717 | DB23: 0.2688284519 | DC23: 0.1452550032 | DD23: 0.4033680834 | DE23: 0.6952506596 | DF23: 0.467364532 | DG23: 0.7067669173 | DH23: 0.7522123894 | DI23: 0.7603305785 | DJ23: 0.5857427717 | DK23: 0.5189003436 | DL23: 0.5442913386 | DM23: 0.8357487923 | DN23: 0.9507389163 | DO23: 0.6408296943 | DP23: 0.5506115728
A24: 15 LIMA DIRIS CENTRO | D24: 14048 | E24: 2992 | F24: 0.2129840547 | BO24: CUSCO | BP24: 0.7165626645 | BS24: CALLAO | BT24: 0.4917431193 | BU24: 0.5928030303 | BV24: 0.6116838488 | BW24: 0.6 | BX24: 0.5314465409 | BY24: 0.5950570342 | BZ24: 0.6174863388 | CA24: 0.5614973262 | CB24: 0.6015625 | CC24: 0.6350364964 | CD24: 0.5444839858 | CE24: 0.5756385069 | CL24: Mayo | CM24: 0.5144804089 | CN24: 0.622406639 | CO24: 0.8746928747 | CP24: 0.3853333333 | CQ24: 0.8718411552 | CR24: 0.6349834983 | CS24: 0.5314465409 | CT24: 0.727427598 | CU24: 0.7848484848 | CV24: 0.7919075145 | CW24: 0.675257732 | CX24: 0.7240829346 | CY24: 0.4677520351 | CZ24: 0.5399141631 | DA24: 0.136738056 | DB24: 0.2298969072 | DC24: 0.1307538359 | DD24: 0.380603097 | DE24: 0.7250361795 | DF24: 0.4689699296 | DG24: 0.8090277778 | DH24: 0.7946428571 | DI24: 0.7748917749 | DJ24: 0.5090270812 | DK24: 0.5026680896 | DL24: 0.4822966507 | DM24: 0.8 | DN24: 0.9147286822 | DO24: 0.6442516269 | DP24: 0.5329838866
A25: 15 LIMA DIRIS ESTE | D25: 10885 | E25: 2543 | F25: 0.2336242536 | BO25: HUANCAVELICA | BP25: 0.8182060865 | BS25: CUSCO | BT25: 0.6325301205 | BU25: 0.7008712488 | BV25: 0.7466442953 | BW25: 0.7357859532 | BX25: 0.727427598 | BY25: 0.7408105561 | BZ25: 0.7449908925 | CA25: 0.736337488 | CB25: 0.7278782112 | CC25: 0.7368873603 | CD25: 0.6872037915 | CE25: 0.6794035415 | CL25: Junio | CM25: 0.4860335196 | CN25: 0.6544715447 | CO25: 0.8467532468 | CP25: 0.4817927171 | CQ25: 0.8757062147 | CR25: 0.6302864939 | CS25: 0.5950570342 | CT25: 0.7408105561 | CU25: 0.8076923077 | CV25: 0.8045023697 | CW25: 0.6990424077 | CX25: 0.7789115646 | CY25: 0.5095907928 | CZ25: 0.5523465704 | DA25: 0.1657325861 | DB25: 0.2395833333 | DC25: 0.1615029664 | DD25: 0.4062244062 | DE25: 0.7676056338 | DF25: 0.5120521173 | DG25: 0.7868852459 | DH25: 0.8037383178 | DI25: 0.7699115044 | DJ25: 0.5625 | DK25: 0.5830388693 | DL25: 0.570545829 | DM25: 0.8066298343 | DN25: 0.9169811321 | DO25: 0.6153005464 | DP25: 0.5591432613
A26: 15 LIMA DIRIS NORTE | D26: 17787 | E26: 2905 | F26: 0.163321527 | BO26: HUANUCO | BP26: 0.7839894481 | BS26: HUANCAVELICA | BT26: 0.7870036101 | BU26: 0.8303886926 | BV26: 0.8694362018 | BW26: 0.8343949045 | BX26: 0.7848484848 | BY26: 0.8076923077 | BZ26: 0.8006329114 | CA26: 0.8407643312 | CB26: 0.8691588785 | CC26: 0.7964071856 | CD26: 0.7667844523 | CE26: 0.8215384615 | CL26: Julio | CM26: 0.4753199269 | CN26: 0.6392742796 | CO26: 0.8739495798 | CP26: 0.4474885845 | CQ26: 0.8835489834 | CR26: 0.6172680412 | CS26: 0.6174863388 | CT26: 0.7449908925 | CU26: 0.8006329114 | CV26: 0.803030303 | CW26: 0.7214076246 | CX26: 0.7668439716 | CY26: 0.5425342058 | CZ26: 0.5529315961 | DA26: 0.3123466885 | DB26: 0.2638436482 | DC26: 0.1608811749 | DD26: 0.4057971014 | DE26: 0.7907894737 | DF26: 0.4657142857 | DG26: 0.7551020408 | DH26: 0.7741935484 | DI26: 0.7028301887 | DJ26: 0.4801444043 | DK26: 0.57472661 | DL26: 0.4879832811 | DM26: 0.8509615385 | DN26: 0.904109589 | DO26: 0.6041666667 | DP26: 0.5550285784
A27: 15 LIMA DIRIS SUR | D27: 14099 | E27: 5101 | F27: 0.3617987091 | BO27: ICA | BP27: 0.6979011355 | BS27: HUANUCO | BT27: 0.6455399061 | BU27: 0.7277486911 | BV27: 0.8199513382 | BW27: 0.8309859155 | BX27: 0.7919075145 | BY27: 0.8045023697 | BZ27: 0.803030303 | CA27: 0.7949015064 | CB27: 0.8216145833 | CC27: 0.8157303371 | CD27: 0.7982673267 | CE27: 0.7558859975 | CL27: Agosto | CM27: 0.4940239044 | CN27: 0.6422121896 | CO27: 0.8381962865 | CP27: 0.3989501312 | CQ27: 0.8851851852 | CR27: 0.6033222591 | CS27: 0.5614973262 | CT27: 0.736337488 | CU27: 0.8407643312 | CV27: 0.7949015064 | CW27: 0.6626666667 | CX27: 0.7373572594 | CY27: 0.4827369743 | CZ27: 0.5496921724 | DA27: 0.2666105971 | DB27: 0.235095613 | DC27: 0.1763553233 | DD27: 0.3546666667 | DE27: 0.7592847318 | DF27: 0.4642588412 | DG27: 0.7115384615 | DH27: 0.7636363636 | DI27: 0.7142857143 | DJ27: 0.5201590006 | DK27: 0.5900692841 | DL27: 0.499477534 | DM27: 0.8522727273 | DN27: 0.9336099585 | DO27: 0.6082840237 | DP27: 0.5446631184
A28: 15 LIMA PROVINCIAS | D28: 8769 | E28: 6513 | F28: 0.7427300718 | BO28: JUNIN | BP28: 0.7547779853 | BS28: ICA | BT28: 0.5847328244 | BU28: 0.712749616 | BV28: 0.7097186701 | BW28: 0.7337349398 | BX28: 0.675257732 | BY28: 0.6990424077 | BZ28: 0.7214076246 | CA28: 0.6626666667 | CB28: 0.72 | CC28: 0.7700680272 | CD28: 0.7091172214 | CE28: 0.6657608696 | CL28: Setiembre | CM28: 0.5274725275 | CN28: 0.606223176 | CO28: 0.8194070081 | CP28: 0.4548022599 | CQ28: 0.8747514911 | CR28: 0.6133909287 | CS28: 0.6015625 | CT28: 0.7278782112 | CU28: 0.8691588785 | CV28: 0.8216145833 | CW28: 0.72 | CX28: 0.7536101083 | CY28: 0.4619388419 | CZ28: 0.5064935065 | DA28: 0.2659279778 | DB28: 0.2128603104 | DC28: 0.1576246334 | DD28: 0.3835740072 | DE28: 0.7963483146 | DF28: 0.4610992148 | DG28: 0.7587548638 | DH28: 0.738317757 | DI28: 0.6764705882 | DJ28: 0.4839650146 | DK28: 0.5731559855 | DL28: 0.509947644 | DM28: 0.8444444444 | DN28: 0.9322033898 | DO28: 0.615990991 | DP28: 0.5459711185
A29: 16 LORETO | D29: 17679 | E29: 7918 | F29: 0.4478760111 | BO29: LA LIBERTAD | BP29: 0.4636901273 | BS29: JUNIN | BT29: 0.7318141981 | BU29: 0.7668246445 | BV29: 0.7606382979 | BW29: 0.7276669558 | BX29: 0.7240829346 | BY29: 0.7789115646 | BZ29: 0.7668439716 | CA29: 0.7373572594 | CB29: 0.7536101083 | CC29: 0.7776816609 | CD29: 0.7515099223 | CE29: 0.7828200972 | CL29: Octubre | CM29: 0.5019379845 | CN29: 0.6228686058 | CO29: 0.8329048843 | CP29: 0.4969173859 | CQ29: 0.8641975309 | CR29: 0.631754503 | CS29: 0.6350364964 | CT29: 0.7368873603 | CU29: 0.7964071856 | CV29: 0.8157303371 | CW29: 0.7700680272 | CX29: 0.7776816609 | CY29: 0.4782349434 | CZ29: 0.4910394265 | DA29: 0.2677502139 | DB29: 0.2364016736 | DC29: 0.1616226658 | DD29: 0.3729641694 | DE29: 0.7421875 | DF29: 0.4694894147 | DG29: 0.7 | DH29: 0.7596153846 | DI29: 0.6774193548 | DJ29: 0.46875 | DK29: 0.5598377282 | DL29: 0.4810379242 | DM29: 0.8412698413 | DN29: 0.9337016575 | DO29: 0.616 | DP29: 0.5452380023
A30: 17 MADRE DE DIOS | D30: 2970 | E30: 2067 | F30: 0.695959596 | BO30: LAMBAYEQUE | BP30: 0.5144223353 | BS30: LA LIBERTAD | BT30: 0.2945945946 | BU30: 0.4204625088 | BV30: 0.4894117647 | BW30: 0.4543028686 | BX30: 0.4677520351 | BY30: 0.5095907928 | BZ30: 0.5425342058 | CA30: 0.4827369743 | CB30: 0.4619388419 | CC30: 0.4782349434 | CD30: 0.4484848485 | CE30: 0.4911706998 | CL30: Noviembre | CM30: 0.4930875576 | CN30: 0.6120996441 | CO30: 0.8247978437 | CP30: 0.4600811908 | CQ30: 0.8403846154 | CR30: 0.6190114068 | CS30: 0.5444839858 | CT30: 0.6872037915 | CU30: 0.7667844523 | CV30: 0.7982673267 | CW30: 0.7091172214 | CX30: 0.7515099223 | CY30: 0.4484848485 | CZ30: 0.5005213764 | DA30: 0.2418244406 | DB30: 0.1931540342 | DC30: 0.1779661017 | DD30: 0.297929793 | DE30: 0.7391910739 | DF30: 0.4160278746 | DG30: 0.5406504065 | DH30: 0.625 | DI30: 0.6794871795 | DJ30: 0.4907110826 | DK30: 0.5634146341 | DL30: 0.4948024948 | DM30: 0.8407643312 | DN30: 0.881443299 | DO30: 0.5731981982 | DP30: 0.5226492942
A31: 18 MOQUEGUA | D31: 1190 | E31: 896 | F31: 0.7529411765 | BO31: LIMA DIRIS CENTRO | BP31: 0.2129840547 | BS31: LAMBAYEQUE | BT31: 0.3036238981 | BU31: 0.5652631579 | BV31: 0.5791814947 | BW31: 0.5655813953 | BX31: 0.5399141631 | BY31: 0.5523465704 | BZ31: 0.5529315961 | CA31: 0.5496921724 | CB31: 0.5064935065 | CC31: 0.4910394265 | CD31: 0.5005213764 | CE31: 0.4427860697 | CL31: Diciembre | CM31: 0.537037037 | CN31: 0.5797579758 | CO31: 0.798488665 | CP31: 0.3696498054 | CQ31: 0.8081896552 | CR31: 0.5897069335 | CS31: 0.5756385069 | CT31: 0.6794035415 | CU31: 0.8215384615 | CV31: 0.7558859975 | CW31: 0.6657608696 | CX31: 0.7828200972 | CY31: 0.4911706998 | CZ31: 0.4427860697 | DA31: 0.2801932367 | DB31: 0.2030075188 | DC31: 0.1705370102 | DD31: 0.2471910112 | DE31: 0.6842783505 | DF31: 0.4481897628 | DG31: 0.3302752294 | DH31: 0.7282608696 | DI31: 0.4848484848 | DJ31: 0.4540750323 | DK31: 0.5406643757 | DL31: 0.3775894539 | DM31: 0.7777777778 | DN31: 0.7130044843 | DO31: 0.4668117519 | DP31: 0.5021317911
A32: 19 PASCO | D32: 2769 | E32: 1954 | F32: 0.7056699169 | BO32: LIMA DIRIS ESTE | BP32: 0.2336242536 | BS32: LIMA DIRIS CENTRO | BT32: 0.07818181818 | BU32: 0.1989100817 | BV32: 0.2096273292 | BW32: 0.1400809717 | BX32: 0.136738056 | BY32: 0.1657325861 | BZ32: 0.3123466885 | CA32: 0.2666105971 | CB32: 0.2659279778 | CC32: 0.2677502139 | CD32: 0.2418244406 | CE32: 0.2801932367
A33: 20 PIURA | D33: 21439 | E33: 11093 | F33: 0.5174215215 | BO33: LIMA DIRIS NORTE | BP33: 0.163321527 | BS33: LIMA DIRIS ESTE | BT33: 0.1428571429 | BU33: 0.2731767614 | BV33: 0.2931726908 | BW33: 0.2688284519 | BX33: 0.2298969072 | BY33: 0.2395833333 | BZ33: 0.2638436482 | CA33: 0.235095613 | CB33: 0.2128603104 | CC33: 0.2364016736 | CD33: 0.1931540342 | CE33: 0.2030075188
A34: 21 PUNO | D34: 10527 | E34: 5774 | F34: 0.5484943479 | BO34: LIMA DIRIS SUR | BP34: 0.3617987091 | BS34: LIMA DIRIS NORTE | BT34: 0.1221910112 | BU34: 0.1721902017 | BV34: 0.2167664671 | BW34: 0.1452550032 | BX34: 0.1307538359 | BY34: 0.1615029664 | BZ34: 0.1608811749 | CA34: 0.1763553233 | CB34: 0.1576246334 | CC34: 0.1616226658 | CD34: 0.1779661017 | CE34: 0.1705370102
A35: 22 SAN MARTIN | D35: 11602 | E35: 5755 | F35: 0.4960351664 | BO35: LIMA REGION | BP35: 0.7427300718 | BS35: LIMA DIRIS SUR | BT35: 0.2275179856 | BU35: 0.4098671727 | BV35: 0.4317284925 | BW35: 0.4033680834 | BX35: 0.380603097 | BY35: 0.4062244062 | BZ35: 0.4057971014 | CA35: 0.3546666667 | CB35: 0.3835740072 | CC35: 0.3729641694 | CD35: 0.297929793 | CE35: 0.2471910112 | CL35: MES
A36: 23 TACNA | D36: 2295 | E36: 1872 | F36: 0.8156862745 | BO36: LORETO | BP36: 0.4478760111 | BS36: LIMA REGION | BT36: 0.6809116809 | BU36: 0.740203193 | BV36: 0.791831357 | BW36: 0.6952506596 | BX36: 0.7250361795 | BY36: 0.7676056338 | BZ36: 0.7907894737 | CA36: 0.7592847318 | CB36: 0.7963483146 | CC36: 0.7421875 | CD36: 0.7391910739 | CE36: 0.6842783505 | CM36: =+CM19 -> AMAZONAS | CN36: =+CN19 -> ANCASH | CO36: APURIMAC | CP36: AREQUIPA | CQ36: AYACUCHO | CR36: CAJAMARCA | CS36: CALLAO | CT36: CUSCO | CU36: HUANCAVELICA | CV36: HUANUCO | CW36: ICA | CX36: JUNIN | CY36: LA LIBERTAD | CZ36: LAMBAYEQUE | DA36: LIMA DIRIS CENTRO | DB36: LIMA DIRIS ESTE | DC36: LIMA DIRIS NORTE | DD36: LIMA DIRIS SUR | DE36: LIMA PROVINCIAS | DF36: LORETO | DG36: MADRE DE DIOS | DH36: MOQUEGUA | DI36: PASCO | DJ36: PIURA | DK36: PUNO | DL36: SAN MARTIN | DM36: TACNA | DN36: TUMBES | DO36: UCAYALI | DP36: NACIONAL
A37: 24 TUMBES | D37: 2603 | E37: 2341 | F37: 0.8993469074 | BO37: MADRE DE DIOS | BP37: 0.695959596 | BS37: LORETO | BT37: 0.2193913659 | BU37: 0.4971977582 | BV37: 0.476346912 | BW37: 0.467364532 | BX37: 0.4689699296 | BY37: 0.5120521173 | BZ37: 0.4657142857 | CA37: 0.4642588412 | CB37: 0.4610992148 | CC37: 0.4694894147 | CD37: 0.4160278746 | CE37: 0.4481897628 | CL37: Enero | CM37: =+IFERROR(GETPIVOTDATA("Ind",$CL$18,"mes",$CL37,"diresa",CM$36),"-") -> 0.3185185185 | CN37: =+IFERROR(GETPIVOTDATA("Ind",$CL$18,"mes",$CL37,"diresa",CN$36),"-") -> 0.5 | CO37: 0.8258258258 | CP37: 0.2209944751 | CQ37: 0.8242990654 | CR37: 0.4879393522 | CS37: 0.4917431193 | CT37: 0.6325301205 | CU37: 0.7870036101 | CV37: 0.6455399061 | CW37: 0.5847328244 | CX37: 0.7318141981 | CY37: 0.2945945946 | CZ37: 0.3036238981 | DA37: 0.07818181818 | DB37: 0.1428571429 | DC37: 0.1221910112 | DD37: =+IFERROR(GETPIVOTDATA("Ind",$CL$18,"mes",$CL37,"diresa",DD$36),"-") -> 0.2275179856 | DE37: 0.6809116809 | DF37: 0.2193913659 | DG37: 0.6545454545 | DH37: 0.7375 | DI37: 0.6995515695 | DJ37: 0.46 | DK37: 0.4662721893 | DL37: 0.4187643021 | DM37: 0.7219251337 | DN37: 0.8511904762 | DO37: 0.4467532468 | DP37: =GETPIVOTDATA("Ind",$CL$18,"mes",$CL37) -> 0.4237616099
A38: 25 UCAYALI | D38: 10496 | E38: 6277 | F38: 0.5980373476 | BO38: MOQUEGUA | BP38: 0.7529411765 | BS38: MADRE DE DIOS | BT38: 0.6545454545 | BU38: 0.7866108787 | BV38: 0.7434944238 | BW38: 0.7067669173 | BX38: 0.8090277778 | BY38: 0.7868852459 | BZ38: 0.7551020408 | CA38: 0.7115384615 | CB38: 0.7587548638 | CC38: 0.7 | CD38: 0.5406504065 | CE38: 0.3302752294 | CL38: Febrero | CM38: =+IFERROR(GETPIVOTDATA("Ind",$CL$18,"mes",$CL38,"diresa",CM$36),"-") -> 0.4672897196 | CN38: 0.6508108108 | CO38: 0.8753462604 | CP38: 0.3394777266 | CQ38: 0.8952380952 | CR38: 0.6146718147 | CS38: 0.5928030303 | CT38: 0.7008712488 | CU38: 0.8303886926 | CV38: 0.7277486911 | CW38: 0.712749616 | CX38: 0.7668246445 | CY38: 0.4204625088 | CZ38: 0.5652631579 | DA38: 0.1989100817 | DB38: 0.2731767614 | DC38: 0.1721902017 | DD38: 0.4098671727 | DE38: 0.740203193 | DF38: 0.4971977582 | DG38: 0.7866108787 | DH38: 0.6888888889 | DI38: 0.7333333333 | DJ38: 0.5664206642 | DK38: 0.5393873085 | DL38: 0.5112426036 | DM38: 0.8235294118 | DN38: 0.9329608939 | DO38: 0.6427566807 | DP38: =+IFERROR(GETPIVOTDATA("ind",$CL$18,"mes",$CL38),"-") -> 0.546062674
A39: Total general | D39: 291722 | E39: 155790 | F39: 0.5340358286 | BO39: PASCO | BP39: 0.7056699169 | BS39: MOQUEGUA | BT39: 0.7375 | BU39: 0.6888888889 | BV39: 0.8235294118 | BW39: 0.7522123894 | BX39: 0.7946428571 | BY39: 0.8037383178 | BZ39: 0.7741935484 | CA39: 0.7636363636 | CB39: 0.738317757 | CC39: 0.7596153846 | CD39: 0.625 | CE39: 0.7282608696 | CL39: Marzo | CM39: 0.4855595668 | CN39: 0.6361809045 | CO39: 0.8759305211 | CP39: 0.4047936085 | CQ39: 0.8582089552 | CR39: 0.6832425068 | CS39: 0.6116838488 | CT39: 0.7466442953 | CU39: 0.8694362018 | CV39: 0.8199513382 | CW39: 0.7097186701 | CX39: 0.7606382979 | CY39: 0.4894117647 | CZ39: 0.5791814947 | DA39: 0.2096273292 | DB39: 0.2931726908 | DC39: 0.2167664671 | DD39: 0.4317284925 | DE39: 0.791831357 | DF39: 0.476346912 | DG39: 0.7434944238 | DH39: 0.8235294118 | DI39: 0.8082191781 | DJ39: 0.6041775457 | DK39: 0.5733041575 | DL39: 0.5805439331 | DM39: 0.7990196078 | DN39: 0.9194915254 | DO39: 0.6934731935 | DP39: 0.5714509374
BO40: PIURA | BP40: 0.5174215215 | BS40: PASCO | BT40: 0.6995515695 | BU40: 0.7333333333 | BV40: 0.8082191781 | BW40: 0.7603305785 | BX40: 0.7748917749 | BY40: 0.7699115044 | BZ40: 0.7028301887 | CA40: 0.7142857143 | CB40: 0.6764705882 | CC40: 0.6774193548 | CD40: 0.6794871795 | CE40: 0.4848484848 | CL40: Abril | CM40: 0.4919786096 | CN40: 0.6666666667 | CO40: 0.8839050132 | CP40: 0.424744898 | CQ40: 0.8643122677 | CR40: 0.6595607235 | CS40: 0.6 | CT40: 0.7357859532 | CU40: 0.8343949045 | CV40: 0.8309859155 | CW40: 0.7337349398 | CX40: 0.7276669558 | CY40: 0.4543028686 | CZ40: 0.5655813953 | DA40: 0.1400809717 | DB40: 0.2688284519 | DC40: 0.1452550032 | DD40: 0.4033680834 | DE40: 0.6952506596 | DF40: 0.467364532 | DG40: 0.7067669173 | DH40: 0.7522123894 | DI40: 0.7603305785 | DJ40: 0.5857427717 | DK40: 0.5189003436 | DL40: 0.5442913386 | DM40: 0.8357487923 | DN40: 0.9507389163 | DO40: 0.6408296943 | DP40: 0.5506115728
BO41: PUNO | BP41: 0.5484943479 | BS41: PIURA | BT41: 0.46 | BU41: 0.5664206642 | BV41: 0.6041775457 | BW41: 0.5857427717 | BX41: 0.5090270812 | BY41: 0.5625 | BZ41: 0.4801444043 | CA41: 0.5201590006 | CB41: 0.4839650146 | CC41: 0.46875 | CD41: 0.4907110826 | CE41: 0.4540750323 | CL41: Mayo | CM41: 0.5144804089 | CN41: 0.622406639 | CO41: 0.8746928747 | CP41: 0.3853333333 | CQ41: 0.8718411552 | CR41: 0.6349834983 | CS41: 0.5314465409 | CT41: 0.727427598 | CU41: 0.7848484848 | CV41: 0.7919075145 | CW41: 0.675257732 | CX41: 0.7240829346 | CY41: 0.4677520351 | CZ41: 0.5399141631 | DA41: 0.136738056 | DB41: 0.2298969072 | DC41: 0.1307538359 | DD41: 0.380603097 | DE41: 0.7250361795 | DF41: 0.4689699296 | DG41: 0.8090277778 | DH41: 0.7946428571 | DI41: 0.7748917749 | DJ41: 0.5090270812 | DK41: 0.5026680896 | DL41: 0.4822966507 | DM41: 0.8 | DN41: 0.9147286822 | DO41: 0.6442516269 | DP41: 0.5329838866
BO42: SAN MARTIN | BP42: 0.4960351664 | BS42: PUNO | BT42: 0.4662721893 | BU42: 0.5393873085 | BV42: 0.5733041575 | BW42: 0.5189003436 | BX42: 0.5026680896 | BY42: 0.5830388693 | BZ42: 0.57472661 | CA42: 0.5900692841 | CB42: 0.5731559855 | CC42: 0.5598377282 | CD42: 0.5634146341 | CE42: 0.5406643757 | CL42: Junio | CM42: 0.4860335196 | CN42: 0.6544715447 | CO42: 0.8467532468 | CP42: 0.4817927171 | CQ42: 0.8757062147 | CR42: 0.6302864939 | CS42: 0.5950570342 | CT42: 0.7408105561 | CU42: 0.8076923077 | CV42: 0.8045023697 | CW42: 0.6990424077 | CX42: 0.7789115646 | CY42: 0.5095907928 | CZ42: 0.5523465704 | DA42: 0.1657325861 | DB42: 0.2395833333 | DC42: 0.1615029664 | DD42: 0.4062244062 | DE42: 0.7676056338 | DF42: 0.5120521173 | DG42: 0.7868852459 | DH42: 0.8037383178 | DI42: 0.7699115044 | DJ42: 0.5625 | DK42: 0.5830388693 | DL42: 0.570545829 | DM42: 0.8066298343 | DN42: 0.9169811321 | DO42: 0.6153005464 | DP42: 0.5591432613
BO43: TACNA | BP43: 0.8156862745 | BS43: SAN MARTIN | BT43: 0.4187643021 | BU43: 0.5112426036 | BV43: 0.5805439331 | BW43: 0.5442913386 | BX43: 0.4822966507 | BY43: 0.570545829 | BZ43: 0.4879832811 | CA43: 0.499477534 | CB43: 0.509947644 | CC43: 0.4810379242 | CD43: 0.4948024948 | CE43: 0.3775894539 | CL43: Julio | CM43: 0.4753199269 | CN43: 0.6392742796 | CO43: 0.8739495798 | CP43: 0.4474885845 | CQ43: 0.8835489834 | CR43: 0.6172680412 | CS43: 0.6174863388 | CT43: 0.7449908925 | CU43: 0.8006329114 | CV43: 0.803030303 | CW43: 0.7214076246 | CX43: 0.7668439716 | CY43: 0.5425342058 | CZ43: 0.5529315961 | DA43: 0.3123466885 | DB43: 0.2638436482 | DC43: 0.1608811749 | DD43: 0.4057971014 | DE43: 0.7907894737 | DF43: 0.4657142857 | DG43: 0.7551020408 | DH43: 0.7741935484 | DI43: 0.7028301887 | DJ43: 0.4801444043 | DK43: 0.57472661 | DL43: 0.4879832811 | DM43: 0.8509615385 | DN43: 0.904109589 | DO43: 0.6041666667 | DP43: 0.5550285784
BO44: TUMBES | BP44: 0.8993469074 | BS44: TACNA | BT44: 0.7219251337 | BU44: 0.8235294118 | BV44: 0.7990196078 | BW44: 0.8357487923 | BX44: 0.8 | BY44: 0.8066298343 | BZ44: 0.8509615385 | CA44: 0.8522727273 | CB44: 0.8444444444 | CC44: 0.8412698413 | CD44: 0.8407643312 | CE44: 0.7777777778 | CL44: Agosto | CM44: 0.4940239044 | CN44: 0.6422121896 | CO44: 0.8381962865 | CP44: 0.3989501312 | CQ44: 0.8851851852 | CR44: 0.6033222591 | CS44: 0.5614973262 | CT44: 0.736337488 | CU44: 0.8407643312 | CV44: 0.7949015064 | CW44: 0.6626666667 | CX44: 0.7373572594 | CY44: 0.4827369743 | CZ44: 0.5496921724 | DA44: 0.2666105971 | DB44: 0.235095613 | DC44: 0.1763553233 | DD44: 0.3546666667 | DE44: 0.7592847318 | DF44: 0.4642588412 | DG44: 0.7115384615 | DH44: 0.7636363636 | DI44: 0.7142857143 | DJ44: 0.5201590006 | DK44: 0.5900692841 | DL44: 0.499477534 | DM44: 0.8522727273 | DN44: 0.9336099585 | DO44: 0.6082840237 | DP44: 0.5446631184
BO45: UCAYALI | BP45: 0.5980373476 | BS45: TUMBES | BT45: 0.8511904762 | BU45: 0.9329608939 | BV45: 0.9194915254 | BW45: 0.9507389163 | BX45: 0.9147286822 | BY45: 0.9169811321 | BZ45: 0.904109589 | CA45: 0.9336099585 | CB45: 0.9322033898 | CC45: 0.9337016575 | CD45: 0.881443299 | CE45: 0.7130044843 | CL45: Setiembre | CM45: 0.5274725275 | CN45: 0.606223176 | CO45: 0.8194070081 | CP45: 0.4548022599 | CQ45: 0.8747514911 | CR45: 0.6133909287 | CS45: 0.6015625 | CT45: 0.7278782112 | CU45: 0.8691588785 | CV45: 0.8216145833 | CW45: 0.72 | CX45: 0.7536101083 | CY45: 0.4619388419 | CZ45: 0.5064935065 | DA45: 0.2659279778 | DB45: 0.2128603104 | DC45: 0.1576246334 | DD45: 0.3835740072 | DE45: 0.7963483146 | DF45: 0.4610992148 | DG45: 0.7587548638 | DH45: 0.738317757 | DI45: 0.6764705882 | DJ45: 0.4839650146 | DK45: 0.5731559855 | DL45: 0.509947644 | DM45: 0.8444444444 | DN45: 0.9322033898 | DO45: 0.615990991 | DP45: 0.5459711185
BO46: Total general | BP46: 0.5340358286 | BS46: UCAYALI | BT46: 0.4467532468 | BU46: 0.6427566807 | BV46: 0.6934731935 | BW46: 0.6408296943 | BX46: 0.6442516269 | BY46: 0.6153005464 | BZ46: 0.6041666667 | CA46: 0.6082840237 | CB46: 0.615990991 | CC46: 0.616 | CD46: 0.5731981982 | CE46: 0.4668117519 | CL46: Octubre | CM46: 0.5019379845 | CN46: 0.6228686058 | CO46: 0.8329048843 | CP46: 0.4969173859 | CQ46: 0.8641975309 | CR46: 0.631754503 | CS46: 0.6350364964 | CT46: 0.7368873603 | CU46: 0.7964071856 | CV46: 0.8157303371 | CW46: 0.7700680272 | CX46: 0.7776816609 | CY46: 0.4782349434 | CZ46: 0.4910394265 | DA46: 0.2677502139 | DB46: 0.2364016736 | DC46: 0.1616226658 | DD46: 0.3729641694 | DE46: 0.7421875 | DF46: 0.4694894147 | DG46: 0.7 | DH46: 0.7596153846 | DI46: 0.6774193548 | DJ46: 0.46875 | DK46: 0.5598377282 | DL46: 0.4810379242 | DM46: 0.8412698413 | DN46: 0.9337016575 | DO46: 0.616 | DP46: 0.5452380023
BS47: Total general | BT47: 0.4237616099 | BU47: 0.546062674 | BV47: 0.5714509374 | BW47: 0.5506115728 | BX47: 0.5329838866 | BY47: 0.5591432613 | BZ47: 0.5550285784 | CA47: 0.5446631184 | CB47: 0.5459711185 | CC47: 0.5452380023 | CD47: 0.5226492942 | CE47: 0.5021317911 | CL47: Noviembre | CM47: 0.4930875576 | CN47: 0.6120996441 | CO47: 0.8247978437 | CP47: 0.4600811908 | CQ47: 0.8403846154 | CR47: 0.6190114068 | CS47: 0.5444839858 | CT47: 0.6872037915 | CU47: 0.7667844523 | CV47: 0.7982673267 | CW47: 0.7091172214 | CX47: 0.7515099223 | CY47: 0.4484848485 | CZ47: 0.5005213764 | DA47: 0.2418244406 | DB47: 0.1931540342 | DC47: 0.1779661017 | DD47: 0.297929793 | DE47: 0.7391910739 | DF47: 0.4160278746 | DG47: 0.5406504065 | DH47: 0.625 | DI47: 0.6794871795 | DJ47: 0.4907110826 | DK47: 0.5634146341 | DL47: 0.4948024948 | DM47: 0.8407643312 | DN47: 0.881443299 | DO47: 0.5731981982 | DP47: 0.5226492942
CL48: Diciembre | CM48: 0.537037037 | CN48: 0.5797579758 | CO48: 0.798488665 | CP48: 0.3696498054 | CQ48: 0.8081896552 | CR48: 0.5897069335 | CS48: 0.5756385069 | CT48: 0.6794035415 | CU48: 0.8215384615 | CV48: 0.7558859975 | CW48: 0.6657608696 | CX48: 0.7828200972 | CY48: 0.4911706998 | CZ48: 0.4427860697 | DA48: 0.2801932367 | DB48: 0.2030075188 | DC48: 0.1705370102 | DD48: 0.2471910112 | DE48: 0.6842783505 | DF48: 0.4481897628 | DG48: 0.3302752294 | DH48: 0.7282608696 | DI48: 0.4848484848 | DJ48: 0.4540750323 | DK48: 0.5406643757 | DL48: 0.3775894539 | DM48: 0.7777777778 | DN48: 0.7130044843 | DO48: 0.4668117519 | DP48: 0.5021317911
BS50: valor
BT51: 1 | BU51: 2 | BV51: 3 | BW51: 4 | BX51: 5 | BY51: 6 | BZ51: 7 | CA51: 8 | CB51: 9 | CC51: 10 | CD51: 11 | CE51: 12 | CH51: MIN | CI51: MAX
BO52: AMAZONAS | BP52: =+IFERROR(GETPIVOTDATA("Ind",$BO$16,"diresa",$BO52),"-") -> 0.4811290323 | BS52: AMAZONAS | BT52: =+IFERROR(GETPIVOTDATA("Ind",$BS$16,"mes",BT$51,"diresa",$BS52),"-") -> 0.3185185185 | BU52: =+IFERROR(GETPIVOTDATA("Ind",$BS$16,"mes",BU$51,"diresa",$BS52),"-") -> 0.4672897196 | BV52: 0.4855595668 | BW52: 0.4919786096 | BX52: 0.5144804089 | BY52: 0.4860335196 | BZ52: 0.4753199269 | CA52: 0.4940239044 | CB52: 0.5274725275 | CC52: 0.5019379845 | CD52: 0.4930875576 | CE52: 0.537037037 | CG52: AMAZONAS | CH52: =+IF(BT52="-","-",MIN(BT52:CE52)) -> 0.3185185185 | CI52: =+IF(BT52="-","-",MAX(BT52:CE52)) -> 0.537037037
BO53: ANCASH | BP53: =+IFERROR(GETPIVOTDATA("Ind",$BO$16,"diresa",$BO53),"-") -> 0.6203482719 | BS53: ANCASH | BT53: =+IFERROR(GETPIVOTDATA("Ind",$BS$16,"mes",BT$51,"diresa",$BS53),"-") -> 0.5 | BU53: 0.6508108108 | BV53: 0.6361809045 | BW53: 0.6666666667 | BX53: 0.622406639 | BY53: 0.6544715447 | BZ53: 0.6392742796 | CA53: 0.6422121896 | CB53: 0.606223176 | CC53: 0.6228686058 | CD53: 0.6120996441 | CE53: 0.5797579758 | CG53: ANCASH | CH53: =+IF(BT53="-","-",MIN(BT53:CE53)) -> 0.5 | CI53: =+IF(BT53="-","-",MAX(BT53:CE53)) -> 0.6666666667
BO54: APURIMAC | BP54: =+IFERROR(GETPIVOTDATA("Ind",$BO$16,"diresa",$BO54),"-") -> 0.8476821192 | BS54: APURIMAC | BT54: 0.8258258258 | BU54: 0.8753462604 | BV54: 0.8759305211 | BW54: 0.8839050132 | BX54: 0.8746928747 | BY54: 0.8467532468 | BZ54: 0.8739495798 | CA54: 0.8381962865 | CB54: 0.8194070081 | CC54: 0.8329048843 | CD54: 0.8247978437 | CE54: 0.798488665 | CG54: APURIMAC | CH54: 0.798488665 | CI54: 0.8839050132
BO55: AREQUIPA | BP55: =+IFERROR(GETPIVOTDATA("Ind",$BO$16,"diresa",$BO55),"-") -> 0.4079573793 | BS55: AREQUIPA | BT55: 0.2209944751 | BU55: 0.3394777266 | BV55: 0.4047936085 | BW55: 0.424744898 | BX55: 0.3853333333 | BY55: 0.4817927171 | BZ55: 0.4474885845 | CA55: 0.3989501312 | CB55: 0.4548022599 | CC55: 0.4969173859 | CD55: 0.4600811908 | CE55: 0.3696498054 | CG55: AREQUIPA | CH55: 0.2209944751 | CI55: 0.4969173859
BO56: AYACUCHO | BP56: =+IFERROR(GETPIVOTDATA("Ind",$BO$16,"diresa",$BO56),"-") -> 0.8627636135 | BS56: AYACUCHO | BT56: 0.8242990654 | BU56: 0.8952380952 | BV56: 0.8582089552 | BW56: 0.8643122677 | BX56: 0.8718411552 | BY56: 0.8757062147 | BZ56: 0.8835489834 | CA56: 0.8851851852 | CB56: 0.8747514911 | CC56: 0.8641975309 | CD56: 0.8403846154 | CE56: 0.8081896552 | CG56: AYACUCHO | CH56: 0.8081896552 | CI56: 0.8952380952
BO57: CAJAMARCA | BP57: =+IFERROR(GETPIVOTDATA("Ind",$BO$16,"diresa",$BO57),"-") -> 0.6159062177 | BS57: CAJAMARCA | BT57: 0.4879393522 | BU57: 0.6146718147 | BV57: 0.6832425068 | BW57: 0.6595607235 | BX57: 0.6349834983 | BY57: 0.6302864939 | BZ57: 0.6172680412 | CA57: 0.6033222591 | CB57: 0.6133909287 | CC57: 0.631754503 | CD57: 0.6190114068 | CE57: 0.5897069335 | CG57: CAJAMARCA | CH57: 0.4879393522 | CI57: 0.6832425068
BO58: CALLAO | BP58: 0.5793341332 | BS58: CALLAO | BT58: 0.4917431193 | BU58: 0.5928030303 | BV58: 0.6116838488 | BW58: 0.6 | BX58: 0.5314465409 | BY58: 0.5950570342 | BZ58: 0.6174863388 | CA58: 0.5614973262 | CB58: 0.6015625 | CC58: 0.6350364964 | CD58: 0.5444839858 | CE58: 0.5756385069 | CG58: CALLAO | CH58: 0.4917431193 | CI58: 0.6350364964
BO59: CUSCO | BP59: 0.7165626645 | BS59: CUSCO | BT59: 0.6325301205 | BU59: 0.7008712488 | BV59: 0.7466442953 | BW59: 0.7357859532 | BX59: 0.727427598 | BY59: 0.7408105561 | BZ59: 0.7449908925 | CA59: 0.736337488 | CB59: 0.7278782112 | CC59: 0.7368873603 | CD59: 0.6872037915 | CE59: 0.6794035415 | CG59: CUSCO | CH59: 0.6325301205 | CI59: 0.7466442953
BO60: HUANCAVELICA | BP60: 0.8182060865 | BS60: HUANCAVELICA | BT60: 0.7870036101 | BU60: 0.8303886926 | BV60: 0.8694362018 | BW60: 0.8343949045 | BX60: 0.7848484848 | BY60: 0.8076923077 | BZ60: 0.8006329114 | CA60: 0.8407643312 | CB60: 0.8691588785 | CC60: 0.7964071856 | CD60: 0.7667844523 | CE60: 0.8215384615 | CG60: HUANCAVELICA | CH60: 0.7667844523 | CI60: 0.8694362018
BO61: HUANUCO | BP61: 0.7839894481 | BS61: HUANUCO | BT61: 0.6455399061 | BU61: 0.7277486911 | BV61: 0.8199513382 | BW61: 0.8309859155 | BX61: 0.7919075145 | BY61: 0.8045023697 | BZ61: 0.803030303 | CA61: 0.7949015064 | CB61: 0.8216145833 | CC61: 0.8157303371 | CD61: 0.7982673267 | CE61: 0.7558859975 | CG61: HUANUCO | CH61: 0.6455399061 | CI61: 0.8309859155
BO62: ICA | BP62: 0.6979011355 | BS62: ICA | BT62: 0.5847328244 | BU62: 0.712749616 | BV62: 0.7097186701 | BW62: 0.7337349398 | BX62: 0.675257732 | BY62: 0.6990424077 | BZ62: 0.7214076246 | CA62: 0.6626666667 | CB62: 0.72 | CC62: 0.7700680272 | CD62: 0.7091172214 | CE62: 0.6657608696 | CG62: ICA | CH62: 0.5847328244 | CI62: 0.7700680272
BO63: JUNIN | BP63: 0.7547779853 | BS63: JUNIN | BT63: 0.7318141981 | BU63: 0.7668246445 | BV63: 0.7606382979 | BW63: 0.7276669558 | BX63: 0.7240829346 | BY63: 0.7789115646 | BZ63: 0.7668439716 | CA63: 0.7373572594 | CB63: 0.7536101083 | CC63: 0.7776816609 | CD63: 0.7515099223 | CE63: 0.7828200972 | CG63: JUNIN | CH63: 0.7240829346 | CI63: 0.7828200972
BO64: LA LIBERTAD | BP64: 0.4636901273 | BS64: LA LIBERTAD | BT64: 0.2945945946 | BU64: 0.4204625088 | BV64: 0.4894117647 | BW64: 0.4543028686 | BX64: 0.4677520351 | BY64: 0.5095907928 | BZ64: 0.5425342058 | CA64: 0.4827369743 | CB64: 0.4619388419 | CC64: 0.4782349434 | CD64: 0.4484848485 | CE64: 0.4911706998 | CG64: LA LIBERTAD | CH64: 0.2945945946 | CI64: 0.5425342058
BO65: LAMBAYEQUE | BP65: 0.5144223353 | BS65: LAMBAYEQUE | BT65: 0.3036238981 | BU65: 0.5652631579 | BV65: 0.5791814947 | BW65: 0.5655813953 | BX65: 0.5399141631 | BY65: 0.5523465704 | BZ65: 0.5529315961 | CA65: 0.5496921724 | CB65: 0.5064935065 | CC65: 0.4910394265 | CD65: 0.5005213764 | CE65: 0.4427860697 | CG65: LAMBAYEQUE | CH65: 0.3036238981 | CI65: 0.5791814947
BO66: LIMA DIRIS CENTRO | BP66: 0.2129840547 | BS66: LIMA DIRIS CENTRO | BT66: 0.07818181818 | BU66: 0.1989100817 | BV66: 0.2096273292 | BW66: 0.1400809717 | BX66: 0.136738056 | BY66: 0.1657325861 | BZ66: 0.3123466885 | CA66: 0.2666105971 | CB66: 0.2659279778 | CC66: 0.2677502139 | CD66: 0.2418244406 | CE66: 0.2801932367 | CG66: LIMA DIRIS CENTRO | CH66: 0.07818181818 | CI66: 0.3123466885
BO67: LIMA DIRIS ESTE | BP67: 0.2336242536 | BS67: LIMA DIRIS ESTE | BT67: 0.1428571429 | BU67: 0.2731767614 | BV67: 0.2931726908 | BW67: 0.2688284519 | BX67: 0.2298969072 | BY67: 0.2395833333 | BZ67: 0.2638436482 | CA67: 0.235095613 | CB67: 0.2128603104 | CC67: 0.2364016736 | CD67: 0.1931540342 | CE67: 0.2030075188 | CG67: LIMA DIRIS ESTE | CH67: 0.1428571429 | CI67: 0.2931726908
BO68: LIMA DIRIS NORTE | BP68: 0.163321527 | BS68: LIMA DIRIS NORTE | BT68: 0.1221910112 | BU68: 0.1721902017 | BV68: 0.2167664671 | BW68: 0.1452550032 | BX68: 0.1307538359 | BY68: 0.1615029664 | BZ68: 0.1608811749 | CA68: 0.1763553233 | CB68: 0.1576246334 | CC68: 0.1616226658 | CD68: 0.1779661017 | CE68: 0.1705370102 | CG68: LIMA DIRIS NORTE | CH68: 0.1221910112 | CI68: 0.2167664671
BO69: LIMA DIRIS SUR | BP69: 0.3617987091 | BS69: LIMA DIRIS SUR | BT69: 0.2275179856 | BU69: 0.4098671727 | BV69: 0.4317284925 | BW69: 0.4033680834 | BX69: 0.380603097 | BY69: 0.4062244062 | BZ69: 0.4057971014 | CA69: 0.3546666667 | CB69: 0.3835740072 | CC69: 0.3729641694 | CD69: 0.297929793 | CE69: 0.2471910112 | CG69: LIMA DIRIS SUR | CH69: 0.2275179856 | CI69: 0.4317284925
BO70: LIMA REGION | BP70: 0.7427300718 | BS70: LIMA REGION | BT70: 0.6809116809 | BU70: 0.740203193 | BV70: 0.791831357 | BW70: 0.6952506596 | BX70: 0.7250361795 | BY70: 0.7676056338 | BZ70: 0.7907894737 | CA70: 0.7592847318 | CB70: 0.7963483146 | CC70: 0.7421875 | CD70: 0.7391910739 | CE70: 0.6842783505 | CG70: LIMA PROVINCIAS | CH70: 0.6809116809 | CI70: 0.7963483146
BO71: LORETO | BP71: 0.4478760111 | BS71: LORETO | BT71: 0.2193913659 | BU71: 0.4971977582 | BV71: 0.476346912 | BW71: 0.467364532 | BX71: 0.4689699296 | BY71: 0.5120521173 | BZ71: 0.4657142857 | CA71: 0.4642588412 | CB71: 0.4610992148 | CC71: 0.4694894147 | CD71: 0.4160278746 | CE71: 0.4481897628 | CG71: LORETO | CH71: 0.2193913659 | CI71: 0.5120521173
BO72: MADRE DE DIOS | BP72: 0.695959596 | BS72: MADRE DE DIOS | BT72: 0.6545454545 | BU72: 0.7866108787 | BV72: 0.7434944238 | BW72: 0.7067669173 | BX72: 0.8090277778 | BY72: 0.7868852459 | BZ72: 0.7551020408 | CA72: 0.7115384615 | CB72: 0.7587548638 | CC72: 0.7 | CD72: 0.5406504065 | CE72: 0.3302752294 | CG72: MADRE DE DIOS | CH72: 0.3302752294 | CI72: 0.8090277778
BO73: MOQUEGUA | BP73: 0.7529411765 | BS73: MOQUEGUA | BT73: 0.7375 | BU73: 0.6888888889 | BV73: 0.8235294118 | BW73: 0.7522123894 | BX73: 0.7946428571 | BY73: 0.8037383178 | BZ73: 0.7741935484 | CA73: 0.7636363636 | CB73: 0.738317757 | CC73: 0.7596153846 | CD73: 0.625 | CE73: 0.7282608696 | CG73: MOQUEGUA | CH73: 0.625 | CI73: 0.8235294118
BO74: PASCO | BP74: 0.7056699169 | BS74: PASCO | BT74: 0.6995515695 | BU74: 0.7333333333 | BV74: 0.8082191781 | BW74: 0.7603305785 | BX74: 0.7748917749 | BY74: 0.7699115044 | BZ74: 0.7028301887 | CA74: 0.7142857143 | CB74: 0.6764705882 | CC74: 0.6774193548 | CD74: 0.6794871795 | CE74: 0.4848484848 | CG74: PASCO | CH74: 0.4848484848 | CI74: 0.8082191781
BO75: PIURA | BP75: 0.5174215215 | BS75: PIURA | BT75: 0.46 | BU75: 0.5664206642 | BV75: 0.6041775457 | BW75: 0.5857427717 | BX75: 0.5090270812 | BY75: 0.5625 | BZ75: 0.4801444043 | CA75: 0.5201590006 | CB75: 0.4839650146 | CC75: 0.46875 | CD75: 0.4907110826 | CE75: 0.4540750323 | CG75: PIURA | CH75: 0.4540750323 | CI75: 0.6041775457
BO76: PUNO | BP76: 0.5484943479 | BS76: PUNO | BT76: 0.4662721893 | BU76: 0.5393873085 | BV76: 0.5733041575 | BW76: 0.5189003436 | BX76: 0.5026680896 | BY76: 0.5830388693 | BZ76: 0.57472661 | CA76: 0.5900692841 | CB76: 0.5731559855 | CC76: 0.5598377282 | CD76: 0.5634146341 | CE76: 0.5406643757 | CG76: PUNO | CH76: 0.4662721893 | CI76: 0.5900692841
BO77: SAN MARTIN | BP77: 0.4960351664 | BS77: SAN MARTIN | BT77: 0.4187643021 | BU77: 0.5112426036 | BV77: 0.5805439331 | BW77: 0.5442913386 | BX77: 0.4822966507 | BY77: 0.570545829 | BZ77: 0.4879832811 | CA77: 0.499477534 | CB77: 0.509947644 | CC77: 0.4810379242 | CD77: 0.4948024948 | CE77: 0.3775894539 | CG77: SAN MARTIN | CH77: 0.3775894539 | CI77: 0.5805439331
BO78: TACNA | BP78: 0.8156862745 | BS78: TACNA | BT78: 0.7219251337 | BU78: 0.8235294118 | BV78: 0.7990196078 | BW78: 0.8357487923 | BX78: 0.8 | BY78: 0.8066298343 | BZ78: 0.8509615385 | CA78: 0.8522727273 | CB78: 0.8444444444 | CC78: 0.8412698413 | CD78: 0.8407643312 | CE78: 0.7777777778 | CG78: TACNA | CH78: 0.7219251337 | CI78: 0.8522727273
BO79: TUMBES | BP79: 0.8993469074 | BS79: TUMBES | BT79: 0.8511904762 | BU79: 0.9329608939 | BV79: 0.9194915254 | BW79: 0.9507389163 | BX79: 0.9147286822 | BY79: 0.9169811321 | BZ79: 0.904109589 | CA79: 0.9336099585 | CB79: 0.9322033898 | CC79: 0.9337016575 | CD79: 0.881443299 | CE79: 0.7130044843 | CG79: TUMBES | CH79: 0.7130044843 | CI79: 0.9507389163
BO80: UCAYALI | BP80: 0.5980373476 | BS80: UCAYALI | BT80: 0.4467532468 | BU80: 0.6427566807 | BV80: 0.6934731935 | BW80: 0.6408296943 | BX80: 0.6442516269 | BY80: 0.6153005464 | BZ80: 0.6041666667 | CA80: 0.6082840237 | CB80: 0.615990991 | CC80: 0.616 | CD80: 0.5731981982 | CE80: 0.4668117519 | CG80: UCAYALI | CH80: 0.4467532468 | CI80: 0.6934731935
BO81: NACIONAL | BP81: =+IFERROR(GETPIVOTDATA("Ind",$BO$16),"-") -> 0.5340358286 | BS81: NACIONAL | BT81: =+IFERROR(GETPIVOTDATA("Ind",$BS$16,"mes",BT$51),"-") -> 0.4237616099 | BU81: =+IFERROR(GETPIVOTDATA("Ind",$BS$16,"mes",BU$51),"-") -> 0.546062674 | BV81: 0.5714509374 | BW81: 0.5506115728 | BX81: 0.5329838866 | BY81: 0.5591432613 | BZ81: 0.5550285784 | CA81: 0.5446631184 | CB81: 0.5459711185 | CC81: 0.5452380023 | CD81: 0.5226492942 | CE81: 0.5021317911 | CG81: NACIONAL | CH81: 0.4237616099 | CI81: 0.5714509374

Sheet DL_1153_2025_CG05
A1: =+DL1153_2025!C11 -> Ficha 05:Porcentaje de niñas y niños menores de 2 años en condición crecimiento inadecuado que luego de un periodo de seguimiento mejora sus condiciones nutricionales. | J1: eess_nombre | K1: (Todas) | BP1: 1 | DT1: 1
A2: Periodo de Evaluación: | B2: =+DL1153_2025!B42 -> Diciembre - 2025 | J2: Diris | K2: (Todas)
J3: Provincia | K3: (Todas)
A4: año | B4: (Todas) | J4: Distrito | K4: (Todas)
A5: mes | B5: (Todas) | J5: Red | K5: (Todas)
A6: DIRESA/ DIRIS | B6: RED | C6: Provincia | D6: Distrito | E6: EESS | F6: Denominador: Niñas y niños menores de 730 días que en el período de evaluación, acuden al establecimiento de salud por cualquier motivo de consulta registrados con DNI en HIS y que han sido detectados en condición de crecimiento inadecuado. | G6: Numerador: Niñas y niños del denominador, que luego de un periodo de seguimiento entre 60 a 100 días recobran la condición de normalidad. | H6: Indicador: Porcentaje de niñas y niños menores de 2 años en condición crecimiento inadecuado que luego de un periodo de seguimiento mejora sus condiciones nutricionales. | J6: Mes | K6: Denominador: Niñas y niños menores de 730 días que en el período de evaluación, acuden al establecimiento de salud por cualquier motivo de consulta registrados con DNI en HIS y que han sido detectados en condición de crecimiento inadecuado. | L6: Numerador: Niñas y niños del denominador, que luego de un periodo de seguimiento entre 60 a 100 días recobran la condición de normalidad. | M6: Indicador: Porcentaje de niñas y niños menores de 2 años en condición crecimiento inadecuado que luego de un periodo de seguimiento mejora sus condiciones nutricionales.
A7: Diris | B7: Red | C7: Provincia | D7: Distrito | E7: eess_nombre | F7: Suma de den | G7: Suma de num | H7: Suma de Ind | J7: mes | K7: Suma de den | L7: Suma de num | M7: Suma de Ind
A8: AMAZONAS | F8: 374 | G8: 23 | H8: 0.0614973262 | J8: 1 | K8: 3507 | L8: 334 | M8: 0.09523809524
A9: ANCASH | F9: 2235 | G9: 471 | H9: 0.210738255 | J9: 2 | K9: 2534 | L9: 560 | M9: 0.2209944751
A10: APURIMAC | F10: 1947 | G10: 750 | H10: 0.3852080123 | J10: 3 | K10: 2473 | L10: 745 | M10: 0.3012535382
A11: AREQUIPA | F11: 721 | G11: 172 | H11: 0.2385575589 | J11: 4 | K11: 2363 | L11: 753 | M11: 0.3186627169
A12: AYACUCHO | F12: 191 | G12: 167 | H12: 0.8743455497 | J12: 5 | K12: 2584 | L12: 761 | M12: 0.294504644 | BQ12: año | BR12: (Todas) | BU12: año | BV12: (Todas) | CN12: año | CO12: (Todas)
A13: CAJAMARCA | F13: 2157 | G13: 323 | H13: 0.1497450162 | J13: 6 | K13: 2560 | L13: 795 | M13: 0.310546875
A14: CALLAO | F14: 261 | G14: 171 | H14: 0.6551724138 | J14: 7 | K14: 2408 | L14: 883 | M14: 0.3666943522 | BQ14: Diris | BR14: Suma de Ind | BU14: Suma de Ind | BV14: mes | CN14: Suma de Ind | CO14: Diris
A15: CUSCO | F15: 2381 | G15: 753 | H15: 0.3162536749 | J15: 8 | K15: 2269 | L15: 825 | M15: 0.3635962979 | BQ15: AMAZONAS | BR15: 0.0614973262 | BU15: Diris | BV15: 1 | BW15: 2 | BX15: 3 | BY15: 4 | BZ15: 5 | CA15: 6 | CB15: 7 | CC15: 8 | CD15: 9 | CE15: 10 | CF15: 11 | CG15: 12 | CN15: mes | CO15: AMAZONAS | CP15: ANCASH | CQ15: APURIMAC | CR15: AREQUIPA | CS15: AYACUCHO | CT15: CAJAMARCA | CU15: CALLAO | CV15: CUSCO | CW15: HUANCAVELICA | CX15: HUANUCO | CY15: ICA | CZ15: JUNIN | DA15: LA LIBERTAD | DB15: LAMBAYEQUE | DC15: LIMA DIRIS CENTRO | DD15: LIMA DIRIS ESTE | DE15: LIMA DIRIS NORTE | DF15: LIMA DIRIS SUR | DG15: LIMA PROVINCIAS | DH15: LORETO | DI15: MADRE DE DIOS | DJ15: MOQUEGUA | DK15: PASCO | DL15: PIURA | DM15: PUNO | DN15: SAN MARTIN | DO15: TACNA | DP15: TUMBES | DQ15: UCAYALI | DR15: Total general
A16: HUANCAVELICA | F16: 439 | G16: 128 | H16: 0.291571754 | J16: 9 | K16: 2020 | L16: 726 | M16: 0.3594059406 | BQ16: ANCASH | BR16: 0.210738255 | BU16: AMAZONAS | BV16: 0.02040816327 | BW16: 0.04545454545 | BX16: 0.05405405405 | BY16: 0.1739130435 | BZ16: 0.04545454545 | CA16: 0.1333333333 | CB16: 0.08 | CC16: 0.03125 | CD16: 0.1290322581 | CE16: 0.07692307692 | CF16: 0 | CG16: 0 | CN16: Enero | CO16: 0.02040816327 | CP16: 0.08695652174 | CQ16: 0.2731958763 | CR16: 0.03797468354 | CS16: 0.5909090909 | CT16: 0.02205882353 | CU16: 0.03571428571 | CV16: 0.09615384615 | CW16: 0.0625 | CX16: 0.04 | CY16: 0.6 | CZ16: 0.04248366013 | DA16: 0.3571428571 | DB16: 0.12 | DC16: 0.425 | DD16: 0.3571428571 | DE16: 0.05263157895 | DF16: 0.6181818182 | DG16: 0.1333333333 | DH16: 0.002911208151 | DI16: 0.04379562044 | DJ16: 0 | DK16: 0.05555555556 | DL16: 0.01587301587 | DM16: 0.02314814815 | DN16: 0 | DO16: 1 | DP16: 0.09090909091 | DQ16: 0.1187845304 | DR16: 0.09523809524
A17: HUANUCO | F17: 513 | G17: 184 | H17: 0.3586744639 | J17: 10 | K17: 2186 | L17: 773 | M17: 0.3536139067 | BQ17: APURIMAC | BR17: 0.3852080123 | BU17: ANCASH | BV17: 0.08695652174 | BW17: 0.1388888889 | BX17: 0.2415458937 | BY17: 0.2471910112 | BZ17: 0.2071005917 | CA17: 0.1830985915 | CB17: 0.2178217822 | CC17: 0.2916666667 | CD17: 0.2244897959 | CE17: 0.2290502793 | CF17: 0.26 | CG17: 0.3307692308 | CN17: Febrero | CO17: 0.04545454545 | CP17: 0.1388888889 | CQ17: 0.3689839572 | CR17: 0.2786885246 | CS17: 0.9230769231 | CT17: 0.1228070175 | CU17: 0.5 | CV17: 0.2465753425 | CW17: 0.1666666667 | CX17: 0.21875 | CY17: 0.7 | CZ17: 0.2117647059 | DA17: 0.9166666667 | DB17: 0.2 | DC17: 0.7260273973 | DD17: 0.9090909091 | DE17: 0.1111111111 | DF17: 0.6976744186 | DG17: 0.2173913043 | DH17: 0.03674540682 | DI17: 0.0546875 | DJ17: 0 | DK17: 0.8 | DL17: 0.1481481481 | DM17: 0.1849315068 | DN17: 0 | DO17: 1 | DP17: 0.2 | DQ17: 0.3076923077 | DR17: 0.2209944751
A18: ICA | F18: 164 | G18: 119 | H18: 0.7256097561 | J18: 11 | K18: 1946 | L18: 630 | M18: 0.3237410072 | BQ18: AREQUIPA | BR18: 0.2385575589 | BU18: APURIMAC | BV18: 0.2731958763 | BW18: 0.3689839572 | BX18: 0.447761194 | BY18: 0.2950819672 | BZ18: 0.3865030675 | CA18: 0.358974359 | CB18: 0.5174825175 | CC18: 0.4580152672 | CD18: 0.4189189189 | CE18: 0.4189944134 | CF18: 0.3619631902 | CG18: 0.3915662651 | CN18: Marzo | CO18: 0.05405405405 | CP18: 0.2415458937 | CQ18: 0.447761194 | CR18: 0.2068965517 | CS18: 0.9333333333 | CT18: 0.08465608466 | CU18: 0.7647058824 | CV18: 0.309623431 | CW18: 0.2702702703 | CX18: 0.2745098039 | CY18: 0.6363636364 | CZ18: 0.3783783784 | DA18: 0.975 | DB18: 0.4666666667 | DC18: 0.7727272727 | DD18: 1 | DE18: 0.2857142857 | DF18: 0.8367346939 | DG18: 0.4722222222 | DH18: 0.02215189873 | DI18: 0.06172839506 | DJ18: 0.5 | DK18: 0.4 | DL18: 0.1571428571 | DM18: 0.2585034014 | DN18: 0 | DO18: 1 | DP18: 0.1111111111 | DQ18: 0.4303797468 | DR18: 0.3012535382
A19: JUNIN | F19: 2399 | G19: 985 | H19: 0.4105877449 | J19: 12 | K19: 1988 | L19: 667 | M19: 0.3355130785 | BQ19: AYACUCHO | BR19: 0.8743455497 | BU19: AREQUIPA | BV19: 0.03797468354 | BW19: 0.2786885246 | BX19: 0.2068965517 | BY19: 0.2564102564 | BZ19: 0.05084745763 | CA19: 0.2985074627 | CB19: 0.3846153846 | CC19: 0.2222222222 | CD19: 0.1851851852 | CE19: 0.36 | CF19: 0.34 | CG19: 0.36 | CN19: Abril | CO19: 0.1739130435 | CP19: 0.2471910112 | CQ19: 0.2950819672 | CR19: 0.2564102564 | CS19: 0.8333333333 | CT19: 0.1646341463 | CU19: 0.7857142857 | CV19: 0.3743842365 | CW19: 0.3125 | CX19: 0.5 | CY19: 0.8076923077 | CZ19: 0.4941176471 | DA19: 0.8484848485 | DB19: 0.34375 | DC19: 0.7402597403 | DD19: 0.9166666667 | DE19: 0.358490566 | DF19: 0.8032786885 | DG19: 0.3333333333 | DH19: 0.02711864407 | DI19: 0.05797101449 | DJ19: 0.25 | DK19: 0.1578947368 | DL19: 0.06451612903 | DM19: 0.1935483871 | DN19: 0 | DO19: 1 | DP19: 0.3214285714 | DQ19: 0.4372759857 | DR19: 0.3186627169
A20: LA LIBERTAD | F20: 515 | G20: 393 | H20: 0.7631067961 | J20: Total general | K20: 28838 | L20: 8452 | M20: 0.2930855122 | BQ20: CAJAMARCA | BR20: 0.1497450162 | BU20: AYACUCHO | BV20: 0.5909090909 | BW20: 0.9230769231 | BX20: 0.9333333333 | BY20: 0.8333333333 | BZ20: 0.8461538462 | CA20: 0.9375 | CB20: 1 | CC20: 0.9285714286 | CD20: 1 | CE20: 0.7333333333 | CF20: 1 | CG20: 0.8846153846 | CN20: Mayo | CO20: 0.04545454545 | CP20: 0.2071005917 | CQ20: 0.3865030675 | CR20: 0.05084745763 | CS20: 0.8461538462 | CT20: 0.1971153846 | CU20: 0.7 | CV20: 0.3625498008 | CW20: 0.25 | CX20: 0.4528301887 | CY20: 0.6875 | CZ20: 0.4777777778 | DA20: 0.7454545455 | DB20: 0.3095238095 | DC20: 0.6666666667 | DD20: 1 | DE20: 0.4561403509 | DF20: 0.75 | DG20: 0.275862069 | DH20: 0.008498583569 | DI20: 0.07692307692 | DJ20: 0.1111111111 | DK20: 0 | DL20: 0.156626506 | DM20: 0.198757764 | DN20: 0.03846153846 | DO20: 1 | DP20: 0.1578947368 | DQ20: 0.3630363036 | DR20: 0.294504644
A21: LAMBAYEQUE | F21: 366 | G21: 154 | H21: 0.4207650273 | BQ21: CALLAO | BR21: 0.6551724138 | BU21: CAJAMARCA | BV21: 0.02205882353 | BW21: 0.1228070175 | BX21: 0.08465608466 | BY21: 0.1646341463 | BZ21: 0.1971153846 | CA21: 0.1076923077 | CB21: 0.1470588235 | CC21: 0.2751677852 | CD21: 0.3289473684 | CE21: 0.1578947368 | CF21: 0.1726618705 | CG21: 0.1438848921 | CN21: Junio | CO21: 0.1333333333 | CP21: 0.1830985915 | CQ21: 0.358974359 | CR21: 0.2985074627 | CS21: 0.9375 | CT21: 0.1076923077 | CU21: 0.8666666667 | CV21: 0.3388429752 | CW21: 0.3 | CX21: 0.4782608696 | CY21: 0.75 | CZ21: 0.5065789474 | DA21: 0.796875 | DB21: 0.4897959184 | DC21: 0.7011494253 | DD21: 1 | DE21: 0.3846153846 | DF21: 0.9056603774 | DG21: 0.2 | DH21: 0.01152737752 | DI21: 0.1758241758 | DJ21: 0.1666666667 | DK21: 0.2 | DL21: 0.1868131868 | DM21: 0.2258064516 | DN21: 0.0625 | DO21: 1 | DP21: 0.1818181818 | DQ21: 0.4229249012 | DR21: 0.310546875
A22: LIMA DIRIS CENTRO | F22: 894 | G22: 579 | H22: 0.6476510067 | BQ22: CUSCO | BR22: 0.3162536749 | BU22: CALLAO | BV22: 0.03571428571 | BW22: 0.5 | BX22: 0.7647058824 | BY22: 0.7857142857 | BZ22: 0.7 | CA22: 0.8666666667 | CB22: 0.6086956522 | CC22: 0.7272727273 | CD22: 0.7857142857 | CE22: 0.724137931 | CF22: 0.9375 | CG22: 0.6666666667 | CN22: Julio | CO22: 0.08 | CP22: 0.2178217822 | CQ22: 0.5174825175 | CR22: 0.3846153846 | CS22: 1 | CT22: 0.1470588235 | CU22: 0.6086956522 | CV22: 0.4189944134 | CW22: 0.3684210526 | CX22: 0.3214285714 | CY22: 0.8333333333 | CZ22: 0.5463414634 | DA22: 0.8813559322 | DB22: 0.6 | DC22: 0.698630137 | DD22: 1 | DE22: 0.5454545455 | DF22: 0.8604651163 | DG22: 0.25 | DH22: 0.06976744186 | DI22: 0.1547619048 | DJ22: 0.2 | DK22: 0.4 | DL22: 0.2365591398 | DM22: 0.3664122137 | DN22: 0 | DO22: 1 | DP22: 0.24 | DQ22: 0.5036764706 | DR22: 0.3666943522
A23: LIMA DIRIS ESTE | F23: 110 | G23: 97 | H23: 0.8818181818 | BQ23: HUANCAVELICA | BR23: 0.291571754 | BU23: CUSCO | BV23: 0.09615384615 | BW23: 0.2465753425 | BX23: 0.309623431 | BY23: 0.3743842365 | BZ23: 0.3625498008 | CA23: 0.3388429752 | CB23: 0.4189944134 | CC23: 0.2793296089 | CD23: 0.3404255319 | CE23: 0.402173913 | CF23: 0.408 | CG23: 0.3333333333 | CN23: Agosto | CO23: 0.03125 | CP23: 0.2916666667 | CQ23: 0.4580152672 | CR23: 0.2222222222 | CS23: 0.9285714286 | CT23: 0.2751677852 | CU23: 0.7272727273 | CV23: 0.2793296089 | CW23: 0.4318181818 | CX23: 0.375 | CY23: 1 | CZ23: 0.4840182648 | DA23: 0.7407407407 | DB23: 0.5142857143 | DC23: 0.5079365079 | DD23: 1 | DE23: 0.5714285714 | DF23: 0.7948717949 | DG23: 0.3125 | DH23: 0.02867383513 | DI23: 0.2083333333 | DJ23: 0.2 | DK23: 0.125 | DL23: 0.2173913043 | DM23: 0.3466666667 | DN23: 0.1428571429 | DO23: 0.6666666667 | DP23: 0.5416666667 | DQ23: 0.5392491468 | DR23: 0.3635962979
A24: LIMA DIRIS NORTE | F24: 625 | G24: 192 | H24: 0.3072 | BQ24: HUANUCO | BR24: 0.3586744639 | BU24: HUANCAVELICA | BV24: 0.0625 | BW24: 0.1666666667 | BX24: 0.2702702703 | BY24: 0.3125 | BZ24: 0.25 | CA24: 0.3 | CB24: 0.3684210526 | CC24: 0.4318181818 | CD24: 0.4230769231 | CE24: 0.4102564103 | CF24: 0.2222222222 | CG24: 0.3076923077 | CN24: Setiembre | CO24: 0.1290322581 | CP24: 0.2244897959 | CQ24: 0.4189189189 | CR24: 0.1851851852 | CS24: 1 | CT24: 0.3289473684 | CU24: 0.7857142857 | CV24: 0.3404255319 | CW24: 0.4230769231 | CX24: 0.4615384615 | CY24: 0.8571428571 | CZ24: 0.515 | DA24: 0.8205128205 | DB24: 0.4444444444 | DC24: 0.5652173913 | DD24: 1 | DE24: 0.3333333333 | DF24: 0.7619047619 | DG24: 0.1481481481 | DH24: 0.03463203463 | DI24: 0.1917808219 | DJ24: 0.1428571429 | DK24: 0.2692307692 | DL24: 0.2763157895 | DM24: 0.2448979592 | DN24: 0 | DO24: 0.8333333333 | DP24: 0.375 | DQ24: 0.4980842912 | DR24: 0.3594059406
A25: LIMA DIRIS SUR | F25: 548 | G25: 419 | H25: 0.7645985401 | BQ25: ICA | BR25: 0.7256097561 | BU25: HUANUCO | BV25: 0.04 | BW25: 0.21875 | BX25: 0.2745098039 | BY25: 0.5 | BZ25: 0.4528301887 | CA25: 0.4782608696 | CB25: 0.3214285714 | CC25: 0.375 | CD25: 0.4615384615 | CE25: 0.4444444444 | CF25: 0.4722222222 | CG25: 0.3333333333 | CN25: Octubre | CO25: 0.07692307692 | CP25: 0.2290502793 | CQ25: 0.4189944134 | CR25: 0.36 | CS25: 0.7333333333 | CT25: 0.1578947368 | CU25: 0.724137931 | CV25: 0.402173913 | CW25: 0.4102564103 | CX25: 0.4444444444 | CY25: 0.625 | CZ25: 0.4825870647 | DA25: 0.7735849057 | DB25: 0.52 | DC25: 0.6875 | DD25: 1 | DE25: 0.48 | DF25: 0.9393939394 | DG25: 0.25 | DH25: 0.00790513834 | DI25: 0.1558441558 | DJ25: 0 | DK25: 0.1176470588 | DL25: 0.347826087 | DM25: 0.3669064748 | DN25: 0.08333333333 | DO25: 1 | DP25: 0.2857142857 | DQ25: 0.4254385965 | DR25: 0.3536139067
A26: LIMA REGION | F26: 350 | G26: 91 | H26: 0.26 | BQ26: JUNIN | BR26: 0.4105877449 | BU26: ICA | BV26: 0.6 | BW26: 0.7 | BX26: 0.6363636364 | BY26: 0.8076923077 | BZ26: 0.6875 | CA26: 0.75 | CB26: 0.8333333333 | CC26: 1 | CD26: 0.8571428571 | CE26: 0.625 | CF26: 0.3636363636 | CG26: 1 | CN26: Noviembre | CO26: 0 | CP26: 0.26 | CQ26: 0.3619631902 | CR26: 0.34 | CS26: 1 | CT26: 0.1726618705 | CU26: 0.9375 | CV26: 0.408 | CW26: 0.2222222222 | CX26: 0.4722222222 | CY26: 0.3636363636 | CZ26: 0.4562211982 | DA26: 0.5769230769 | DB26: 0.5806451613 | DC26: 0.6181818182 | DD26: 1 | DE26: 0.2222222222 | DF26: 0.6136363636 | DG26: 0.125 | DH26: 0.03100775194 | DI26: 0.1774193548 | DJ26: 0.125 | DK26: 0.1 | DL26: 0.2978723404 | DM26: 0.2542372881 | DN26: 0.07142857143 | DO26: 1 | DP26: 0.4615384615 | DQ26: 0.4460093897 | DR26: 0.3237410072
A27: LORETO | F27: 4015 | G27: 89 | H27: 0.02216687422 | BQ27: LA LIBERTAD | BR27: 0.7631067961 | BU27: JUNIN | BV27: 0.04248366013 | BW27: 0.2117647059 | BX27: 0.3783783784 | BY27: 0.4941176471 | BZ27: 0.4777777778 | CA27: 0.5065789474 | CB27: 0.5463414634 | CC27: 0.4840182648 | CD27: 0.515 | CE27: 0.4825870647 | CF27: 0.4562211982 | CG27: 0.5257731959 | CN27: Diciembre | CO27: 0 | CP27: 0.3307692308 | CQ27: 0.3915662651 | CR27: 0.36 | CS27: 0.8846153846 | CT27: 0.1438848921 | CU27: 0.6666666667 | CV27: 0.3333333333 | CW27: 0.3076923077 | CX27: 0.3333333333 | CY27: 1 | CZ27: 0.5257731959 | DA27: 0.55 | DB27: 0.2857142857 | DC27: 0.7586206897 | DD27: 0.5 | DE27: 0.3846153846 | DF27: 0.6052631579 | DG27: 0.3571428571 | DH27: 0.0036900369 | DI27: 0.1923076923 | DJ27: 0.1666666667 | DK27: 0 | DL27: 0.2558139535 | DM27: 0.2878787879 | DN27: 0.05263157895 | DO27: 1 | DP27: 0.6666666667 | DQ27: 0.4854368932 | DR27: 0.3355130785
A28: MADRE DE DIOS | F28: 1043 | G28: 125 | H28: 0.1198465964 | BQ28: LAMBAYEQUE | BR28: 0.4207650273 | BU28: LA LIBERTAD | BV28: 0.3571428571 | BW28: 0.9166666667 | BX28: 0.975 | BY28: 0.8484848485 | BZ28: 0.7454545455 | CA28: 0.796875 | CB28: 0.8813559322 | CC28: 0.7407407407 | CD28: 0.8205128205 | CE28: 0.7735849057 | CF28: 0.5769230769 | CG28: 0.55
A29: MOQUEGUA | F29: 82 | G29: 13 | H29: 0.1585365854 | BQ29: LIMA DIRIS CENTRO | BR29: 0.6476510067 | BU29: LAMBAYEQUE | BV29: 0.12 | BW29: 0.2 | BX29: 0.4666666667 | BY29: 0.34375 | BZ29: 0.3095238095 | CA29: 0.4897959184 | CB29: 0.6 | CC29: 0.5142857143 | CD29: 0.4444444444 | CE29: 0.52 | CF29: 0.5806451613 | CG29: 0.2857142857
A30: PASCO | F30: 135 | G30: 24 | H30: 0.1777777778 | BQ30: LIMA DIRIS ESTE | BR30: 0.8818181818 | BU30: LIMA DIRIS CENTRO | BV30: 0.425 | BW30: 0.7260273973 | BX30: 0.7727272727 | BY30: 0.7402597403 | BZ30: 0.6666666667 | CA30: 0.7011494253 | CB30: 0.698630137 | CC30: 0.5079365079 | CD30: 0.5652173913 | CE30: 0.6875 | CF30: 0.6181818182 | CG30: 0.7586206897
A31: PIURA | F31: 820 | G31: 161 | H31: 0.1963414634 | BQ31: LIMA DIRIS NORTE | BR31: 0.3072 | BU31: LIMA DIRIS ESTE | BV31: 0.3571428571 | BW31: 0.9090909091 | BX31: 1 | BY31: 0.9166666667 | BZ31: 1 | CA31: 1 | CB31: 1 | CC31: 1 | CD31: 1 | CE31: 1 | CF31: 1 | CG31: 0.5
A32: PUNO | F32: 1748 | G32: 410 | H32: 0.2345537757 | BQ32: LIMA DIRIS SUR | BR32: 0.7645985401 | BU32: LIMA DIRIS NORTE | BV32: 0.05263157895 | BW32: 0.1111111111 | BX32: 0.2857142857 | BY32: 0.358490566 | BZ32: 0.4561403509 | CA32: 0.3846153846 | CB32: 0.5454545455 | CC32: 0.5714285714 | CD32: 0.3333333333 | CE32: 0.48 | CF32: 0.2222222222 | CG32: 0.3846153846
A33: SAN MARTIN | F33: 240 | G33: 7 | H33: 0.02916666667 | BQ33: LIMA PROVINCIAS | BR33: 0.26 | BU33: LIMA DIRIS SUR | BV33: 0.6181818182 | BW33: 0.6976744186 | BX33: 0.8367346939 | BY33: 0.8032786885 | BZ33: 0.75 | CA33: 0.9056603774 | CB33: 0.8604651163 | CC33: 0.7948717949 | CD33: 0.7619047619 | CE33: 0.9393939394 | CF33: 0.6136363636 | CG33: 0.6052631579
A34: TACNA | F34: 69 | G34: 67 | H34: 0.9710144928 | BQ34: LORETO | BR34: 0.02216687422 | BU34: LIMA PROVINCIAS | BV34: 0.1333333333 | BW34: 0.2173913043 | BX34: 0.4722222222 | BY34: 0.3333333333 | BZ34: 0.275862069 | CA34: 0.2 | CB34: 0.25 | CC34: 0.3125 | CD34: 0.1481481481 | CE34: 0.25 | CF34: 0.125 | CG34: 0.3571428571
A35: TUMBES | F35: 237 | G35: 66 | H35: 0.2784810127 | BQ35: MADRE DE DIOS | BR35: 0.1198465964 | BU35: LORETO | BV35: 0.002911208151 | BW35: 0.03674540682 | BX35: 0.02215189873 | BY35: 0.02711864407 | BZ35: 0.008498583569 | CA35: 0.01152737752 | CB35: 0.06976744186 | CC35: 0.02867383513 | CD35: 0.03463203463 | CE35: 0.00790513834 | CF35: 0.03100775194 | CG35: 0.0036900369 | CN35: MENSUAL
A36: UCAYALI | F36: 3259 | G36: 1319 | H36: 0.4047253759 | BQ36: MOQUEGUA | BR36: 0.1585365854 | BU36: MADRE DE DIOS | BV36: 0.04379562044 | BW36: 0.0546875 | BX36: 0.06172839506 | BY36: 0.05797101449 | BZ36: 0.07692307692 | CA36: 0.1758241758 | CB36: 0.1547619048 | CC36: 0.2083333333 | CD36: 0.1917808219 | CE36: 0.1558441558 | CF36: 0.1774193548 | CG36: 0.1923076923 | CO36: AMAZONAS | CP36: ANCASH | CQ36: APURIMAC | CR36: AREQUIPA | CS36: AYACUCHO | CT36: CAJAMARCA | CU36: CALLAO | CV36: CUSCO | CW36: HUANCAVELICA | CX36: HUANUCO | CY36: ICA | CZ36: JUNIN | DA36: LA LIBERTAD | DB36: LAMBAYEQUE | DC36: LIMA DIRIS CENTRO | DD36: LIMA DIRIS ESTE | DE36: LIMA DIRIS NORTE | DF36: LIMA DIRIS SUR | DG36: LIMA PROVINCIAS | DH36: LORETO | DI36: MADRE DE DIOS | DJ36: MOQUEGUA | DK36: PASCO | DL36: PIURA | DM36: PUNO | DN36: SAN MARTIN | DO36: TACNA | DP36: TUMBES | DQ36: UCAYALI | DR36: NACIONAL
A37: Total general | F37: 28838 | G37: 8452 | H37: 0.2930855122 | BQ37: PASCO | BR37: 0.1777777778 | BU37: MOQUEGUA | BV37: 0 | BW37: 0 | BX37: 0.5 | BY37: 0.25 | BZ37: 0.1111111111 | CA37: 0.1666666667 | CB37: 0.2 | CC37: 0.2 | CD37: 0.1428571429 | CE37: 0 | CF37: 0.125 | CG37: 0.1666666667 | CN37: Enero | CO37: =+IFERROR(GETPIVOTDATA("Ind",$CN$14,"Diris",CO$36,"mes",$CN37),"-") -> 0.02040816327 | CP37: 0.08695652174 | CQ37: 0.2731958763 | CR37: 0.03797468354 | CS37: 0.5909090909 | CT37: 0.02205882353 | CU37: 0.03571428571 | CV37: 0.09615384615 | CW37: 0.0625 | CX37: 0.04 | CY37: =+IFERROR(GETPIVOTDATA("Ind",$CN$14,"Diris",CY$36,"mes",$CN37),"-") -> 0.6 | CZ37: 0.04248366013 | DA37: 0.3571428571 | DB37: 0.12 | DC37: 0.425 | DD37: 0.3571428571 | DE37: 0.05263157895 | DF37: 0.6181818182 | DG37: 0.1333333333 | DH37: 0.002911208151 | DI37: =+IFERROR(GETPIVOTDATA("Ind",$CN$14,"Diris",DI$36,"mes",$CN37),"-") -> 0.04379562044 | DJ37: 0 | DK37: 0.05555555556 | DL37: 0.01587301587 | DM37: 0.02314814815 | DN37: 0 | DO37: 1 | DP37: 0.09090909091 | DQ37: 0.1187845304 | DR37: =+IFERROR(GETPIVOTDATA("Ind",$CN$14,"mes",$CN37),"-") -> 0.09523809524
BQ38: PIURA | BR38: 0.1963414634 | BU38: PASCO | BV38: 0.05555555556 | BW38: 0.8 | BX38: 0.4 | BY38: 0.1578947368 | BZ38: 0 | CA38: 0.2 | CB38: 0.4 | CC38: 0.125 | CD38: 0.2692307692 | CE38: 0.1176470588 | CF38: 0.1 | CG38: 0 | CN38: Febrero | CO38: 0.04545454545 | CP38: 0.1388888889 | CQ38: 0.3689839572 | CR38: 0.2786885246 | CS38: 0.9230769231 | CT38: 0.1228070175 | CU38: 0.5 | CV38: 0.2465753425 | CW38: 0.1666666667 | CX38: 0.21875 | CY38: 0.7 | CZ38: 0.2117647059 | DA38: 0.9166666667 | DB38: 0.2 | DC38: 0.7260273973 | DD38: 0.9090909091 | DE38: 0.1111111111 | DF38: 0.6976744186 | DG38: 0.2173913043 | DH38: 0.03674540682 | DI38: 0.0546875 | DJ38: 0 | DK38: 0.8 | DL38: 0.1481481481 | DM38: 0.1849315068 | DN38: 0 | DO38: 1 | DP38: 0.2 | DQ38: 0.3076923077 | DR38: 0.2209944751
BQ39: PUNO | BR39: 0.2345537757 | BU39: PIURA | BV39: 0.01587301587 | BW39: 0.1481481481 | BX39: 0.1571428571 | BY39: 0.06451612903 | BZ39: 0.156626506 | CA39: 0.1868131868 | CB39: 0.2365591398 | CC39: 0.2173913043 | CD39: 0.2763157895 | CE39: 0.347826087 | CF39: 0.2978723404 | CG39: 0.2558139535 | CN39: Marzo | CO39: 0.05405405405 | CP39: 0.2415458937 | CQ39: 0.447761194 | CR39: 0.2068965517 | CS39: 0.9333333333 | CT39: 0.08465608466 | CU39: 0.7647058824 | CV39: 0.309623431 | CW39: 0.2702702703 | CX39: 0.2745098039 | CY39: 0.6363636364 | CZ39: 0.3783783784 | DA39: 0.975 | DB39: 0.4666666667 | DC39: 0.7727272727 | DD39: 1 | DE39: 0.2857142857 | DF39: 0.8367346939 | DG39: 0.4722222222 | DH39: 0.02215189873 | DI39: 0.06172839506 | DJ39: 0.5 | DK39: 0.4 | DL39: 0.1571428571 | DM39: 0.2585034014 | DN39: 0 | DO39: 1 | DP39: 0.1111111111 | DQ39: 0.4303797468 | DR39: 0.3012535382
BQ40: SAN MARTIN | BR40: 0.02916666667 | BU40: PUNO | BV40: 0.02314814815 | BW40: 0.1849315068 | BX40: 0.2585034014 | BY40: 0.1935483871 | BZ40: 0.198757764 | CA40: 0.2258064516 | CB40: 0.3664122137 | CC40: 0.3466666667 | CD40: 0.2448979592 | CE40: 0.3669064748 | CF40: 0.2542372881 | CG40: 0.2878787879 | CN40: Abril | CO40: 0.1739130435 | CP40: 0.2471910112 | CQ40: 0.2950819672 | CR40: 0.2564102564 | CS40: 0.8333333333 | CT40: 0.1646341463 | CU40: 0.7857142857 | CV40: 0.3743842365 | CW40: 0.3125 | CX40: 0.5 | CY40: 0.8076923077 | CZ40: 0.4941176471 | DA40: 0.8484848485 | DB40: 0.34375 | DC40: 0.7402597403 | DD40: 0.9166666667 | DE40: 0.358490566 | DF40: 0.8032786885 | DG40: 0.3333333333 | DH40: 0.02711864407 | DI40: 0.05797101449 | DJ40: 0.25 | DK40: 0.1578947368 | DL40: 0.06451612903 | DM40: 0.1935483871 | DN40: 0 | DO40: 1 | DP40: 0.3214285714 | DQ40: 0.4372759857 | DR40: 0.3186627169
BQ41: TACNA | BR41: 0.9710144928 | BU41: SAN MARTIN | BV41: 0 | BW41: 0 | BX41: 0 | BY41: 0 | BZ41: 0.03846153846 | CA41: 0.0625 | CB41: 0 | CC41: 0.1428571429 | CD41: 0 | CE41: 0.08333333333 | CF41: 0.07142857143 | CG41: 0.05263157895 | CN41: Mayo | CO41: 0.04545454545 | CP41: 0.2071005917 | CQ41: 0.3865030675 | CR41: 0.05084745763 | CS41: 0.8461538462 | CT41: 0.1971153846 | CU41: 0.7 | CV41: 0.3625498008 | CW41: 0.25 | CX41: 0.4528301887 | CY41: 0.6875 | CZ41: 0.4777777778 | DA41: 0.7454545455 | DB41: 0.3095238095 | DC41: 0.6666666667 | DD41: 1 | DE41: 0.4561403509 | DF41: 0.75 | DG41: 0.275862069 | DH41: 0.008498583569 | DI41: 0.07692307692 | DJ41: 0.1111111111 | DK41: 0 | DL41: 0.156626506 | DM41: 0.198757764 | DN41: 0.03846153846 | DO41: 1 | DP41: 0.1578947368 | DQ41: 0.3630363036 | DR41: 0.294504644
BQ42: TUMBES | BR42: 0.2784810127 | BU42: TACNA | BV42: 1 | BW42: 1 | BX42: 1 | BY42: 1 | BZ42: 1 | CA42: 1 | CB42: 1 | CC42: 0.6666666667 | CD42: 0.8333333333 | CE42: 1 | CF42: 1 | CG42: 1 | CN42: Junio | CO42: 0.1333333333 | CP42: 0.1830985915 | CQ42: 0.358974359 | CR42: 0.2985074627 | CS42: 0.9375 | CT42: 0.1076923077 | CU42: 0.8666666667 | CV42: 0.3388429752 | CW42: 0.3 | CX42: 0.4782608696 | CY42: 0.75 | CZ42: 0.5065789474 | DA42: 0.796875 | DB42: 0.4897959184 | DC42: 0.7011494253 | DD42: 1 | DE42: 0.3846153846 | DF42: 0.9056603774 | DG42: 0.2 | DH42: 0.01152737752 | DI42: 0.1758241758 | DJ42: 0.1666666667 | DK42: 0.2 | DL42: 0.1868131868 | DM42: 0.2258064516 | DN42: 0.0625 | DO42: 1 | DP42: 0.1818181818 | DQ42: 0.4229249012 | DR42: 0.310546875
BQ43: UCAYALI | BR43: 0.4047253759 | BU43: TUMBES | BV43: 0.09090909091 | BW43: 0.2 | BX43: 0.1111111111 | BY43: 0.3214285714 | BZ43: 0.1578947368 | CA43: 0.1818181818 | CB43: 0.24 | CC43: 0.5416666667 | CD43: 0.375 | CE43: 0.2857142857 | CF43: 0.4615384615 | CG43: 0.6666666667 | CN43: Julio | CO43: 0.08 | CP43: 0.2178217822 | CQ43: 0.5174825175 | CR43: 0.3846153846 | CS43: 1 | CT43: 0.1470588235 | CU43: 0.6086956522 | CV43: 0.4189944134 | CW43: 0.3684210526 | CX43: 0.3214285714 | CY43: 0.8333333333 | CZ43: 0.5463414634 | DA43: 0.8813559322 | DB43: 0.6 | DC43: 0.698630137 | DD43: 1 | DE43: 0.5454545455 | DF43: 0.8604651163 | DG43: 0.25 | DH43: 0.06976744186 | DI43: 0.1547619048 | DJ43: 0.2 | DK43: 0.4 | DL43: 0.2365591398 | DM43: 0.3664122137 | DN43: 0 | DO43: 1 | DP43: 0.24 | DQ43: 0.5036764706 | DR43: 0.3666943522
BQ44: Total general | BR44: 0.2930855122 | BU44: UCAYALI | BV44: 0.1187845304 | BW44: 0.3076923077 | BX44: 0.4303797468 | BY44: 0.4372759857 | BZ44: 0.3630363036 | CA44: 0.4229249012 | CB44: 0.5036764706 | CC44: 0.5392491468 | CD44: 0.4980842912 | CE44: 0.4254385965 | CF44: 0.4460093897 | CG44: 0.4854368932 | CN44: Agosto | CO44: 0.03125 | CP44: 0.2916666667 | CQ44: 0.4580152672 | CR44: 0.2222222222 | CS44: 0.9285714286 | CT44: 0.2751677852 | CU44: 0.7272727273 | CV44: 0.2793296089 | CW44: 0.4318181818 | CX44: 0.375 | CY44: 1 | CZ44: 0.4840182648 | DA44: 0.7407407407 | DB44: 0.5142857143 | DC44: 0.5079365079 | DD44: 1 | DE44: 0.5714285714 | DF44: 0.7948717949 | DG44: 0.3125 | DH44: 0.02867383513 | DI44: 0.2083333333 | DJ44: 0.2 | DK44: 0.125 | DL44: 0.2173913043 | DM44: 0.3466666667 | DN44: 0.1428571429 | DO44: 0.6666666667 | DP44: 0.5416666667 | DQ44: 0.5392491468 | DR44: 0.3635962979
BU45: Total general | BV45: 0.09523809524 | BW45: 0.2209944751 | BX45: 0.3012535382 | BY45: 0.3186627169 | BZ45: 0.294504644 | CA45: 0.310546875 | CB45: 0.3666943522 | CC45: 0.3635962979 | CD45: 0.3594059406 | CE45: 0.3536139067 | CF45: 0.3237410072 | CG45: 0.3355130785 | CN45: Setiembre | CO45: 0.1290322581 | CP45: 0.2244897959 | CQ45: 0.4189189189 | CR45: 0.1851851852 | CS45: 1 | CT45: 0.3289473684 | CU45: 0.7857142857 | CV45: 0.3404255319 | CW45: 0.4230769231 | CX45: 0.4615384615 | CY45: 0.8571428571 | CZ45: 0.515 | DA45: 0.8205128205 | DB45: 0.4444444444 | DC45: 0.5652173913 | DD45: 1 | DE45: 0.3333333333 | DF45: 0.7619047619 | DG45: 0.1481481481 | DH45: 0.03463203463 | DI45: 0.1917808219 | DJ45: 0.1428571429 | DK45: 0.2692307692 | DL45: 0.2763157895 | DM45: 0.2448979592 | DN45: 0 | DO45: 0.8333333333 | DP45: 0.375 | DQ45: 0.4980842912 | DR45: 0.3594059406
CN46: Octubre | CO46: 0.07692307692 | CP46: 0.2290502793 | CQ46: 0.4189944134 | CR46: 0.36 | CS46: 0.7333333333 | CT46: 0.1578947368 | CU46: 0.724137931 | CV46: 0.402173913 | CW46: 0.4102564103 | CX46: 0.4444444444 | CY46: 0.625 | CZ46: 0.4825870647 | DA46: 0.7735849057 | DB46: 0.52 | DC46: 0.6875 | DD46: 1 | DE46: 0.48 | DF46: 0.9393939394 | DG46: 0.25 | DH46: 0.00790513834 | DI46: 0.1558441558 | DJ46: 0 | DK46: 0.1176470588 | DL46: 0.347826087 | DM46: 0.3669064748 | DN46: 0.08333333333 | DO46: 1 | DP46: 0.2857142857 | DQ46: 0.4254385965 | DR46: 0.3536139067
BV47: 1 | BW47: 2 | BX47: 3 | BY47: 4 | BZ47: 5 | CA47: 6 | CB47: 7 | CC47: 8 | CD47: 9 | CE47: 10 | CF47: 11 | CG47: 12 | CJ47: MIN | CK47: MAX | CN47: Noviembre | CO47: 0 | CP47: 0.26 | CQ47: 0.3619631902 | CR47: 0.34 | CS47: 1 | CT47: 0.1726618705 | CU47: 0.9375 | CV47: 0.408 | CW47: 0.2222222222 | CX47: 0.4722222222 | CY47: 0.3636363636 | CZ47: 0.4562211982 | DA47: 0.5769230769 | DB47: 0.5806451613 | DC47: 0.6181818182 | DD47: 1 | DE47: 0.2222222222 | DF47: 0.6136363636 | DG47: 0.125 | DH47: 0.03100775194 | DI47: 0.1774193548 | DJ47: 0.125 | DK47: 0.1 | DL47: 0.2978723404 | DM47: 0.2542372881 | DN47: 0.07142857143 | DO47: 1 | DP47: 0.4615384615 | DQ47: 0.4460093897 | DR47: 0.3237410072
BQ48: AMAZONAS | BR48: =+IFERROR(GETPIVOTDATA("Ind",$BQ$14,"Diris",$BQ48),"-") -> 0.0614973262 | BU48: AMAZONAS | BV48: =+IFERROR(GETPIVOTDATA("Ind",$BU$14,"Diris",$BU48,"mes",BV$47),"-") -> 0.02040816327 | BW48: =+IFERROR(GETPIVOTDATA("Ind",$BU$14,"Diris",$BU48,"mes",BW$47),"-") -> 0.04545454545 | BX48: 0.05405405405 | BY48: 0.1739130435 | BZ48: 0.04545454545 | CA48: 0.1333333333 | CB48: 0.08 | CC48: 0.03125 | CD48: 0.1290322581 | CE48: 0.07692307692 | CF48: 0 | CG48: 0 | CI48: AMAZONAS | CJ48: =+IF(BV48="-","-",MIN(BV48:CG48)) -> 0 | CK48: =+IF(BV48="-","-",MAX(BV48:CG48)) -> 0.1739130435 | CN48: Diciembre | CO48: 0 | CP48: 0.3307692308 | CQ48: 0.3915662651 | CR48: 0.36 | CS48: 0.8846153846 | CT48: 0.1438848921 | CU48: 0.6666666667 | CV48: 0.3333333333 | CW48: 0.3076923077 | CX48: 0.3333333333 | CY48: 1 | CZ48: 0.5257731959 | DA48: 0.55 | DB48: 0.2857142857 | DC48: 0.7586206897 | DD48: 0.5 | DE48: 0.3846153846 | DF48: 0.6052631579 | DG48: 0.3571428571 | DH48: 0.0036900369 | DI48: 0.1923076923 | DJ48: 0.1666666667 | DK48: 0 | DL48: 0.2558139535 | DM48: 0.2878787879 | DN48: 0.05263157895 | DO48: 1 | DP48: 0.6666666667 | DQ48: 0.4854368932 | DR48: 0.3355130785
BQ49: ANCASH | BR49: =+IFERROR(GETPIVOTDATA("Ind",$BQ$14,"Diris",$BQ49),"-") -> 0.210738255 | BU49: ANCASH | BV49: =+IFERROR(GETPIVOTDATA("Ind",$BU$14,"Diris",$BU49,"mes",BV$47),"-") -> 0.08695652174 | BW49: 0.1388888889 | BX49: 0.2415458937 | BY49: 0.2471910112 | BZ49: 0.2071005917 | CA49: 0.1830985915 | CB49: 0.2178217822 | CC49: 0.2916666667 | CD49: 0.2244897959 | CE49: 0.2290502793 | CF49: 0.26 | CG49: 0.3307692308 | CI49: ANCASH | CJ49: =+IF(BV49="-","-",MIN(BV49:CG49)) -> 0.08695652174 | CK49: =+IF(BV49="-","-",MAX(BV49:CG49)) -> 0.3307692308
BQ50: APURIMAC | BR50: 0.3852080123 | BU50: APURIMAC | BV50: 0.2731958763 | BW50: 0.3689839572 | BX50: 0.447761194 | BY50: 0.2950819672 | BZ50: 0.3865030675 | CA50: 0.358974359 | CB50: 0.5174825175 | CC50: 0.4580152672 | CD50: 0.4189189189 | CE50: 0.4189944134 | CF50: 0.3619631902 | CG50: 0.3915662651 | CI50: APURIMAC | CJ50: 0.2731958763 | CK50: 0.5174825175
BQ51: AREQUIPA | BR51: 0.2385575589 | BU51: AREQUIPA | BV51: 0.03797468354 | BW51: 0.2786885246 | BX51: 0.2068965517 | BY51: 0.2564102564 | BZ51: 0.05084745763 | CA51: 0.2985074627 | CB51: 0.3846153846 | CC51: 0.2222222222 | CD51: 0.1851851852 | CE51: 0.36 | CF51: 0.34 | CG51: 0.36 | CI51: AREQUIPA | CJ51: 0.03797468354 | CK51: 0.3846153846
BQ52: AYACUCHO | BR52: 0.8743455497 | BU52: AYACUCHO | BV52: 0.5909090909 | BW52: 0.9230769231 | BX52: 0.9333333333 | BY52: 0.8333333333 | BZ52: 0.8461538462 | CA52: 0.9375 | CB52: 1 | CC52: 0.9285714286 | CD52: 1 | CE52: 0.7333333333 | CF52: 1 | CG52: 0.8846153846 | CI52: AYACUCHO | CJ52: 0.5909090909 | CK52: 1
BQ53: CAJAMARCA | BR53: 0.1497450162 | BU53: CAJAMARCA | BV53: 0.02205882353 | BW53: 0.1228070175 | BX53: 0.08465608466 | BY53: 0.1646341463 | BZ53: 0.1971153846 | CA53: 0.1076923077 | CB53: 0.1470588235 | CC53: 0.2751677852 | CD53: 0.3289473684 | CE53: 0.1578947368 | CF53: 0.1726618705 | CG53: 0.1438848921 | CI53: CAJAMARCA | CJ53: 0.02205882353 | CK53: 0.3289473684
BQ54: CALLAO | BR54: 0.6551724138 | BU54: CALLAO | BV54: 0.03571428571 | BW54: 0.5 | BX54: 0.7647058824 | BY54: 0.7857142857 | BZ54: 0.7 | CA54: 0.8666666667 | CB54: 0.6086956522 | CC54: 0.7272727273 | CD54: 0.7857142857 | CE54: 0.724137931 | CF54: 0.9375 | CG54: 0.6666666667 | CI54: CALLAO | CJ54: 0.03571428571 | CK54: 0.9375
BQ55: CUSCO | BR55: 0.3162536749 | BU55: CUSCO | BV55: 0.09615384615 | BW55: 0.2465753425 | BX55: 0.309623431 | BY55: 0.3743842365 | BZ55: 0.3625498008 | CA55: 0.3388429752 | CB55: 0.4189944134 | CC55: 0.2793296089 | CD55: 0.3404255319 | CE55: 0.402173913 | CF55: 0.408 | CG55: 0.3333333333 | CI55: CUSCO | CJ55: 0.09615384615 | CK55: 0.4189944134
BQ56: HUANCAVELICA | BR56: 0.291571754 | BU56: HUANCAVELICA | BV56: 0.0625 | BW56: 0.1666666667 | BX56: 0.2702702703 | BY56: 0.3125 | BZ56: 0.25 | CA56: 0.3 | CB56: 0.3684210526 | CC56: 0.4318181818 | CD56: 0.4230769231 | CE56: 0.4102564103 | CF56: 0.2222222222 | CG56: 0.3076923077 | CI56: HUANCAVELICA | CJ56: 0.0625 | CK56: 0.4318181818
BQ57: HUANUCO | BR57: 0.3586744639 | BU57: HUANUCO | BV57: 0.04 | BW57: 0.21875 | BX57: 0.2745098039 | BY57: 0.5 | BZ57: 0.4528301887 | CA57: 0.4782608696 | CB57: 0.3214285714 | CC57: 0.375 | CD57: 0.4615384615 | CE57: 0.4444444444 | CF57: 0.4722222222 | CG57: 0.3333333333 | CI57: HUANUCO | CJ57: 0.04 | CK57: 0.5
BQ58: ICA | BR58: 0.7256097561 | BU58: ICA | BV58: 0.6 | BW58: 0.7 | BX58: 0.6363636364 | BY58: 0.8076923077 | BZ58: 0.6875 | CA58: 0.75 | CB58: 0.8333333333 | CC58: 1 | CD58: 0.8571428571 | CE58: 0.625 | CF58: 0.3636363636 | CG58: 1 | CI58: ICA | CJ58: 0.3636363636 | CK58: 1
BQ59: JUNIN | BR59: 0.4105877449 | BU59: JUNIN | BV59: 0.04248366013 | BW59: 0.2117647059 | BX59: 0.3783783784 | BY59: 0.4941176471 | BZ59: 0.4777777778 | CA59: 0.5065789474 | CB59: 0.5463414634 | CC59: 0.4840182648 | CD59: 0.515 | CE59: 0.4825870647 | CF59: 0.4562211982 | CG59: 0.5257731959 | CI59: JUNIN | CJ59: 0.04248366013 | CK59: 0.5463414634
BQ60: LA LIBERTAD | BR60: 0.7631067961 | BU60: LA LIBERTAD | BV60: 0.3571428571 | BW60: 0.9166666667 | BX60: 0.975 | BY60: 0.8484848485 | BZ60: 0.7454545455 | CA60: 0.796875 | CB60: 0.8813559322 | CC60: 0.7407407407 | CD60: 0.8205128205 | CE60: 0.7735849057 | CF60: 0.5769230769 | CG60: 0.55 | CI60: LA LIBERTAD | CJ60: 0.3571428571 | CK60: 0.975
BQ61: LAMBAYEQUE | BR61: 0.4207650273 | BU61: LAMBAYEQUE | BV61: 0.12 | BW61: 0.2 | BX61: 0.4666666667 | BY61: 0.34375 | BZ61: 0.3095238095 | CA61: 0.4897959184 | CB61: 0.6 | CC61: 0.5142857143 | CD61: 0.4444444444 | CE61: 0.52 | CF61: 0.5806451613 | CG61: 0.2857142857 | CI61: LAMBAYEQUE | CJ61: 0.12 | CK61: 0.6
BQ62: LIMA DIRIS CENTRO | BR62: 0.6476510067 | BU62: LIMA DIRIS CENTRO | BV62: 0.425 | BW62: 0.7260273973 | BX62: 0.7727272727 | BY62: 0.7402597403 | BZ62: 0.6666666667 | CA62: 0.7011494253 | CB62: 0.698630137 | CC62: 0.5079365079 | CD62: 0.5652173913 | CE62: 0.6875 | CF62: 0.6181818182 | CG62: 0.7586206897 | CI62: LIMA DIRIS CENTRO | CJ62: 0.425 | CK62: 0.7727272727
BQ63: LIMA DIRIS ESTE | BR63: 0.8818181818 | BU63: LIMA DIRIS ESTE | BV63: 0.3571428571 | BW63: 0.9090909091 | BX63: 1 | BY63: 0.9166666667 | BZ63: 1 | CA63: 1 | CB63: 1 | CC63: 1 | CD63: 1 | CE63: 1 | CF63: 1 | CG63: 0.5 | CI63: LIMA DIRIS ESTE | CJ63: 0.3571428571 | CK63: 1
BQ64: LIMA DIRIS NORTE | BR64: 0.3072 | BU64: LIMA DIRIS NORTE | BV64: 0.05263157895 | BW64: 0.1111111111 | BX64: 0.2857142857 | BY64: 0.358490566 | BZ64: 0.4561403509 | CA64: 0.3846153846 | CB64: 0.5454545455 | CC64: 0.5714285714 | CD64: 0.3333333333 | CE64: 0.48 | CF64: 0.2222222222 | CG64: 0.3846153846 | CI64: LIMA DIRIS NORTE | CJ64: 0.05263157895 | CK64: 0.5714285714
BQ65: LIMA DIRIS SUR | BR65: 0.7645985401 | BU65: LIMA DIRIS SUR | BV65: 0.6181818182 | BW65: 0.6976744186 | BX65: 0.8367346939 | BY65: 0.8032786885 | BZ65: 0.75 | CA65: 0.9056603774 | CB65: 0.8604651163 | CC65: 0.7948717949 | CD65: 0.7619047619 | CE65: 0.9393939394 | CF65: 0.6136363636 | CG65: 0.6052631579 | CI65: LIMA DIRIS SUR | CJ65: 0.6052631579 | CK65: 0.9393939394
BQ66: LIMA PROVINCIAS | BR66: 0.26 | BU66: LIMA PROVINCIAS | BV66: 0.1333333333 | BW66: 0.2173913043 | BX66: 0.4722222222 | BY66: 0.3333333333 | BZ66: 0.275862069 | CA66: 0.2 | CB66: 0.25 | CC66: 0.3125 | CD66: 0.1481481481 | CE66: 0.25 | CF66: 0.125 | CG66: 0.3571428571 | CI66: LIMA PROVINCIAS | CJ66: 0.125 | CK66: 0.4722222222
BQ67: LORETO | BR67: 0.02216687422 | BU67: LORETO | BV67: 0.002911208151 | BW67: 0.03674540682 | BX67: 0.02215189873 | BY67: 0.02711864407 | BZ67: 0.008498583569 | CA67: 0.01152737752 | CB67: 0.06976744186 | CC67: 0.02867383513 | CD67: 0.03463203463 | CE67: 0.00790513834 | CF67: 0.03100775194 | CG67: 0.0036900369 | CI67: LORETO | CJ67: 0.002911208151 | CK67: 0.06976744186
BQ68: MADRE DE DIOS | BR68: 0.1198465964 | BU68: MADRE DE DIOS | BV68: 0.04379562044 | BW68: 0.0546875 | BX68: 0.06172839506 | BY68: 0.05797101449 | BZ68: 0.07692307692 | CA68: 0.1758241758 | CB68: 0.1547619048 | CC68: 0.2083333333 | CD68: 0.1917808219 | CE68: 0.1558441558 | CF68: 0.1774193548 | CG68: 0.1923076923 | CI68: MADRE DE DIOS | CJ68: 0.04379562044 | CK68: 0.2083333333
BQ69: MOQUEGUA | BR69: 0.1585365854 | BU69: MOQUEGUA | BV69: 0 | BW69: 0 | BX69: 0.5 | BY69: 0.25 | BZ69: 0.1111111111 | CA69: 0.1666666667 | CB69: 0.2 | CC69: 0.2 | CD69: 0.1428571429 | CE69: 0 | CF69: 0.125 | CG69: 0.1666666667 | CI69: MOQUEGUA | CJ69: 0 | CK69: 0.5
BQ70: PASCO | BR70: 0.1777777778 | BU70: PASCO | BV70: 0.05555555556 | BW70: 0.8 | BX70: 0.4 | BY70: 0.1578947368 | BZ70: 0 | CA70: 0.2 | CB70: 0.4 | CC70: 0.125 | CD70: 0.2692307692 | CE70: 0.1176470588 | CF70: 0.1 | CG70: 0 | CI70: PASCO | CJ70: 0 | CK70: 0.8
BQ71: PIURA | BR71: 0.1963414634 | BU71: PIURA | BV71: 0.01587301587 | BW71: 0.1481481481 | BX71: 0.1571428571 | BY71: 0.06451612903 | BZ71: 0.156626506 | CA71: 0.1868131868 | CB71: 0.2365591398 | CC71: 0.2173913043 | CD71: 0.2763157895 | CE71: 0.347826087 | CF71: 0.2978723404 | CG71: 0.2558139535 | CI71: PIURA | CJ71: 0.01587301587 | CK71: 0.347826087
BQ72: PUNO | BR72: 0.2345537757 | BU72: PUNO | BV72: 0.02314814815 | BW72: 0.1849315068 | BX72: 0.2585034014 | BY72: 0.1935483871 | BZ72: 0.198757764 | CA72: 0.2258064516 | CB72: 0.3664122137 | CC72: 0.3466666667 | CD72: 0.2448979592 | CE72: 0.3669064748 | CF72: 0.2542372881 | CG72: 0.2878787879 | CI72: PUNO | CJ72: 0.02314814815 | CK72: 0.3669064748
BQ73: SAN MARTIN | BR73: 0.02916666667 | BU73: SAN MARTIN | BV73: 0 | BW73: 0 | BX73: 0 | BY73: 0 | BZ73: 0.03846153846 | CA73: 0.0625 | CB73: 0 | CC73: 0.1428571429 | CD73: 0 | CE73: 0.08333333333 | CF73: 0.07142857143 | CG73: 0.05263157895 | CI73: SAN MARTIN | CJ73: 0 | CK73: 0.1428571429
BQ74: TACNA | BR74: 0.9710144928 | BU74: TACNA | BV74: 1 | BW74: 1 | BX74: 1 | BY74: 1 | BZ74: 1 | CA74: 1 | CB74: 1 | CC74: 0.6666666667 | CD74: 0.8333333333 | CE74: 1 | CF74: 1 | CG74: 1 | CI74: TACNA | CJ74: 0.6666666667 | CK74: 1
BQ75: TUMBES | BR75: 0.2784810127 | BU75: TUMBES | BV75: 0.09090909091 | BW75: 0.2 | BX75: 0.1111111111 | BY75: 0.3214285714 | BZ75: 0.1578947368 | CA75: 0.1818181818 | CB75: 0.24 | CC75: 0.5416666667 | CD75: 0.375 | CE75: 0.2857142857 | CF75: 0.4615384615 | CG75: 0.6666666667 | CI75: TUMBES | CJ75: 0.09090909091 | CK75: 0.6666666667
BQ76: UCAYALI | BR76: 0.4047253759 | BU76: UCAYALI | BV76: 0.1187845304 | BW76: 0.3076923077 | BX76: 0.4303797468 | BY76: 0.4372759857 | BZ76: 0.3630363036 | CA76: 0.4229249012 | CB76: 0.5036764706 | CC76: 0.5392491468 | CD76: 0.4980842912 | CE76: 0.4254385965 | CF76: 0.4460093897 | CG76: 0.4854368932 | CI76: UCAYALI | CJ76: 0.1187845304 | CK76: 0.5392491468
BQ77: NACIONAL | BR77: =+IFERROR(GETPIVOTDATA("Ind",$BQ$14),"-") -> 0.2930855122 | BU77: NACIONAL | BV77: =+IFERROR(GETPIVOTDATA("Ind",$BU$14,"mes",BV$47),"-") -> 0.09523809524 | BW77: =+IFERROR(GETPIVOTDATA("Ind",$BU$14,"mes",BW$47),"-") -> 0.2209944751 | BX77: 0.3012535382 | BY77: 0.3186627169 | BZ77: 0.294504644 | CA77: 0.310546875 | CB77: 0.3666943522 | CC77: 0.3635962979 | CD77: 0.3594059406 | CE77: 0.3536139067 | CF77: 0.3237410072 | CG77: 0.3355130785 | CI77: NACIONAL | CJ77: 0.09523809524 | CK77: 0.3666943522

Sheet DL_1153_2025_CG06
A1: =+DL1153_2025!C12 -> Ficha 06:Porcentaje de niñas y niños de 1 año vacunados con dos dosis de vacuna sarampión, parotiditis y rubeola (SPR). | BP1: 1 | DT1: 1
A2: Periodo de Evaluación: | B2: =+DL1153_2025!B42 -> Diciembre - 2025
J3: Diris | K3: (Todas)
J4: Provincia | K4: (Todas)
A5: año | B5: (Todas) | J5: Red | K5: (Todas)
A6: mes | B6: 12 | J6: Distrito | K6: (Todas)
A7: DIRESA/ DIRIS | B7: RED | C7: Provincia | D7: Distrito | E7: UBIGEO | F7: Denominador: Niñas/niños de 1 año del padrón nominal | G7: Numerador: Niñas/niños menores de 2 años y mayor de 1 año, que recibieron 2 dosis de la vacuna SPR registrados en HIS con código CPMS 90707 y lab 2. | H7: Indicador: Porcentaje de niñas y niños de 1 año vacunados con dos dosis de vacuna sarampión, parotiditis y rubeola (SPR). | J7: AÑO | K7: MES | L7: Denominador: Niñas/niños de 1 año del padrón nominal | M7: Numerador: Niñas/niños menores de 2 años y mayor de 1 año, que recibieron 2 dosis de la vacuna SPR registrados en HIS con código CPMS 90707 y lab 2. | N7: Indicador: Porcentaje de niñas y niños de 1 año vacunados con dos dosis de vacuna sarampión, parotiditis y rubeola (SPR).
A8: Diris | B8: Red | C8: Provincia | D8: Distrito | E8: ubigeo | F8: Denominador | G8: Numerador | H8: Indicador | J8: año | K8: mes | L8: Denominador | M8: Numerador | N8: Indicador
A9: AMAZONAS | F9: 8665 | G9: 6850 | H9: 0.7905366417 | J9: 2025 | K9: 1 | L9: 406914 | M9: 24001 | N9: 0.0589829792
A10: ANCASH | F10: 14647 | G10: 12053 | H10: 0.8228988871 | J10: 2025 | K10: 2 | L10: 406914 | M10: 46387 | N10: 0.1139970608
A11: APURIMAC | F11: 5865 | G11: 4877 | H11: 0.831543052 | J11: 2025 | K11: 3 | L11: 406914 | M11: 72603 | N11: 0.1784234507 | BQ11: mes | BR11: 12
A12: AREQUIPA | F12: 16435 | G12: 8903 | H12: 0.5417097657 | J12: 2025 | K12: 4 | L12: 406914 | M12: 97824 | N12: 0.2404046064 | BQ12: año | BR12: (Todas) | BU12: año | BV12: (Todas) | CN12: año | CO12: (Todas)
A13: AYACUCHO | F13: 8406 | G13: 7108 | H13: 0.8455864858 | J13: 2025 | K13: 5 | L13: 406914 | M13: 122965 | N13: 0.3021891604
A14: CAJAMARCA | F14: 21107 | G14: 17008 | H14: 0.805799024 | J14: 2025 | K14: 6 | L14: 406914 | M14: 145190 | N14: 0.356807581 | BQ14: Diris | BR14: Suma de ind | BU14: Suma de ind | BV14: mes | CN14: Suma de ind | CO14: Diris
A15: CALLAO | F15: 10945 | G15: 7415 | H15: 0.6774783006 | J15: 2025 | K15: 7 | L15: 406914 | M15: 168152 | N15: 0.4132371951 | BQ15: AMAZONAS | BR15: 0.7905366417 | BU15: Diris | BV15: 1 | BW15: 2 | BX15: 3 | BY15: 4 | BZ15: 5 | CA15: 6 | CB15: 7 | CC15: 8 | CD15: 9 | CE15: 10 | CF15: 11 | CG15: 12 | CN15: mes | CO15: AMAZONAS | CP15: ANCASH | CQ15: APURIMAC | CR15: AREQUIPA | CS15: AYACUCHO | CT15: CAJAMARCA | CU15: CALLAO | CV15: CUSCO | CW15: HUANCAVELICA | CX15: HUANUCO | CY15: ICA | CZ15: JUNIN | DA15: LA LIBERTAD | DB15: LAMBAYEQUE | DC15: LIMA DIRIS CENTRO | DD15: LIMA DIRIS ESTE | DE15: LIMA DIRIS NORTE | DF15: LIMA DIRIS SUR | DG15: LIMA PROVINCIAS | DH15: LORETO | DI15: MADRE DE DIOS | DJ15: MOQUEGUA | DK15: PASCO | DL15: PIURA | DM15: PUNO | DN15: SAN MARTIN | DO15: TACNA | DP15: TUMBES | DQ15: UCAYALI | DR15: Total general
A16: CUSCO | F16: 17184 | G16: 13390 | H16: 0.7792132216 | J16: 2025 | K16: 8 | L16: 406914 | M16: 192198 | N16: 0.4723307628 | BQ16: ANCASH | BR16: 0.8228988871 | BU16: AMAZONAS | BV16: 0.06555106751 | BW16: 0.1237160992 | BX16: 0.1972302366 | BY16: 0.2642815926 | BZ16: 0.3419503751 | CA16: 0.402423543 | CB16: 0.471321408 | CC16: 0.5351413733 | CD16: 0.6015002885 | CE16: 0.6739757646 | CF16: 0.7316791691 | CG16: 0.7905366417 | CN16: Enero | CO16: 0.06555106751 | CP16: 0.07189185499 | CQ16: 0.07382779199 | CR16: 0.04131426833 | CS16: 0.07625505591 | CT16: 0.07272468849 | CU16: 0.06167199635 | CV16: 0.0708216946 | CW16: 0.08141632837 | CX16: 0.07356722236 | CY16: 0.0619394404 | CZ16: 0.06782437746 | DA16: 0.06122674934 | DB16: 0.05481334873 | DC16: 0.03732734675 | DD16: 0.04144216439 | DE16: 0.04547521601 | DF16: 0.06267203049 | DG16: 0.08170455499 | DH16: 0.04509218956 | DI16: 0.03607153683 | DJ16: 0.0591563786 | DK16: 0.063677368 | DL16: 0.06793497302 | DM16: 0.05010842627 | DN16: 0.06661710037 | DO16: 0.05156115726 | DP16: 0.08132624335 | DQ16: 0.04042662997 | DR16: 0.0589829792
A17: HUANCAVELICA | F17: 4434 | G17: 3959 | H17: 0.8928732521 | J17: 2025 | K17: 9 | L17: 406914 | M17: 215831 | N17: 0.530409374 | BQ17: APURIMAC | BR17: 0.831543052 | BU17: ANCASH | BV17: 0.07189185499 | BW17: 0.1356591794 | BX17: 0.2131494504 | BY17: 0.2838123848 | BZ17: 0.354065679 | CA17: 0.4169454496 | CB17: 0.4798934935 | CC17: 0.5474158531 | CD17: 0.6156892196 | CE17: 0.6903802827 | CF17: 0.7584488291 | CG17: 0.8228988871 | CN17: Febrero | CO17: 0.1237160992 | CP17: 0.1356591794 | CQ17: 0.1382779199 | CR17: 0.08189838759 | CS17: 0.1434689507 | CT17: 0.1331785664 | CU17: 0.1167656464 | CV17: 0.1318086592 | CW17: 0.1538114569 | CX17: 0.1366011446 | CY17: 0.1204292833 | CZ17: 0.1347750109 | DA17: 0.1179140833 | DB17: 0.1037989994 | DC17: 0.07374148624 | DD17: 0.08242577095 | DE17: 0.08850176654 | DF17: 0.1264874021 | DG17: 0.1529234125 | DH17: 0.09321660879 | DI17: 0.08214610488 | DJ17: 0.1116255144 | DK17: 0.1212523216 | DL17: 0.1337677808 | DM17: 0.103082404 | DN17: 0.1230483271 | DO17: 0.09739329705 | DP17: 0.1582733813 | DQ17: 0.08111130225 | DR17: 0.1139970608
A18: HUANUCO | F18: 12057 | G18: 9977 | H18: 0.8274861077 | J18: 2025 | K18: 10 | L18: 406914 | M18: 240684 | N18: 0.5914861617 | BQ18: AREQUIPA | BR18: 0.5417097657 | BU18: APURIMAC | BV18: 0.07382779199 | BW18: 0.1382779199 | BX18: 0.2136402387 | BY18: 0.2823529412 | BZ18: 0.3551577153 | CA18: 0.4173913043 | CB18: 0.4876385337 | CC18: 0.5609548167 | CD18: 0.6323955669 | CE18: 0.7045183291 | CF18: 0.768456948 | CG18: 0.831543052 | CN18: Marzo | CO18: 0.1972302366 | CP18: 0.2131494504 | CQ18: 0.2136402387 | CR18: 0.1249771828 | CS18: 0.2167499405 | CT18: 0.2028710854 | CU18: 0.1927820923 | CV18: 0.2051908752 | CW18: 0.2413170952 | CX18: 0.2143153355 | CY18: 0.1862016098 | CZ18: 0.2032546964 | DA18: 0.1835695306 | DB18: 0.1569080213 | DC18: 0.11194399 | DD18: 0.1304597042 | DE18: 0.140203589 | DF18: 0.2150751641 | DG18: 0.2347957386 | DH18: 0.1545458992 | DI18: 0.1257956957 | DJ18: 0.1661522634 | DK18: 0.1820111435 | DL18: 0.2028589447 | DM18: 0.1645755886 | DN18: 0.193605948 | DO18: 0.1572615296 | DP18: 0.245229903 | DQ18: 0.133493893 | DR18: 0.1784234507
A19: ICA | F19: 13045 | G19: 9177 | H19: 0.7034879264 | J19: 2025 | K19: 11 | L19: 406914 | M19: 263935 | N19: 0.6486259996 | BQ19: AYACUCHO | BR19: 0.8455864858 | BU19: AREQUIPA | BV19: 0.04131426833 | BW19: 0.08189838759 | BX19: 0.1249771828 | BY19: 0.1710374201 | BZ19: 0.2209309401 | CA19: 0.2674170977 | CB19: 0.3187709157 | CC19: 0.3642835412 | CD19: 0.4135686036 | CE19: 0.4611499848 | CF19: 0.5035594767 | CG19: 0.5417097657 | CN19: Abril | CO19: 0.2642815926 | CP19: 0.2838123848 | CQ19: 0.2823529412 | CR19: 0.1710374201 | CS19: 0.2925291458 | CT19: 0.269815701 | CU19: 0.2502512563 | CV19: 0.2706005587 | CW19: 0.3146143437 | CX19: 0.284564983 | CY19: 0.2453813722 | CZ19: 0.2723350808 | DA19: 0.2448331857 | DB19: 0.2173841333 | DC19: 0.1522392603 | DD19: 0.1794680729 | DE19: 0.1905061741 | DF19: 0.3070929494 | DG19: 0.3210301149 | DH19: 0.2199833716 | DI19: 0.1718702637 | DJ19: 0.2242798354 | DK19: 0.2310957814 | DL19: 0.2601079111 | DM19: 0.218866171 | DN19: 0.2650557621 | DO19: 0.21311945 | DP19: 0.3184235221 | DQ19: 0.1857044555 | DR19: 0.2404046064
A20: JUNIN | F20: 18312 | G20: 14394 | H20: 0.7860419397 | J20: 2025 | K20: 12 | L20: 406914 | M20: 284460 | N20: 0.6990666332 | BQ20: CAJAMARCA | BR20: 0.805799024 | BU20: AYACUCHO | BV20: 0.07625505591 | BW20: 0.1434689507 | BX20: 0.2167499405 | BY20: 0.2925291458 | BZ20: 0.3602188913 | CA20: 0.4242207947 | CB20: 0.4901261004 | CC20: 0.564120866 | CD20: 0.640375922 | CE20: 0.7173447537 | CF20: 0.7830121342 | CG20: 0.8455864858 | CN20: Mayo | CO20: 0.3419503751 | CP20: 0.354065679 | CQ20: 0.3551577153 | CR20: 0.2209309401 | CS20: 0.3602188913 | CT20: 0.3392239541 | CU20: 0.3041571494 | CV20: 0.3356610801 | CW20: 0.3840775823 | CX20: 0.355146388 | CY20: 0.3004982752 | CZ20: 0.3350808213 | DA20: 0.3083480957 | DB20: 0.2740667436 | DC20: 0.1931813858 | DD20: 0.2264129313 | DE20: 0.2338475531 | DF20: 0.4162185052 | DG20: 0.39912759 | DH20: 0.2781337115 | DI20: 0.2185510761 | DJ20: 0.2690329218 | DK20: 0.2942425046 | DL20: 0.3188984654 | DM20: 0.2751703841 | DN20: 0.3335315985 | DO20: 0.2735605844 | DP20: 0.3913043478 | DQ20: 0.2365387924 | DR20: 0.3021891604
A21: LA LIBERTAD | F21: 27096 | G21: 19588 | H21: 0.7229111308 | BQ21: CALLAO | BR21: 0.6774783006 | BU21: CAJAMARCA | BV21: 0.07272468849 | BW21: 0.1331785664 | BX21: 0.2028710854 | BY21: 0.269815701 | BZ21: 0.3392239541 | CA21: 0.4022362249 | CB21: 0.4697493722 | CC21: 0.5389681148 | CD21: 0.6043966457 | CE21: 0.6777372436 | CF21: 0.747382385 | CG21: 0.805799024 | CN21: Junio | CO21: 0.402423543 | CP21: 0.4169454496 | CQ21: 0.4173913043 | CR21: 0.2674170977 | CS21: 0.4242207947 | CT21: 0.4022362249 | CU21: 0.3543170397 | CV21: 0.3918761639 | CW21: 0.4553450609 | CX21: 0.4223272788 | CY21: 0.352625527 | CZ21: 0.3954237658 | DA21: 0.3648139947 | DB21: 0.3224476332 | DC21: 0.2259807465 | DD21: 0.2724979938 | DE21: 0.273970686 | DF21: 0.4934998941 | DG21: 0.4671587954 | DH21: 0.3290947327 | DI21: 0.2694755987 | DJ21: 0.3070987654 | DK21: 0.3526134253 | DL21: 0.3739751945 | DM21: 0.3230328377 | DN21: 0.3957620818 | DO21: 0.3337152678 | DP21: 0.4522990303 | DQ21: 0.2848787201 | DR21: 0.356807581
A22: LAMBAYEQUE | F22: 18189 | G22: 11259 | H22: 0.6190004948 | BQ22: CUSCO | BR22: 0.7792132216 | BU22: CALLAO | BV22: 0.06167199635 | BW22: 0.1167656464 | BX22: 0.1927820923 | BY22: 0.2502512563 | BZ22: 0.3041571494 | CA22: 0.3543170397 | CB22: 0.4085883965 | CC22: 0.4613978986 | CD22: 0.5108268616 | CE22: 0.5727729557 | CF22: 0.6337140247 | CG22: 0.6774783006 | CN22: Julio | CO22: 0.471321408 | CP22: 0.4798934935 | CQ22: 0.4876385337 | CR22: 0.3187709157 | CS22: 0.4901261004 | CT22: 0.4697493722 | CU22: 0.4085883965 | CV22: 0.4557728119 | CW22: 0.5315741994 | CX22: 0.4899228664 | CY22: 0.4068991951 | CZ22: 0.4598077763 | DA22: 0.4222394449 | DB22: 0.3708285227 | DC22: 0.2585898558 | DD22: 0.3105009744 | DE22: 0.3114352678 | DF22: 0.5695109041 | DG22: 0.5326734334 | DH22: 0.3844573776 | DI22: 0.3249469536 | DJ22: 0.3554526749 | DK22: 0.4162907933 | DL22: 0.4289468152 | DM22: 0.3822026022 | DN22: 0.4635687732 | DO22: 0.3884273847 | DP22: 0.5145448858 | DQ22: 0.3355410287 | DR22: 0.4132371951
A23: LIMA DIRIS CENTRO | F23: 26281 | G23: 11833 | H23: 0.4502492295 | BQ23: HUANCAVELICA | BR23: 0.8928732521 | BU23: CUSCO | BV23: 0.0708216946 | BW23: 0.1318086592 | BX23: 0.2051908752 | BY23: 0.2706005587 | BZ23: 0.3356610801 | CA23: 0.3918761639 | CB23: 0.4557728119 | CC23: 0.5261289572 | CD23: 0.5954958101 | CE23: 0.6620111732 | CF23: 0.7236382682 | CG23: 0.7792132216 | CN23: Agosto | CO23: 0.5351413733 | CP23: 0.5474158531 | CQ23: 0.5609548167 | CR23: 0.3642835412 | CS23: 0.564120866 | CT23: 0.5389681148 | CU23: 0.4613978986 | CV23: 0.5261289572 | CW23: 0.6093820478 | CX23: 0.5585137265 | CY23: 0.4649290916 | CZ23: 0.5280144168 | DA23: 0.483318571 | DB23: 0.4176150421 | DC23: 0.2972870134 | DD23: 0.3710879285 | DE23: 0.3596389967 | DF23: 0.6287952573 | DG23: 0.6110225652 | DH23: 0.4437814838 | DI23: 0.3840557745 | DJ23: 0.3976337449 | DK23: 0.4929689573 | DL23: 0.4854249877 | DM23: 0.4350991326 | DN23: 0.5341263941 | DO23: 0.4419936981 | DP23: 0.5752267751 | DQ23: 0.3856012386 | DR23: 0.4723307628
A24: LIMA DIRIS ESTE | F24: 17446 | G24: 9961 | H24: 0.5709618251 | BQ24: HUANUCO | BR24: 0.8274861077 | BU24: HUANCAVELICA | BV24: 0.08141632837 | BW24: 0.1538114569 | BX24: 0.2413170952 | BY24: 0.3146143437 | BZ24: 0.3840775823 | CA24: 0.4553450609 | CB24: 0.5315741994 | CC24: 0.6093820478 | CD24: 0.6792963464 | CE24: 0.7564276049 | CF24: 0.8177717636 | CG24: 0.8928732521 | CN24: Setiembre | CO24: 0.6015002885 | CP24: 0.6156892196 | CQ24: 0.6323955669 | CR24: 0.4135686036 | CS24: 0.640375922 | CT24: 0.6043966457 | CU24: 0.5108268616 | CV24: 0.5954958101 | CW24: 0.6792963464 | CX24: 0.6308368583 | CY24: 0.5314679954 | CZ24: 0.5928899083 | DA24: 0.5420357248 | DB24: 0.467040519 | DC24: 0.3398653019 | DD24: 0.4184913447 | DE24: 0.4004967293 | DF24: 0.6941350836 | DG24: 0.6869390152 | DH24: 0.490585416 | DI24: 0.4401333737 | DJ24: 0.4459876543 | DK24: 0.5577076148 | DL24: 0.5419732324 | DM24: 0.4916356877 | DN24: 0.6027509294 | DO24: 0.5127470639 | DP24: 0.640600563 | DQ24: 0.4355754344 | DR24: 0.530409374
A25: LIMA DIRIS NORTE | F25: 28587 | G25: 15218 | H25: 0.5323398748 | BQ25: ICA | BR25: 0.7034879264 | BU25: HUANUCO | BV25: 0.07356722236 | BW25: 0.1366011446 | BX25: 0.2143153355 | BY25: 0.284564983 | BZ25: 0.355146388 | CA25: 0.4223272788 | CB25: 0.4899228664 | CC25: 0.5585137265 | CD25: 0.6308368583 | CE25: 0.7005059302 | CF25: 0.7661939123 | CG25: 0.8274861077 | CN25: Octubre | CO25: 0.6739757646 | CP25: 0.6903802827 | CQ25: 0.7045183291 | CR25: 0.4611499848 | CS25: 0.7173447537 | CT25: 0.6777372436 | CU25: 0.5727729557 | CV25: 0.6620111732 | CW25: 0.7564276049 | CX25: 0.7005059302 | CY25: 0.5977002683 | CZ25: 0.6666666667 | DA25: 0.60329938 | DB25: 0.52113915 | DC25: 0.3832426468 | DD25: 0.4759257136 | DE25: 0.4469863924 | DF25: 0.746855812 | DG25: 0.7681402567 | DH25: 0.5386120213 | DI25: 0.5101545923 | DJ25: 0.4974279835 | DK25: 0.6205890157 | DL25: 0.6095928807 | DM25: 0.5455390335 | DN25: 0.6700371747 | DO25: 0.5723288456 | DP25: 0.7128558023 | DQ25: 0.4927748151 | DR25: 0.5914861617
A26: LIMA DIRIS SUR | F26: 23615 | G26: 20217 | H26: 0.8561084057 | BQ26: JUNIN | BR26: 0.7860419397 | BU26: ICA | BV26: 0.0619394404 | BW26: 0.1204292833 | BX26: 0.1862016098 | BY26: 0.2453813722 | BZ26: 0.3004982752 | CA26: 0.352625527 | CB26: 0.4068991951 | CC26: 0.4649290916 | CD26: 0.5314679954 | CE26: 0.5977002683 | CF26: 0.6522039095 | CG26: 0.7034879264 | CN26: Noviembre | CO26: 0.7316791691 | CP26: 0.7584488291 | CQ26: 0.768456948 | CR26: 0.5035594767 | CS26: 0.7830121342 | CT26: 0.747382385 | CU26: 0.6337140247 | CV26: 0.7236382682 | CW26: 0.8177717636 | CX26: 0.7661939123 | CY26: 0.6522039095 | CZ26: 0.7302315422 | DA26: 0.6662237969 | DB26: 0.5718841058 | DC26: 0.4188196796 | DD26: 0.5295769804 | DE26: 0.4913771994 | DF26: 0.813974169 | DG26: 0.8419595672 | DH26: 0.5798405634 | DI26: 0.5741133677 | DJ26: 0.5473251029 | DK26: 0.6797559034 | DL26: 0.6783336837 | DM26: 0.5986679058 | DN26: 0.7332342007 | DO26: 0.6287596677 | DP26: 0.7838598686 | DQ26: 0.5328573886 | DR26: 0.6486259996
A27: LIMA PROVINCIAS | F27: 11921 | G27: 10841 | H27: 0.9094035735 | BQ27: LA LIBERTAD | BR27: 0.7229111308 | BU27: JUNIN | BV27: 0.06782437746 | BW27: 0.1347750109 | BX27: 0.2032546964 | BY27: 0.2723350808 | BZ27: 0.3350808213 | CA27: 0.3954237658 | CB27: 0.4598077763 | CC27: 0.5280144168 | CD27: 0.5928899083 | CE27: 0.6666666667 | CF27: 0.7302315422 | CG27: 0.7860419397 | CN27: Diciembre | CO27: 0.7905366417 | CP27: 0.8228988871 | CQ27: 0.831543052 | CR27: 0.5417097657 | CS27: 0.8455864858 | CT27: 0.805799024 | CU27: 0.6774783006 | CV27: 0.7792132216 | CW27: 0.8928732521 | CX27: 0.8274861077 | CY27: 0.7034879264 | CZ27: 0.7860419397 | DA27: 0.7229111308 | DB27: 0.6190004948 | DC27: 0.4502492295 | DD27: 0.5709618251 | DE27: 0.5323398748 | DF27: 0.8561084057 | DG27: 0.9094035735 | DH27: 0.6211180124 | DI27: 0.6186723249 | DJ27: 0.591563786 | DK27: 0.7413106925 | DL27: 0.7405577745 | DM27: 0.6478469641 | DN27: 0.7917472119 | DO27: 0.6834717846 | DP27: 0.8351579606 | DQ27: 0.5625322553 | DR27: 0.6990666332
A28: LORETO | F28: 20447 | G28: 12700 | H28: 0.6211180124 | BQ28: LAMBAYEQUE | BR28: 0.6190004948 | BU28: LA LIBERTAD | BV28: 0.06122674934 | BW28: 0.1179140833 | BX28: 0.1835695306 | BY28: 0.2448331857 | BZ28: 0.3083480957 | CA28: 0.3648139947 | CB28: 0.4222394449 | CC28: 0.483318571 | CD28: 0.5420357248 | CE28: 0.60329938 | CF28: 0.6662237969 | CG28: 0.7229111308
A29: MADRE DE DIOS | F29: 3299 | G29: 2041 | H29: 0.6186723249 | BQ29: LIMA DIRIS CENTRO | BR29: 0.4502492295 | BU29: LAMBAYEQUE | BV29: 0.05481334873 | BW29: 0.1037989994 | BX29: 0.1569080213 | BY29: 0.2173841333 | BZ29: 0.2740667436 | CA29: 0.3224476332 | CB29: 0.3708285227 | CC29: 0.4176150421 | CD29: 0.467040519 | CE29: 0.52113915 | CF29: 0.5718841058 | CG29: 0.6190004948
A30: MOQUEGUA | F30: 1944 | G30: 1150 | H30: 0.591563786 | BQ30: LIMA DIRIS ESTE | BR30: 0.5709618251 | BU30: LIMA DIRIS CENTRO | BV30: 0.03732734675 | BW30: 0.07374148624 | BX30: 0.11194399 | BY30: 0.1522392603 | BZ30: 0.1931813858 | CA30: 0.2259807465 | CB30: 0.2585898558 | CC30: 0.2972870134 | CD30: 0.3398653019 | CE30: 0.3832426468 | CF30: 0.4188196796 | CG30: 0.4502492295
A31: PASCO | F31: 3769 | G31: 2794 | H31: 0.7413106925 | BQ31: LIMA DIRIS NORTE | BR31: 0.5323398748 | BU31: LIMA DIRIS ESTE | BV31: 0.04144216439 | BW31: 0.08242577095 | BX31: 0.1304597042 | BY31: 0.1794680729 | BZ31: 0.2264129313 | CA31: 0.2724979938 | CB31: 0.3105009744 | CC31: 0.3710879285 | CD31: 0.4184913447 | CE31: 0.4759257136 | CF31: 0.5295769804 | CG31: 0.5709618251
A32: PIURA | F32: 28542 | G32: 21137 | H32: 0.7405577745 | BQ32: LIMA DIRIS SUR | BR32: 0.8561084057 | BU32: LIMA DIRIS NORTE | BV32: 0.04547521601 | BW32: 0.08850176654 | BX32: 0.140203589 | BY32: 0.1905061741 | BZ32: 0.2338475531 | CA32: 0.273970686 | CB32: 0.3114352678 | CC32: 0.3596389967 | CD32: 0.4004967293 | CE32: 0.4469863924 | CF32: 0.4913771994 | CG32: 0.5323398748
A33: PUNO | F33: 12912 | G33: 8365 | H33: 0.6478469641 | BQ33: LIMA PROVINCIAS | BR33: 0.9094035735 | BU33: LIMA DIRIS SUR | BV33: 0.06267203049 | BW33: 0.1264874021 | BX33: 0.2150751641 | BY33: 0.3070929494 | BZ33: 0.4162185052 | CA33: 0.4934998941 | CB33: 0.5695109041 | CC33: 0.6287952573 | CD33: 0.6941350836 | CE33: 0.746855812 | CF33: 0.813974169 | CG33: 0.8561084057
A34: SAN MARTIN | F34: 13450 | G34: 10649 | H34: 0.7917472119 | BQ34: LORETO | BR34: 0.6211180124 | BU34: LIMA PROVINCIAS | BV34: 0.08170455499 | BW34: 0.1529234125 | BX34: 0.2347957386 | BY34: 0.3210301149 | BZ34: 0.39912759 | CA34: 0.4671587954 | CB34: 0.5326734334 | CC34: 0.6110225652 | CD34: 0.6869390152 | CE34: 0.7681402567 | CF34: 0.8419595672 | CG34: 0.9094035735
A35: TACNA | F35: 3491 | G35: 2386 | H35: 0.6834717846 | BQ35: MADRE DE DIOS | BR35: 0.6186723249 | BU35: LORETO | BV35: 0.04509218956 | BW35: 0.09321660879 | BX35: 0.1545458992 | BY35: 0.2199833716 | BZ35: 0.2781337115 | CA35: 0.3290947327 | CB35: 0.3844573776 | CC35: 0.4437814838 | CD35: 0.490585416 | CE35: 0.5386120213 | CF35: 0.5798405634 | CG35: 0.6211180124
A36: TUMBES | F36: 3197 | G36: 2670 | H36: 0.8351579606 | BQ36: MOQUEGUA | BR36: 0.591563786 | BU36: MADRE DE DIOS | BV36: 0.03607153683 | BW36: 0.08214610488 | BX36: 0.1257956957 | BY36: 0.1718702637 | BZ36: 0.2185510761 | CA36: 0.2694755987 | CB36: 0.3249469536 | CC36: 0.3840557745 | CD36: 0.4401333737 | CE36: 0.5101545923 | CF36: 0.5741133677 | CG36: 0.6186723249 | CO36: AMAZONAS | CP36: ANCASH | CQ36: APURIMAC | CR36: AREQUIPA | CS36: AYACUCHO | CT36: CAJAMARCA | CU36: CALLAO | CV36: CUSCO | CW36: HUANCAVELICA | CX36: HUANUCO | CY36: ICA | CZ36: JUNIN | DA36: LA LIBERTAD | DB36: LAMBAYEQUE | DC36: LIMA DIRIS CENTRO | DD36: LIMA DIRIS ESTE | DE36: LIMA DIRIS NORTE | DF36: LIMA DIRIS SUR | DG36: LIMA PROVINCIAS | DH36: LORETO | DI36: MADRE DE DIOS | DJ36: MOQUEGUA | DK36: PASCO | DL36: PIURA | DM36: PUNO | DN36: SAN MARTIN | DO36: TACNA | DP36: TUMBES | DQ36: UCAYALI | DR36: NACIONAL
A37: UCAYALI | F37: 11626 | G37: 6540 | H37: 0.5625322553 | BQ37: PASCO | BR37: 0.7413106925 | BU37: MOQUEGUA | BV37: 0.0591563786 | BW37: 0.1116255144 | BX37: 0.1661522634 | BY37: 0.2242798354 | BZ37: 0.2690329218 | CA37: 0.3070987654 | CB37: 0.3554526749 | CC37: 0.3976337449 | CD37: 0.4459876543 | CE37: 0.4974279835 | CF37: 0.5473251029 | CG37: 0.591563786 | CN37: Enero | CO37: =+IFERROR(GETPIVOTDATA("ind",$CN$14,"Diris",CO$36,"mes",$CN37),"-") -> 0.06555106751 | CP37: 0.07189185499 | CQ37: 0.07382779199 | CR37: 0.04131426833 | CS37: 0.07625505591 | CT37: 0.07272468849 | CU37: 0.06167199635 | CV37: 0.0708216946 | CW37: 0.08141632837 | CX37: 0.07356722236 | CY37: =+IFERROR(GETPIVOTDATA("ind",$CN$14,"Diris",CY$36,"mes",$CN37),"-") -> 0.0619394404 | CZ37: 0.06782437746 | DA37: 0.06122674934 | DB37: 0.05481334873 | DC37: 0.03732734675 | DD37: 0.04144216439 | DE37: 0.04547521601 | DF37: 0.06267203049 | DG37: 0.08170455499 | DH37: 0.04509218956 | DI37: =+IFERROR(GETPIVOTDATA("ind",$CN$14,"Diris",DI$36,"mes",$CN37),"-") -> 0.03607153683 | DJ37: 0.0591563786 | DK37: 0.063677368 | DL37: 0.06793497302 | DM37: 0.05010842627 | DN37: 0.06661710037 | DO37: 0.05156115726 | DP37: 0.08132624335 | DQ37: 0.04042662997 | DR37: =+IFERROR(GETPIVOTDATA("ind",$CN$14,"mes",$CN37),"-") -> 0.0589829792
A38: Total general | F38: 406914 | G38: 284460 | H38: 0.6990666332 | BQ38: PIURA | BR38: 0.7405577745 | BU38: PASCO | BV38: 0.063677368 | BW38: 0.1212523216 | BX38: 0.1820111435 | BY38: 0.2310957814 | BZ38: 0.2942425046 | CA38: 0.3526134253 | CB38: 0.4162907933 | CC38: 0.4929689573 | CD38: 0.5577076148 | CE38: 0.6205890157 | CF38: 0.6797559034 | CG38: 0.7413106925 | CN38: Febrero | CO38: 0.1237160992 | CP38: 0.1356591794 | CQ38: 0.1382779199 | CR38: 0.08189838759 | CS38: 0.1434689507 | CT38: 0.1331785664 | CU38: 0.1167656464 | CV38: 0.1318086592 | CW38: 0.1538114569 | CX38: 0.1366011446 | CY38: 0.1204292833 | CZ38: 0.1347750109 | DA38: 0.1179140833 | DB38: 0.1037989994 | DC38: 0.07374148624 | DD38: 0.08242577095 | DE38: 0.08850176654 | DF38: 0.1264874021 | DG38: 0.1529234125 | DH38: 0.09321660879 | DI38: 0.08214610488 | DJ38: 0.1116255144 | DK38: 0.1212523216 | DL38: 0.1337677808 | DM38: 0.103082404 | DN38: 0.1230483271 | DO38: 0.09739329705 | DP38: 0.1582733813 | DQ38: 0.08111130225 | DR38: 0.1139970608
BQ39: PUNO | BR39: 0.6478469641 | BU39: PIURA | BV39: 0.06793497302 | BW39: 0.1337677808 | BX39: 0.2028589447 | BY39: 0.2601079111 | BZ39: 0.3188984654 | CA39: 0.3739751945 | CB39: 0.4289468152 | CC39: 0.4854249877 | CD39: 0.5419732324 | CE39: 0.6095928807 | CF39: 0.6783336837 | CG39: 0.7405577745 | CN39: Marzo | CO39: 0.1972302366 | CP39: 0.2131494504 | CQ39: 0.2136402387 | CR39: 0.1249771828 | CS39: 0.2167499405 | CT39: 0.2028710854 | CU39: 0.1927820923 | CV39: 0.2051908752 | CW39: 0.2413170952 | CX39: 0.2143153355 | CY39: 0.1862016098 | CZ39: 0.2032546964 | DA39: 0.1835695306 | DB39: 0.1569080213 | DC39: 0.11194399 | DD39: 0.1304597042 | DE39: 0.140203589 | DF39: 0.2150751641 | DG39: 0.2347957386 | DH39: 0.1545458992 | DI39: 0.1257956957 | DJ39: 0.1661522634 | DK39: 0.1820111435 | DL39: 0.2028589447 | DM39: 0.1645755886 | DN39: 0.193605948 | DO39: 0.1572615296 | DP39: 0.245229903 | DQ39: 0.133493893 | DR39: 0.1784234507
BQ40: SAN MARTIN | BR40: 0.7917472119 | BU40: PUNO | BV40: 0.05010842627 | BW40: 0.103082404 | BX40: 0.1645755886 | BY40: 0.218866171 | BZ40: 0.2751703841 | CA40: 0.3230328377 | CB40: 0.3822026022 | CC40: 0.4350991326 | CD40: 0.4916356877 | CE40: 0.5455390335 | CF40: 0.5986679058 | CG40: 0.6478469641 | CN40: Abril | CO40: 0.2642815926 | CP40: 0.2838123848 | CQ40: 0.2823529412 | CR40: 0.1710374201 | CS40: 0.2925291458 | CT40: 0.269815701 | CU40: 0.2502512563 | CV40: 0.2706005587 | CW40: 0.3146143437 | CX40: 0.284564983 | CY40: 0.2453813722 | CZ40: 0.2723350808 | DA40: 0.2448331857 | DB40: 0.2173841333 | DC40: 0.1522392603 | DD40: 0.1794680729 | DE40: 0.1905061741 | DF40: 0.3070929494 | DG40: 0.3210301149 | DH40: 0.2199833716 | DI40: 0.1718702637 | DJ40: 0.2242798354 | DK40: 0.2310957814 | DL40: 0.2601079111 | DM40: 0.218866171 | DN40: 0.2650557621 | DO40: 0.21311945 | DP40: 0.3184235221 | DQ40: 0.1857044555 | DR40: 0.2404046064
BQ41: TACNA | BR41: 0.6834717846 | BU41: SAN MARTIN | BV41: 0.06661710037 | BW41: 0.1230483271 | BX41: 0.193605948 | BY41: 0.2650557621 | BZ41: 0.3335315985 | CA41: 0.3957620818 | CB41: 0.4635687732 | CC41: 0.5341263941 | CD41: 0.6027509294 | CE41: 0.6700371747 | CF41: 0.7332342007 | CG41: 0.7917472119 | CN41: Mayo | CO41: 0.3419503751 | CP41: 0.354065679 | CQ41: 0.3551577153 | CR41: 0.2209309401 | CS41: 0.3602188913 | CT41: 0.3392239541 | CU41: 0.3041571494 | CV41: 0.3356610801 | CW41: 0.3840775823 | CX41: 0.355146388 | CY41: 0.3004982752 | CZ41: 0.3350808213 | DA41: 0.3083480957 | DB41: 0.2740667436 | DC41: 0.1931813858 | DD41: 0.2264129313 | DE41: 0.2338475531 | DF41: 0.4162185052 | DG41: 0.39912759 | DH41: 0.2781337115 | DI41: 0.2185510761 | DJ41: 0.2690329218 | DK41: 0.2942425046 | DL41: 0.3188984654 | DM41: 0.2751703841 | DN41: 0.3335315985 | DO41: 0.2735605844 | DP41: 0.3913043478 | DQ41: 0.2365387924 | DR41: 0.3021891604
BQ42: TUMBES | BR42: 0.8351579606 | BU42: TACNA | BV42: 0.05156115726 | BW42: 0.09739329705 | BX42: 0.1572615296 | BY42: 0.21311945 | BZ42: 0.2735605844 | CA42: 0.3337152678 | CB42: 0.3884273847 | CC42: 0.4419936981 | CD42: 0.5127470639 | CE42: 0.5723288456 | CF42: 0.6287596677 | CG42: 0.6834717846 | CN42: Junio | CO42: 0.402423543 | CP42: 0.4169454496 | CQ42: 0.4173913043 | CR42: 0.2674170977 | CS42: 0.4242207947 | CT42: 0.4022362249 | CU42: 0.3543170397 | CV42: 0.3918761639 | CW42: 0.4553450609 | CX42: 0.4223272788 | CY42: 0.352625527 | CZ42: 0.3954237658 | DA42: 0.3648139947 | DB42: 0.3224476332 | DC42: 0.2259807465 | DD42: 0.2724979938 | DE42: 0.273970686 | DF42: 0.4934998941 | DG42: 0.4671587954 | DH42: 0.3290947327 | DI42: 0.2694755987 | DJ42: 0.3070987654 | DK42: 0.3526134253 | DL42: 0.3739751945 | DM42: 0.3230328377 | DN42: 0.3957620818 | DO42: 0.3337152678 | DP42: 0.4522990303 | DQ42: 0.2848787201 | DR42: 0.356807581
BQ43: UCAYALI | BR43: 0.5625322553 | BU43: TUMBES | BV43: 0.08132624335 | BW43: 0.1582733813 | BX43: 0.245229903 | BY43: 0.3184235221 | BZ43: 0.3913043478 | CA43: 0.4522990303 | CB43: 0.5145448858 | CC43: 0.5752267751 | CD43: 0.640600563 | CE43: 0.7128558023 | CF43: 0.7838598686 | CG43: 0.8351579606 | CN43: Julio | CO43: 0.471321408 | CP43: 0.4798934935 | CQ43: 0.4876385337 | CR43: 0.3187709157 | CS43: 0.4901261004 | CT43: 0.4697493722 | CU43: 0.4085883965 | CV43: 0.4557728119 | CW43: 0.5315741994 | CX43: 0.4899228664 | CY43: 0.4068991951 | CZ43: 0.4598077763 | DA43: 0.4222394449 | DB43: 0.3708285227 | DC43: 0.2585898558 | DD43: 0.3105009744 | DE43: 0.3114352678 | DF43: 0.5695109041 | DG43: 0.5326734334 | DH43: 0.3844573776 | DI43: 0.3249469536 | DJ43: 0.3554526749 | DK43: 0.4162907933 | DL43: 0.4289468152 | DM43: 0.3822026022 | DN43: 0.4635687732 | DO43: 0.3884273847 | DP43: 0.5145448858 | DQ43: 0.3355410287 | DR43: 0.4132371951
BQ44: Total general | BR44: 0.6990666332 | BU44: UCAYALI | BV44: 0.04042662997 | BW44: 0.08111130225 | BX44: 0.133493893 | BY44: 0.1857044555 | BZ44: 0.2365387924 | CA44: 0.2848787201 | CB44: 0.3355410287 | CC44: 0.3856012386 | CD44: 0.4355754344 | CE44: 0.4927748151 | CF44: 0.5328573886 | CG44: 0.5625322553 | CN44: Agosto | CO44: 0.5351413733 | CP44: 0.5474158531 | CQ44: 0.5609548167 | CR44: 0.3642835412 | CS44: 0.564120866 | CT44: 0.5389681148 | CU44: 0.4613978986 | CV44: 0.5261289572 | CW44: 0.6093820478 | CX44: 0.5585137265 | CY44: 0.4649290916 | CZ44: 0.5280144168 | DA44: 0.483318571 | DB44: 0.4176150421 | DC44: 0.2972870134 | DD44: 0.3710879285 | DE44: 0.3596389967 | DF44: 0.6287952573 | DG44: 0.6110225652 | DH44: 0.4437814838 | DI44: 0.3840557745 | DJ44: 0.3976337449 | DK44: 0.4929689573 | DL44: 0.4854249877 | DM44: 0.4350991326 | DN44: 0.5341263941 | DO44: 0.4419936981 | DP44: 0.5752267751 | DQ44: 0.3856012386 | DR44: 0.4723307628
BU45: Total general | BV45: 0.0589829792 | BW45: 0.1139970608 | BX45: 0.1784234507 | BY45: 0.2404046064 | BZ45: 0.3021891604 | CA45: 0.356807581 | CB45: 0.4132371951 | CC45: 0.4723307628 | CD45: 0.530409374 | CE45: 0.5914861617 | CF45: 0.6486259996 | CG45: 0.6990666332 | CN45: Setiembre | CO45: 0.6015002885 | CP45: 0.6156892196 | CQ45: 0.6323955669 | CR45: 0.4135686036 | CS45: 0.640375922 | CT45: 0.6043966457 | CU45: 0.5108268616 | CV45: 0.5954958101 | CW45: 0.6792963464 | CX45: 0.6308368583 | CY45: 0.5314679954 | CZ45: 0.5928899083 | DA45: 0.5420357248 | DB45: 0.467040519 | DC45: 0.3398653019 | DD45: 0.4184913447 | DE45: 0.4004967293 | DF45: 0.6941350836 | DG45: 0.6869390152 | DH45: 0.490585416 | DI45: 0.4401333737 | DJ45: 0.4459876543 | DK45: 0.5577076148 | DL45: 0.5419732324 | DM45: 0.4916356877 | DN45: 0.6027509294 | DO45: 0.5127470639 | DP45: 0.640600563 | DQ45: 0.4355754344 | DR45: 0.530409374
CN46: Octubre | CO46: 0.6739757646 | CP46: 0.6903802827 | CQ46: 0.7045183291 | CR46: 0.4611499848 | CS46: 0.7173447537 | CT46: 0.6777372436 | CU46: 0.5727729557 | CV46: 0.6620111732 | CW46: 0.7564276049 | CX46: 0.7005059302 | CY46: 0.5977002683 | CZ46: 0.6666666667 | DA46: 0.60329938 | DB46: 0.52113915 | DC46: 0.3832426468 | DD46: 0.4759257136 | DE46: 0.4469863924 | DF46: 0.746855812 | DG46: 0.7681402567 | DH46: 0.5386120213 | DI46: 0.5101545923 | DJ46: 0.4974279835 | DK46: 0.6205890157 | DL46: 0.6095928807 | DM46: 0.5455390335 | DN46: 0.6700371747 | DO46: 0.5723288456 | DP46: 0.7128558023 | DQ46: 0.4927748151 | DR46: 0.5914861617
CN47: Noviembre | CO47: 0.7316791691 | CP47: 0.7584488291 | CQ47: 0.768456948 | CR47: 0.5035594767 | CS47: 0.7830121342 | CT47: 0.747382385 | CU47: 0.6337140247 | CV47: 0.7236382682 | CW47: 0.8177717636 | CX47: 0.7661939123 | CY47: 0.6522039095 | CZ47: 0.7302315422 | DA47: 0.6662237969 | DB47: 0.5718841058 | DC47: 0.4188196796 | DD47: 0.5295769804 | DE47: 0.4913771994 | DF47: 0.813974169 | DG47: 0.8419595672 | DH47: 0.5798405634 | DI47: 0.5741133677 | DJ47: 0.5473251029 | DK47: 0.6797559034 | DL47: 0.6783336837 | DM47: 0.5986679058 | DN47: 0.7332342007 | DO47: 0.6287596677 | DP47: 0.7838598686 | DQ47: 0.5328573886 | DR47: 0.6486259996
CN48: Diciembre | CO48: 0.7905366417 | CP48: 0.8228988871 | CQ48: 0.831543052 | CR48: 0.5417097657 | CS48: 0.8455864858 | CT48: 0.805799024 | CU48: 0.6774783006 | CV48: 0.7792132216 | CW48: 0.8928732521 | CX48: 0.8274861077 | CY48: 0.7034879264 | CZ48: 0.7860419397 | DA48: 0.7229111308 | DB48: 0.6190004948 | DC48: 0.4502492295 | DD48: 0.5709618251 | DE48: 0.5323398748 | DF48: 0.8561084057 | DG48: 0.9094035735 | DH48: 0.6211180124 | DI48: 0.6186723249 | DJ48: 0.591563786 | DK48: 0.7413106925 | DL48: 0.7405577745 | DM48: 0.6478469641 | DN48: 0.7917472119 | DO48: 0.6834717846 | DP48: 0.8351579606 | DQ48: 0.5625322553 | DR48: 0.6990666332
BV50: 1 | BW50: 2 | BX50: 3 | BY50: 4 | BZ50: 5 | CA50: 6 | CB50: 7 | CC50: 8 | CD50: 9 | CE50: 10 | CF50: 11 | CG50: 12 | CJ50: MIN | CK50: MAX
BQ51: AMAZONAS | BR51: =+IFERROR(GETPIVOTDATA("ind",$BQ$14,"Diris",$BQ51),"-") -> 0.7905366417 | BU51: AMAZONAS | BV51: =+IFERROR(GETPIVOTDATA("ind",$BU$14,"Diris",$BU51,"mes",BV$50),"-") -> 0.06555106751 | BW51: =+IFERROR(GETPIVOTDATA("ind",$BU$14,"Diris",$BU51,"mes",BW$50),"-") -> 0.1237160992 | BX51: 0.1972302366 | BY51: 0.2642815926 | BZ51: 0.3419503751 | CA51: 0.402423543 | CB51: 0.471321408 | CC51: 0.5351413733 | CD51: 0.6015002885 | CE51: 0.6739757646 | CF51: 0.7316791691 | CG51: 0.7905366417 | CI51: AMAZONAS | CJ51: =+IF(BV51="-","-",MIN(BV51:CG51)) -> 0.06555106751 | CK51: =+IF(BV51="-","-",MAX(BV51:CG51)) -> 0.7905366417
BQ52: ANCASH | BR52: =+IFERROR(GETPIVOTDATA("ind",$BQ$14,"Diris",$BQ52),"-") -> 0.8228988871 | BU52: ANCASH | BV52: =+IFERROR(GETPIVOTDATA("ind",$BU$14,"Diris",$BU52,"mes",BV$50),"-") -> 0.07189185499 | BW52: 0.1356591794 | BX52: 0.2131494504 | BY52: 0.2838123848 | BZ52: 0.354065679 | CA52: 0.4169454496 | CB52: 0.4798934935 | CC52: 0.5474158531 | CD52: 0.6156892196 | CE52: 0.6903802827 | CF52: 0.7584488291 | CG52: 0.8228988871 | CI52: ANCASH | CJ52: =+IF(BV52="-","-",MIN(BV52:CG52)) -> 0.07189185499 | CK52: =+IF(BV52="-","-",MAX(BV52:CG52)) -> 0.8228988871
BQ53: APURIMAC | BR53: 0.831543052 | BU53: APURIMAC | BV53: 0.07382779199 | BW53: 0.1382779199 | BX53: 0.2136402387 | BY53: 0.2823529412 | BZ53: 0.3551577153 | CA53: 0.4173913043 | CB53: 0.4876385337 | CC53: 0.5609548167 | CD53: 0.6323955669 | CE53: 0.7045183291 | CF53: 0.768456948 | CG53: 0.831543052 | CI53: APURIMAC | CJ53: 0.07382779199 | CK53: 0.831543052
BQ54: AREQUIPA | BR54: 0.5417097657 | BU54: AREQUIPA | BV54: 0.04131426833 | BW54: 0.08189838759 | BX54: 0.1249771828 | BY54: 0.1710374201 | BZ54: 0.2209309401 | CA54: 0.2674170977 | CB54: 0.3187709157 | CC54: 0.3642835412 | CD54: 0.4135686036 | CE54: 0.4611499848 | CF54: 0.5035594767 | CG54: 0.5417097657 | CI54: AREQUIPA | CJ54: 0.04131426833 | CK54: 0.5417097657
BQ55: AYACUCHO | BR55: 0.8455864858 | BU55: AYACUCHO | BV55: 0.07625505591 | BW55: 0.1434689507 | BX55: 0.2167499405 | BY55: 0.2925291458 | BZ55: 0.3602188913 | CA55: 0.4242207947 | CB55: 0.4901261004 | CC55: 0.564120866 | CD55: 0.640375922 | CE55: 0.7173447537 | CF55: 0.7830121342 | CG55: 0.8455864858 | CI55: AYACUCHO | CJ55: 0.07625505591 | CK55: 0.8455864858
BQ56: CAJAMARCA | BR56: 0.805799024 | BU56: CAJAMARCA | BV56: 0.07272468849 | BW56: 0.1331785664 | BX56: 0.2028710854 | BY56: 0.269815701 | BZ56: 0.3392239541 | CA56: 0.4022362249 | CB56: 0.4697493722 | CC56: 0.5389681148 | CD56: 0.6043966457 | CE56: 0.6777372436 | CF56: 0.747382385 | CG56: 0.805799024 | CI56: CAJAMARCA | CJ56: 0.07272468849 | CK56: 0.805799024
BQ57: CALLAO | BR57: 0.6774783006 | BU57: CALLAO | BV57: 0.06167199635 | BW57: 0.1167656464 | BX57: 0.1927820923 | BY57: 0.2502512563 | BZ57: 0.3041571494 | CA57: 0.3543170397 | CB57: 0.4085883965 | CC57: 0.4613978986 | CD57: 0.5108268616 | CE57: 0.5727729557 | CF57: 0.6337140247 | CG57: 0.6774783006 | CI57: CALLAO | CJ57: 0.06167199635 | CK57: 0.6774783006
BQ58: CUSCO | BR58: 0.7792132216 | BU58: CUSCO | BV58: 0.0708216946 | BW58: 0.1318086592 | BX58: 0.2051908752 | BY58: 0.2706005587 | BZ58: 0.3356610801 | CA58: 0.3918761639 | CB58: 0.4557728119 | CC58: 0.5261289572 | CD58: 0.5954958101 | CE58: 0.6620111732 | CF58: 0.7236382682 | CG58: 0.7792132216 | CI58: CUSCO | CJ58: 0.0708216946 | CK58: 0.7792132216
BQ59: HUANCAVELICA | BR59: 0.8928732521 | BU59: HUANCAVELICA | BV59: 0.08141632837 | BW59: 0.1538114569 | BX59: 0.2413170952 | BY59: 0.3146143437 | BZ59: 0.3840775823 | CA59: 0.4553450609 | CB59: 0.5315741994 | CC59: 0.6093820478 | CD59: 0.6792963464 | CE59: 0.7564276049 | CF59: 0.8177717636 | CG59: 0.8928732521 | CI59: HUANCAVELICA | CJ59: 0.08141632837 | CK59: 0.8928732521
BQ60: HUANUCO | BR60: 0.8274861077 | BU60: HUANUCO | BV60: 0.07356722236 | BW60: 0.1366011446 | BX60: 0.2143153355 | BY60: 0.284564983 | BZ60: 0.355146388 | CA60: 0.4223272788 | CB60: 0.4899228664 | CC60: 0.5585137265 | CD60: 0.6308368583 | CE60: 0.7005059302 | CF60: 0.7661939123 | CG60: 0.8274861077 | CI60: HUANUCO | CJ60: 0.07356722236 | CK60: 0.8274861077
BQ61: ICA | BR61: 0.7034879264 | BU61: ICA | BV61: 0.0619394404 | BW61: 0.1204292833 | BX61: 0.1862016098 | BY61: 0.2453813722 | BZ61: 0.3004982752 | CA61: 0.352625527 | CB61: 0.4068991951 | CC61: 0.4649290916 | CD61: 0.5314679954 | CE61: 0.5977002683 | CF61: 0.6522039095 | CG61: 0.7034879264 | CI61: ICA | CJ61: 0.0619394404 | CK61: 0.7034879264
BQ62: JUNIN | BR62: 0.7860419397 | BU62: JUNIN | BV62: 0.06782437746 | BW62: 0.1347750109 | BX62: 0.2032546964 | BY62: 0.2723350808 | BZ62: 0.3350808213 | CA62: 0.3954237658 | CB62: 0.4598077763 | CC62: 0.5280144168 | CD62: 0.5928899083 | CE62: 0.6666666667 | CF62: 0.7302315422 | CG62: 0.7860419397 | CI62: JUNIN | CJ62: 0.06782437746 | CK62: 0.7860419397
BQ63: LA LIBERTAD | BR63: 0.7229111308 | BU63: LA LIBERTAD | BV63: 0.06122674934 | BW63: 0.1179140833 | BX63: 0.1835695306 | BY63: 0.2448331857 | BZ63: 0.3083480957 | CA63: 0.3648139947 | CB63: 0.4222394449 | CC63: 0.483318571 | CD63: 0.5420357248 | CE63: 0.60329938 | CF63: 0.6662237969 | CG63: 0.7229111308 | CI63: LA LIBERTAD | CJ63: 0.06122674934 | CK63: 0.7229111308
BQ64: LAMBAYEQUE | BR64: 0.6190004948 | BU64: LAMBAYEQUE | BV64: 0.05481334873 | BW64: 0.1037989994 | BX64: 0.1569080213 | BY64: 0.2173841333 | BZ64: 0.2740667436 | CA64: 0.3224476332 | CB64: 0.3708285227 | CC64: 0.4176150421 | CD64: 0.467040519 | CE64: 0.52113915 | CF64: 0.5718841058 | CG64: 0.6190004948 | CI64: LAMBAYEQUE | CJ64: 0.05481334873 | CK64: 0.6190004948
BQ65: LIMA DIRIS CENTRO | BR65: 0.4502492295 | BU65: LIMA DIRIS CENTRO | BV65: 0.03732734675 | BW65: 0.07374148624 | BX65: 0.11194399 | BY65: 0.1522392603 | BZ65: 0.1931813858 | CA65: 0.2259807465 | CB65: 0.2585898558 | CC65: 0.2972870134 | CD65: 0.3398653019 | CE65: 0.3832426468 | CF65: 0.4188196796 | CG65: 0.4502492295 | CI65: LIMA DIRIS CENTRO | CJ65: 0.03732734675 | CK65: 0.4502492295
BQ66: LIMA DIRIS ESTE | BR66: 0.5709618251 | BU66: LIMA DIRIS ESTE | BV66: 0.04144216439 | BW66: 0.08242577095 | BX66: 0.1304597042 | BY66: 0.1794680729 | BZ66: 0.2264129313 | CA66: 0.2724979938 | CB66: 0.3105009744 | CC66: 0.3710879285 | CD66: 0.4184913447 | CE66: 0.4759257136 | CF66: 0.5295769804 | CG66: 0.5709618251 | CI66: LIMA DIRIS ESTE | CJ66: 0.04144216439 | CK66: 0.5709618251
BQ67: LIMA DIRIS NORTE | BR67: 0.5323398748 | BU67: LIMA DIRIS NORTE | BV67: 0.04547521601 | BW67: 0.08850176654 | BX67: 0.140203589 | BY67: 0.1905061741 | BZ67: 0.2338475531 | CA67: 0.273970686 | CB67: 0.3114352678 | CC67: 0.3596389967 | CD67: 0.4004967293 | CE67: 0.4469863924 | CF67: 0.4913771994 | CG67: 0.5323398748 | CI67: LIMA DIRIS NORTE | CJ67: 0.04547521601 | CK67: 0.5323398748
BQ68: LIMA DIRIS SUR | BR68: 0.8561084057 | BU68: LIMA DIRIS SUR | BV68: 0.06267203049 | BW68: 0.1264874021 | BX68: 0.2150751641 | BY68: 0.3070929494 | BZ68: 0.4162185052 | CA68: 0.4934998941 | CB68: 0.5695109041 | CC68: 0.6287952573 | CD68: 0.6941350836 | CE68: 0.746855812 | CF68: 0.813974169 | CG68: 0.8561084057 | CI68: LIMA DIRIS SUR | CJ68: 0.06267203049 | CK68: 0.8561084057
BQ69: LIMA PROVINCIAS | BR69: 0.9094035735 | BU69: LIMA PROVINCIAS | BV69: 0.08170455499 | BW69: 0.1529234125 | BX69: 0.2347957386 | BY69: 0.3210301149 | BZ69: 0.39912759 | CA69: 0.4671587954 | CB69: 0.5326734334 | CC69: 0.6110225652 | CD69: 0.6869390152 | CE69: 0.7681402567 | CF69: 0.8419595672 | CG69: 0.9094035735 | CI69: LIMA PROVINCIAS | CJ69: 0.08170455499 | CK69: 0.9094035735
BQ70: LORETO | BR70: 0.6211180124 | BU70: LORETO | BV70: 0.04509218956 | BW70: 0.09321660879 | BX70: 0.1545458992 | BY70: 0.2199833716 | BZ70: 0.2781337115 | CA70: 0.3290947327 | CB70: 0.3844573776 | CC70: 0.4437814838 | CD70: 0.490585416 | CE70: 0.5386120213 | CF70: 0.5798405634 | CG70: 0.6211180124 | CI70: LORETO | CJ70: 0.04509218956 | CK70: 0.6211180124
BQ71: MADRE DE DIOS | BR71: 0.6186723249 | BU71: MADRE DE DIOS | BV71: 0.03607153683 | BW71: 0.08214610488 | BX71: 0.1257956957 | BY71: 0.1718702637 | BZ71: 0.2185510761 | CA71: 0.2694755987 | CB71: 0.3249469536 | CC71: 0.3840557745 | CD71: 0.4401333737 | CE71: 0.5101545923 | CF71: 0.5741133677 | CG71: 0.6186723249 | CI71: MADRE DE DIOS | CJ71: 0.03607153683 | CK71: 0.6186723249
BQ72: MOQUEGUA | BR72: 0.591563786 | BU72: MOQUEGUA | BV72: 0.0591563786 | BW72: 0.1116255144 | BX72: 0.1661522634 | BY72: 0.2242798354 | BZ72: 0.2690329218 | CA72: 0.3070987654 | CB72: 0.3554526749 | CC72: 0.3976337449 | CD72: 0.4459876543 | CE72: 0.4974279835 | CF72: 0.5473251029 | CG72: 0.591563786 | CI72: MOQUEGUA | CJ72: 0.0591563786 | CK72: 0.591563786
BQ73: PASCO | BR73: 0.7413106925 | BU73: PASCO | BV73: 0.063677368 | BW73: 0.1212523216 | BX73: 0.1820111435 | BY73: 0.2310957814 | BZ73: 0.2942425046 | CA73: 0.3526134253 | CB73: 0.4162907933 | CC73: 0.4929689573 | CD73: 0.5577076148 | CE73: 0.6205890157 | CF73: 0.6797559034 | CG73: 0.7413106925 | CI73: PASCO | CJ73: 0.063677368 | CK73: 0.7413106925
BQ74: PIURA | BR74: 0.7405577745 | BU74: PIURA | BV74: 0.06793497302 | BW74: 0.1337677808 | BX74: 0.2028589447 | BY74: 0.2601079111 | BZ74: 0.3188984654 | CA74: 0.3739751945 | CB74: 0.4289468152 | CC74: 0.4854249877 | CD74: 0.5419732324 | CE74: 0.6095928807 | CF74: 0.6783336837 | CG74: 0.7405577745 | CI74: PIURA | CJ74: 0.06793497302 | CK74: 0.7405577745
BQ75: PUNO | BR75: 0.6478469641 | BU75: PUNO | BV75: 0.05010842627 | BW75: 0.103082404 | BX75: 0.1645755886 | BY75: 0.218866171 | BZ75: 0.2751703841 | CA75: 0.3230328377 | CB75: 0.3822026022 | CC75: 0.4350991326 | CD75: 0.4916356877 | CE75: 0.5455390335 | CF75: 0.5986679058 | CG75: 0.6478469641 | CI75: PUNO | CJ75: 0.05010842627 | CK75: 0.6478469641
BQ76: SAN MARTIN | BR76: 0.7917472119 | BU76: SAN MARTIN | BV76: 0.06661710037 | BW76: 0.1230483271 | BX76: 0.193605948 | BY76: 0.2650557621 | BZ76: 0.3335315985 | CA76: 0.3957620818 | CB76: 0.4635687732 | CC76: 0.5341263941 | CD76: 0.6027509294 | CE76: 0.6700371747 | CF76: 0.7332342007 | CG76: 0.7917472119 | CI76: SAN MARTIN | CJ76: 0.06661710037 | CK76: 0.7917472119
BQ77: TACNA | BR77: 0.6834717846 | BU77: TACNA | BV77: 0.05156115726 | BW77: 0.09739329705 | BX77: 0.1572615296 | BY77: 0.21311945 | BZ77: 0.2735605844 | CA77: 0.3337152678 | CB77: 0.3884273847 | CC77: 0.4419936981 | CD77: 0.5127470639 | CE77: 0.5723288456 | CF77: 0.6287596677 | CG77: 0.6834717846 | CI77: TACNA | CJ77: 0.05156115726 | CK77: 0.6834717846
BQ78: TUMBES | BR78: 0.8351579606 | BU78: TUMBES | BV78: 0.08132624335 | BW78: 0.1582733813 | BX78: 0.245229903 | BY78: 0.3184235221 | BZ78: 0.3913043478 | CA78: 0.4522990303 | CB78: 0.5145448858 | CC78: 0.5752267751 | CD78: 0.640600563 | CE78: 0.7128558023 | CF78: 0.7838598686 | CG78: 0.8351579606 | CI78: TUMBES | CJ78: 0.08132624335 | CK78: 0.8351579606
